Workbook

Sheet LDC Info
AA3: Algoma Power Inc.
AA4: Atikokan Hydro Inc.
AA5: Attawapiskat Power Corporation
AA6: Bluewater Power Distribution Corp.
AA7: Brant County Power
AA8: Brantford Power Inc.
AA9: Burlington Hydro Inc.
AA10: Cambridge and North Dumfries Hydro
AA11: Canadian Niagara Power Inc. – Eastern Ontario Power/Fort Erie/Port Colborne
AA12: Centre Wellington Hydro Ltd.
AA13: Chapleau Public Utilities Corporation
D14: Utility Name | E14: North Bay Hydro Distribution Limited | AA14: COLLUS Power Corp.
AA15: Cooperative Hydro Embrun Inc.
D16: Assigned EB Number | E16: EB-2014-0099 | AA16: E.L.K. Energy Inc.
AA17: Enersource Hydro Mississauga Inc.
D18: Name of Contact and Title | E18: Melissa Casson, Regulatory Manager | AA18: Entegrus Powerlines Inc.
AA19: ENWIN Utilities Ltd.
D20: Phone Number | E20: 705-474-8100 xt: 300 | AA20: Erie Thames Powerlines Corp.
AA21: Espanola Regional Hydro Distribution Corporation
D22: Email Address | E22: mcasson@northbayhydro.com | AA22: Essex Powerlines Corporation
AA23: Festival Hydro Inc.
D24: Test Year | E24: 2015 | AA24: Fort Albany Power Corporation
AA25: Fort Frances Power Corporation
D26: Bridge Year | E26: =IF(ISBLANK(E24), "", E24-1) -> 2014 | AA26: Greater Sudbury Hydro Inc.
AA27: Grimsby Power Inc.
D28: Last Rebasing Year | E28: 2010 | AA28: Guelph Hydro Electric Systems Inc.
AA29: Haldimand County Hydro Inc.
A30: Identify the accounting standard used for the test year
E31: MIFRS
A33: Did you update your depreciation and capitalization policies?
E34: Yes
A36: When did you update your depreciation and capitalization policies?
E37: 2001-01-01 | F37: 2012
A39: Identify the year that the applicant has adopted or is expected to adopt IFRS for financial reporting purposes
E40: 2015 or Later
A43: Are you applying for cost recovery for the test and/or future year(s) for Green Energy initiatives?
E44: No
A46: ="Is " & E14 & " an embedded distributor?" -> Is North Bay Hydro Distribution Limited an embedded distributor? | E46: Yes
B49: Notes | AA49: Guelph Hydro Electric Systems Inc.
AA50: Halton Hills Hydro Inc.
C51: Pale green cells represent input cells. | AA51: Hearst Power Distribution Co. Ltd.
AA52: Horizon Utilities Corporation
C53: Pale blue cells represent drop-down lists. The applicant should select the appropriate item from the drop-down list. | AA53: Hydro 2000 Inc.
AA54: Hydro Hawkesbury Inc.
C55: White cells contain fixed values, automatically generated values or formulae. | AA55: Hydro One Brampton Networks Inc.
AA56: Hydro One Networks Inc.
AA57: Hydro One Remote Communities Inc.
AA58: Hydro Ottawa Limited
AA59: Innisfil Hydro Dist. Systems Limited
AA60: Kashechewan Power Corporation
AA61: Kenora Hydro Electric Corporation Ltd.
AA62: Kingston Hydro Corporation
AA63: Kitchener-Wilmot Hydro Inc.
AA64: Lakefront Utilities Inc.
AA65: Lakeland Power Distribution Ltd.
AA66: London Hydro Inc.
AA67: Midland Power Utility Corporation
AA68: Milton Hydro Distribution Inc.
AA69: Newmarket – Tay Power Distribution Ltd.
AA70: Niagara Peninsula Energy Inc.
AA71: Niagara-on-the-Lake Hydro Inc.
AA72: Norfolk Power Distribution Ltd.
AA73: North Bay Hydro Distribution Limited
AA74: Northern Ontario Wires Inc.
AA75: Oakville Hydro Distribution Inc.
AA76: Orangeville Hydro Limited
AA77: Orillia Power Distribution Corp.
AA78: Oshawa PUC Networks Inc.
AA79: Ottawa River Power Corporation
AA80: Parry Sound Power Corporation
AA81: Peterborough Distribution Inc.
AA82: PowerStream Inc.
AA83: PUC Distribution Inc.
AA84: Renfrew Hydro Inc.
AA85: Rideau St. Lawrence Distribution Inc.
AA86: St. Thomas Energy Inc.
AA87: Sioux Lookout Hydro Inc.
AA88: Thunder Bay Hydro Electricity Distribution
AA89: Tillsonburg Hydro Inc.
AA90: Toronto Hydro-Electric System Limited
AA91: Veridian Connections Inc.
AA92: Wasaga Distribution Inc.
AA93: Waterloo North Hydro Inc.
AA94: Welland Hydro Electric System Corp.
AA95: Wellington North Power Inc.
AA96: West Coast Huron Energy Inc.
AA97: Westario Power Inc.
AA98: Whitby Hydro Electric Corporation
AA99: Woodstock Hydro Services Inc.

Sheet COS Flowchart
B4: Cost of Service Rate Application Schematic
B6: The Cost of Service Rate Application Schematic is a flowchart appended to Chapter 2 of the Filing Requirements as a guide for the components of an application and how demand and costs interrelate to derive the revenue requirement and then how the revenue requirement is allocated between classes and through fixed/variable splits to derive rates that will be compensatory for the annual revenue requirement, based on the the forecasted demand. There is no form to be filled out; therefore, this Schedule is not required to be filed.

Sheet List of Key References
B3: List of Key References
A5: A list of key references for understanding the Filing Requirements has been embedded in the document below. To access the list of references and associated hyperlinks doublt click the icon below.

Sheet Table of Contents
A15: 1 | B15: LDC Information Sheet | E15: 26 | F15: App.2-FC: Calculation of Renewable Generation Connection Direct Benefits/Provincial Amount: Renewable Expansion Investments
A16: 2 | B16: Index | E16: 27 | F16: App.2-G: Service Reliability Indicators
A17: 3 | B17: Cost of Service Application Flowchart | E17: 28 | F17: App.2-H: Other Operating Revenue
A18: 4 | B18: List of Key References | E18: 29 | F18: App.2-I: Load Forecast CDM Adjustment Workform
A19: 5 | B19: App.2-AA: Capital Projects Table | E19: 30 | F19: App.2-IA: Actual and Forecast Load and Customer Data
A20: 6 | B20: App.2-AB: Capital Expenditures | E20: 31 | F20: App.2-JA: OM&A Summary Analysis
A21: 7 | B21: App. 2-AC: Customer Engagement Worksheet | E21: 32 | F21: App.2-JB: Recoverable OM&A Cost Driver Table
A22: 8 | B22: App.2-B: General Accounting Instructions | E22: 33 | F22: App.2-JC: OMA Programs Table
A23: 9 | B23: App.2-BA: Fixed Asset Continuity Schedule | E23: 34 | F23: App.2-K: Employee Costs
A24: 10 | B24: Appendix 2-BB: Service Life Comparison | E24: 35 | F24: App.2-L: Recoverable OM&A Cost per Customer and per FTE
A25: 11 | B25: App.2-CA: 2012 Depreciation and Amortization Expense (Old CGAAP) | E25: 36 | F25: App.2-M: Regulatory Costs Schedule
A26: 12 | B26: App.2-CB: 2012 Depreciation and Amortization Expense (New CGAAP) | E26: 37 | F26: App.2-N: Shared Servcies and Corporate Cost Allocation
A27: 13 | B27: App.2-CC: 2013 Depreciation and Amortization Expense (New CGAAP) | E27: 38 | F27: App.2-OA: Capital Structure and Cost of Capital
A28: 14 | B28: App.2-CD: 2014 Depreciation and Amortization Expense (MIFRS) | E28: 39 | F28: App.2-OB: Debt Instruments
A29: 15 | B29: App.2-CE: 2015 Depreciation and Amortization Expense (MIFRS) | E29: 40 | F29: App.2-P: Cost Allocation
A30: 16 | B30: App.2-CF: 2013 Depreciation and Amortization Expense (Old CGAAP) | E30: 41 | F30: App.2-Q: Cost of Serving Embedded Distributor(s)
A31: 17 | B31: App.2-CG: 2013 Depreciation and Amortization Expense (New CGAAP) | E31: 42 | F31: App.2-R: Loss Factors
A32: 18 | B32: App.2-CH: 2014 Depreciation and Amortization Expense (MIFRS) | E32: 43 | F32: App.2-S: Stranded Meter Treatment
A33: 19 | B33: App.2-CI: 2015 Depreciation and Amortization Expense (MIFRS) | E33: 44 | F33: App.2-TA: Account 1592, PILs and Tax Variances
A34: 20 | B34: App.2-D: Overhead Expenses | E34: 45 | F34: App.2-TB: Account 1592, HST-OVAT Input Tax Credits
A35: 21 | B35: App.2-EA: Account 1575 PP&E Deferral Account (2015 IFRS Adopters) | E35: 46 | F35: App.2-U: One-Time Incremental IFRS Transition Costs
A36: 22 | B36: App.2-EB: Account 1576 - Accounting Changes Under CGAAP (2012 Changes) | E36: 47 | F36: App.2-V: Revenue Reconciliation
A37: 23 | B37: App.2-EC: Account 1576 - Accounting Changes Under CGAAP (2013 Changes) | E37: 48 | F37: App.2-W: Bill Impacts
A38: 24 | B38: App.2-FA: Renewable Generation Connection Investment Summary | E38: 49 | F38: App.2-Y: Transition to MIFRS Summary Impact
A39: 25 | B39: App.2-FB: Calculation of Renewable Generation Connection Direct Benefits/Provincial Amount: Renewable Enabling Improvement Investments | E39: 50 | F39: App. 2-Z: Tariff Schedule

Sheet App.2-AA_Capital Projects
H1: File Number: | I1: EB-2014-0099
H2: Exhibit: | I2: 2
H4: Date: | I4: 2014-12-12
A9: Appendix 2-AA
A10: Capital Projects Table
C13: =C14-C148 -> 0 | D13: =D14-D148 -> 0 | E13: =E14-E148 -> 0 | F13: =F14-F148 -> 0 | G13: =G14-G148+G146 -> 0 | H13: =H14-H148+H146 -> -1.28056854e-09
C14: 6086019.47 | D14: 7018958.546 | E14: 4641728.43 | F14: 5358224.064 | G14: 7143761.968 | H14: 7757956.013
A15: Projects | C15: 2010 - Total Actual | D15: 2011 - Total Actual | E15: 2012 - Total Actual | F15: 2013 - Total Actual | G15: 2014 - Total Forecast | H15: 2015 - Total Forecast | I15: Total by Project
A16: Reporting Basis | C16: CGAAP | D16: CGAAP | E16: CGAAP | F16: CGAAP | G16: MIFRS | H16: MIFRS
A17: System Renewal:
A18: Transformer Purchases - Various Jobs | C18: 353555.8466 | D18: 306733.6117 | E18: 167494.5683 | F18: 154511.9846 | G18: 262330.0381 | H18: 284134.913 | I18: =SUM(C18:H18) -> 1528760.962
A19: Major Betterment Projects
A20: Mercer Drive | C20: 293011.202 | D20: 3254.500495 | E20: 165.1921164 | F20: 0 | G20: 0 | H20: 0 | I20: =SUM(C20:H20) -> 296430.8946
A21: O'Brien Street - 44kV Line Extension | C21: 210977.7843 | D21: 0 | E21: 0 | F21: 0 | G21: 0 | H21: 0 | I21: 210977.7843
A22: Norman Avenue | C22: 13779.05424 | D22: 2295.897542 | E22: 0 | F22: 915.7517633 | G22: 286401.9946 | H22: 0 | I22: 303392.6982
A23: Birch's Road - move 12kV to new pole line | C23: 3156.480341 | D23: 232480.1334 | E23: 32286.96318 | F23: 1251.321522 | G23: 0 | H23: 0 | I23: 269174.8984
A24: Bond Street | C24: 0 | D24: 0 | E24: 0 | F24: 60.53962734 | G24: 142286.9621 | H24: 0 | I24: 142347.5017
A25: Giroux Street | C25: 0 | D25: 0 | E25: 0 | F25: 198603.2089 | G25: 3630.59417 | H25: 0 | I25: 202233.8031
A26: Turret Complex - Madelena | C26: 0 | D26: 0 | E26: 0 | F26: 105.2145725 | G26: 0 | H26: 529572.3962 | I26: 529677.6108
A27: Turret Complex - Melina Close | C27: 0 | D27: 0 | E27: 0 | F27: 105.2145725 | G27: 0 | H27: 293305.9454 | I27: 293411.16
A28: Turret Complex - Lake Heights | C28: 0 | D28: 0 | E28: 0 | F28: 210.4714507 | G28: 190379.9525 | H28: 0 | I28: 190590.424
A29: Turret Complex - Wickstead | C29: 0 | D29: 0 | E29: 0 | F29: 105.2145725 | G29: 0 | H29: 436521.0442 | I29: 436626.2588
A30: Voltage Conversion Projects
A31: Timmins & Nipissing - Upgrade Polelines for MS19 | C31: 165702.6023 | D31: 0 | E31: 0 | F31: 0 | G31: 0 | H31: 0 | I31: 165702.6023
A32: King Street West | C32: 0 | D32: 0 | E32: 0 | F32: 959.1786868 | G32: 167430.5811 | H32: 0 | I32: 168389.7598
A33: Duke Street | C33: 111137.8274 | D33: 103746.8538 | E33: 0 | F33: 0 | G33: 0 | H33: 0 | I33: 214884.6811
A34: Victoria Avenue | C34: 12648.59593 | D34: 140364.6098 | E34: 6925.084218 | F34: 0 | G34: 0 | H34: 0 | I34: 159938.29
A35: Queen Street, including 3PH | C35: 0 | D35: 1284.973897 | E35: 1870.004389 | F35: 856.491887 | G35: 146131.6216 | H35: 0 | I35: 150143.0918
A36: Sixth Avenue | C36: 0 | D36: 65078.69846 | E36: 233.5759381 | F36: 0 | G36: 0 | H36: 0 | I36: 65312.27439
A37: Old Callander Road | C37: 0 | D37: 34240.32361 | E37: 712070.195 | F37: -2452.288542 | G37: 0 | H37: 0 | I37: 743858.23
A38: Graham Drive | C38: 0 | D38: 141589.2525 | E38: 80380.21921 | F38: 12988.18265 | G38: 0 | H38: 0 | I38: 234957.6544
A39: Drew Street | C39: 0 | D39: 5669.168214 | E39: 133863.5956 | F39: 94588.51407 | G39: 0 | H39: 0 | I39: 234121.2779
A40: 6F4 Area - Preparation for Voltage Conversion | C40: 0 | D40: 0 | E40: 43382.38111 | F40: 56580.35263 | G40: 0 | H40: 0 | I40: 99962.73374
A41: Cassells Street | C41: 0 | D41: 0 | E41: 9229.07507 | F41: 141990.0587 | G41: 0 | H41: 0 | I41: 151219.1337
A42: MS # 5 - 22kV & Primary Removals | C42: 73518.67145 | D42: 35317.01343 | E42: 36.9750964 | F42: 0 | G42: 0 | H42: 0 | I42: 108872.66
A43: Worthington Street | C43: 305617.3519 | D43: 562245.8988 | E43: 93460.08019 | F43: 4606.151835 | G43: 1816.651996 | H43: 0 | I43: 967746.1347
A44: NB TS Egress - including Angus | C44: 0 | D44: 245370.2929 | E44: 17323.5311 | F44: 0 | G44: 0 | H44: 0 | I44: 262693.824
A45: Angus Street | C45: 0 | D45: 0 | E45: 184627.0165 | F45: 49088.84874 | G45: 0 | H45: 0 | I45: 233715.8653
A46: 6F1 - Conversion
A47: Brookes Street | C47: 0 | D47: 0 | E47: 0 | F47: 362.9839291 | G47: 62810.58353 | H47: 0 | I47: 63173.56746
A48: Hardy Street | C48: 0 | D48: 0 | E48: 0 | F48: 251.4657896 | G48: 90935.19617 | H48: 0 | I48: 91186.66196
A49: Maher Street | C49: 0 | D49: 0 | E49: 0 | F49: 242.010439 | G49: 96357.17031 | H49: 0 | I49: 96599.18075
A50: Laurier Street | C50: 0 | D50: 0 | E50: 0 | F50: 83311.48018 | G50: 0 | H50: 0 | I50: 83311.48018
A51: Franklin Street | C51: 0 | D51: 0 | E51: 0 | F51: 1287.292044 | G51: 223400.4406 | H51: 0 | I51: 224687.7327
A52: McGaughey Street | C52: 0 | D52: 0 | E52: 5350.425555 | F52: 132323.3165 | G52: 364.8406164 | H52: 0 | I52: 138038.5826
A53: Hammond Street | C53: 0 | D53: 0 | E53: 10544.45301 | F53: 187744.7223 | G53: 52270.77927 | H53: 0 | I53: 250559.9546
A54: Metcalfe Street | C54: 0 | D54: 0 | E54: 650.6622215 | F54: 43373.45947 | G54: 356858.5618 | H54: 0 | I54: 400882.6835
A55: Chippewa Street | C55: 0 | D55: 0 | E55: 0 | F55: 189177.0176 | G55: 0 | H55: 0 | I55: 189177.0176
A56: MS21 Egress Work | C56: 0 | D56: 0 | E56: 0 | F56: 112819.5088 | G56: 364.8620379 | H56: 0 | I56: 113184.3709
A57: Fourth Avenue | C57: 0 | D57: 0 | E57: 0 | F57: 1399.814947 | G57: 0 | H57: 147188.396 | I57: 148588.2109
A58: Fifth Avenue | C58: 0 | D58: 0 | E58: 0 | F58: 638.6803766 | G58: 0 | H58: 154232.3181 | I58: 154870.9985
A59: Fraser South - 12kV | C59: 0 | D59: 0 | E59: 0 | F59: 0 | G59: 0 | H59: 116033.6933 | I59: 116033.6933
A60: McIntyre Street | C60: 0 | D60: 0 | E60: 0 | F60: 1050.125622 | G60: 0 | H60: 452968.9689 | I60: 454019.0945
A61: Ferguson Street | C61: 0 | D61: 0 | E61: 0 | F61: 0 | G61: 636.3048275 | H61: 278779.5476 | I61: 279415.8524
A62: First Avenue | C62: 0 | D62: 0 | E62: 0 | F62: 0 | G62: 814.4140548 | H62: 136126.1218 | I62: 136940.5358
A63: Regina Street | C63: 0 | D63: 0 | E63: 0 | F63: 0 | G63: 784.6381421 | H63: 81247.55371 | I63: 82032.19185
A64: Main Street West | C64: 0 | D64: 0 | E64: 0 | F64: 0 | G64: 422.0682068 | H64: 215216.9654 | I64: 215639.0336
A65: Sherbrooke Street | C65: 0 | D65: 0 | E65: 0 | F65: 0 | G65: 0 | H65: 112821.9117 | I65: 112821.9117
A66: Second Avenue | C66: 77509.81199 | D66: 112.8306173 | E66: 125.5184941 | F66: 0 | G66: 0 | H66: 0 | I66: 77748.1611
A67: Pinewood Voltage Conversion - Civil & Prep | C67: 1571932.405 | D67: 2913.012582 | E67: 7049.745533 | F67: 0 | G67: 0 | H67: 0 | I67: 1581895.163
A68: Pinewood Voltage Conversion - Electrical | C68: 1140593.989 | D68: 217726.3449 | E68: 18053.45591 | F68: 0 | G68: 0 | H68: 0 | I68: 1376373.789
A69: Minor Betterment Projects | C69: 69504.35722 | D69: 89896.48287 | E69: 120394.7341 | F69: 251724.2147 | G69: 86676.09885 | H69: 106590.6375 | I69: 724786.5252
A70: Porcelain Switch & Insulator Replacement | C70: 65164.49088 | D70: 21693.70194 | E70: 100695.5584 | F70: 8900.456899 | G70: 101670.5046 | H70: 0 | I70: 298124.7127
A71: Asset Management | C71: 40289.72224 | D71: 182289.7045 | E71: 1986.390225 | F71: 27751.59151 | G71: 24065.93157 | H71: 0 | I71: 276383.3401
A72: Distribution Substation Construction
A73: MS# 19 - Replacement MS# 5 | C73: 68468.06 | D73: 59.66 | E73: 20190.63 | F73: 0 | G73: 0 | H73: 0 | I73: 88718.35
A74: MS# 20 - Replacement MS# 12 | C74: 68598.66 | D74: 2058741.6 | E74: 40126.44 | F74: 0 | G74: 0 | H74: 0 | I74: 2167466.7
A75: MS# 21 - Replacement MS# 6 | C75: 0 | D75: 0 | E75: 73961.56 | F75: 1312183.546 | G75: 31906.75 | H75: 0 | I75: 1418051.856
A76: MS# 22 - Replacement MS# 9 | C76: 0 | D76: 0 | E76: 0 | F76: 0 | G76: 679396 | H76: 1781297.446 | I76: 2460693.446
A77: Distribution Substation Improvements & Rehabilitation
A78: MS# 8 | C78: 194134.13 | D78: 14480.44 | E78: 0 | F78: 0 | G78: 0 | H78: 0 | I78: 208614.57
A79: MS# 14 | C79: 7818.58 | D79: 160717.97 | E79: 104374.59 | F79: 0 | G79: 0 | H79: 0 | I79: 272911.14
A80: MS# 15 | C80: 0 | D80: 0 | E80: 0 | F80: 0 | G80: 226415.9514 | H80: 0 | I80: 226415.9514
A81: MS# 16 | C81: 0 | D81: 0 | E81: 9491.62 | F81: 798828.58 | G81: 84375.68 | H81: 0 | I81: 892695.88
A82: Distribution Substation Transformers
A83: 8T1 Failure - December 2008 - Insurance Proceeds | C83: -92392.04 | D83: 0 | E83: 0 | F83: 0 | G83: 0 | H83: 0 | I83: -92392.04
A84: 17T1 Failure - October 2010 | C84: 62525.71 | D84: 262229.43 | E84: 25726.75 | F84: 333.42 | G84: 0 | H84: 0 | I84: =SUM(C84:H84) -> 350815.31
A85: 13T2 Failure - October 2011 | C85: 0 | D85: 0 | E85: 186033.98 | F85: 11567.87 | G85: 0 | H85: 0 | I85: 197601.85
A86: MS# 1 - Transformer Replacement - T1 | C86: 0 | D86: 0 | E86: 0 | F86: 0 | G86: 278506.3172 | H86: 0 | I86: 278506.3172
A87: MS# 13 - Transformer Replacement - T1 | C87: 0 | D87: 0 | E87: 0 | F87: 0 | G87: 0 | H87: 271470.3755 | I87: 271470.3755
A88: Distribution Substation SCADA
A89: SCADA - implementation of new radio system for SCADA | C89: 0 | D89: 0 | E89: 2835 | F89: 1440 | G89: 368822.3172 | H89: 0 | I89: 373097.3172
A90: Misc. Projects <$65k on individual project basis | C90: 347505.315 | D90: 164621.136 | E90: 102806.3342 | F90: 115250.7683 | G90: 200640.3404 | H90: 71896.68832 | I90: 1002720.582
A92: Sub-Total, System Renewal | C92: =SUM(C18:C90) -> 5164758.607 | D92: 5055153.542 | E92: 2313746.305 | F92: 3997036.738 | G92: 4168904.147 | H92: 5469404.922 | I92: =SUM(I18:I90) -> 26169004.26
A93: System Service:
A94: Highway 11 North - Voltage Regulator Installation & Metering Upgrade | C94: 0 | D94: 0 | E94: 90347.03269 | F94: 0 | G94: 0 | H94: 0 | I94: =SUM(C94:H94) -> 90347.03269
A95: Copeland St. - 44kV Loadbreak Switches | C95: 64599.83724 | D95: 0 | E95: 0 | F95: 0 | G95: 0 | H95: 0 | I95: 64599.83724
A96: IESO Meter Installations - 44kv Metering
A97: Bond St., O'Brien St., 15M1/15M2 for NBTS Conversion to 44kV | C97: 137585 | D97: 103671.16 | E97: 3344.43 | F97: 1831.47 | G97: 0 | H97: 0 | I97: 246432.06
A98: Meters Installs and Upgrades - Smart Meters | C98: 111422.68 | D98: 100945.45 | E98: 43439.16 | F98: 62040.24 | G98: 15000 | H98: 15000 | I98: 347847.53
A99: Capital Infrastructure Modernization | C99: 0 | D99: 0 | E99: 533.28 | F99: 263.45 | G99: 148141.4893 | H99: 199213.1744 | I99: 348151.3938
A100: Misc. Projects <$65k on individual project basis
A101: Meters | C101: 38027.67 | D101: 33543.63 | E101: 2760 | F101: 41351.63 | G101: 10000 | H101: 10000 | I101: 135682.93
A102: Substations, SCADA and Misc. Projects | C102: 22475.42 | D102: 51185.4 | E102: 39757.28 | F102: 9986.47 | G102: 22822.31723 | H102: 15735.18777 | I102: 161962.075
A103: Major & Minor Betterment Projects | C103: 22379.50745 | D103: 371.4380136 | E103: 20726.25952 | F103: 25655.23349 | G103: 9348.871674 | H103: 9851.110371 | I103: 88332.42052
A104: Feeder Conversion Projects - 5 Individual Projects <$65k/project | C104: 0 | D104: 0 | E104: 0 | F104: 0 | G104: 1466.623121 | H104: 123445.3401 | I104: 124911.9632
A105: 18F1, 18F2, 18F3, 7F2, and 1F1
A107: Sub-Total, System Service | C107: =SUM(C94:C104) -> 396490.1147 | D107: =SUM(D94:D104) -> 289717.078 | E107: 200907.4422 | F107: 141128.4935 | G107: 206779.3014 | H107: 373244.8127 | I107: 1608267.242
A108: System Access:
A109: Transformer Purchases - Various Jobs | C109: 93439.22343 | D109: 156987.6083 | E109: 187612.3417 | F109: 115376.8854 | G109: 106872.3859 | H109: 95112.86299 | I109: =SUM(C109:H109) -> 755401.3076
A110: Major Betterment Projects
A111: Aerospace Park - 44kV & 12kV Line Extension | C111: 0 | D111: 0 | E111: 496321.2597 | F111: 9124.607247 | G111: 0 | H111: 0 | I111: 505445.867
A112: Voodoo Cres. - 12.5kV and 44kV Line Extension | C112: 0 | D112: 0 | E112: 130919.0396 | F112: 83482.04985 | G112: 0 | H112: 0 | I112: 214401.0895
A113: Minor Betterment Projects | C113: 292314.4838 | D113: 207131.8884 | E113: 268940.8255 | F113: 288085.5114 | G113: 198147.2841 | H113: 230102.4944 | I113: 1484722.488
A114: Bell FSA Project | C114: 0 | D114: 0 | E114: 0 | F114: 459690.5151 | G114: 744212.4047 | H114: 0 | I114: 1203902.92
A115: Primary Services Projects | C115: 46683.26624 | D115: 121507.6523 | E115: 137329.3821 | F115: 198662.9749 | G115: 135951.6747 | H115: 217820.0796 | I115: 857955.0299
A116: Gormanville Rd - OPP 44Kv Service & Other 44Kv Work | C116: 0 | D116: 78298.03576 | E116: 73.50890347 | F116: 0 | G116: 0 | H116: 0 | I116: 78371.54466
A117: Aerospace Park - Condo Development | C117: 0 | D117: 0 | E117: 7833.147694 | F117: 182306.8438 | G117: 0 | H117: 0 | I117: 190139.9915
A118: 100 Chippewa West - Memorial Gardens | C118: 0 | D118: 0 | E118: 0 | F118: 92019.26916 | G118: 0 | H118: 0 | I118: 92019.26916
A119: Thompson Park - New Primary Service | B119: 76790.6 | C119: 0 | D119: 0 | E119: 0 | F119: 81213.3089 | G119: 0 | H119: 0 | I119: 81213.3089
A120: Secondary Services | C120: 299562.5919 | D120: 404424.8692 | E120: 288463.4232 | F120: 204300.8415 | G120: 361791.6848 | H120: 249364.8794 | I120: 1807908.29
A121: Subdivisions | C121: 108128.9863 | D121: 109429.4044 | E121: 71947.84186 | F121: 104728.5926 | G121: 110975.2355 | H121: 100973.1416 | I121: 606183.2023
A122: Road Relocations Projects | G122: 103218.1123 | H122: 212218.1735 | I122: 315436.2858
A123: Algonquin Ave. - Cassels x Copeland | C123: 246093.9681 | D123: 164.0159592 | E123: 0 | F123: 0 | G123: 0 | H123: 0 | I123: 246257.984
A124: Front St. - McLeod x Second | C124: 161830.4166 | D124: 0 | E124: 0 | F124: 0 | G124: 0 | H124: 0 | I124: 161830.4166
A125: Main St. | C125: 0 | D125: 48407.89854 | E125: 184610.4104 | F125: 6307.26036 | G125: 0 | H125: 0 | I125: 239325.5693
A126: John St. | C126: 0 | D126: 0 | E126: 90053.17896 | F126: 176.5336581 | G126: 0 | H126: 0 | I126: 90229.71262
A127: Misc. <$65k on individual project basis | C127: 35206.87182 | D127: 182131.3232 | E127: 158670.9733 | F127: 33059.62905 | G127: 39698.5671 | H127: 38112.01634 | I127: 486879.3809
A129: Sub-Total, System Access | C129: =SUM(C109:C127) -> 1283259.808 | D129: 1308482.696 | E129: 2022775.333 | F129: 1858534.823 | G129: 1800867.349 | H129: 1143703.648 | I129: =SUM(I109:I127) -> 9417623.657
A130: General Plant
A131: Building & General Office Upgrades, including Furniture | C131: 12656.32 | D131: 13858 | E131: 63237 | F131: 11531.7 | G131: 71115.87 | H131: 26300 | I131: =SUM(C131:H131) -> 198698.89
A132: HVAC System | C132: 0 | D132: 0 | E132: 4200 | F132: 148769 | G132: 149427 | H132: 0 | I132: 302396
A133: Generator | C133: 0 | D133: 0 | E133: 0 | F133: 0 | G133: 166800 | H133: 0 | I133: 166800
A134: Customer Service Entrance & Department Renovation | C134: 0 | D134: 154297.4 | E134: 149443.06 | F134: 0 | G134: 0 | H134: 0 | I134: 303740.46
A135: Operations Facility Upgrades - Garage, Yard, Driveway & Warehouse | C135: 0 | D135: 0 | E135: 17800 | F135: 3945 | G135: 126995 | H135: 36651.87 | I135: 185391.87
A136: Fleet Replacement - Bucket Trucks, Radial Boom Devices & Trailers | C136: 0 | D136: 289661 | E136: 137945.74 | F136: 12207.02 | G136: 100063 | H136: 370000 | I136: 909876.76
A137: Fleet Replacement - Vehicles < 3 Ton | C137: 64702.7 | D137: 73801.46 | E137: 116478.02 | F137: 49093.65 | G137: 53000 | H137: 145000 | I137: 502075.83
A138: Work Equipment | C138: 27750.59 | D138: 66984.97 | E138: 21427.27 | F138: 74018.94 | G138: 46999.76 | H138: 46150.76 | I138: 283332.29
A139: Servers, PC, Other Hardware | C139: 18782.61 | D139: 162086.85 | E139: 181607.59 | F139: 7832.11 | G139: 80600 | H139: 126500 | I139: 577409.16
A140: Software | C140: 22619.99 | D140: 69045 | E140: 88088.66 | F140: 116065.5 | G140: 172210.54 | H140: 21000 | I140: 489029.69
A142: Sub-Total | C142: =SUM(C131:C141) -> 146512.21 | D142: 829734.68 | E142: 780227.34 | F142: 423462.92 | G142: 967211.17 | H142: 771602.63 | I142: =SUM(I131:I141) -> 3918750.95
A143: Contributed Capital
A144: Contributed Capital from Customers | C144: -905001.27 | D144: -464129.45 | E144: -675927.99 | F144: -1061938.91 | G144: -1128076.847 | H144: -503986.5896 | I144: =SUM(C144:H144) -> -4739061.056
A146: Sub-Total | C146: =SUM(C144:C145) -> -905001.27 | D146: -464129.45 | E146: -675927.99 | F146: -1061938.91 | G146: -1128076.847 | H146: -503986.5896 | I146: -4739061.056
A147: Miscellaneous | C147: 0 | D147: 0 | E147: 0 | F147: 0 | G147: 0 | H147: 0 | I147: 0
A148: Total | C148: =C146+C142+C129+C107+C92 -> 6086019.47 | D148: 7018958.546 | E148: 4641728.43 | F148: 5358224.064 | G148: 6015685.121 | H148: 7253969.423 | I148: 36374585.05
A149: Less Renewable Generation Facility Assets and Other Non Rate-Regulated Utility Assets (input as negative) | C149: 0 | D149: 0 | E149: 0 | F149: 0 | G149: 0 | H149: 0 | I149: 0
A150: Total | C150: =C148+C149 -> 6086019.47 | D150: 7018958.546 | E150: 4641728.43 | F150: 5358224.064 | G150: 6015685.121 | H150: 7253969.423 | I150: 36374585.05

Sheet App.2-AB_Capital Expenditures
S1: File Number: | U1: =EBNUMBER -> EB-2014-0099
S2: Exhibit: | U2: 2
S4: Date: | U4: ='App.2-AA_Capital Projects'!$I$4 -> 2014-12-12
A6: Appendix 2-AB
A7: Table 2 - Capital Expenditure Summary from Chapter 5 Consolidated Distribution System Plan Filing Requirements
A9: First year of Forecast Period: | B9: =TestYear -> 2015
A10: CATEGORY | B10: Historical Period (previous plan1 & actual) | Q10: Forecast Period (planned)
B11: =E11-1 -> 2010 | E11: =H11-1 -> 2011 | H11: =K11-1 -> 2012 | K11: =N11-1 -> 2013 | N11: =Q11-1 -> 2014 | Q11: =B9 -> 2015 | R11: =Q11+1 -> 2016 | S11: =R11+1 -> 2017 | T11: 2018 | U11: 2019
B12: Plan | C12: Actual | D12: Var | E12: Plan | F12: Actual | G12: Var | H12: Plan | I12: Actual | J12: Var | K12: Plan | L12: Actual | M12: Var | N12: Plan | O12: Actual2 | P12: Var
B13: $ '000 | D13: % | E13: $ '000 | G13: % | H13: $ '000 | J13: % | K13: $ '000 | M13: % | N13: $ '000 | P13: % | Q13: $ '000
A14: System Access | B14: N/A | C14: 1283259.808 | D14: =IF(ISERROR((C14-B14)/B14),"--",(C14-B14)/B14) -> -- | E14: N/A | F14: 1308482.696 | G14: =IF(ISERROR((F14-E14)/E14),"--",(F14-E14)/E14) -> -- | H14: N/A | I14: 2022775.333 | J14: =IF(ISERROR((I14-H14)/H14),"--",(I14-H14)/H14) -> -- | K14: N/A | L14: 1858534.823 | M14: =IF(ISERROR((L14-K14)/K14),"--",(L14-K14)/K14) -> -- | N14: N/A | O14: 1800867.349 | P14: =IF(ISERROR((O14-N14)/N14),"--",(O14-N14)/N14) -> -- | Q14: 1143703.648 | R14: 1166577.721 | S14: 1189909.275 | T14: 1213707.461 | U14: 1237981.61
A15: System Renewal | B15: N/A | C15: 5164758.607 | D15: =IF(ISERROR((C15-B15)/B15),"--",(C15-B15)/B15) -> -- | E15: N/A | F15: 5055153.542 | G15: =IF(ISERROR((F15-E15)/E15),"--",(F15-E15)/E15) -> -- | H15: N/A | I15: 2313746.305 | J15: =IF(ISERROR((I15-H15)/H15),"--",(I15-H15)/H15) -> -- | K15: N/A | L15: 3997036.738 | M15: =IF(ISERROR((L15-K15)/K15),"--",(L15-K15)/K15) -> -- | N15: N/A | O15: 4168904.147 | P15: =IF(ISERROR((O15-N15)/N15),"--",(O15-N15)/N15) -> -- | Q15: 5469404.922 | R15: 4180343.18 | S15: 4235740.768 | T15: 4266049.246 | U15: 4054266.163
A16: System Service | B16: N/A | C16: 396490.1147 | D16: -- | E16: N/A | F16: 289717.078 | G16: -- | H16: N/A | I16: 200907.4422 | J16: -- | K16: N/A | L16: 141128.4935 | M16: -- | N16: N/A | O16: 206779.3014 | P16: -- | Q16: 373244.8127 | R16: 214742.6275 | S16: 127301.78 | T16: 89043.5156 | U16: 135917.9859
A17: General Plant | B17: N/A | C17: 146512.21 | D17: -- | E17: N/A | F17: 829734.68 | G17: -- | H17: N/A | I17: 780227.34 | J17: -- | K17: N/A | L17: 423462.92 | M17: -- | N17: N/A | O17: 967211.17 | P17: -- | Q17: 771602.63 | R17: 373400 | S17: 549000 | T17: 350700 | U17: 642000
A18: TOTAL EXPENDITURE | B18: =SUM(B14:B17) -> 0 | C18: =SUM(C14:C17) -> 6991020.74 | D18: -- | E18: 0 | F18: 7483087.996 | G18: -- | H18: 0 | I18: 5317656.42 | J18: -- | K18: 0 | L18: 6420162.974 | M18: -- | N18: 0 | O18: 7143761.968 | P18: -- | Q18: 7757956.013 | R18: 5935063.528 | S18: 6101951.823 | T18: 5919500.223 | U18: =SUM(U14:U17) -> 6070165.759
A19: System O&M | C19: 1936424.08 | D19: -- | F19: 2069185 | G19: -- | I19: 2131247 | J19: -- | L19: 2295159 | M19: -- | O19: 2497109 | P19: -- | Q19: 2809535.743
A21: Notes to the Table:
A22: 1. Historical “previous plan” data is not required unless a plan has previously been filed
A23: 2. Indicate the number of months of 'actual' data included in the last year of the Historical Period (normally a 'bridge' year): | N23: 6
A25: Explanatory Notes on Variances (complete only if applicable)
A26: Notes on shifts in forecast vs. historical budgets by category
A29: Notes on year over year Plan vs. Actual variances for Total Expenditures
A32: Notes on Plan vs. Actual variance trends for individual expenditure categories

Sheet App. 2-AC_Customer Engageme
B1: File Number: | C1: EB-2014-0099
B2: Exhibit: | C2: 1
B4: Date: | C4: ='App.2-AA_Capital Projects'!$I$4 -> 2014-12-12
A6: Appendix 2-AC
A7: Customer Engagement Activities Summary
A9: Provide a list of customer engagement activities | B9: Provide a list of customer needs and preferences identified through each engagement activity | C9: Actions taken to respond to identified needs and preferences. If no action was taken, explain why.
A10: 15,000-20,000 customer walk ins per year to office for service | B10: Pay a bill, arrange payment terms, account set up, general inquiries, new servce 2. | C10: Maintain this service option including an ability to make payment in-person. Trained all front office staff to handle majority of issues
A11: 25,000 - 27,000 phone calls per year | B11: Need to explain the bill, need to make payment arrangements, account balances, billing inquiries 2. | C11: Trained all front office staff to handle inquiries
A12: Annual vegetation control program, 4000-6000 customers/year | B12: 1, Need to confirm scope of work on each property to safely establish right of way 2. | C12: Sign off from each peoperty owner for medium to heavy trimming and removals
A13: Locating electrical infrastructure, 2,300-4,000 requests per year | B13: 1, Need to build new infrastructure requires electrical plant to be safely located so construction can proceed 2. | C13: Automated the locate process to handle call volume.
A14: Keeping customers informed on system performance | B14: 1, Customer request for information on power outages 2. | C14: Web-based Power Outage Map with social media updates
A15: Business Customer Engagement | B15: Need to control electricity consumption, need to understand the bill, need to reduce electricity costs | C15: Business customer breakfast sessions, meetings through Chamber of Commerce, individual customer meetings, provide expert advise on metering, supply and power qaulity issues
A16: Grade 6 Environmental Program | B16: Need for future electricity consumers to understand Ontario's electrical system | C16: Smart Grid Smart Kids interactive program offered to all Boards of Education across the City
A17: Electrical Safety Awareness training | B17: Need for elementary students to understand and respect electrical system hazards | C17: Offer an in-classroom program for all JK through Grade 8 classes in the City of North Bay
A18: Working with customers on economic development activities | B18: Need for coordinated, multi utility infrastructure development according to customer schedule and budgets | C18: Core membership in City of North Bay's Development Application Review Team, annual utility coordination meeting to minimize adverse customer impact
A19: Customer Demand Work | B19: Customer require new services, service upgrades, increased transformation, sevice new developments including subdivisions | C19: Requets are managed through a customer que with appropriate prioritzation
A20: Trouble call response | B20: Customer need for power restoration | C20: 24/7 coverage with ability to call in necessary resources to respond to most contingency situations
A21: Participation in conservation programs | B21: Customers need to replace building systems and infrastructure and reduce electrcity costs | C21: Provide all OPA programs in demand with local resources
A22: Annual Christmas Walk | B22: Need to support Downtown Improvement Association (local merchants), our City and to raise awareness about seasonal conservation tips | C22: Deploy staff and equipment to offer bucket truck rides and one-on-one interaction on the value of North Bay Hydro
A23: Roving Energy Managers | B23: Need for technical expertise to identify and implement complex industrial conservation projects | C23: NBHDL obtained special approval from the OPA to engage 2 Energy Managers
A24: North Bay Regional Health Centre Cogeneration Project | B24: Need for customer to have more back up power, hedge against commodity price volatility and increase thermal supply | C24: NBHDL worked with 3 Energy Ministers, the OPA, OEB, IESO for 4 years to have cogeneration included as a conservation technology as originally intended by the Minister
A25: Business Customer Engagement Survey Fall 2013 | B25: Customers confirmed they are satisfied with level of reliability of the local system, are unclear what is driving electricity pricing, are unclear how to read their bill and do not use NBHDL's website | C25: The bill format has been updated to make it easier to read and the website has been re-vamped with updated information. Findings will be integrated into future communication initiatives
A26: Joint Chamber of Commerce Business Customer Survey | B26: Customers identified expected changes in electricity consumption, knowledge and awareness of conservation programs, communication preferences and impressions on reliability | C26: Used the information to validate utility load profile and determine that all media channels must be used for communication purposes as there are no preferences
A27: Business Customer Focus Group | B27: Customers need confidence in the entire electricity system to deliver value and to convince them they are not victims, rather they do have control | C27: Developing a targeted communication plan for 2015
A28: Residential Customer Focus Group | B28: Customers need confidence in the entire electricity system to deliver value and to convince them they are not victims, rather they do have control | C28: Developing a targeted communication plan for 2015, bill format was revamped and website content improved.
A29: UtilityPulse Customer Satisfaction Survey | B29: Customers want low price and high value, customer service, company leadership, the business to be a good corporate steward, operational effectiveness and power quality/reliability. Customers require various communication channels to be kept informed | C29: Working on a communication plan in 2015 that provides information on cost control, electricity cost drivers and value the industyr provides consumers
A30: Innovative Research - Customer Consultation Fall 2014 | B30: Customers want continued delivery of high quality services, reliability of service, affordable electricity costs, assistance to reduce consumption, thereby costs, communication through a variety of channels, Business to be customer centric including timely service that solves their problems and professional interactions with highly skilled and experienced personnel. | C30: Refer to Exhibit 1 - NBHDL's Response to Customer Prefrences
A32: Note: Use "ALT-ENTER" to go to the next line within a cell

Sheet App.2-B_Acct Instructions
A1: General Instructions to MIFRS Appendices
A2: Types of Schedules to File
A4: The purpose of this tab is to provide general instructions. The specific instructions to each appendix are listed in footnotes of each appendix.
A6: The typical applicant is expected to have made capitalization and depreciation policy changes under CGAAP as permitted by the Board on January 1, 2012 or mandated by the Board by January 1, 2013, and adopts IFRS for reporting purposes on January 1, 2015 (transition date January 1, 2014). In general, applicants under the two scenarios should provide the following information in the appendices:
E9: Accounting Policy Changes in 2012 and Adopts IFRS in 2015 | F9: Accounting Policy Changes in 2013 and Adopts IFRS in 2015
E10: (Date of Transition to IFRS 2014)
A11: Information to be filed in 2015 CoS Application | B11: 2015 | C11: Test | E11: MIFRS | F11: MIFRS
B12: 2014 | C12: Bridge | E12: MIFRS and Revised CGAAP* | F12: MIFRS and Revised CGAAP*
B13: 2013 | C13: Historical | E13: Revised CGAAP | F13: CGAAP and Revised CGAAP
B14: 2012 | C14: Historical | E14: CGAAP and Revised CGAAP | F14: CGAAP
B15: 2011 and Prior | C15: Historical | E15: CGAAP | F15: CGAAP
A17: 1) For the year that the applicant implemented changes to its capitalization and depreciation policies (2012 or 2013), the applicant must file two appendices, one before and one after the policy changes.
A20: 2) For the transition year (2014), the applicant may file two appendices, one under Revised CGAAP and one under MIFRS depending, on the materiality of impacts. See the specific instructions under each appendix below for further details.
A25: Appendix 2-BA - Fixed Asset Schedule
A27: Applicants are to provide Appendix 2-BA in accordance with the years and corresponding accounting standards noted in the above table to provide a year over year continuity in fixed assets.
A28: *For the transition year (2014), the applicant should file two appendices, one under Revised CGAAP and one under MIFRS if the change between Revised CGAAP and MIFRS is material. If the change from the accounting standards is not material, the applicant may choose to only provide one appendix under MIFRS. The applicant must also indicate the fixed asset net book value balance under Revised CGAAP, the total dollar value of the change and explain why it is not material.
A32: Regulatory Gross Assets of Property, Plant and Equipment
A34: For an applicant that is adopting IFRS on January 1, 2015 for financial reporting purposes, the applicant must establish the continuity of historic cost by using the December 31, 2013 regulatory gross assets of property, plant and equipment as the opening January 1, 2014 regulatory gross assets. The applicant must provide schedules (including Appendix 2-BA, Fixed Asset Continuity Schedule) which must identify the following details to substantiate the continuity of historic cost for regulatory purposes:
A37: · December 31, 2013 regulatory gross assets of property, plant and equipment, by asset class; and
A38: · January 1, 2014 regulatory gross assets of property, plant and equipment, by asset class.
A40: Accumulated Depreciation
A42: For an applicant that is adopting IFRS on January 1, 2015 for financial reporting purposes, the applicant must establish the continuity of historic cost by using the December 31, 2013 regulatory accumulated depreciation as the opening January 1, 2014 regulatory accumulated depreciation. The applicant must provide schedules (including Appendix 2-BA, Fixed Asset Continuity Schedule) which must identify the following details to substantiate the continuity of historic cost for regulatory purposes:
A45: · December 31, 2013 regulatory accumulated depreciation, by asset class; and
A46: · January 1, 2014 regulatory accumulated depreciation, by asset class.
A48: Appendix 2-C - Depreciation and Amortization
A50: Applicants are to provide Appendix 2-C starting in the year capitalization and depreciation policy changes were implemented in accordance with the years and corresponding accounting standards listed in the above table.
A51: If an applicant changed capitalization and depreciation policies effective January 1, 2012 and will adopt IFRS for reporting purposes effective January 1, 2015, the applicant must complete Appendix 2-CA to 2-CE (inclusive).
A52: If an applicant changed capitalization and depreciation policies effective January 1, 2013 and will adopt IFRS for reporting purposes effective January 1, 2015, the applicant must complete Appendix 2-CF to 2-CI (inclusive).
A53: *Depreciation accounting policy changes were mandated by the Board by January 1, 2013. These accounting changes should be implemented consistent with the Board’s regulatory accounting policies as set out for MIFRS as contained in the Report of the Board, Transition to International Financial Reporting Standards (EB-2008-0408), the Depreciation Study for Use by Electricity Distributors (EB-2010-0178) and the Revised 2012 Accounting Procedures Handbook for Electricity Distributors. In general, no further changes to an applicant's depreciation policy (i.e. assets' service lives) are expected after the Board mandated changes by January 1, 2013. The set of Appendix CA to CI assumes this to be the case. If the applicant has made any changes to its depreciation policy subsequent to the Board mandated changes, applicants must identify the change, explain the nature of the change, the reason for the change, quantify the impact of the change, and quantify the depreciation expense before and after the change.
A56: Appendix 2-E - Account 1575, IFRS-CGAAP Transitional PP&E Amounts (2-EA), Account 1576, Accounting Changes Under CGAAP (2-EB, 2-EC)
A58: If an applicant changed capitalization and depreciation policies effective January 1, 2012 and will adopt IFRS for reporting purposes effective January 1, 2015, the applicant must complete Appendix 2-EA and 2-EB. If the applicant does not make any further PP&E accounting policy changes beyond the capitalization and depreciation policy changes as permitted by the Board on January 1, 2012 (i.e. no further changes made on transition to IFRS), the applicant must indicate this and does not need to complete Appendix 2-EA.
A60: If an applicant changed capitalization and depreciation policies effective January 1, 2013 and will adopt IFRS for reporting purposes effective January 1, 2015, the applicant must complete Appendix 2-EA and 2-EC. If the applicant does not make any further PP&E accounting policy changes beyond the capitalization and depreciation policy changes as mandated by the Board by January 1, 2013 (i.e. no further changes made on transition to IFRS), the applicant must indicate this and does not need to complete Appendix 2-EA.
A62: Please refer to section 2.12.4 and 2.12.5 of the Filing Requirements for further details.
A64: Appendix 2-YA - Summary of Impacts to Revenue Requirement from Transition to MIFRS
A66: For applicants adopting MIFRS, the applicants must provide a summary of the dollar impacts of MIFRS to each component of the revenue requirement (e.g. rate base, operating costs, etc), including the overall impact on the proposed revenue requirement. Accordingly, the applicants must identify financial differences and resulting revenue requirement impacts arising from the adoption of MIFRS as compared to CGAAP prior to capitalization and depreciation policy changes.

Sheet App.2-BA_Fixed Asset Cont-2010
L1: File Number: | M1: EB-2014-0099
L2: Exhibit: | M2: 2
L4: Date: | M4: ='App.2-AA_Capital Projects'!$I$4 -> 2014-12-12
A6: Appendix 2-BA
A7: Fixed Asset Continuity Schedule
E9: Accounting Standard | F9: CGAAP
E10: Year | F10: 2010
D12: Cost | J12: Accumulated Depreciation
A13: CCA Class | B13: OEB | C13: Description | D13: Opening Balance | E13: Additions | F13: Disposals | G13: Closing Balance | I13: Opening Balance | J13: Additions | K13: Disposals | L13: Closing Balance | M13: Net Book Value
A14: 12 | B14: 1611 | C14: Computer Software (Formally Acct 1925) | D14: 0 | E14: 0 | F14: 0 | G14: =D14+E14+F14 -> 0 | I14: 0 | J14: 0 | K14: 0 | L14: =I14+J14+K14 -> 0 | M14: =G14+L14 -> 0
A15: 50 | B15: 1611 | C15: Computer Software (Formally Acct 1925) | D15: 983375.7 | E15: 22619.99 | F15: 0 | G15: =D15+E15+F15 -> 1005995.69 | I15: -848666.955 | J15: -41971.377 | K15: 0 | L15: =I15+J15+K15 -> -890638.332 | M15: =G15+L15 -> 115357.358
A16: CEC | B16: 1612 | C16: Land Rights (Formally Acct 1906) | D16: 0 | E16: 0 | F16: 0 | G16: =D16+E16+F16 -> 0 | I16: 0 | J16: 0 | K16: 0 | L16: =I16+J16+K16 -> 0 | M16: =G16+L16 -> 0
A17: N/A | B17: 1805 | C17: Land | D17: 368562.01 | E17: 71626.2 | F17: 0 | G17: =D17+E17+F17 -> 440188.21 | I17: 0 | J17: 0 | K17: 0 | L17: =I17+J17+K17 -> 0 | M17: =G17+L17 -> 440188.21
A18: 47 | B18: 1808 | C18: Buildings | D18: 769640.81 | E18: 0 | F18: 0 | G18: =D18+E18+F18 -> 769640.81 | I18: -279984.76 | J18: -13488.9 | K18: 0 | L18: =I18+J18+K18 -> -293473.66 | M18: =G18+L18 -> 476167.15
A19: 13 | B19: 1810 | C19: Leasehold Improvements | D19: 0 | E19: 0 | F19: 0 | G19: 0 | I19: 0 | J19: 0 | K19: 0 | L19: 0 | M19: 0
A20: 47 | B20: 1815 | C20: Transformer Station Equipment >50 kV | D20: 0 | E20: 0 | F20: 0 | G20: 0 | I20: 0 | J20: 0 | K20: 0 | L20: 0 | M20: 0
A21: 47 | B21: 1820 | C21: Distribution Station Equipment <50 kV | D21: 9124701.54 | E21: 266960.63 | F21: 0 | G21: 9391662.17 | I21: -3606886.18 | J21: -280490.91 | K21: 0 | L21: -3887377.09 | M21: 5504285.08
A22: 47 | B22: 1825 | C22: Storage Battery Equipment | D22: 0 | E22: 0 | F22: 0 | G22: 0 | I22: 0 | J22: 0 | K22: 0 | L22: 0 | M22: 0
A23: 47 | B23: 1830 | C23: Poles, Towers & Fixtures | D23: 16838395.65 | E23: 937492.95 | F23: 0 | G23: 17775888.6 | I23: -9803634.601 | J23: -534610.367 | K23: 0 | L23: -10338244.97 | M23: 7437643.632
A24: 47 | B24: 1835 | C24: Overhead Conductors & Devices | D24: 13398339.77 | E24: 606203.76 | F24: 0 | G24: 14004543.53 | I24: -7442542.183 | J24: -433939.7216 | K24: 0 | L24: -7876481.905 | M24: 6128061.625
A25: 47 | B25: 1840 | C25: Underground Conduit | D25: 469101.74 | E25: 123797.87 | F25: 0 | G25: 592899.61 | I25: -86847.626 | J25: -21239.2494 | K25: 0 | L25: -108086.8754 | M25: 484812.7346
A26: 47 | B26: 1845 | C26: Underground Conductors & Devices | D26: 6195879.06 | E26: 286427.64 | F26: 0 | G26: 6482306.7 | I26: -3962259.114 | J26: -231994.7078 | K26: 0 | L26: -4194253.822 | M26: 2288052.878
A27: 47 | B27: 1850 | C27: Line Transformers | D27: 13954575.49 | E27: 771184.34 | F27: 0 | G27: 14725759.83 | I27: -8081955.705 | J27: -443296.7446 | K27: 0 | L27: -8525252.45 | M27: 6200507.38
A28: 47 | B28: 1855 | C28: Services (Overhead & Underground) | D28: 12521188.24 | E28: 3512091.89 | F28: 0 | G28: 16033280.13 | I28: -5001147.688 | J28: -531144.7969 | K28: 0 | L28: -5532292.485 | M28: 10500987.65
A29: 47 | B29: 1860 | C29: Meters | D29: 3607922.96 | E29: 146107.73 | F29: 0 | G29: 3754030.69 | I29: -2393625.471 | J29: -109055.583 | K29: 0 | L29: -2502681.054 | M29: 1251349.636
A30: 47 | B30: 1860 | C30: Meters (Smart Meters) | D30: 0 | E30: 111422.68 | F30: 0 | G30: 111422.68 | I30: 0 | J30: -2228.4536 | K30: 0 | L30: -2228.4536 | M30: 109194.2264
A31: N/A | B31: 1905 | C31: Land | D31: 86550.51 | E31: 0 | F31: 0 | G31: 86550.51 | I31: 0 | J31: 0 | K31: 0 | L31: 0 | M31: 86550.51
A32: 47 | B32: 1908 | C32: Buildings & Fixtures | D32: 2027034.5 | E32: 12656.32 | F32: 0 | G32: 2039690.82 | I32: -1054395.915 | J32: -64445.3072 | K32: 0 | L32: -1118841.223 | M32: 920849.5974
A33: 13 | B33: 1910 | C33: Leasehold Improvements | D33: 0 | E33: 0 | F33: 0 | G33: 0 | I33: 0 | J33: 0 | K33: 0 | L33: 0 | M33: 0
A34: 8 | B34: 1915 | C34: Office Furniture & Equipment (10 years) | D34: 315127.04 | E34: 0 | F34: 0 | G34: 315127.04 | I34: -275235.968 | J34: -6010.994 | K34: 0 | L34: -281246.962 | M34: 33880.078
A35: 8 | B35: 1915 | C35: Office Furniture & Equipment (5 years) | D35: 0 | E35: 0 | F35: 0 | G35: 0 | I35: 0 | J35: 0 | K35: 0 | L35: 0 | M35: 0
A36: 10 | B36: 1920 | C36: Computer Equipment - Hardware | D36: 0 | E36: 0 | F36: 0 | G36: 0 | I36: 0 | J36: 0 | K36: 0 | L36: 0 | M36: 0
A37: 50 | B37: 1920 | C37: Computer Equipment - Hardware | D37: 585436.56 | E37: 27417.21 | F37: 0 | G37: 612853.77 | I37: -528377.507 | J37: -25284.631 | K37: 0 | L37: -553662.138 | M37: 59191.632
A38: 45 | B38: 1920 | C38: Computer Equip.-Hardware(Post Mar. 22/04) | D38: 0 | E38: 0 | F38: 0 | G38: 0 | I38: 0 | J38: 0 | K38: 0 | L38: 0 | M38: 0
A39: 45.1 | B39: 1920 | C39: Computer Equip.-Hardware(Post Mar. 19/07) | D39: 0 | E39: 0 | F39: 0 | G39: 0 | I39: 0 | J39: 0 | K39: 0 | L39: 0 | M39: 0
A40: 10 | B40: 1930 | C40: Transportation Equipment | D40: 2379846.43 | E40: 64702.69 | F40: -79732.94 | G40: 2364816.18 | I40: -1369062.754 | J40: -203184.2403 | K40: 79732.94 | L40: -1492514.055 | M40: 872302.1255
A41: 8 | B41: 1935 | C41: Stores Equipment | D41: 75195.87 | E41: 0 | F41: 0 | G41: 75195.87 | I41: -75195.87 | J41: 0 | K41: 0 | L41: -75195.87 | M41: 0
A42: 8 | B42: 1940 | C42: Tools, Shop & Garage Equipment | D42: 1106955.61 | E42: 27750.59 | F42: 0 | G42: 1134706.2 | I42: -930279.2255 | J42: -28481.0945 | K42: 0 | L42: -958760.32 | M42: 175945.88
A43: 8 | B43: 1945 | C43: Measurement & Testing Equipment | D43: 8634.6 | E43: 0 | F43: -8634.6 | G43: 0 | I43: -431.73 | J43: 0 | K43: 431.73 | L43: 0 | M43: 0
A44: 8 | B44: 1950 | C44: Power Operated Equipment | D44: 0 | E44: 0 | F44: 0 | G44: 0 | I44: 0 | J44: 0 | K44: 0 | L44: 0 | M44: 0
A45: 8 | B45: 1955 | C45: Communications Equipment | D45: 101870.61 | E45: 0 | F45: 0 | G45: 101870.61 | I45: -68978.3485 | J45: -6896.192 | K45: 0 | L45: -75874.5405 | M45: 25996.0695
A46: 8 | B46: 1955 | C46: Communication Equipment (Smart Meters) | E46: 0 | F46: 0 | G46: 0 | I46: 0 | J46: 0 | K46: 0 | L46: 0 | M46: 0
A47: 8 | B47: 1960 | C47: Miscellaneous Equipment | D47: 18079.15 | E47: 0 | F47: 0 | G47: 18079.15 | I47: -6216.5225 | J47: -1808.015 | K47: 0 | L47: -8024.5375 | M47: 10054.6125
A48: 47 | B48: 1970 | C48: Load Management Controls Customer Premises | D48: 403930.62 | E48: 0 | F48: 0 | G48: 403930.62 | I48: -403930.62 | J48: 0 | K48: 0 | L48: -403930.62 | M48: 0
A49: 47 | B49: 1975 | C49: Load Management Controls Utility Premises | D49: 165151.45 | E49: 0 | F49: 0 | G49: 165151.45 | I49: -165151.45 | J49: 0 | K49: 0 | L49: -165151.45 | M49: 0
A50: 47 | B50: 1980 | C50: System Supervisor Equipment | D50: 1232487.11 | E50: 11193.18 | F50: 0 | G50: 1243680.29 | I50: -889816.586 | J50: -73707.53933 | K50: 0 | L50: -963524.1253 | M50: 280156.1647
A51: 47 | B51: 1985 | C51: Miscellaneous Fixed Assets | D51: 0 | E51: 0 | F51: 0 | G51: 0 | I51: 0 | J51: 0 | K51: 0 | L51: 0 | M51: 0
A52: 47 | B52: 1990 | C52: Other Tangible Property | D52: 53060.28 | E52: 0 | F52: 0 | G52: 53060.28 | I52: -17128.03 | J52: -2461.21 | K52: 0 | L52: -19589.24 | M52: 33471.04
A53: 47 | B53: 1995 | C53: Contributions & Grants | D53: -6191811.17 | E53: -905001.27 | F53: 0 | G53: -7096812.44 | I53: 1020087.669 | J53: 265774.185 | K53: 0 | L53: 1285861.854 | M53: -5810950.586
A54: 47 | B54: 2440 | C54: Deferred Revenue5 | D54: 0 | E54: 0 | F54: 0 | I54: 0 | J54: 0 | K54: 0
G55: 0 | L55: 0 | M55: 0
C56: Sub-Total | D56: =SUM(D14:D55) -> 80599232.14 | E56: =SUM(E14:E55) -> 6094654.4 | F56: =SUM(F14:F55) -> -88367.54 | G56: =SUM(G14:G55) -> 86605519 | I56: =SUM(I14:I55) -> -46271663.14 | J56: =SUM(J14:J55) -> -2789965.849 | K56: =SUM(K14:K55) -> 80164.67 | L56: =SUM(L14:L55) -> -48981464.32 | M56: =SUM(M14:M55) -> 37624054.68
C57: Less Socialized Renewable Energy Generation Investments (input as negative) | D57: 0 | E57: 0 | F57: 0 | G57: =D57+E57+F57 -> 0 | I57: 0 | J57: 0 | K57: 0 | L57: =I57+J57+K57 -> 0 | M57: =G57+L57 -> 0
C58: Less Other Non Rate-Regulated Utility Assets (input as negative) | D58: 0 | E58: 0 | F58: 0 | G58: 0 | I58: 0 | J58: 0 | K58: 0 | L58: 0 | M58: 0
C59: Total PP&E | D59: =SUM(D56:D58) -> 80599232.14 | E59: =SUM(E56:E58) -> 6094654.4 | F59: -88367.54 | G59: 86605519 | I59: =SUM(I56:I58) -> -46271663.14 | J59: -2789965.849 | K59: 80164.67 | L59: -48981464.32 | M59: 37624054.68
C60: Depreciation Expense adj. from gain or loss on the retirement of assets (pool of like assets), if applicable6
C61: Total | J61: =J59+J60 -> -2789965.849
I63: Less: Fully Allocated Depreciation
A64: 10 | C64: Transportation | I64: Transportation | K64: -129021
A65: 8 | C65: Stores Equipment | I65: Stores Equipment
I66: Net Depreciation | K66: =J61-K64-K65 -> -2660944.849
A68: Notes:
A70: 1 | B70: Tables in the format outlined above covering all fixed asset accounts should be submitted for the Test Year, Bridge Year and all relevant historical years. At a minimum , the applicant must provide data for the earlier of: 1) all historical years back to its last rebasing; or 2) at least three years of historical actuals, in addition to Bridge Year and Test Year forecasts.
A73: 2 | B73: The "CCA Class" for fixed assets should agree with the CCA Class used for tax purposes in Tax Returns. Fixed Assets sub-components may be used where the underlying asset components are classified under multiple CCA Classes for tax purposes. If an applicant uses any different classes from those shown in the table, an explanation should be provided. (also see note 3 below).
A76: 3 | B76: The table may need to be customized for a utility's asset categories or for any new asset accounts announced or authorized by the Board.
A78: 4 | B78: The additions column (E) must not include construction work in progress (CWIP).
A80: 5 | B80: Effective on the date of IFRS adoption, customer contributions will no longer be recorded in Account 1995 Contributions & Grants, but will be recorded in Account 2440, Deferred Revenues.
A82: 6 | B82: Where a distributor for general financial reporting purposes under IFRS has accounted for the amount of gain or loss on the retirement of assets in a pool of like assets as a charge or credit to income, for reporting and rate application filings the distributor shall reclassify such gains and losses as depreciation expense, and disclose the amount separately.

Sheet App.2-BA_Fixed Asset Cont-2011
L1: File Number: | M1: EB-2014-0099
L2: Exhibit: | M2: 2
L4: Date: | M4: ='App.2-AA_Capital Projects'!$I$4 -> 2014-12-12
A6: Appendix 2-BA
A7: Fixed Asset Continuity Schedule
E9: Accounting Standard | F9: CGAAP
E10: Year | F10: 2011
D12: Cost | J12: Accumulated Depreciation
A13: CCA Class | B13: OEB | C13: Description | D13: Opening Balance | E13: Additions | F13: Disposals | G13: Closing Balance | I13: Opening Balance | J13: Additions | K13: Disposals | L13: Closing Balance | M13: Net Book Value
A14: 12 | B14: 1611 | C14: Computer Software (Formally Acct 1925) | D14: 0 | E14: 0 | F14: 0 | G14: =D14+E14+F14 -> 0 | I14: 0 | J14: 0 | K14: 0 | L14: =I14+J14+K14 -> 0 | M14: =G14+L14 -> 0
A15: 50 | B15: 1611 | C15: Computer Software (Formally Acct 1925) | D15: 1005995.69 | E15: 92399.39 | F15: 0 | G15: =D15+E15+F15 -> 1098395.08 | I15: -890638.332 | J15: -48860.319 | K15: 0 | L15: =I15+J15+K15 -> -939498.651 | M15: =G15+L15 -> 158896.429
A16: CEC | B16: 1612 | C16: Land Rights (Formally Acct 1906) | D16: 0 | E16: 0 | F16: 0 | G16: =D16+E16+F16 -> 0 | I16: 0 | J16: 0 | K16: 0 | L16: =I16+J16+K16 -> 0 | M16: =G16+L16 -> 0
A17: N/A | B17: 1805 | C17: Land | D17: 440188.21 | E17: 6305.09 | F17: 0 | G17: =D17+E17+F17 -> 446493.3 | I17: 0 | J17: 0 | K17: 0 | L17: =I17+J17+K17 -> 0 | M17: =G17+L17 -> 446493.3
A18: 47 | B18: 1808 | C18: Buildings | D18: 769640.81 | E18: 0 | F18: 0 | G18: =D18+E18+F18 -> 769640.81 | I18: -293473.66 | J18: -13488.9 | K18: 0 | L18: =I18+J18+K18 -> -306962.56 | M18: =G18+L18 -> 462678.25
A19: 13 | B19: 1810 | C19: Leasehold Improvements | D19: 0 | E19: 0 | F19: 0 | G19: 0 | I19: 0 | J19: 0 | K19: 0 | L19: 0 | M19: 0
A20: 47 | B20: 1815 | C20: Transformer Station Equipment >50 kV | D20: 0 | E20: 0 | F20: 0 | G20: 0 | I20: 0 | J20: 0 | K20: 0 | L20: 0 | M20: 0
A21: 47 | B21: 1820 | C21: Distribution Station Equipment <50 kV | D21: 9391662.17 | E21: 2508924.19 | F21: -56180.73 | G21: 11844405.63 | I21: -3887377.09 | J21: -323109.4378 | K21: 53960.26 | L21: -4156526.268 | M21: 7687879.362
A22: 47 | B22: 1825 | C22: Storage Battery Equipment | D22: 0 | E22: 0 | F22: 0 | G22: 0 | I22: 0 | J22: 0 | K22: 0 | L22: 0 | M22: 0
A23: 47 | B23: 1830 | C23: Poles, Towers & Fixtures | D23: 17775888.6 | E23: 1145472.69 | F23: 0 | G23: 18921361.29 | I23: -10338244.97 | J23: -566593.1454 | K23: 0 | L23: -10904838.11 | M23: 8016523.176
A24: 47 | B24: 1835 | C24: Overhead Conductors & Devices | D24: 14004543.53 | E24: 813817.03 | F24: 0 | G24: 14818360.56 | I24: -7876481.905 | J24: -455624.4374 | K24: 0 | L24: -8332106.342 | M24: 6486254.218
A25: 47 | B25: 1840 | C25: Underground Conduit | D25: 592899.61 | E25: 174098.75 | F25: 0 | G25: 766998.36 | I25: -108086.8754 | J25: -27197.1818 | K25: 0 | L25: -135284.0572 | M25: 631714.3028
A26: 47 | B26: 1845 | C26: Underground Conductors & Devices | D26: 6482306.7 | E26: 272928.4 | F26: 0 | G26: 6755235.1 | I26: -4194253.822 | J26: -234042.1556 | K26: 0 | L26: -4428295.977 | M26: 2326939.123
A27: 47 | B27: 1850 | C27: Line Transformers | D27: 14725759.83 | E27: 646897.25 | F27: 0 | G27: 15372657.08 | I27: -8525252.45 | J27: -450263.1276 | K27: 0 | L27: -8975515.577 | M27: 6397141.503
A28: 47 | B28: 1855 | C28: Services (Overhead & Underground) | D28: 16033280.13 | E28: 888694.72 | F28: 0 | G28: 16921974.85 | I28: -5532292.485 | J28: -611027.8528 | K28: 0 | L28: -6143320.337 | M28: 10778654.51
A29: 47 | B29: 1860 | C29: Meters | D29: 3754030.69 | E29: 44077.92 | F29: 0 | G29: 3798108.61 | I29: -2502681.054 | J29: -107978.7782 | K29: 0 | L29: -2610659.832 | M29: 1187448.778
A30: 47 | B30: 1860 | C30: Meters (Smart Meters) | D30: 111422.68 | E30: 100945.45 | F30: 0 | G30: 212368.13 | I30: -2228.4536 | J30: -6475.8162 | K30: 0 | L30: -8704.2698 | M30: 203663.8602
A31: N/A | B31: 1905 | C31: Land | D31: 86550.51 | E31: 0 | F31: 0 | G31: 86550.51 | I31: 0 | J31: 0 | K31: 0 | L31: 0 | M31: 86550.51
A32: 47 | B32: 1908 | C32: Buildings & Fixtures | D32: 2039690.82 | E32: 142738.4 | F32: 0 | G32: 2182429.22 | I32: -1118841.223 | J32: -67553.2016 | K32: 0 | L32: -1186394.424 | M32: 996034.7958
A33: 13 | B33: 1910 | C33: Leasehold Improvements | D33: 0 | E33: 0 | F33: 0 | G33: 0 | I33: 0 | J33: 0 | K33: 0 | L33: 0 | M33: 0
A34: 8 | B34: 1915 | C34: Office Furniture & Equipment (10 years) | D34: 315127.04 | E34: 24090 | F34: 0 | G34: 339217.04 | I34: -281246.962 | J34: -7157.493 | K34: 0 | L34: -288404.455 | M34: 50812.585
A35: 8 | B35: 1915 | C35: Office Furniture & Equipment (5 years) | D35: 0 | E35: 0 | F35: 0 | G35: 0 | I35: 0 | J35: 0 | K35: 0 | L35: 0 | M35: 0
A36: 10 | B36: 1920 | C36: Computer Equipment - Hardware | D36: 0 | E36: 0 | F36: 0 | G36: 0 | I36: 0 | J36: 0 | K36: 0 | L36: 0 | M36: 0
A37: 50 | B37: 1920 | C37: Computer Equipment - Hardware | D37: 612853.77 | E37: 135798.01 | F37: 0 | G37: 748651.78 | I37: -553662.138 | J37: -34317.233 | K37: 0 | L37: -587979.371 | M37: 160672.409
A38: 45 | B38: 1920 | C38: Computer Equip.-Hardware(Post Mar. 22/04) | D38: 0 | E38: 0 | F38: 0 | G38: 0 | I38: 0 | J38: 0 | K38: 0 | L38: 0 | M38: 0
A39: 45.1 | B39: 1920 | C39: Computer Equip.-Hardware(Post Mar. 19/07) | D39: 0 | E39: 0 | F39: 0 | G39: 0 | I39: 0 | J39: 0 | K39: 0 | L39: 0 | M39: 0
A40: 10 | B40: 1930 | C40: Transportation Equipment | D40: 2364816.18 | E40: 363462.41 | F40: -332424.77 | G40: 2395853.82 | I40: -1492514.055 | J40: -209086.4807 | K40: 330011.16 | L40: -1371589.375 | M40: 1024264.445
A41: 8 | B41: 1935 | C41: Stores Equipment | D41: 75195.87 | E41: 0 | F41: 0 | G41: 75195.87 | I41: -75195.87 | J41: 0 | K41: 0 | L41: -75195.87 | M41: 0
A42: 8 | B42: 1940 | C42: Tools, Shop & Garage Equipment | D42: 1134706.2 | E42: 71247.32 | F42: 0 | G42: 1205953.52 | I42: -958760.32 | J42: -32556.99 | K42: 0 | L42: -991317.31 | M42: 214636.21
A43: 8 | B43: 1945 | C43: Measurement & Testing Equipment | D43: 0 | E43: 0 | F43: 0 | G43: 0 | I43: 0 | J43: 0 | K43: 0 | L43: 0 | M43: 0
A44: 8 | B44: 1950 | C44: Power Operated Equipment | D44: 0 | E44: 0 | F44: 0 | G44: 0 | I44: 0 | J44: 0 | K44: 0 | L44: 0 | M44: 0
A45: 8 | B45: 1955 | C45: Communications Equipment | D45: 101870.61 | E45: 0 | F45: 0 | G45: 101870.61 | I45: -75874.5405 | J45: -6313.407 | K45: 0 | L45: -82187.9475 | M45: 19682.6625
A46: 8 | B46: 1955 | C46: Communication Equipment (Smart Meters) | E46: 0 | F46: 0 | G46: 0 | I46: 0 | J46: 0 | K46: 0 | L46: 0 | M46: 0
A47: 8 | B47: 1960 | C47: Miscellaneous Equipment | D47: 18079.15 | E47: 0 | F47: 0 | G47: 18079.15 | I47: -8024.5375 | J47: 0 | K47: 0 | L47: -8024.5375 | M47: 10054.6125
A48: 47 | B48: 1970 | C48: Load Management Controls Customer Premises | D48: 403930.62 | E48: 0 | F48: 0 | G48: 403930.62 | I48: -403930.62 | J48: 0 | K48: 0 | L48: -403930.62 | M48: 0
A49: 47 | B49: 1975 | C49: Load Management Controls Utility Premises | D49: 165151.45 | E49: 0 | F49: 0 | G49: 165151.45 | I49: -165151.45 | J49: 0 | K49: 0 | L49: -165151.45 | M49: 0
A50: 47 | B50: 1980 | C50: System Supervisor Equipment | D50: 1243680.29 | E50: 51185.4 | F50: 0 | G50: 1294865.69 | I50: -963524.1253 | J50: -48235.48667 | K50: 0 | L50: -1011759.612 | M50: 283106.078
A51: 47 | B51: 1985 | C51: Miscellaneous Fixed Assets | D51: 0 | E51: 0 | F51: 0 | G51: 0 | I51: 0 | J51: 0 | K51: 0 | L51: 0 | M51: 0
A52: 47 | B52: 1990 | C52: Other Tangible Property | D52: 53060.28 | E52: 0 | F52: 0 | G52: 53060.28 | I52: -19589.24 | J52: -2045.39 | K52: 0 | L52: -21634.63 | M52: 31425.65
A53: 47 | B53: 1995 | C53: Contributions & Grants | D53: -7096812.44 | E53: -464129.45 | F53: 0 | G53: -7560941.89 | I53: 1285861.854 | J53: 293156.2314 | K53: 0 | L53: 1579018.086 | M53: -5981923.804
A54: 47 | B54: 2440 | C54: Deferred Revenue5 | D54: 0 | E54: 0 | F54: 0 | I54: 0 | J54: 0 | K54: 0
G55: 0 | L55: 0 | M55: 0
C56: Sub-Total | D56: =SUM(D14:D55) -> 86605519 | E56: =SUM(E14:E55) -> 7018952.97 | F56: =SUM(F14:F55) -> -388605.5 | G56: =SUM(G14:G55) -> 93235866.47 | I56: =SUM(I14:I55) -> -48981464.32 | J56: =SUM(J14:J55) -> -2958770.602 | K56: =SUM(K14:K55) -> 383971.42 | L56: =SUM(L14:L55) -> -51556263.5 | M56: =SUM(M14:M55) -> 41679602.97
C57: Less Socialized Renewable Energy Generation Investments (input as negative) | D57: 0 | E57: 0 | F57: 0 | G57: =D57+E57+F57 -> 0 | I57: 0 | J57: 0 | K57: 0 | L57: =I57+J57+K57 -> 0 | M57: =G57+L57 -> 0
C58: Less Other Non Rate-Regulated Utility Assets (input as negative) | D58: 0 | E58: 0 | F58: 0 | G58: 0 | I58: 0 | J58: 0 | K58: 0 | L58: 0 | M58: 0
C59: Total PP&E | D59: =SUM(D56:D58) -> 86605519 | E59: =SUM(E56:E58) -> 7018952.97 | F59: -388605.5 | G59: 93235866.47 | I59: =SUM(I56:I58) -> -48981464.32 | J59: -2958770.602 | K59: 383971.42 | L59: -51556263.5 | M59: 41679602.97
C60: Depreciation Expense adj. from gain or loss on the retirement of assets (pool of like assets), if applicable6
C61: Total | J61: =J59+J60 -> -2958770.602
I63: Less: Fully Allocated Depreciation
A64: 10 | C64: Transportation | I64: Transportation | K64: -132845.25
A65: 8 | C65: Stores Equipment | I65: Stores Equipment
I66: Net Depreciation | K66: =J61-K64-K65 -> -2825925.352
A68: Notes:
A70: 1 | B70: Tables in the format outlined above covering all fixed asset accounts should be submitted for the Test Year, Bridge Year and all relevant historical years. At a minimum , the applicant must provide data for the earlier of: 1) all historical years back to its last rebasing; or 2) at least three years of historical actuals, in addition to Bridge Year and Test Year forecasts.
A73: 2 | B73: The "CCA Class" for fixed assets should agree with the CCA Class used for tax purposes in Tax Returns. Fixed Assets sub-components may be used where the underlying asset components are classified under multiple CCA Classes for tax purposes. If an applicant uses any different classes from those shown in the table, an explanation should be provided. (also see note 3 below).
A76: 3 | B76: The table may need to be customized for a utility's asset categories or for any new asset accounts announced or authorized by the Board.
A78: 4 | B78: The additions column (E) must not include construction work in progress (CWIP).
A80: 5 | B80: Effective on the date of IFRS adoption, customer contributions will no longer be recorded in Account 1995 Contributions & Grants, but will be recorded in Account 2440, Deferred Revenues.
A82: 6 | B82: Where a distributor for general financial reporting purposes under IFRS has accounted for the amount of gain or loss on the retirement of assets in a pool of like assets as a charge or credit to income, for reporting and rate application filings the distributor shall reclassify such gains and losses as depreciation expense, and disclose the amount separately.

Sheet App.2-BA_Fixed Asset Cont-2012
L1: File Number: | M1: EB-2014-0099
L2: Exhibit: | M2: 2
L4: Date: | M4: ='App.2-AA_Capital Projects'!$I$4 -> 2014-12-12
A6: Appendix 2-BA
A7: Fixed Asset Continuity Schedule
E9: Accounting Standard | F9: CGAAP | G9: Comparative Purposes Only
E10: Year | F10: 2012
D12: Cost | J12: Accumulated Depreciation
A13: CCA Class | B13: OEB | C13: Description | D13: Opening Balance | E13: Additions | F13: Disposals | G13: Closing Balance | I13: Opening Balance | J13: Additions | K13: Disposals | L13: Closing Balance | M13: Net Book Value
A14: 12 | B14: 1611 | C14: Computer Software (Formally Acct 1925) | D14: 0 | E14: 0 | F14: 0 | G14: =D14+E14+F14 -> 0 | I14: 0 | J14: 0 | K14: 0 | L14: =I14+J14+K14 -> 0 | M14: =G14+L14 -> 0
A15: 50 | B15: 1611 | C15: Computer Software (Formally Acct 1925) | D15: 1098395.08 | E15: 125138.4 | F15: 0 | G15: =D15+E15+F15 -> 1223533.48 | I15: -890638.332 | J15: -48860.319 | K15: 0 | L15: =I15+J15+K15 -> -939498.651 | M15: =G15+L15 -> 284034.829
A16: CEC | B16: 1612 | C16: Land Rights (Formally Acct 1906) | D16: 0 | E16: 0 | F16: 0 | G16: =D16+E16+F16 -> 0 | I16: 0 | J16: 0 | K16: 0 | L16: =I16+J16+K16 -> 0 | M16: =G16+L16 -> 0
A17: N/A | B17: 1805 | C17: Land | D17: 446493.3 | E17: 71.55 | F17: 0 | G17: =D17+E17+F17 -> 446564.85 | I17: 0 | J17: 0 | K17: 0 | L17: =I17+J17+K17 -> 0 | M17: =G17+L17 -> 446564.85
A18: 47 | B18: 1808 | C18: Buildings | D18: 769640.81 | E18: 980568.38 | F18: -22202.47 | G18: =D18+E18+F18 -> 1728006.72 | I18: -293473.66 | J18: -13488.9 | K18: 0 | L18: =I18+J18+K18 -> -306962.56 | M18: =G18+L18 -> 1421044.16
A19: 13 | B19: 1810 | C19: Leasehold Improvements | D19: 0 | E19: 0 | F19: 0 | G19: 0 | I19: 0 | J19: 0 | K19: 0 | L19: 0 | M19: 0
A20: 47 | B20: 1815 | C20: Transformer Station Equipment >50 kV | D20: 0 | E20: 0 | F20: 0 | G20: 0 | I20: 0 | J20: 0 | K20: 0 | L20: 0 | M20: 0
A21: 47 | B21: 1820 | C21: Distribution Station Equipment <50 kV | D21: 11844405.63 | E21: -560783.5 | F21: -267186.08 | G21: 11016436.05 | I21: -3887377.09 | J21: -323109.4378 | K21: 53960.26 | L21: -4156526.268 | M21: 6859909.782
A22: 47 | B22: 1825 | C22: Storage Battery Equipment | D22: 0 | E22: 0 | F22: 0 | G22: 0 | I22: 0 | J22: 0 | K22: 0 | L22: 0 | M22: 0
A23: 47 | B23: 1830 | C23: Poles, Towers & Fixtures | D23: 18921361.29 | E23: 1133581.53 | F23: 0 | G23: 20054942.82 | I23: -10338244.97 | J23: -566593.1454 | K23: 0 | L23: -10904838.11 | M23: 9150104.706
A24: 47 | B24: 1835 | C24: Overhead Conductors & Devices | D24: 14818360.56 | E24: 820773.7 | F24: 0 | G24: 15639134.26 | I24: -7876481.905 | J24: -455624.4374 | K24: 0 | L24: -8332106.342 | M24: 7307027.918
A25: 47 | B25: 1840 | C25: Underground Conduit | D25: 766998.36 | E25: 24324.46 | F25: 0 | G25: 791322.82 | I25: -108086.8754 | J25: -27197.1818 | K25: 0 | L25: -135284.0572 | M25: 656038.7628
A26: 47 | B26: 1845 | C26: Underground Conductors & Devices | D26: 6755235.1 | E26: 162990.4 | F26: 0 | G26: 6918225.5 | I26: -4194253.822 | J26: -234042.1556 | K26: 0 | L26: -4428295.977 | M26: 2489929.523
A27: 47 | B27: 1850 | C27: Line Transformers | D27: 15372657.08 | E27: 630126.93 | F27: 0 | G27: 16002784.01 | I27: -8525252.45 | J27: -450263.1276 | K27: 0 | L27: -8975515.577 | M27: 7027268.433
A28: 47 | B28: 1855 | C28: Services (Overhead & Underground) | D28: 16921974.85 | E28: 604430.7 | F28: 0 | G28: 17526405.55 | I28: -5532292.485 | J28: -611027.8528 | K28: 0 | L28: -6143320.337 | M28: 11383085.21
A29: 47 | B29: 1860 | C29: Meters | D29: 3798108.61 | E29: 24901.14 | F29: 0 | G29: 3823009.75 | I29: -2502681.054 | J29: -107978.7782 | K29: 0 | L29: -2610659.832 | M29: 1212349.918
A30: 47 | B30: 1860 | C30: Meters (Smart Meters) | D30: 212368.13 | E30: 43972.44 | F30: 0 | G30: 256340.57 | I30: -2228.4536 | J30: -6475.8162 | K30: 0 | L30: -8704.2698 | M30: 247636.3002
A31: N/A | B31: 1905 | C31: Land | D31: 86550.51 | E31: 0 | F31: 0 | G31: 86550.51 | I31: 0 | J31: 0 | K31: 0 | L31: 0 | M31: 86550.51
A32: 47 | B32: 1908 | C32: Buildings & Fixtures | D32: 2182429.22 | E32: 231826.85 | F32: 0 | G32: 2414256.07 | I32: -1118841.223 | J32: -67553.2016 | K32: 0 | L32: -1186394.424 | M32: 1227861.646
A33: 13 | B33: 1910 | C33: Leasehold Improvements | D33: 0 | E33: 0 | F33: 0 | G33: 0 | I33: 0 | J33: 0 | K33: 0 | L33: 0 | M33: 0
A34: 8 | B34: 1915 | C34: Office Furniture & Equipment (10 years) | D34: 339217.04 | E34: 31051.25 | F34: 0 | G34: 370268.29 | I34: -281246.962 | J34: -7157.493 | K34: 0 | L34: -288404.455 | M34: 81863.835
A35: 8 | B35: 1915 | C35: Office Furniture & Equipment (5 years) | D35: 0 | E35: 0 | F35: 0 | G35: 0 | I35: 0 | J35: 0 | K35: 0 | L35: 0 | M35: 0
A36: 10 | B36: 1920 | C36: Computer Equipment - Hardware | D36: 0 | E36: 0 | F36: 0 | G36: 0 | I36: 0 | J36: 0 | K36: 0 | L36: 0 | M36: 0
A37: 50 | B37: 1920 | C37: Computer Equipment - Hardware | D37: 748651.78 | E37: 68004.96 | F37: 0 | G37: 816656.74 | I37: -553662.138 | J37: -34317.233 | K37: 0 | L37: -587979.371 | M37: 228677.369
A38: 45 | B38: 1920 | C38: Computer Equip.-Hardware(Post Mar. 22/04) | D38: 0 | E38: 0 | F38: 0 | G38: 0 | I38: 0 | J38: 0 | K38: 0 | L38: 0 | M38: 0
A39: 45.1 | B39: 1920 | C39: Computer Equip.-Hardware(Post Mar. 19/07) | D39: 0 | E39: 0 | F39: 0 | G39: 0 | I39: 0 | J39: 0 | K39: 0 | L39: 0 | M39: 0
A40: 10 | B40: 1930 | C40: Transportation Equipment | D40: 2395853.82 | E40: 254425.3 | F40: -26966.6 | G40: 2623312.52 | I40: -1492514.055 | J40: -209086.4807 | K40: 330011.16 | L40: -1371589.375 | M40: 1251723.145
A41: 8 | B41: 1935 | C41: Stores Equipment | D41: 75195.87 | E41: 0 | F41: 0 | G41: 75195.87 | I41: -75195.87 | J41: 0 | K41: 0 | L41: -75195.87 | M41: 0
A42: 8 | B42: 1940 | C42: Tools, Shop & Garage Equipment | D42: 1205953.52 | E42: 21012.67 | F42: 0 | G42: 1226966.19 | I42: -958760.32 | J42: -32556.99 | K42: 0 | L42: -991317.31 | M42: 235648.88
A43: 8 | B43: 1945 | C43: Measurement & Testing Equipment | D43: 0 | E43: 0 | F43: 0 | G43: 0 | I43: 0 | J43: 0 | K43: 0 | L43: 0 | M43: 0
A44: 8 | B44: 1950 | C44: Power Operated Equipment | D44: 0 | E44: 0 | F44: 0 | G44: 0 | I44: 0 | J44: 0 | K44: 0 | L44: 0 | M44: 0
A45: 8 | B45: 1955 | C45: Communications Equipment | D45: 101870.61 | E45: 46451.8 | F45: 0 | G45: 148322.41 | I45: -75874.5405 | J45: -6313.407 | K45: 0 | L45: -82187.9475 | M45: 66134.4625
A46: 8 | B46: 1955 | C46: Communication Equipment (Smart Meters) | D46: 0 | E46: 0 | F46: 0 | G46: 0 | I46: 0 | J46: 0 | K46: 0 | L46: 0 | M46: 0
A47: 8 | B47: 1960 | C47: Miscellaneous Equipment | D47: 18079.15 | E47: 1970.37 | F47: 0 | G47: 20049.52 | I47: -8024.5375 | J47: 0 | K47: 0 | L47: -8024.5375 | M47: 12024.9825
A48: 47 | B48: 1970 | C48: Load Management Controls Customer Premises | D48: 403930.62 | E48: 0 | F48: 0 | G48: 403930.62 | I48: -403930.62 | J48: 0 | K48: 0 | L48: -403930.62 | M48: 0
A49: 47 | B49: 1975 | C49: Load Management Controls Utility Premises | D49: 165151.45 | E49: 0 | F49: 0 | G49: 165151.45 | I49: -165151.45 | J49: 0 | K49: 0 | L49: -165151.45 | M49: 0
A50: 47 | B50: 1980 | C50: System Supervisor Equipment | D50: 1294865.69 | E50: 47535.46 | F50: 0 | G50: 1342401.15 | I50: -963524.1253 | J50: -48235.48667 | K50: 0 | L50: -1011759.612 | M50: 330641.538
A51: 47 | B51: 1985 | C51: Miscellaneous Fixed Assets | D51: 0 | E51: 0 | F51: 0 | G51: 0 | I51: 0 | J51: 0 | K51: 0 | L51: 0 | M51: 0
A52: 47 | B52: 1990 | C52: Other Tangible Property | D52: 53060.28 | E52: 0 | F52: 0 | G52: 53060.28 | I52: -19589.24 | J52: -2045.39 | K52: 0 | L52: -21634.63 | M52: 31425.65
A53: 47 | B53: 1995 | C53: Contributions & Grants | D53: -7560941.89 | E53: -675928.17 | F53: 0 | G53: -8236870.06 | I53: 1285861.854 | J53: 293156.2314 | K53: 0 | L53: 1579018.086 | M53: -6657851.974
A54: 47 | B54: 2440 | C54: Deferred Revenue5 | D54: 0 | E54: 0 | F54: 0 | I54: 0 | J54: 0 | K54: 0
G55: 0 | L55: 0 | M55: 0
C56: Sub-Total | D56: =SUM(D14:D55) -> 93235866.47 | E56: =SUM(E14:E55) -> 4016446.62 | F56: =SUM(F14:F55) -> -316355.15 | G56: =SUM(G14:G55) -> 96935957.94 | I56: =SUM(I14:I55) -> -48981464.32 | J56: =SUM(J14:J55) -> -2958770.602 | K56: =SUM(K14:K55) -> 383971.42 | L56: =SUM(L14:L55) -> -51556263.5 | M56: =SUM(M14:M55) -> 45379694.44
C57: Less Socialized Renewable Energy Generation Investments (input as negative) | D57: 0 | E57: 0 | F57: 0 | G57: =D57+E57+F57 -> 0 | I57: 0 | J57: 0 | K57: 0 | L57: =I57+J57+K57 -> 0 | M57: =G57+L57 -> 0
C58: Less Other Non Rate-Regulated Utility Assets (input as negative) | D58: 0 | E58: 0 | F58: 0 | G58: 0 | I58: 0 | J58: 0 | K58: 0 | L58: 0 | M58: 0
C59: Total PP&E | D59: =SUM(D56:D58) -> 93235866.47 | E59: =SUM(E56:E58) -> 4016446.62 | F59: -316355.15 | G59: 96935957.94 | I59: =SUM(I56:I58) -> -48981464.32 | J59: -2958770.602 | K59: 383971.42 | L59: -51556263.5 | M59: 45379694.44
C60: Depreciation Expense adj. from gain or loss on the retirement of assets (pool of like assets), if applicable6
C61: Total | J61: =J59+J60 -> -2958770.602
I63: Less: Fully Allocated Depreciation
A64: 10 | C64: Transportation | I64: Transportation | K64: -132845.25
A65: 8 | C65: Stores Equipment | I65: Stores Equipment
I66: Net Depreciation | K66: =J61-K64-K65 -> -2825925.352
A68: Notes:
A70: 1 | B70: Tables in the format outlined above covering all fixed asset accounts should be submitted for the Test Year, Bridge Year and all relevant historical years. At a minimum , the applicant must provide data for the earlier of: 1) all historical years back to its last rebasing; or 2) at least three years of historical actuals, in addition to Bridge Year and Test Year forecasts.
A73: 2 | B73: The "CCA Class" for fixed assets should agree with the CCA Class used for tax purposes in Tax Returns. Fixed Assets sub-components may be used where the underlying asset components are classified under multiple CCA Classes for tax purposes. If an applicant uses any different classes from those shown in the table, an explanation should be provided. (also see note 3 below).
A76: 3 | B76: The table may need to be customized for a utility's asset categories or for any new asset accounts announced or authorized by the Board.
A78: 4 | B78: The additions column (E) must not include construction work in progress (CWIP).
A80: 5 | B80: Effective on the date of IFRS adoption, customer contributions will no longer be recorded in Account 1995 Contributions & Grants, but will be recorded in Account 2440, Deferred Revenues.
A82: 6 | B82: Where a distributor for general financial reporting purposes under IFRS has accounted for the amount of gain or loss on the retirement of assets in a pool of like assets as a charge or credit to income, for reporting and rate application filings the distributor shall reclassify such gains and losses as depreciation expense, and disclose the amount separately.

Sheet App.2-BA_Fixed Asset Cont-2012R
L1: File Number: | M1: EB-2014-0099
L2: Exhibit: | M2: 2
L4: Date: | M4: ='App.2-AA_Capital Projects'!$I$4 -> 2014-12-12
A6: Appendix 2-BA
A7: Fixed Asset Continuity Schedule
E9: Accounting Standard | F9: CGAAP | G9: Revised CGAAP - Accounting Policy Changes in Effect
E10: Year | F10: 2012
D12: Cost | J12: Accumulated Depreciation
A13: CCA Class | B13: OEB | C13: Description | D13: Opening Balance | E13: Additions | F13: Disposals | G13: Closing Balance | I13: Opening Balance | J13: Additions | K13: Disposals | L13: Closing Balance | M13: Net Book Value
A14: 12 | B14: 1611 | C14: Computer Software (Formally Acct 1925) | D14: 0 | E14: 0 | F14: 0 | G14: =D14+E14+F14 -> 0 | I14: 0 | J14: 0 | K14: 0 | L14: =I14+J14+K14 -> 0 | M14: =G14+L14 -> 0
A15: 50 | B15: 1611 | C15: Computer Software (Formally Acct 1925) | D15: 1098395.08 | E15: 125138.4 | F15: 0 | G15: =D15+E15+F15 -> 1223533.48 | I15: -939498.651 | J15: -53994.15 | K15: 0 | L15: =I15+J15+K15 -> -993492.801 | M15: =G15+L15 -> 230040.679
A16: CEC | B16: 1612 | C16: Land Rights (Formally Acct 1906) | D16: 0 | E16: 0 | F16: 0 | G16: =D16+E16+F16 -> 0 | I16: 0 | J16: 0 | K16: 0 | L16: =I16+J16+K16 -> 0 | M16: =G16+L16 -> 0
A17: N/A | B17: 1805 | C17: Land | D17: 446493.3 | E17: 71.55 | F17: 0 | G17: =D17+E17+F17 -> 446564.85 | I17: 0 | J17: 0 | K17: 0 | L17: =I17+J17+K17 -> 0 | M17: =G17+L17 -> 446564.85
A18: 47 | B18: 1808 | C18: Buildings | D18: 769640.81 | E18: 980568.38 | F18: -22202.47 | G18: =D18+E18+F18 -> 1728006.72 | I18: -306962.56 | J18: -48553.9264 | K18: 22202.47 | L18: =I18+J18+K18 -> -333314.0164 | M18: =G18+L18 -> 1394692.704
A19: 13 | B19: 1810 | C19: Leasehold Improvements | D19: 0 | E19: 0 | F19: 0 | G19: 0 | I19: 0 | J19: 0 | K19: 0 | L19: 0 | M19: 0
A20: 47 | B20: 1815 | C20: Transformer Station Equipment >50 kV | D20: 0 | E20: 0 | F20: 0 | G20: 0 | I20: 0 | J20: 0 | K20: 0 | L20: 0 | M20: 0
A21: 47 | B21: 1820 | C21: Distribution Station Equipment <50 kV | D21: 11844405.63 | E21: -560783.5 | F21: -267186.08 | G21: 11016436.05 | I21: -4156526.268 | J21: -256136.0454 | K21: 197195.2774 | L21: -4215467.036 | M21: 6800969.014
A22: 47 | B22: 1825 | C22: Storage Battery Equipment | D22: 0 | E22: 0 | F22: 0 | G22: 0 | I22: 0 | J22: 0 | K22: 0 | L22: 0 | M22: 0
A23: 47 | B23: 1830 | C23: Poles, Towers & Fixtures | D23: 18921361.29 | E23: 1133581.53 | F23: 0 | G23: 20054942.82 | I23: -10904838.11 | J23: -272101.3387 | K23: 0 | L23: -11176939.45 | M23: 8878003.368
A24: 47 | B24: 1835 | C24: Overhead Conductors & Devices | D24: 14818360.56 | E24: 820773.7 | F24: 0 | G24: 15639134.26 | I24: -8332106.342 | J24: -197186.04 | K24: 0 | L24: -8529292.382 | M24: 7109841.878
A25: 47 | B25: 1840 | C25: Underground Conduit | D25: 766998.36 | E25: 24324.46 | F25: 0 | G25: 791322.82 | I25: -135284.0572 | J25: -14575.82822 | K25: 0 | L25: -149859.8854 | M25: 641462.9346
A26: 47 | B26: 1845 | C26: Underground Conductors & Devices | D26: 6755235.1 | E26: 162990.4 | F26: 0 | G26: 6918225.5 | I26: -4428295.977 | J26: -86962.76922 | K26: 0 | L26: -4515258.747 | M26: 2402966.753
A27: 47 | B27: 1850 | C27: Line Transformers | D27: 15372657.08 | E27: 630126.93 | F27: 0 | G27: 16002784.01 | I27: -8975515.577 | J27: -219873.45 | K27: 0 | L27: -9195389.027 | M27: 6807394.983
A28: 47 | B28: 1855 | C28: Services (Overhead & Underground) | D28: 16921974.85 | E28: 604430.7 | F28: 0 | G28: 17526405.55 | I28: -6143320.337 | J28: -384878.54 | K28: 0 | L28: -6528198.877 | M28: 10998206.67
A29: 47 | B29: 1860 | C29: Meters | D29: 3798108.61 | E29: 24901.14 | F29: 0 | G29: 3823009.75 | I29: -2610659.832 | J29: -106317.3913 | K29: 0 | L29: -2716977.223 | M29: 1106032.527
A30: 47 | B30: 1860 | C30: Meters (Smart Meters) | D30: 212368.13 | E30: 43972.44 | F30: 0 | G30: 256340.57 | I30: -8704.2698 | J30: -16356.49733 | K30: 0 | L30: -25060.76713 | M30: 231279.8029
A31: N/A | B31: 1905 | C31: Land | D31: 86550.51 | E31: 0 | F31: 0 | G31: 86550.51 | I31: 0 | J31: 0 | K31: 0 | L31: 0 | M31: 86550.51
A32: 47 | B32: 1908 | C32: Buildings & Fixtures | D32: 2182429.22 | E32: 231826.85 | F32: 0 | G32: 2414256.07 | I32: -1186394.424 | J32: -75946.42 | K32: 0 | L32: -1262340.844 | M32: 1151915.226
A33: 13 | B33: 1910 | C33: Leasehold Improvements | D33: 0 | E33: 0 | F33: 0 | G33: 0 | I33: 0 | J33: 0 | K33: 0 | L33: 0 | M33: 0
A34: 8 | B34: 1915 | C34: Office Furniture & Equipment (10 years) | D34: 339217.04 | E34: 31051.25 | F34: 0 | G34: 370268.29 | I34: -288404.455 | J34: -9867.01 | K34: 0 | L34: -298271.465 | M34: 71996.825
A35: 8 | B35: 1915 | C35: Office Furniture & Equipment (5 years) | D35: 0 | E35: 0 | F35: 0 | G35: 0 | I35: 0 | J35: 0 | K35: 0 | L35: 0 | M35: 0
A36: 10 | B36: 1920 | C36: Computer Equipment - Hardware | D36: 0 | E36: 0 | F36: 0 | G36: 0 | I36: 0 | J36: 0 | K36: 0 | L36: 0 | M36: 0
A37: 50 | B37: 1920 | C37: Computer Equipment - Hardware | D37: 748651.78 | E37: 68004.96 | F37: 0 | G37: 816656.74 | I37: -587979.371 | J37: -45148.62 | K37: 0 | L37: -633127.991 | M37: 183528.749
A38: 45 | B38: 1920 | C38: Computer Equip.-Hardware(Post Mar. 22/04) | D38: 0 | E38: 0 | F38: 0 | G38: 0 | I38: 0 | J38: 0 | K38: 0 | L38: 0 | M38: 0
A39: 45.1 | B39: 1920 | C39: Computer Equip.-Hardware(Post Mar. 19/07) | D39: 0 | E39: 0 | F39: 0 | G39: 0 | I39: 0 | J39: 0 | K39: 0 | L39: 0 | M39: 0
A40: 10 | B40: 1930 | C40: Transportation Equipment | D40: 2395853.82 | E40: 254425.3 | F40: -26966.6 | G40: 2623312.52 | I40: -1371589.375 | J40: -271935.175 | K40: 26966.6 | L40: -1616557.95 | M40: 1006754.57
A41: 8 | B41: 1935 | C41: Stores Equipment | D41: 75195.87 | E41: 0 | F41: 0 | G41: 75195.87 | I41: -75195.87 | J41: 0 | K41: 0 | L41: -75195.87 | M41: 0
A42: 8 | B42: 1940 | C42: Tools, Shop & Garage Equipment | D42: 1205953.52 | E42: 21012.67 | F42: 0 | G42: 1226966.19 | I42: -991317.31 | J42: -36913.39 | K42: 0 | L42: -1028230.7 | M42: 198735.49
A43: 8 | B43: 1945 | C43: Measurement & Testing Equipment | D43: 0 | E43: 0 | F43: 0 | G43: 0 | I43: 0 | J43: 0 | K43: 0 | L43: 0 | M43: 0
A44: 8 | B44: 1950 | C44: Power Operated Equipment | D44: 0 | E44: 0 | F44: 0 | G44: 0 | I44: 0 | J44: 0 | K44: 0 | L44: 0 | M44: 0
A45: 8 | B45: 1955 | C45: Communications Equipment | D45: 101870.61 | E45: 46451.8 | F45: 0 | G45: 148322.41 | I45: -82187.9475 | J45: -6632.98 | K45: 0 | L45: -88820.9275 | M45: 59501.4825
A46: 8 | B46: 1955 | C46: Communication Equipment (Smart Meters) | D46: 0 | E46: 0 | F46: 0 | G46: 0 | I46: 0 | J46: 0 | K46: 0 | L46: 0 | M46: 0
A47: 8 | B47: 1960 | C47: Miscellaneous Equipment | D47: 18079.15 | E47: 1970.37 | F47: 0 | G47: 20049.52 | I47: -8024.5375 | J47: -4025.49 | K47: 0 | L47: -12050.0275 | M47: 7999.4925
A48: 47 | B48: 1970 | C48: Load Management Controls Customer Premises | D48: 403930.62 | E48: 0 | F48: 0 | G48: 403930.62 | I48: -403930.62 | J48: 0 | K48: 0 | L48: -403930.62 | M48: 0
A49: 47 | B49: 1975 | C49: Load Management Controls Utility Premises | D49: 165151.45 | E49: 0 | F49: 0 | G49: 165151.45 | I49: -165151.45 | J49: 0 | K49: 0 | L49: -165151.45 | M49: 0
A50: 47 | B50: 1980 | C50: System Supervisor Equipment | D50: 1294865.69 | E50: 47535.46 | F50: 0 | G50: 1342401.15 | I50: -1011759.612 | J50: -53113.71 | K50: 0 | L50: -1064873.322 | M50: 277527.828
A51: 47 | B51: 1985 | C51: Miscellaneous Fixed Assets | D51: 0 | E51: 0 | F51: 0 | G51: 0 | I51: 0 | J51: 0 | K51: 0 | L51: 0 | M51: 0
A52: 47 | B52: 1990 | C52: Other Tangible Property | D52: 53060.28 | E52: 0 | F52: 0 | G52: 53060.28 | I52: -21634.63 | J52: -1629.56 | K52: 0 | L52: -23264.19 | M52: 29796.09
A53: 47 | B53: 1995 | C53: Contributions & Grants | D53: -7560941.89 | E53: -675928.17 | F53: 0 | G53: -8236870.06 | I53: 1579018.086 | J53: 179127.5325 | K53: 0 | L53: 1758145.618 | M53: -6478724.442
A54: 47 | B54: 2440 | C54: Deferred Revenue5 | D54: 0 | E54: 0 | F54: 0 | I54: 0 | J54: 0 | K54: 0
G55: 0 | L55: 0 | M55: 0
C56: Sub-Total | D56: =SUM(D14:D55) -> 93235866.47 | E56: =SUM(E14:E55) -> 4016446.62 | F56: =SUM(F14:F55) -> -316355.15 | G56: =SUM(G14:G55) -> 96935957.94 | I56: =SUM(I14:I55) -> -51556263.5 | J56: =SUM(J14:J55) -> -1983020.799 | K56: =SUM(K14:K55) -> 246364.3474 | L56: =SUM(L14:L55) -> -53292919.95 | M56: =SUM(M14:M55) -> 43643037.99
C57: Less Socialized Renewable Energy Generation Investments (input as negative) | D57: 0 | E57: 0 | F57: 0 | G57: =D57+E57+F57 -> 0 | I57: 0 | J57: 0 | K57: 0 | L57: =I57+J57+K57 -> 0 | M57: =G57+L57 -> 0
C58: Less Other Non Rate-Regulated Utility Assets (input as negative) | D58: 0 | E58: 0 | F58: 0 | G58: 0 | I58: 0 | J58: 0 | K58: 0 | L58: 0 | M58: 0
C59: Total PP&E | D59: =SUM(D56:D58) -> 93235866.47 | E59: =SUM(E56:E58) -> 4016446.62 | F59: -316355.15 | G59: 96935957.94 | I59: =SUM(I56:I58) -> -51556263.5 | J59: -1983020.799 | K59: 246364.3474 | L59: -53292919.95 | M59: 43643037.99
C60: Depreciation Expense adj. from gain or loss on the retirement of assets (pool of like assets), if applicable6
C61: Total | J61: =J59+J60 -> -1983020.799
I63: Less: Fully Allocated Depreciation
A64: 10 | C64: Transportation | I64: Transportation | K64: -132845.25
A65: 8 | C65: Stores Equipment | I65: Stores Equipment
I66: Net Depreciation | K66: =J61-K64-K65 -> -1850175.549
A68: Notes:
A70: 1 | B70: Tables in the format outlined above covering all fixed asset accounts should be submitted for the Test Year, Bridge Year and all relevant historical years. At a minimum , the applicant must provide data for the earlier of: 1) all historical years back to its last rebasing; or 2) at least three years of historical actuals, in addition to Bridge Year and Test Year forecasts.
A73: 2 | B73: The "CCA Class" for fixed assets should agree with the CCA Class used for tax purposes in Tax Returns. Fixed Assets sub-components may be used where the underlying asset components are classified under multiple CCA Classes for tax purposes. If an applicant uses any different classes from those shown in the table, an explanation should be provided. (also see note 3 below).
A76: 3 | B76: The table may need to be customized for a utility's asset categories or for any new asset accounts announced or authorized by the Board.
A78: 4 | B78: The additions column (E) must not include construction work in progress (CWIP).
A80: 5 | B80: Effective on the date of IFRS adoption, customer contributions will no longer be recorded in Account 1995 Contributions & Grants, but will be recorded in Account 2440, Deferred Revenues.
A82: 6 | B82: Where a distributor for general financial reporting purposes under IFRS has accounted for the amount of gain or loss on the retirement of assets in a pool of like assets as a charge or credit to income, for reporting and rate application filings the distributor shall reclassify such gains and losses as depreciation expense, and disclose the amount separately.

Sheet App.2-BA_Fixed Asset Cont-2013
L1: File Number: | M1: EB-2014-0099
L2: Exhibit: | M2: 2
L4: Date: | M4: ='App.2-AA_Capital Projects'!$I$4 -> 2014-12-12
A6: Appendix 2-BA
A7: Fixed Asset Continuity Schedule
E9: Accounting Standard | F9: CGAAP | G9: Revised - Accounting Policy Changes in Effect
E10: Year | F10: 2013
D12: Cost | J12: Accumulated Depreciation
A13: CCA Class | B13: OEB | C13: Description | D13: Opening Balance | E13: Additions | F13: Disposals | G13: Closing Balance | I13: Opening Balance | J13: Additions | K13: Disposals | L13: Closing Balance | M13: Net Book Value
A14: 12 | B14: 1611 | C14: Computer Software (Formally Acct 1925) | D14: 0 | E14: 0 | F14: 0 | G14: =D14+E14+F14 -> 0 | I14: 0 | J14: 0 | K14: 0 | L14: =I14+J14+K14 -> 0 | M14: =G14+L14 -> 0
A15: 50 | B15: 1611 | C15: Computer Software (Formally Acct 1925) | D15: 1223533.48 | E15: 94033.05 | F15: 0 | G15: =D15+E15+F15 -> 1317566.53 | I15: -993492.801 | J15: -79965.58792 | K15: 0 | L15: =I15+J15+K15 -> -1073458.389 | M15: =G15+L15 -> 244108.1411
A16: CEC | B16: 1612 | C16: Land Rights (Formally Acct 1906) | D16: 0 | E16: 0 | F16: 0 | G16: =D16+E16+F16 -> 0 | I16: 0 | J16: 0 | K16: 0 | L16: =I16+J16+K16 -> 0 | M16: =G16+L16 -> 0
A17: N/A | B17: 1805 | C17: Land | D17: 446564.85 | E17: 0 | F17: 0 | G17: =D17+E17+F17 -> 446564.85 | I17: 0 | J17: 0 | K17: 0 | L17: =I17+J17+K17 -> 0 | M17: =G17+L17 -> 446564.85
A18: 47 | B18: 1808 | C18: Buildings | D18: 1728006.72 | E18: 112435.15 | F18: -9936 | G18: =D18+E18+F18 -> 1830505.87 | I18: -333314.0164 | J18: -33473.69456 | K18: 9936 | L18: =I18+J18+K18 -> -356851.711 | M18: =G18+L18 -> 1473654.159
A19: 13 | B19: 1810 | C19: Leasehold Improvements | D19: 0 | E19: 0 | F19: 0 | G19: 0 | I19: 0 | J19: 0 | K19: 0 | L19: 0 | M19: 0
A20: 47 | B20: 1815 | C20: Transformer Station Equipment >50 kV | D20: 0 | E20: 0 | F20: 0 | G20: 0 | I20: 0 | J20: 0 | K20: 0 | L20: 0 | M20: 0
A21: 47 | B21: 1820 | C21: Distribution Station Equipment <50 kV | D21: 11016436.05 | E21: 2057224.35 | F21: -60157.76947 | G21: 13013502.63 | I21: -4215467.036 | J21: -266126.1 | K21: 58377.91356 | L21: -4423215.222 | M21: 8590287.408
A22: 47 | B22: 1825 | C22: Storage Battery Equipment | D22: 0 | E22: 0 | F22: 0 | G22: 0 | I22: 0 | J22: 0 | K22: 0 | L22: 0 | M22: 0
A23: 47 | B23: 1830 | C23: Poles, Towers & Fixtures | D23: 20054942.82 | E23: 1345153.37 | F23: -5535.19 | G23: 21394561 | I23: -11176939.45 | J23: -299642.8388 | K23: 3886.34 | L23: -11472695.95 | M23: 9921865.049
A24: 47 | B24: 1835 | C24: Overhead Conductors & Devices | D24: 15639134.26 | E24: 753828.36 | F24: 0 | G24: 16392962.62 | I24: -8529292.382 | J24: -210307.8055 | K24: 0 | L24: -8739600.188 | M24: 7653362.432
A25: 47 | B25: 1840 | C25: Underground Conduit | D25: 791322.82 | E25: 306052.34 | F25: 0 | G25: 1097375.16 | I25: -149859.8854 | J25: -17879.59622 | K25: 0 | L25: -167739.4816 | M25: 929635.6784
A26: 47 | B26: 1845 | C26: Underground Conductors & Devices | D26: 6918225.5 | E26: 389846.19 | F26: 0 | G26: 7308071.69 | I26: -4515258.747 | J26: -93873.2266 | K26: 0 | L26: -4609131.973 | M26: 2698939.717
A27: 47 | B27: 1850 | C27: Line Transformers | D27: 16002784.01 | E27: 519110.37 | F27: -3598.9 | G27: 16518295.48 | I27: -9195389.027 | J27: -236965.7018 | K27: 0 | L27: -9432354.729 | M27: 7085940.751
A28: 47 | B28: 1855 | C28: Services (Overhead & Underground) | D28: 17526405.55 | E28: 491910.04 | F28: 0 | G28: 18018315.59 | I28: -6528198.877 | J28: -396989.3277 | K28: 0 | L28: -6925188.205 | M28: 11093127.38
A29: 47 | B29: 1860 | C29: Meters | D29: 3823009.75 | E29: 50353.76 | F29: 0 | G29: 3873363.51 | I29: -2716977.223 | J29: -105172.0528 | K29: 0 | L29: -2822149.276 | M29: 1051214.234
A30: 47 | B30: 1860 | C30: Meters (Smart Meters) | D30: 256340.57 | E30: 62303.69 | F30: 0 | G30: 318644.26 | I30: -25060.76713 | J30: -21670.30383 | K30: 0 | L30: -46731.07097 | M30: 271913.189
A31: N/A | B31: 1905 | C31: Land | D31: 86550.51 | E31: 0 | F31: 0 | G31: 86550.51 | I31: 0 | J31: 0 | K31: 0 | L31: 0 | M31: 86550.51
A32: 47 | B32: 1908 | C32: Buildings & Fixtures | D32: 2414256.07 | E32: 100066.01 | F32: 0 | G32: 2514322.08 | I32: -1262340.844 | J32: -80662.05959 | K32: 0 | L32: -1343002.904 | M32: 1171319.176
A33: 13 | B33: 1910 | C33: Leasehold Improvements | D33: 0 | E33: 0 | F33: 0 | G33: 0 | I33: 0 | J33: 0 | K33: 0 | L33: 0 | M33: 0
A34: 8 | B34: 1915 | C34: Office Furniture & Equipment (10 years) | D34: 370268.29 | E34: 6291.69 | F34: 0 | G34: 376559.98 | I34: -298271.465 | J34: -11489.519 | K34: 0 | L34: -309760.984 | M34: 66798.996
A35: 8 | B35: 1915 | C35: Office Furniture & Equipment (5 years) | D35: 0 | E35: 0 | F35: 0 | G35: 0 | I35: 0 | J35: 0 | K35: 0 | L35: 0 | M35: 0
A36: 10 | B36: 1920 | C36: Computer Equipment - Hardware | D36: 0 | E36: 0 | F36: 0 | G36: 0 | I36: 0 | J36: 0 | K36: 0 | L36: 0 | M36: 0
A37: 50 | B37: 1920 | C37: Computer Equipment - Hardware | D37: 816656.74 | E37: 8075.81 | F37: 0 | G37: 824732.55 | I37: -633127.991 | J37: -54235.73143 | K37: 0 | L37: -687363.7224 | M37: 137368.8276
A38: 45 | B38: 1920 | C38: Computer Equip.-Hardware(Post Mar. 22/04) | D38: 0 | E38: 0 | F38: 0 | G38: 0 | I38: 0 | J38: 0 | K38: 0 | L38: 0 | M38: 0
A39: 45.1 | B39: 1920 | C39: Computer Equip.-Hardware(Post Mar. 19/07) | D39: 0 | E39: 0 | F39: 0 | G39: 0 | I39: 0 | J39: 0 | K39: 0 | L39: 0 | M39: 0
A40: 10 | B40: 1930 | C40: Transportation Equipment | D40: 2623312.52 | E40: 58915.67 | F40: 0 | G40: 2682228.19 | I40: -1616557.95 | J40: -237948.17 | K40: 0 | L40: -1854506.12 | M40: 827722.0697
A41: 8 | B41: 1935 | C41: Stores Equipment | D41: 75195.87 | E41: 0 | F41: 0 | G41: 75195.87 | I41: -75195.87 | J41: 0 | K41: 0 | L41: -75195.87 | M41: 0
A42: 8 | B42: 1940 | C42: Tools, Shop & Garage Equipment | D42: 1226966.19 | E42: 101629.777 | F42: 0 | G42: 1328595.967 | I42: -1028230.7 | J42: -40808.79368 | K42: 0 | L42: -1069039.494 | M42: 259556.4733
A43: 8 | B43: 1945 | C43: Measurement & Testing Equipment | D43: 0 | E43: 0 | F43: 0 | G43: 0 | I43: 0 | J43: 0 | K43: 0 | L43: 0 | M43: 0
A44: 8 | B44: 1950 | C44: Power Operated Equipment | D44: 0 | E44: 0 | F44: 0 | G44: 0 | I44: 0 | J44: 0 | K44: 0 | L44: 0 | M44: 0
A45: 8 | B45: 1955 | C45: Communications Equipment | D45: 148322.41 | E45: 20788.75 | F45: 0 | G45: 169111.16 | I45: -88820.9275 | J45: -7583.843333 | K45: 0 | L45: -96404.77083 | M45: 72706.38917
A46: 8 | B46: 1955 | C46: Communication Equipment (Smart Meters) | D46: 0 | E46: 0 | F46: 0 | G46: 0 | I46: 0 | J46: 0 | K46: 0 | L46: 0 | M46: 0
A47: 8 | B47: 1960 | C47: Miscellaneous Equipment | D47: 20049.52 | E47: 0 | F47: 0 | G47: 20049.52 | I47: -12050.0275 | J47: -2414.359308 | K47: 0 | L47: -14464.38681 | M47: 5585.133192
A48: 47 | B48: 1970 | C48: Load Management Controls Customer Premises | D48: 403930.62 | E48: 0 | F48: 0 | G48: 403930.62 | I48: -403930.62 | J48: 0 | K48: 0 | L48: -403930.62 | M48: 0
A49: 47 | B49: 1975 | C49: Load Management Controls Utility Premises | D49: 165151.45 | E49: 0 | F49: 0 | G49: 165151.45 | I49: -165151.45 | J49: 0 | K49: 0 | L49: -165151.45 | M49: 0
A50: 47 | B50: 1980 | C50: System Supervisor Equipment | D50: 1342401.15 | E50: 41363.75 | F50: 0 | G50: 1383764.9 | I50: -1064873.322 | J50: -51166.22737 | K50: 0 | L50: -1116039.549 | M50: 267725.3506
A51: 47 | B51: 1985 | C51: Miscellaneous Fixed Assets | D51: 0 | E51: 0 | F51: 0 | G51: 0 | I51: 0 | J51: 0 | K51: 0 | L51: 0 | M51: 0
A52: 47 | B52: 1990 | C52: Other Tangible Property | D52: 53060.28 | E52: 0 | F52: 0 | G52: 53060.28 | I52: -23264.19 | J52: -1629.56 | K52: 0 | L52: -24893.75 | M52: 28166.53
A53: 47 | B53: 1995 | C53: Contributions & Grants | D53: -8236870.06 | E53: -1061938.91 | F53: 0 | G53: -9298808.97 | I53: 1758145.618 | J53: 199416.1379 | K53: 0 | L53: 1957561.756 | M53: -7341247.214
A54: 47 | B54: 2440 | C54: Deferred Revenue5 | D54: 0 | E54: 0 | F54: 0 | I54: 0 | J54: 0 | K54: 0
G55: 0 | L55: 0 | M55: 0
C56: Sub-Total | D56: =SUM(D14:D55) -> 96935957.94 | E56: =SUM(E14:E55) -> 5457443.217 | F56: =SUM(F14:F55) -> -79227.85947 | G56: =SUM(G14:G55) -> 102314173.3 | I56: =SUM(I14:I55) -> -53292919.95 | J56: =SUM(J14:J55) -> -2050588.361 | K56: =SUM(K14:K55) -> 72200.25356 | L56: =SUM(L14:L55) -> -55271308.06 | M56: =SUM(M14:M55) -> 47042865.24
C57: Less Socialized Renewable Energy Generation Investments (input as negative) | D57: 0 | E57: 0 | F57: 0 | G57: =D57+E57+F57 -> 0 | I57: 0 | J57: 0 | K57: 0 | L57: =I57+J57+K57 -> 0 | M57: =G57+L57 -> 0
C58: Less Other Non Rate-Regulated Utility Assets (input as negative) | D58: 0 | E58: 0 | F58: 0 | G58: 0 | I58: 0 | J58: 0 | K58: 0 | L58: 0 | M58: 0
C59: Total PP&E | D59: =SUM(D56:D58) -> 96935957.94 | E59: =SUM(E56:E58) -> 5457443.217 | F59: -79227.85947 | G59: 102314173.3 | I59: =SUM(I56:I58) -> -53292919.95 | J59: -2050588.361 | K59: 72200.25356 | L59: -55271308.06 | M59: 47042865.24
C60: Depreciation Expense adj. from gain or loss on the retirement of assets (pool of like assets), if applicable6
C61: Total | J61: =J59+J60 -> -2050588.361
I63: Less: Fully Allocated Depreciation
A64: 10 | C64: Transportation | I64: Transportation | K64: -132910.88
A65: 8 | C65: Stores Equipment | I65: Stores Equipment
I66: Net Depreciation | K66: =J61-K64-K65 -> -1917677.481
A68: Notes:
A70: 1 | B70: Tables in the format outlined above covering all fixed asset accounts should be submitted for the Test Year, Bridge Year and all relevant historical years. At a minimum , the applicant must provide data for the earlier of: 1) all historical years back to its last rebasing; or 2) at least three years of historical actuals, in addition to Bridge Year and Test Year forecasts.
A73: 2 | B73: The "CCA Class" for fixed assets should agree with the CCA Class used for tax purposes in Tax Returns. Fixed Assets sub-components may be used where the underlying asset components are classified under multiple CCA Classes for tax purposes. If an applicant uses any different classes from those shown in the table, an explanation should be provided. (also see note 3 below).
A76: 3 | B76: The table may need to be customized for a utility's asset categories or for any new asset accounts announced or authorized by the Board.
A78: 4 | B78: The additions column (E) must not include construction work in progress (CWIP).
A80: 5 | B80: Effective on the date of IFRS adoption, customer contributions will no longer be recorded in Account 1995 Contributions & Grants, but will be recorded in Account 2440, Deferred Revenues.
A82: 6 | B82: Where a distributor for general financial reporting purposes under IFRS has accounted for the amount of gain or loss on the retirement of assets in a pool of like assets as a charge or credit to income, for reporting and rate application filings the distributor shall reclassify such gains and losses as depreciation expense, and disclose the amount separately.

Sheet App.2-BA_Fixed Asset Cont-2014
L1: File Number: | M1: EB-2014-0099
L2: Exhibit: | M2: 2
L4: Date: | M4: ='App.2-AA_Capital Projects'!$I$4 -> 2014-12-12
A6: Appendix 2-BA
A7: Fixed Asset Continuity Schedule
E9: Accounting Standard | F9: CGAAP | G9: Accounting Policy Changes in Effect - Comparative Purposes Only
E10: Year | F10: 2014
D12: Cost | J12: Accumulated Depreciation
A13: CCA Class | B13: OEB | C13: Description | D13: Opening Balance | E13: Additions | F13: Disposals | G13: Closing Balance | I13: Opening Balance | J13: Additions | K13: Disposals | L13: Closing Balance | M13: Net Book Value
D14: Jan.1/14 | I14: Jan.1/14
A15: 12 | B15: 1611 | C15: Computer Software (Formally Acct 1925) | D15: 0 | E15: 0 | F15: 0 | G15: =D15+E15+F15 -> 0 | I15: 0 | J15: 0 | K15: 0 | L15: =I15+J15+K15 -> 0 | M15: =G15+L15 -> 0
A16: 50 | B16: 1611 | C16: Computer Software (Formally Acct 1925) | D16: 1317566.53 | E16: 248336.27 | F16: 0 | G16: =D16+E16+F16 -> 1565902.8 | I16: -1073458.389 | J16: -153932.5489 | K16: 0 | L16: =I16+J16+K16 -> -1227390.938 | M16: =G16+L16 -> 338511.8622
A17: CEC | B17: 1612 | C17: Land Rights (Formally Acct 1906) | D17: 0 | E17: 0 | F17: 0 | G17: =D17+E17+F17 -> 0 | I17: 0 | J17: 0 | K17: 0 | L17: =I17+J17+K17 -> 0 | M17: =G17+L17 -> 0
A18: N/A | B18: 1805 | C18: Land | D18: 446564.85 | E18: 0 | F18: 0 | G18: =D18+E18+F18 -> 446564.85 | I18: 0 | J18: 0 | K18: 0 | L18: =I18+J18+K18 -> 0 | M18: =G18+L18 -> 446564.85
A19: 47 | B19: 1808 | C19: Buildings | D19: 1830505.87 | E19: 0 | F19: 0 | G19: =D19+E19+F19 -> 1830505.87 | I19: -356851.711 | J19: -34598.04606 | K19: 0 | L19: =I19+J19+K19 -> -391449.757 | M19: =G19+L19 -> 1439056.113
A20: 13 | B20: 1810 | C20: Leasehold Improvements | D20: 0 | E20: 0 | F20: 0 | G20: 0 | I20: 0 | J20: 0 | K20: 0 | L20: 0 | M20: 0
A21: 47 | B21: 1815 | C21: Transformer Station Equipment >50 kV | D21: 0 | E21: 0 | F21: 0 | G21: 0 | I21: 0 | J21: 0 | K21: 0 | L21: 0 | M21: 0
A22: 47 | B22: 1820 | C22: Distribution Station Equipment <50 kV | D22: 13013502.63 | E22: 640888.2501 | F22: -25000 | G22: 13629390.88 | I22: -4423215.222 | J22: -306673.8641 | K22: 25000 | L22: -4704889.086 | M22: 8924501.794
A23: 47 | B23: 1825 | C23: Storage Battery Equipment | D23: 0 | E23: 0 | F23: 0 | G23: 0 | I23: 0 | J23: 0 | K23: 0 | L23: 0 | M23: 0
A24: 47 | B24: 1830 | C24: Poles, Towers & Fixtures | D24: 21394561 | E24: 2168185.74 | F24: 0 | G24: 23562746.74 | I24: -11472695.95 | J24: -339385.2141 | K24: 0 | L24: -11812081.17 | M24: 11750665.57
A25: 47 | B25: 1835 | C25: Overhead Conductors & Devices | D25: 16392962.62 | E25: 734143.8 | F25: 0 | G25: 17127106.42 | I25: -8739600.188 | J25: -222720.2778 | K25: 0 | L25: -8962320.465 | M25: 8164785.955
A26: 47 | B26: 1840 | C26: Underground Conduit | D26: 1097375.16 | E26: 140104.61 | F26: 0 | G26: 1237479.77 | I26: -167739.4816 | J26: -22341.16575 | K26: 0 | L26: -190080.6474 | M26: 1047399.123
A27: 47 | B27: 1845 | C27: Underground Conductors & Devices | D27: 7308071.69 | E27: 179671.15 | F27: 0 | G27: 7487742.84 | I27: -4609131.973 | J27: -100992.1934 | K27: 0 | L27: -4710124.167 | M27: 2777618.673
A28: 47 | B28: 1850 | C28: Line Transformers | D28: 16518295.48 | E28: 667435.6 | F28: 0 | G28: 17185731.08 | I28: -9432354.729 | J28: -253449.98 | K28: 0 | L28: -9685804.709 | M28: 7499926.371
A29: 47 | B29: 1855 | C29: Services (Overhead & Underground) | D29: 18018315.59 | E29: 816566.56 | F29: 0 | G29: 18834882.15 | I29: -6925188.205 | J29: -412198.84 | K29: 0 | L29: -7337387.045 | M29: 11497495.1
A30: 47 | B30: 1860 | C30: Meters | D30: 3873363.51 | E30: 14295.75 | F30: -2283801.542 | G30: 1603857.718 | I30: -2822149.276 | J30: -101551.3853 | K30: 2005716.448 | L30: -917984.2138 | M30: 685873.5041
A31: 47 | B31: 1860 | C31: Meters (Smart Meters) | D31: 318644.26 | E31: 3475934.979 | F31: 0 | G31: 3794579.239 | I31: -46731.07097 | J31: -1078084.651 | K31: 0 | L31: -1124815.722 | M31: 2669763.517
A32: N/A | B32: 1905 | C32: Land | D32: 86550.51 | E32: 0 | F32: 0 | G32: 86550.51 | I32: 0 | J32: 0 | K32: 0 | L32: 0 | M32: 86550.51
A33: 47 | B33: 1908 | C33: Buildings & Fixtures | D33: 2514322.08 | E33: 508279.72 | F33: 0 | G33: 3022601.8 | I33: -1343002.904 | J33: -93847.47419 | K33: 0 | L33: -1436850.378 | M33: 1585751.422
A34: 13 | B34: 1910 | C34: Leasehold Improvements | D34: 0 | E34: 0 | F34: 0 | G34: 0 | I34: 0 | J34: 0 | K34: 0 | L34: 0 | M34: 0
A35: 8 | B35: 1915 | C35: Office Furniture & Equipment (10 years) | D35: 376559.98 | E35: 57280.34 | F35: 0 | G35: 433840.32 | I35: -309760.984 | J35: -13588.3845 | K35: 0 | L35: -323349.3685 | M35: 110490.9515
A36: 8 | B36: 1915 | C36: Office Furniture & Equipment (5 years) | D36: 0 | E36: 0 | F36: 0 | G36: 0 | I36: 0 | J36: 0 | K36: 0 | L36: 0 | M36: 0
A37: 10 | B37: 1920 | C37: Computer Equipment - Hardware | D37: 0 | E37: 0 | F37: 0 | G37: 0 | I37: 0 | J37: 0 | K37: 0 | L37: 0 | M37: 0
A38: 50 | B38: 1920 | C38: Computer Equipment - Hardware | D38: 824732.55 | E38: 96303.26 | F38: 0 | G38: 921035.81 | I38: -687363.7224 | J38: -62553.51792 | K38: 0 | L38: -749917.2403 | M38: 171118.5697
A39: 45 | B39: 1920 | C39: Computer Equip.-Hardware(Post Mar. 22/04) | D39: 0 | E39: 0 | F39: 0 | G39: 0 | I39: 0 | J39: 0 | K39: 0 | L39: 0 | M39: 0
A40: 45.1 | B40: 1920 | C40: Computer Equip.-Hardware(Post Mar. 19/07) | D40: 0 | E40: 0 | F40: 0 | G40: 0 | I40: 0 | J40: 0 | K40: 0 | L40: 0 | M40: 0
A41: 10 | B41: 1930 | C41: Transportation Equipment | D41: 2682228.19 | E41: 72162.64 | F41: -331838.36 | G41: 2422552.47 | I41: -1854506.12 | J41: -239603.1915 | K41: 331838.36 | L41: -1762270.952 | M41: 660281.5182
A42: 8 | B42: 1935 | C42: Stores Equipment | D42: 75195.87 | E42: 0 | F42: 0 | G42: 75195.87 | I42: -75195.87 | J42: 0 | K42: 0 | L42: -75195.87 | M42: 0
A43: 8 | B43: 1940 | C43: Tools, Shop & Garage Equipment | D43: 1328595.967 | E43: 46999.76 | F43: 0 | G43: 1375595.727 | I43: -1069039.494 | J43: -47262.88603 | K43: 0 | L43: -1116302.38 | M43: 259293.3473
A44: 8 | B44: 1945 | C44: Measurement & Testing Equipment | D44: 0 | E44: 0 | F44: 0 | G44: 0 | I44: 0 | J44: 0 | K44: 0 | L44: 0 | M44: 0
A45: 8 | B45: 1950 | C45: Power Operated Equipment | D45: 0 | E45: 0 | F45: 0 | G45: 0 | I45: 0 | J45: 0 | K45: 0 | L45: 0 | M45: 0
A46: 8 | B46: 1955 | C46: Communications Equipment | D46: 169111.16 | E46: 0 | F46: 0 | G46: 169111.16 | I46: -96404.77083 | J46: -9263.500833 | K46: 0 | L46: -105668.2717 | M46: 63442.88833
A47: 8 | B47: 1955 | C47: Communication Equipment (Smart Meters) | D47: 0 | E47: 0 | F47: 0 | G47: 0 | I47: 0 | J47: 0 | K47: 0 | L47: 0 | M47: 0
A48: 8 | B48: 1960 | C48: Miscellaneous Equipment | D48: 20049.52 | E48: 0 | F48: 0 | G48: 20049.52 | I48: -14464.38681 | J48: -2414.359308 | K48: 0 | L48: -16878.74612 | M48: 3170.773885
A49: 47 | B49: 1970 | C49: Load Management Controls Customer Premises | D49: 403930.62 | E49: 0 | F49: 0 | G49: 403930.62 | I49: -403930.62 | J49: 0 | K49: 0 | L49: -403930.62 | M49: 0
A50: 47 | B50: 1975 | C50: Load Management Controls Utility Premises | D50: 165151.45 | E50: 0 | F50: 0 | G50: 165151.45 | I50: -165151.45 | J50: 0 | K50: 0 | L50: -165151.45 | M50: 0
A51: 47 | B51: 1980 | C51: System Supervisor Equipment | D51: 1383764.9 | E51: 426182.9634 | F51: 0 | G51: 1809947.863 | I51: -1116039.549 | J51: -59134.89421 | K51: 0 | L51: -1175174.444 | M51: 634773.4198
A52: 47 | B52: 1985 | C52: Miscellaneous Fixed Assets | D52: 0 | E52: 0 | F52: 0 | G52: 0 | I52: 0 | J52: 0 | K52: 0 | L52: 0 | M52: 0
A53: 47 | B53: 1990 | C53: Other Tangible Property | D53: 53060.28 | E53: 0 | F53: 0 | G53: 53060.28 | I53: -24893.75 | J53: -1629.56 | K53: 0 | L53: -26523.31 | M53: 26536.97
A54: 47 | B54: 1995 | C54: Contributions & Grants | D54: -9298808.97 | E54: -1128076.847 | F54: 0 | G54: -10426885.82 | I54: 1957561.756 | J54: 223498.8045 | K54: 0 | L54: 2181060.561 | M54: -8245825.256
A55: 47 | B55: 2440 | C55: Deferred Revenue5 | D55: 0 | E55: 0 | F55: 0 | I55: 0 | J55: 0 | K55: 0
G56: 0 | L56: 0 | M56: 0
C57: Sub-Total | D57: =SUM(D15:D56) -> 102314173.3 | E57: =SUM(E15:E56) -> 9164694.546 | F57: =SUM(F15:F56) -> -2640639.902 | G57: =SUM(G15:G56) -> 108838227.9 | I57: =SUM(I15:I56) -> -55271308.06 | J57: =SUM(J15:J56) -> -3331727.131 | K57: =SUM(K15:K56) -> 2362554.808 | L57: =SUM(L15:L56) -> -56240480.39 | M57: =SUM(M15:M56) -> 52597747.56
C58: Less Socialized Renewable Energy Generation Investments (input as negative) | D58: 0 | E58: 0 | F58: 0 | G58: =D58+E58+F58 -> 0 | I58: 0 | J58: 0 | K58: 0 | L58: =I58+J58+K58 -> 0 | M58: =G58+L58 -> 0
C59: Less Other Non Rate-Regulated Utility Assets (input as negative) | D59: 0 | E59: 0 | F59: 0 | G59: 0 | I59: 0 | J59: 0 | K59: 0 | L59: 0 | M59: 0
C60: Total PP&E | D60: =SUM(D57:D59) -> 102314173.3 | E60: =SUM(E57:E59) -> 9164694.546 | F60: -2640639.902 | G60: 108838227.9 | I60: =SUM(I57:I59) -> -55271308.06 | J60: -3331727.131 | K60: 2362554.808 | L60: -56240480.39 | M60: 52597747.56
C61: Depreciation Expense adj. from gain or loss on the retirement of assets (pool of like assets), if applicable6
C62: Total | J62: =J60+J61 -> -3331727.131
I64: Less: Fully Allocated Depreciation
A65: 10 | C65: Transportation | I65: Transportation | K65: -127312.74
A66: 8 | C66: Stores Equipment | I66: Stores Equipment
I67: Net Depreciation | K67: =J62-K65-K66 -> -3204414.391
A69: Notes:
A71: 1 | B71: Tables in the format outlined above covering all fixed asset accounts should be submitted for the Test Year, Bridge Year and all relevant historical years. At a minimum , the applicant must provide data for the earlier of: 1) all historical years back to its last rebasing; or 2) at least three years of historical actuals, in addition to Bridge Year and Test Year forecasts.
A74: 2 | B74: The "CCA Class" for fixed assets should agree with the CCA Class used for tax purposes in Tax Returns. Fixed Assets sub-components may be used where the underlying asset components are classified under multiple CCA Classes for tax purposes. If an applicant uses any different classes from those shown in the table, an explanation should be provided. (also see note 3 below).
A77: 3 | B77: The table may need to be customized for a utility's asset categories or for any new asset accounts announced or authorized by the Board.
A79: 4 | B79: The additions column (E) must not include construction work in progress (CWIP).
A81: 5 | B81: Effective on the date of IFRS adoption, customer contributions will no longer be recorded in Account 1995 Contributions & Grants, but will be recorded in Account 2440, Deferred Revenues.
A83: 6 | B83: Where a distributor for general financial reporting purposes under IFRS has accounted for the amount of gain or loss on the retirement of assets in a pool of like assets as a charge or credit to income, for reporting and rate application filings the distributor shall reclassify such gains and losses as depreciation expense, and disclose the amount separately.

Sheet App.2-BA_Fixed Asset Cont-2014I
L1: File Number: | M1: EB-2014-0099
L2: Exhibit: | M2: 2
L4: Date: | M4: ='App.2-AA_Capital Projects'!$I$4 -> 2014-12-12
A6: Appendix 2-BA
A7: Fixed Asset Continuity Schedule
E9: Accounting Standard | F9: MIFRS
E10: Year | F10: 2014 | G10: Transition Year
D12: Cost | J12: Accumulated Depreciation
A13: CCA Class | B13: OEB | C13: Description | D13: Opening Balance | E13: Additions | F13: Disposals | G13: Closing Balance | I13: Opening Balance | J13: Additions | K13: Disposals | L13: Closing Balance | M13: Net Book Value
D14: Jan.1/14 | I14: Jan.1/14
A15: 12 | B15: 1611 | C15: Computer Software (Formally Acct 1925) | D15: 0 | E15: 0 | F15: 0 | G15: =D15+E15+F15 -> 0 | I15: 0 | J15: 0 | K15: 0 | L15: =I15+J15+K15 -> 0 | M15: =G15+L15 -> 0
A16: 50 | B16: 1611 | C16: Computer Software (Formally Acct 1925) | D16: 1317566.53 | E16: 248336.27 | F16: 0 | G16: =D16+E16+F16 -> 1565902.8 | I16: -1073458.389 | J16: -153932.5489 | K16: 0 | L16: =I16+J16+K16 -> -1227390.938 | M16: =G16+L16 -> 338511.8622
A17: CEC | B17: 1612 | C17: Land Rights (Formally Acct 1906) | D17: 0 | E17: 0 | F17: 0 | G17: =D17+E17+F17 -> 0 | I17: 0 | J17: 0 | K17: 0 | L17: =I17+J17+K17 -> 0 | M17: =G17+L17 -> 0
A18: N/A | B18: 1805 | C18: Land | D18: 446564.85 | E18: 0 | F18: 0 | G18: =D18+E18+F18 -> 446564.85 | I18: 0 | J18: 0 | K18: 0 | L18: =I18+J18+K18 -> 0 | M18: =G18+L18 -> 446564.85
A19: 47 | B19: 1808 | C19: Buildings | D19: 1830505.87 | E19: 0 | F19: 0 | G19: =D19+E19+F19 -> 1830505.87 | I19: -356851.711 | J19: -34598.04606 | K19: 0 | L19: =I19+J19+K19 -> -391449.757 | M19: =G19+L19 -> 1439056.113
A20: 13 | B20: 1810 | C20: Leasehold Improvements | D20: 0 | E20: 0 | F20: 0 | G20: 0 | I20: 0 | J20: 0 | K20: 0 | L20: 0 | M20: 0
A21: 47 | B21: 1815 | C21: Transformer Station Equipment >50 kV | D21: 0 | E21: 0 | F21: 0 | G21: 0 | I21: 0 | J21: 0 | K21: 0 | L21: 0 | M21: 0
A22: 47 | B22: 1820 | C22: Distribution Station Equipment <50 kV | D22: 13013502.63 | E22: 640888.2501 | F22: -25000 | G22: 13629390.88 | I22: -4423215.222 | J22: -306673.8641 | K22: 25000 | L22: -4704889.086 | M22: 8924501.794
A23: 47 | B23: 1825 | C23: Storage Battery Equipment | D23: 0 | E23: 0 | F23: 0 | G23: 0 | I23: 0 | J23: 0 | K23: 0 | L23: 0 | M23: 0
A24: 47 | B24: 1830 | C24: Poles, Towers & Fixtures | D24: 21394561 | E24: 2168185.74 | F24: -215692.4 | G24: 23347054.34 | I24: -11472695.95 | J24: -339385.2141 | K24: 177275.7893 | L24: -11634805.38 | M24: 11712248.96
A25: 47 | B25: 1835 | C25: Overhead Conductors & Devices | D25: 16392962.62 | E25: 734143.8 | F25: -91894.43 | G25: 17035211.99 | I25: -8739600.188 | J25: -222720.2778 | K25: 81038.68674 | L25: -8881281.779 | M25: 8153930.211
A26: 47 | B26: 1840 | C26: Underground Conduit | D26: 1097375.16 | E26: 140104.61 | F26: 0 | G26: 1237479.77 | I26: -167739.4816 | J26: -22341.16575 | K26: 0 | L26: -190080.6474 | M26: 1047399.123
A27: 47 | B27: 1845 | C27: Underground Conductors & Devices | D27: 7308071.69 | E27: 179671.15 | F27: 0 | G27: 7487742.84 | I27: -4609131.973 | J27: -100992.1934 | K27: 0 | L27: -4710124.167 | M27: 2777618.673
A28: 47 | B28: 1850 | C28: Line Transformers | D28: 16518295.48 | E28: 667435.6 | F28: -86852.30084 | G28: 17098878.78 | I28: -9432354.729 | J28: -253449.98 | K28: 70254.76449 | L28: -9615549.945 | M28: 7483328.835
A29: 47 | B29: 1855 | C29: Services (Overhead & Underground) | D29: 18018315.59 | E29: 816566.56 | F29: 0 | G29: 18834882.15 | I29: -6925188.205 | J29: -412198.84 | K29: 0 | L29: -7337387.045 | M29: 11497495.1
A30: 47 | B30: 1860 | C30: Meters | D30: 3873363.51 | E30: 14295.75 | F30: -2283801.542 | G30: 1603857.718 | I30: -2822149.276 | J30: -101551.3853 | K30: 2005716.448 | L30: -917984.2138 | M30: 685873.5041
A31: 47 | B31: 1860 | C31: Meters (Smart Meters) | D31: 318644.26 | E31: 3475934.979 | F31: 0 | G31: 3794579.239 | I31: -46731.07097 | J31: -1078084.651 | K31: 0 | L31: -1124815.722 | M31: 2669763.517
A32: N/A | B32: 1905 | C32: Land | D32: 86550.51 | E32: 0 | F32: 0 | G32: 86550.51 | I32: 0 | J32: 0 | K32: 0 | L32: 0 | M32: 86550.51
A33: 47 | B33: 1908 | C33: Buildings & Fixtures | D33: 2514322.08 | E33: 508279.72 | F33: 0 | G33: 3022601.8 | I33: -1343002.904 | J33: -93847.47419 | K33: 0 | L33: -1436850.378 | M33: 1585751.422
A34: 13 | B34: 1910 | C34: Leasehold Improvements | D34: 0 | E34: 0 | F34: 0 | G34: 0 | I34: 0 | J34: 0 | K34: 0 | L34: 0 | M34: 0
A35: 8 | B35: 1915 | C35: Office Furniture & Equipment (10 years) | D35: 376559.98 | E35: 57280.34 | F35: 0 | G35: 433840.32 | I35: -309760.984 | J35: -13588.3845 | K35: 0 | L35: -323349.3685 | M35: 110490.9515
A36: 8 | B36: 1915 | C36: Office Furniture & Equipment (5 years) | D36: 0 | E36: 0 | F36: 0 | G36: 0 | I36: 0 | J36: 0 | K36: 0 | L36: 0 | M36: 0
A37: 10 | B37: 1920 | C37: Computer Equipment - Hardware | D37: 0 | E37: 0 | F37: 0 | G37: 0 | I37: 0 | J37: 0 | K37: 0 | L37: 0 | M37: 0
A38: 50 | B38: 1920 | C38: Computer Equipment - Hardware | D38: 824732.55 | E38: 96303.26 | F38: 0 | G38: 921035.81 | I38: -687363.7224 | J38: -62553.51792 | K38: 0 | L38: -749917.2403 | M38: 171118.5697
A39: 45 | B39: 1920 | C39: Computer Equip.-Hardware(Post Mar. 22/04) | D39: 0 | E39: 0 | F39: 0 | G39: 0 | I39: 0 | J39: 0 | K39: 0 | L39: 0 | M39: 0
A40: 45.1 | B40: 1920 | C40: Computer Equip.-Hardware(Post Mar. 19/07) | D40: 0 | E40: 0 | F40: 0 | G40: 0 | I40: 0 | J40: 0 | K40: 0 | L40: 0 | M40: 0
A41: 10 | B41: 1930 | C41: Transportation Equipment | D41: 2682228.19 | E41: 72162.64 | F41: -331838.36 | G41: 2422552.47 | I41: -1854506.12 | J41: -239603.1915 | K41: 331838.36 | L41: -1762270.952 | M41: 660281.5182
A42: 8 | B42: 1935 | C42: Stores Equipment | D42: 75195.87 | E42: 0 | F42: 0 | G42: 75195.87 | I42: -75195.87 | J42: 0 | K42: 0 | L42: -75195.87 | M42: 0
A43: 8 | B43: 1940 | C43: Tools, Shop & Garage Equipment | D43: 1328595.967 | E43: 46999.76 | F43: 0 | G43: 1375595.727 | I43: -1069039.494 | J43: -47262.88603 | K43: 0 | L43: -1116302.38 | M43: 259293.3473
A44: 8 | B44: 1945 | C44: Measurement & Testing Equipment | D44: 0 | E44: 0 | F44: 0 | G44: 0 | I44: 0 | J44: 0 | K44: 0 | L44: 0 | M44: 0
A45: 8 | B45: 1950 | C45: Power Operated Equipment | D45: 0 | E45: 0 | F45: 0 | G45: 0 | I45: 0 | J45: 0 | K45: 0 | L45: 0 | M45: 0
A46: 8 | B46: 1955 | C46: Communications Equipment | D46: 169111.16 | E46: 0 | F46: 0 | G46: 169111.16 | I46: -96404.77083 | J46: -9263.500833 | K46: 0 | L46: -105668.2717 | M46: 63442.88833
A47: 8 | B47: 1955 | C47: Communication Equipment (Smart Meters) | D47: 0 | E47: 0 | F47: 0 | G47: 0 | I47: 0 | J47: 0 | K47: 0 | L47: 0 | M47: 0
A48: 8 | B48: 1960 | C48: Miscellaneous Equipment | D48: 20049.52 | E48: 0 | F48: 0 | G48: 20049.52 | I48: -14464.38681 | J48: -2414.359308 | K48: 0 | L48: -16878.74612 | M48: 3170.773885
A49: 47 | B49: 1970 | C49: Load Management Controls Customer Premises | D49: 403930.62 | E49: 0 | F49: 0 | G49: 403930.62 | I49: -403930.62 | J49: 0 | K49: 0 | L49: -403930.62 | M49: 0
A50: 47 | B50: 1975 | C50: Load Management Controls Utility Premises | D50: 165151.45 | E50: 0 | F50: 0 | G50: 165151.45 | I50: -165151.45 | J50: 0 | K50: 0 | L50: -165151.45 | M50: 0
A51: 47 | B51: 1980 | C51: System Supervisor Equipment | D51: 1383764.9 | E51: 426182.9634 | F51: 0 | G51: 1809947.863 | I51: -1116039.549 | J51: -59134.89421 | K51: 0 | L51: -1175174.444 | M51: 634773.4198
A52: 47 | B52: 1985 | C52: Miscellaneous Fixed Assets | D52: 0 | E52: 0 | F52: 0 | G52: 0 | I52: 0 | J52: 0 | K52: 0 | L52: 0 | M52: 0
A53: 47 | B53: 1990 | C53: Other Tangible Property | D53: 53060.28 | E53: 0 | F53: 0 | G53: 53060.28 | I53: -24893.75 | J53: -1629.56 | K53: 0 | L53: -26523.31 | M53: 26536.97
A54: 47 | B54: 1995 | C54: Contributions & Grants | D54: -9298808.97 | E54: -1128076.847 | F54: 0 | G54: -10426885.82 | I54: 1957561.756 | J54: 223498.8045 | K54: 0 | L54: 2181060.561 | M54: -8245825.256
A55: 47 | B55: 2440 | C55: Deferred Revenue5 | D55: 0 | E55: 0 | F55: 0 | I55: 0 | J55: 0 | K55: 0
G56: 0 | L56: 0 | M56: 0
C57: Sub-Total | D57: =SUM(D15:D56) -> 102314173.3 | E57: =SUM(E15:E56) -> 9164694.546 | F57: =SUM(F15:F56) -> -3035079.033 | G57: =SUM(G15:G56) -> 108443788.8 | I57: =SUM(I15:I56) -> -55271308.06 | J57: =SUM(J15:J56) -> -3331727.131 | K57: =SUM(K15:K56) -> 2691124.048 | L57: =SUM(L15:L56) -> -55911911.14 | M57: =SUM(M15:M56) -> 52531877.67
C58: Less Socialized Renewable Energy Generation Investments (input as negative) | D58: 0 | E58: 0 | F58: 0 | G58: =D58+E58+F58 -> 0 | I58: 0 | J58: 0 | K58: 0 | L58: =I58+J58+K58 -> 0 | M58: =G58+L58 -> 0
C59: Less Other Non Rate-Regulated Utility Assets (input as negative) | D59: 0 | E59: 0 | F59: 0 | G59: 0 | I59: 0 | J59: 0 | K59: 0 | L59: 0 | M59: 0
C60: Total PP&E | D60: =SUM(D57:D59) -> 102314173.3 | E60: =SUM(E57:E59) -> 9164694.546 | F60: -3035079.033 | G60: 108443788.8 | I60: =SUM(I57:I59) -> -55271308.06 | J60: -3331727.131 | K60: 2691124.048 | L60: -55911911.14 | M60: 52531877.67
C61: Depreciation Expense adj. from gain or loss on the retirement of assets (pool of like assets), if applicable6 | J61: -65869.89198
C62: Total | J62: =J60+J61 -> -3397597.023
I64: Less: Fully Allocated Depreciation
A65: 10 | C65: Transportation | I65: Transportation | K65: -127312.74
A66: 8 | C66: Stores Equipment | I66: Stores Equipment
I67: Net Depreciation | K67: =J62-K65-K66 -> -3270284.283
A69: Notes:
A71: 1 | B71: Tables in the format outlined above covering all fixed asset accounts should be submitted for the Test Year, Bridge Year and all relevant historical years. At a minimum , the applicant must provide data for the earlier of: 1) all historical years back to its last rebasing; or 2) at least three years of historical actuals, in addition to Bridge Year and Test Year forecasts.
A74: 2 | B74: The "CCA Class" for fixed assets should agree with the CCA Class used for tax purposes in Tax Returns. Fixed Assets sub-components may be used where the underlying asset components are classified under multiple CCA Classes for tax purposes. If an applicant uses any different classes from those shown in the table, an explanation should be provided. (also see note 3 below).
A77: 3 | B77: The table may need to be customized for a utility's asset categories or for any new asset accounts announced or authorized by the Board.
A79: 4 | B79: The additions column (E) must not include construction work in progress (CWIP).
A81: 5 | B81: Effective on the date of IFRS adoption, customer contributions will no longer be recorded in Account 1995 Contributions & Grants, but will be recorded in Account 2440, Deferred Revenues.
A83: 6 | B83: Where a distributor for general financial reporting purposes under IFRS has accounted for the amount of gain or loss on the retirement of assets in a pool of like assets as a charge or credit to income, for reporting and rate application filings the distributor shall reclassify such gains and losses as depreciation expense, and disclose the amount separately.

Sheet App.2-BA_Fixed Asset Cont-2015
L1: File Number: | M1: EB-2014-0099
L2: Exhibit: | M2: 2
L4: Date: | M4: ='App.2-AA_Capital Projects'!$I$4 -> 2014-12-12
A6: Appendix 2-BA
A7: Fixed Asset Continuity Schedule
E9: Accounting Standard | F9: MIFRS
E10: Year | F10: 2014 | G10: Change-Over Year
D12: Cost | J12: Accumulated Depreciation
A13: CCA Class | B13: OEB | C13: Description | D13: Opening Balance | E13: Additions | F13: Disposals | G13: Closing Balance | I13: Opening Balance | J13: Additions | K13: Disposals | L13: Closing Balance | M13: Net Book Value
A14: 12 | B14: 1611 | C14: Computer Software (Formally Acct 1925) | D14: 0 | E14: 0 | F14: 0 | G14: =D14+E14+F14 -> 0 | I14: 0 | J14: 0 | K14: 0 | L14: =I14+J14+K14 -> 0 | M14: =G14+L14 -> 0
A15: 50 | B15: 1611 | C15: Computer Software (Formally Acct 1925) | D15: 1565902.8 | E15: 12000 | F15: 0 | G15: =D15+E15+F15 -> 1577902.8 | I15: -1227390.938 | J15: -109328.7343 | K15: 0 | L15: =I15+J15+K15 -> -1336719.672 | M15: =G15+L15 -> 241183.1278
A16: CEC | B16: 1612 | C16: Land Rights (Formally Acct 1906) | D16: 0 | E16: 0 | F16: 0 | G16: =D16+E16+F16 -> 0 | I16: 0 | J16: 0 | K16: 0 | L16: =I16+J16+K16 -> 0 | M16: =G16+L16 -> 0
A17: N/A | B17: 1805 | C17: Land | D17: 446564.85 | E17: 0 | F17: 0 | G17: =D17+E17+F17 -> 446564.85 | I17: 0 | J17: 0 | K17: 0 | L17: =I17+J17+K17 -> 0 | M17: =G17+L17 -> 446564.85
A18: 47 | B18: 1808 | C18: Buildings | D18: 1830505.87 | E18: 18551.36861 | F18: -1142 | G18: =D18+E18+F18 -> 1847915.239 | I18: -391449.757 | J18: -34783.55975 | K18: 1142 | L18: =I18+J18+K18 -> -425091.3168 | M18: =G18+L18 -> 1422823.922
A19: 13 | B19: 1810 | C19: Leasehold Improvements | D19: 0 | E19: 0 | F19: 0 | G19: 0 | I19: 0 | J19: 0 | K19: 0 | L19: 0 | M19: 0
A20: 47 | B20: 1815 | C20: Transformer Station Equipment >50 kV | D20: 0 | E20: 0 | F20: 0 | G20: 0 | I20: 0 | J20: 0 | K20: 0 | L20: 0 | M20: 0
A21: 47 | B21: 1820 | C21: Distribution Station Equipment <50 kV | D21: 13629390.88 | E21: 2771299.037 | F21: -136337.2796 | G21: 16264352.64 | I21: -4704889.086 | J21: -341137.0045 | K21: 130048.7061 | L21: -4915977.385 | M21: 11348375.25
A22: 47 | B22: 1825 | C22: Storage Battery Equipment | D22: 0 | E22: 0 | F22: 0 | G22: 0 | I22: 0 | J22: 0 | K22: 0 | L22: 0 | M22: 0
A23: 47 | B23: 1830 | C23: Poles, Towers & Fixtures | D23: 23347054.34 | E23: 1084640.18 | F23: -235640.9715 | G23: 24196053.55 | I23: -11634805.38 | J23: -374293.5595 | K23: 194106.2636 | L23: -11814992.67 | M23: 12381060.88
A24: 47 | B24: 1835 | C24: Overhead Conductors & Devices | D24: 17035211.99 | E24: 635167.2039 | F24: -91425.46916 | G24: 17578953.72 | I24: -8881281.779 | J24: -234109.0072 | K24: 78342.08196 | L24: -9037048.704 | M24: 8541905.021
A25: 47 | B25: 1840 | C25: Underground Conduit | D25: 1237479.77 | E25: 321443.1948 | F25: 0 | G25: 1558922.965 | I25: -190080.6474 | J25: -26956.64382 | K25: 0 | L25: -217037.2912 | M25: 1341885.674
A26: 47 | B26: 1845 | C26: Underground Conductors & Devices | D26: 7487742.84 | E26: 328719.2131 | F26: 0 | G26: 7816462.053 | I26: -4710124.167 | J26: -107347.0729 | K26: 0 | L26: -4817471.24 | M26: 2998990.813
A27: 47 | B27: 1850 | C27: Line Transformers | D27: 17098878.78 | E27: 854250.8061 | F27: -106514.9351 | G27: 17846614.65 | I27: -9615549.945 | J27: -272459.88 | K27: 88965.50089 | L27: -9799044.324 | M27: 8047570.327
A28: 47 | B28: 1855 | C28: Services (Overhead & Underground) | D28: 18834882.15 | E28: 1425342.07 | F28: 0 | G28: 20260224.22 | I28: -7337387.045 | J28: -438238.08 | K28: 0 | L28: -7775625.125 | M28: 12484599.09
A29: 47 | B29: 1860 | C29: Meters | D29: 1603857.718 | E29: 14440.44793 | F29: 0 | G29: 1618298.166 | I29: -917984.2138 | J29: -102988.1952 | K29: 0 | L29: -1020972.409 | M29: 597325.7569
A30: 47 | B30: 1860 | C30: Meters (Smart Meters) | D30: 3794579.239 | E30: 214213.1744 | F30: 0 | G30: 4008792.414 | I30: -1124815.722 | J30: -272663.1947 | K30: 0 | L30: -1397478.917 | M30: 2611313.497
A31: N/A | B31: 1905 | C31: Land | D31: 86550.51 | E31: 0 | F31: 0 | G31: 86550.51 | I31: 0 | J31: 0 | K31: 0 | L31: 0 | M31: 86550.51
A32: 47 | B32: 1908 | C32: Buildings & Fixtures | D32: 3022601.8 | E32: 56651.87 | F32: 0 | G32: 3079253.67 | I32: -1436850.378 | J32: -82735.17578 | K32: 0 | L32: -1519585.554 | M32: 1559668.116
A33: 13 | B33: 1910 | C33: Leasehold Improvements | D33: 0 | E33: 0 | F33: 0 | G33: 0 | I33: 0 | J33: 0 | K33: 0 | L33: 0 | M33: 0
A34: 8 | B34: 1915 | C34: Office Furniture & Equipment (10 years) | D34: 433840.32 | E34: 6000 | F34: 0 | G34: 439840.32 | I34: -323349.3685 | J34: -16579.6395 | K34: 0 | L34: -339929.008 | M34: 99911.312
A35: 8 | B35: 1915 | C35: Office Furniture & Equipment (5 years) | D35: 0 | E35: 0 | F35: 0 | G35: 0 | I35: 0 | J35: 0 | K35: 0 | L35: 0 | M35: 0
A36: 10 | B36: 1920 | C36: Computer Equipment - Hardware | D36: 0 | E36: 0 | F36: 0 | G36: 0 | I36: 0 | J36: 0 | K36: 0 | L36: 0 | M36: 0
A37: 50 | B37: 1920 | C37: Computer Equipment - Hardware | D37: 921035.81 | E37: 135800 | F37: 0 | G37: 1056835.81 | I37: -749917.2403 | J37: -76435.02565 | K37: 0 | L37: -826352.266 | M37: 230483.544
A38: 45 | B38: 1920 | C38: Computer Equip.-Hardware(Post Mar. 22/04) | D38: 0 | E38: 0 | F38: 0 | G38: 0 | I38: 0 | J38: 0 | K38: 0 | L38: 0 | M38: 0
A39: 45.1 | B39: 1920 | C39: Computer Equip.-Hardware(Post Mar. 19/07) | D39: 0 | E39: 0 | F39: 0 | G39: 0 | I39: 0 | J39: 0 | K39: 0 | L39: 0 | M39: 0
A40: 10 | B40: 1930 | C40: Transportation Equipment | D40: 2422552.47 | E40: 598285 | F40: -83454.76 | G40: 2937382.71 | I40: -1762270.952 | J40: -266797.458 | K40: 83454.76 | L40: -1945613.65 | M40: 991769.0602
A41: 8 | B41: 1935 | C41: Stores Equipment | D41: 75195.87 | E41: 0 | F41: 0 | G41: 75195.87 | I41: -75195.87 | J41: 0 | K41: 0 | L41: -75195.87 | M41: 0
A42: 8 | B42: 1940 | C42: Tools, Shop & Garage Equipment | D42: 1375595.727 | E42: 46150.76 | F42: 0 | G42: 1421746.487 | I42: -1116302.38 | J42: -48880.7115 | K42: 0 | L42: -1165183.091 | M42: 256563.3958
A43: 8 | B43: 1945 | C43: Measurement & Testing Equipment | D43: 0 | E43: 0 | F43: 0 | G43: 0 | I43: 0 | J43: 0 | K43: 0 | L43: 0 | M43: 0
A44: 8 | B44: 1950 | C44: Power Operated Equipment | D44: 0 | E44: 0 | F44: 0 | G44: 0 | I44: 0 | J44: 0 | K44: 0 | L44: 0 | M44: 0
A45: 8 | B45: 1955 | C45: Communications Equipment | D45: 169111.16 | E45: 0 | F45: 0 | G45: 169111.16 | I45: -105668.2717 | J45: -8666.036333 | K45: 0 | L45: -114334.308 | M45: 54776.852
A46: 8 | B46: 1955 | C46: Communication Equipment (Smart Meters) | D46: 0 | E46: 0 | F46: 0 | G46: 0 | I46: 0 | J46: 0 | K46: 0 | L46: 0 | M46: 0
A47: 8 | B47: 1960 | C47: Miscellaneous Equipment | D47: 20049.52 | E47: 0 | F47: 0 | G47: 20049.52 | I47: -16878.74612 | J47: -2414.359308 | K47: 0 | L47: -19293.10542 | M47: 756.4145769
A48: 47 | B48: 1970 | C48: Load Management Controls Customer Premises | D48: 403930.62 | E48: 0 | F48: 0 | G48: 403930.62 | I48: -403930.62 | J48: 0 | K48: 0 | L48: -403930.62 | M48: 0
A49: 47 | B49: 1975 | C49: Load Management Controls Utility Premises | D49: 165151.45 | E49: 0 | F49: 0 | G49: 165151.45 | I49: -165151.45 | J49: 0 | K49: 0 | L49: -165151.45 | M49: 0
A50: 47 | B50: 1980 | C50: System Supervisor Equipment | D50: 1809947.863 | E50: 19102.76797 | F50: 0 | G50: 1829050.631 | I50: -1175174.444 | J50: -70267.0375 | K50: 0 | L50: -1245441.481 | M50: 583609.1503
A51: 47 | B51: 1985 | C51: Miscellaneous Fixed Assets | D51: 0 | E51: 0 | F51: 0 | G51: 0 | I51: 0 | J51: 0 | K51: 0 | L51: 0 | M51: 0
A52: 47 | B52: 1990 | C52: Other Tangible Property | D52: 53060.28 | E52: 0 | F52: 0 | G52: 53060.28 | I52: -26523.31 | J52: -1629.56 | K52: 0 | L52: -28152.87 | M52: 24907.41
A53: 47 | B53: 1995 | C53: Contributions & Grants | D53: -10426885.82 | E53: -503986.5896 | F53: 0 | G53: -10930872.41 | I53: 2181060.561 | J53: 241632.8427 | K53: 0 | L53: 2422693.403 | M53: -8508179.003
A54: 47 | B54: 2440 | C54: Deferred Revenue5 | D54: 0 | E54: 0 | F54: 0 | I54: 0 | J54: 0 | K54: 0
G55: 0 | L55: 0 | M55: 0
C56: Sub-Total | D56: =SUM(D14:D55) -> 108443788.8 | E56: =SUM(E14:E55) -> 8038070.504 | F56: =SUM(F14:F55) -> -654515.4153 | G56: =SUM(G14:G55) -> 115827343.9 | I56: =SUM(I14:I55) -> -55911911.14 | J56: =SUM(J14:J55) -> -2647077.093 | K56: =SUM(K14:K55) -> 576059.3125 | L56: =SUM(L14:L55) -> -57982928.93 | M56: =SUM(M14:M55) -> 57844414.97
C57: Less Socialized Renewable Energy Generation Investments (input as negative) | D57: 0 | E57: 0 | F57: 0 | G57: =D57+E57+F57 -> 0 | I57: 0 | J57: 0 | K57: 0 | L57: =I57+J57+K57 -> 0 | M57: =G57+L57 -> 0
C58: Less Other Non Rate-Regulated Utility Assets (input as negative) | D58: 0 | E58: 0 | F58: 0 | G58: 0 | I58: 0 | J58: 0 | K58: 0 | L58: 0 | M58: 0
C59: Total PP&E | D59: =SUM(D56:D58) -> 108443788.8 | E59: =SUM(E56:E58) -> 8038070.504 | F59: -654515.4153 | G59: 115827343.9 | I59: =SUM(I56:I58) -> -55911911.14 | J59: -2647077.093 | K59: 576059.3125 | L59: -57982928.93 | M59: 57844414.97
C60: Depreciation Expense adj. from gain or loss on the retirement of assets (pool of like assets), if applicable6 | J60: -78456.10281
C61: Total | J61: =J59+J60 -> -2725533.196
I63: Less: Fully Allocated Depreciation
A64: 10 | C64: Transportation | I64: Transportation | K64: -155871
A65: 8 | C65: Stores Equipment | I65: Stores Equipment
I66: Net Depreciation | K66: =J61-K64-K65 -> -2569662.196
A68: Notes:
A70: 1 | B70: Tables in the format outlined above covering all fixed asset accounts should be submitted for the Test Year, Bridge Year and all relevant historical years. At a minimum , the applicant must provide data for the earlier of: 1) all historical years back to its last rebasing; or 2) at least three years of historical actuals, in addition to Bridge Year and Test Year forecasts.
A73: 2 | B73: The "CCA Class" for fixed assets should agree with the CCA Class used for tax purposes in Tax Returns. Fixed Assets sub-components may be used where the underlying asset components are classified under multiple CCA Classes for tax purposes. If an applicant uses any different classes from those shown in the table, an explanation should be provided. (also see note 3 below).
A76: 3 | B76: The table may need to be customized for a utility's asset categories or for any new asset accounts announced or authorized by the Board.
A78: 4 | B78: The additions column (E) must not include construction work in progress (CWIP).
A80: 5 | B80: Effective on the date of IFRS adoption, customer contributions will no longer be recorded in Account 1995 Contributions & Grants, but will be recorded in Account 2440, Deferred Revenues.
A82: 6 | B82: Where a distributor for general financial reporting purposes under IFRS has accounted for the amount of gain or loss on the retirement of assets in a pool of like assets as a charge or credit to income, for reporting and rate application filings the distributor shall reclassify such gains and losses as depreciation expense, and disclose the amount separately.

Sheet Appendix 2-BB Service Life
M1: File Number: | O1: EB-2014-0099
M2: Exhibit: | O2: 4
M4: Date: | O4: ='App.2-AA_Capital Projects'!$I$4 -> 2014-12-12
A6: Appendix 2-BB
A7: Service Life Comparison
A8: Table F-1 from Kinetrics Report1
C12: Asset Details | F12: Useful Life | J12: USoA Account Number | K12: USoA Account Description | L12: Current | N12: Proposed | P12: Outside Range of Min, Max TUL?
A13: Parent* | B13: # | C13: Category| Component | Type | F13: MIN UL | G13: TUL | H13: MAX UL | L13: Years | M13: Rate | N13: Years | O13: Rate | P13: Below Min TUL | Q13: Above Max TUL
A14: OH | B14: 1 | C14: Fully Dressed Wood Poles | D14: Overall | F14: 35 | G14: 45 | H14: 75 | J14: 1820 | K14: Fully Dressed Wood Poles | L14: 45 | M14: =IF(ISERROR(1/L14), "", 1/L14) -> 0.02222222222 | N14: 45 | O14: =IF(ISERROR(1/N14), "", 1/N14) -> 0.02222222222 | P14: =IF(ISBLANK(N14),"",IF(N14<F14,"Yes","No")) -> No | Q14: =IF(ISBLANK(N14),"",IF(N14>H14,"Yes","No")) -> No
D15: Cross Arm | E15: Wood | F15: 20 | G15: 40 | H15: 55 | M15: =IF(ISERROR(1/L15), "", 1/L15) ->  | O15: =IF(ISERROR(1/N15), "", 1/N15) ->  | P15: =IF(ISBLANK(N15),"",IF(N15<F15,"Yes","No")) ->  | Q15: =IF(ISBLANK(N15),"",IF(N15>H15,"Yes","No")) -> 
E16: Steel | F16: 30 | G16: 70 | H16: 95
B17: 2 | C17: Fully Dressed Concrete Poles | D17: Overall | F17: 50 | G17: 60 | H17: 80
D18: Cross Arm | E18: Wood | F18: 20 | G18: 40 | H18: 55
E19: Steel | F19: 30 | G19: 70 | H19: 95
B20: 3 | C20: Fully Dressed Steel Poles | D20: Overall | F20: 60 | G20: 60 | H20: 80
D21: Cross Arm | E21: Wood | F21: 20 | G21: 40 | H21: 55
E22: Steel | F22: 30 | G22: 70 | H22: 95
B23: 4 | C23: OH Line Switch | F23: 30 | G23: 45 | H23: 55 | J23: 1835 | K23: OH Conductor & Devices | L23: 45 | M23: 0.02222222222 | N23: 45 | O23: 0.02222222222 | P23: No | Q23: No
B24: 5 | C24: OH Line Switch Motor | F24: 15 | G24: 25 | H24: 25 | J24: 1835 | K24: OH Conductor & Devices | L24: 25 | M24: 0.04 | N24: 25 | O24: 0.04 | P24: No | Q24: No
B25: 6 | C25: OH Line Switch RTU | F25: 15 | G25: 20 | H25: 20 | J25: 1980 | K25: System Supervisory Equipment | L25: 20 | M25: 0.05 | N25: 20 | O25: 0.05 | P25: No | Q25: No
B26: 7 | C26: OH Integral Switches | F26: 35 | G26: 45 | H26: 60
B27: 8 | C27: OH Conductors | F27: 50 | G27: 60 | H27: 75 | J27: 1835 | K27: OH Conductor & Devices | L27: 60 | M27: 0.01666666667 | N27: 60 | O27: 0.01666666667 | P27: No | Q27: No
B28: 9 | C28: OH Transformers & Voltage Regulators | F28: 30 | G28: 40 | H28: 60 | J28: 1850 | K28: OH Transformers | L28: 40 | M28: 0.025 | N28: 40 | O28: 0.025 | P28: No | Q28: No
B29: 10 | C29: OH Shunt Capacitor Banks | F29: 25 | G29: 30 | H29: 40
B30: 11 | C30: Reclosers | F30: 25 | G30: 40 | H30: 55 | J30: 1835 | K30: OH Conductor & Devices | L30: 25 | M30: 0.04 | N30: 25 | O30: 0.04 | P30: No | Q30: No
A31: TS & MS | B31: 12 | C31: Power Transformers | D31: Overall | F31: 30 | G31: 45 | H31: 60 | J31: 1820 | K31: Distribution Station Equipment <50 kV | L31: 45 | M31: 0.02222222222 | N31: 45 | O31: 0.02222222222 | P31: No | Q31: No
D32: Bushing | F32: 10 | G32: 20 | H32: 30
D33: Tap Changer | F33: 20 | G33: 30 | H33: 60
B34: 13 | C34: Station Service Transformer | F34: 30 | G34: 45 | H34: 55
B35: 14 | C35: Station Grounding Transformer | F35: 30 | G35: 40 | H35: 40
B36: 15 | C36: Station DC System | D36: Overall | F36: 10 | G36: 20 | H36: 30
D37: Battery Bank | F37: 10 | G37: 15 | H37: 15
D38: Charger | F38: 20 | G38: 20 | H38: 30
B39: 16 | C39: Station Metal Clad Switchgear | D39: Overall | F39: 30 | G39: 40 | H39: 60 | J39: 1820 | K39: Distribution Station Equipment <50 kV | L39: 40 | M39: 0.025 | N39: 40 | O39: 0.025 | P39: No | Q39: No
D40: Removable Breaker | F40: 25 | G40: 40 | H40: 60
B41: 17 | C41: Station Independent Breakers | F41: 35 | G41: 45 | H41: 65
B42: 18 | C42: Station Switch | F42: 30 | G42: 50 | H42: 60
B43: 19 | C43: Electromechanical Relays | F43: 25 | G43: 35 | H43: 50
B44: 20 | C44: Solid State Relays | F44: 10 | G44: 30 | H44: 45 | J44: 1820 | K44: Distribution Station Equipment <50 kV | L44: 20 | M44: 0.05 | N44: 20 | O44: 0.05 | P44: No | Q44: No
B45: 21 | C45: Digital & Numeric Relays | F45: 15 | G45: 20 | H45: 20
B46: 22 | C46: Rigid Busbars | F46: 30 | G46: 55 | H46: 60 | J46: 1820 | K46: Distribution Station Equipment <50 kV | L46: 40 | M46: 0.025 | N46: 40 | O46: 0.025 | P46: No | Q46: No
B47: 23 | C47: Steel Structure | F47: 35 | G47: 50 | H47: 90 | J47: 1820 | K47: Distribution Station Equipment <50 kV | L47: 40 | M47: 0.025 | N47: 40 | O47: 0.025 | P47: No | Q47: No
A48: UG | B48: 24 | C48: Primary Paper Insulated Lead Covered (PILC) Cables | F48: 60 | G48: 65 | H48: 75
B49: 25 | C49: Primary Ethylene-Propylene Rubber (EPR) Cables | F49: 20 | G49: 25 | H49: 25
B50: 26 | C50: Primary Non-Tree Retardant (TR) Cross Linked Polyethylene (XLPE) Cables Direct Buried | F50: 20 | G50: 25 | H50: 30
B51: 27 | C51: Primary Non-TR XLPE Cables in Duct | F51: 20 | G51: 25 | H51: 30
B52: 29 | C52: Primary TR XLPE Cables in Duct | F52: 35 | G52: 40 | H52: 55 | J52: 1845 | K52: UG Conductor & Devices | L52: 40 | N52: 40 | O52: 0.025 | P52: No | Q52: No
B53: 30 | C53: Secondary PILC Cables | F53: 70 | G53: 75 | H53: 80
B54: 31 | C54: Secondary Cables Direct Buried | F54: 25 | G54: 35 | H54: 40
B55: 32 | C55: Secondary Cables in Duct | F55: 35 | G55: 40 | H55: 60 | J55: 1855 | K55: Services | L55: 40 | M55: 0.025 | N55: 40 | O55: 0.025 | P55: No | Q55: No
B56: 33 | C56: Network Tranformers | D56: Overall | F56: 20 | G56: 35 | H56: 50
D57: Protector | F57: 20 | G57: 35 | H57: 40
B58: 34 | C58: Pad-Mounted Transformers | F58: 25 | G58: 40 | H58: 45 | J58: 1850 | K58: UG Transformers | L58: 40 | M58: 0.025 | N58: 40 | O58: 0.025 | P58: No | Q58: No
B59: 35 | C59: Submersible/Vault Transformers | F59: 25 | G59: 35 | H59: 45
B60: 36 | C60: UG Foundation | F60: 35 | G60: 55 | H60: 70
B61: 37 | C61: UG Vaults | D61: Overall | F61: 40 | G61: 60 | H61: 80
D62: Roof | F62: 20 | G62: 30 | H62: 45
B63: 38 | C63: UG Vault Switches | F63: 20 | G63: 35 | H63: 50
B64: 39 | C64: Pad-Mounted Switchgear | F64: 20 | G64: 30 | H64: 45
B65: 40 | C65: Ducts | F65: 30 | G65: 50 | H65: 85
B66: 41 | C66: Concrete Encased Duct Banks | F66: 35 | G66: 55 | H66: 80 | J66: 1840 | K66: UG Conduit | L66: 50 | M66: 0.02 | N66: 50 | O66: 0.02 | P66: No | Q66: No
B67: 42 | C67: Cable Chambers | F67: 50 | G67: 60 | H67: 80
A68: S | B68: 43 | C68: Remote SCADA | F68: 15 | G68: 20 | H68: 30 | J68: 1980 | K68: System Supervisory Equipment | L68: 20 | M68: 0.05 | N68: 20 | O68: 0.05 | P68: No | Q68: No
A71: Table F-2 from Kinetrics Report1
C73: Asset Details | F73: Useful Life Range | J73: USoA Account Number | K73: USoA Account Description | L73: Current | N73: Proposed | P73: Outside Range of Min, Max TUL?
B74: # | C74: Category| Component | Type | L74: Years | M74: Rate | N74: Years | O74: Rate | P74: Below Min Range | Q74: Above Max Range
B75: 1 | C75: Office Equipment | F75: 5 | G75: 15 | J75: 1915 | K75: Office Equipment | L75: 10 | M75: =IF(ISERROR(1/L75), "", 1/L75) -> 0.1 | N75: 10 | O75: =IF(ISERROR(1/N75), "", 1/N75) -> 0.1 | P75: =IF(ISBLANK(N75),"",IF(N75<F75,"Yes","No")) -> No | Q75: =IF(ISBLANK(N75),"",IF(N75>G75,"Yes","No")) -> No
B76: 2 | C76: Vehicles | D76: Trucks & Buckets | F76: 5 | G76: 15 | J76: 1930 | K76: Transportation Equipment - >3 ton | L76: 8 | M76: =IF(ISERROR(1/L76), "", 1/L76) -> 0.125 | N76: 8 | O76: =IF(ISERROR(1/N76), "", 1/N76) -> 0.125 | P76: =IF(ISBLANK(N76),"",IF(N76<F76,"Yes","No")) -> No | Q76: =IF(ISBLANK(N76),"",IF(N76>G76,"Yes","No")) -> No
D77: Trucks & Buckets | F77: 5 | G77: 15 | J77: 1930 | K77: Transportation Equipment - <3 ton | L77: 5 | M77: =IF(ISERROR(1/L77), "", 1/L77) -> 0.2 | N77: 5 | O77: =IF(ISERROR(1/N77), "", 1/N77) -> 0.2 | P77: =IF(ISBLANK(N77),"",IF(N77<F77,"Yes","No")) -> No | Q77: =IF(ISBLANK(N77),"",IF(N77>G77,"Yes","No")) -> No
D78: Trailers | F78: 5 | G78: 20 | J78: 1930 | K78: Transportation Equipment - Trailers | L78: 8 | M78: 0.125 | N78: 8 | O78: 0.125 | P78: No | Q78: No
D79: Vans | F79: 5 | G79: 10 | J79: 1930 | K79: Transportation Equipment - <3 ton | L79: 8 | M79: 0.125 | N79: 8 | O79: 0.125 | P79: No | Q79: No
B80: 3 | C80: Administrative Buildings | F80: 50 | G80: 75 | J80: 1980 | K80: Buildings & Fixtures | L80: 25 | M80: 0.04 | N80: 25 | O80: 0.04 | P80: Yes | Q80: No
B81: 4 | C81: Leasehold Improvements | F81: Lease dependent | O81: =IF(ISERROR(1/N81), "", 1/N81) ->  | P81: =IF(ISBLANK(N81),"",IF(N81<F81,"Yes","No")) ->  | Q81: =IF(ISBLANK(N81),"",IF(N81>G81,"Yes","No")) -> 
B82: 5 | C82: Station Buildings | D82: Station Buildings | F82: 50 | G82: 75 | J82: 1808 | K82: Station Buildings | L82: 50 | M82: 0.02 | N82: 50 | O82: 0.02 | P82: No | Q82: No
D83: Parking | F83: 25 | G83: 30
D84: Fence | F84: 25 | G84: 60
D85: Roof | F85: 20 | G85: 30
B86: 6 | C86: Computer Equipment | D86: Hardware | F86: 3 | G86: 5 | J86: 1920 | K86: Computer Hardware | L86: 5 | M86: 0.2 | N86: 5 | O86: 0.2 | P86: No | Q86: No
D87: Software | F87: 2 | G87: 5 | J87: 1925 | K87: Computer Software | L87: 5 | M87: 0.2 | N87: 5 | O87: 0.2 | P87: No | Q87: No
B88: 7 | C88: Equipment | D88: Power Operated | F88: 5 | G88: 10
D89: Stores | F89: 5 | G89: 10 | J89: 1935 | K89: Stores Equipment | L89: 10 | M89: 0.1 | N89: 10 | O89: 0.1 | P89: No | Q89: No
D90: Tools, Shop, Garage Equipment | F90: 5 | G90: 10 | J90: 1940 | K90: Tools, Shop, Garage Equipment | L90: 10 | M90: 0.1 | N90: 10 | O90: 0.1 | P90: No | Q90: No
D91: Measurement & Testing Equipment | F91: 5 | G91: 10
B92: 8 | C92: Communication | D92: Towers | F92: 60 | G92: 70
D93: Wireless | F93: 2 | G93: 10
B94: 9 | C94: Residential Energy Meters | F94: 25 | G94: 35 | J94: 1860 | K94: Meters | L94: 25 | M94: 0.04 | N94: 25 | O94: 0.04 | P94: No | Q94: No
B95: 10 | C95: Industrial/Commercial Energy Meters | F95: 25 | G95: 35 | J95: 1860 | K95: Meters | L95: 25 | M95: 0.04 | N95: 25 | O95: 0.04 | P95: No | Q95: No
B96: 11 | C96: Wholesale Energy Meters | F96: 15 | G96: 30
B97: 12 | C97: Current & Potential Transformer (CT & PT) | F97: 35 | G97: 50
B98: 13 | C98: Smart Meters | F98: 5 | G98: 15 | J98: 1860 | K98: Meters | L98: 10 | M98: 0.1 | N98: 10 | O98: 0.1 | P98: No | Q98: No
B99: 14 | C99: Repeaters - Smart Metering | F99: 10 | G99: 15
B100: 15 | C100: Data Collectors - Smart Metering | F100: 15 | G100: 20
A103: * TS & MS = Transformer and Municipal Stations UG = Underground Systems S = Monitoring and Control Systems
A105: Note 1: | B105: Tables F-1 and F-2 above are to be used as a reference in order to complete columns J, K, L and N.
B106: See pages 17-19 of Kinetrics Report

Sheet App.2-CA_OldCGAAP_DepExp_2012
K1: File Number: | L1: =EBNUMBER -> EB-2014-0099
K2: Exhibit: | L2: 4
K4: Date: | L4: ='App.2-AA_Capital Projects'!$I$4 -> 2014-12-12
A6: Appendix 2-CA
A7: Depreciation and Amortization Expense
B8: Assumes the applicant made capitalization and depreciation expense accounting policy changes under CGAAP effective January 1, 2012 and will adopt IFRS for financial reporting purposes effective January 1, 2015.
C10: Year | D10: 2012 | E10: Former CGAAP
A12: Account | B12: Description | C12: Opening Regulatory Gross PP&E as at Jan 1, 2012 | D12: Less Fully Depreciated | E12: Net for Depreciation | F12: Additions | G12: Total for Depreciation | H12: Years | I12: Depreciation Rate | J12: Depreciation Expense | K12: 2012 Depreciation Expense per Appendix 2-BA Fixed Assets, Column J (l) | L12: Variance 2
C13: (a) | D13: (b) | E13: (c) | F13: (d) | G13: (e) = (c) + ½ x (d) 1 | H13: (f) | I13: (g) = 1 / (f) | J13: (h) = (e) / (f) | L13: (m) = (h) - (l)
A14: 1611 | B14: Computer Software (Formally known as Account 1925) | C14: 1098395.08 | D14: 854898.81 | E14: =C14-D14 -> 243496.27 | F14: 125138.4 | G14: =E14+0.5*F14 -> 306065.47 | H14: 5 | I14: =IF(H14=0,0,1/H14) -> 0.2 | J14: =IF(H14=0,0,G14/H14) -> 61213.094 | K14: 61213.09 | L14: =IF(ISERROR(+J14-K14), 0, +J14-K14) -> 0.003999999943
A15: 1612 | B15: Land Rights (Formally known as Account 1906) | C15: 0 | D15: 0 | E15: =C15-D15 -> 0 | G15: =E15+0.5*F15 -> 0 | I15: 0 | J15: 0 | K15: 0 | L15: 0
A16: 1805 | B16: Land | C16: 446493.3 | D16: 0 | E16: 446493.3 | F16: 71.55 | G16: 446529.075 | I16: 0 | J16: 0 | K16: 0 | L16: 0
A17: 1808 | B17: Buildings | C17: 769640.81 | D17: 104997.15 | E17: 664643.66 | F17: 980568.38 | G17: 1154927.85 | H17: 50 | I17: 0.02 | J17: 23098.557 | K17: 49220.52 | L17: -26121.963
A18: 1810 | B18: Leasehold Improvements | C18: 0 | D18: 0 | E18: 0 | F18: 0 | G18: 0 | I18: 0 | J18: 0 | K18: 0 | L18: 0
A19: 1815 | B19: Transformer Station Equipment >50 kV | C19: 0 | D19: 0 | E19: 0 | F19: 0 | G19: 0 | I19: 0 | J19: 0 | K19: 0 | L19: 0
A20: 1820 | B20: Distribution Station Equipment <50 kV | C20: 11844405.63 | D20: 956539.34 | E20: 10887866.29 | F20: -560783.5 | G20: 10607474.54 | H20: 30 | I20: 0.03333333333 | J20: 353582.4847 | K20: 324074.6398 | L20: 29507.84483
A21: 1825 | B21: Storage Battery Equipment | C21: 0 | D21: 0 | E21: 0 | G21: 0 | I21: 0 | J21: 0 | K21: 0 | L21: 0
A22: 1830 | B22: Poles, Towers & Fixtures | C22: 18921361.29 | D22: 0 | E22: 18921361.29 | F22: 1133581.53 | G22: 19488152.06 | H22: 25 | I22: 0.04 | J22: 779526.0822 | K22: 599647.4702 | L22: 179878.612
A23: 1835 | B23: Overhead Conductors & Devices | C23: 14818360.56 | D23: 0 | E23: 14818360.56 | F23: 820773.7 | G23: 15228747.41 | H23: 25 | I23: 0.04 | J23: 609149.8964 | K23: 478940.734 | L23: 130209.1624
A24: 1840 | B24: Underground Conduit | C24: 766998.36 | D24: 0 | E24: 766998.36 | F24: 24324.46 | G24: 779160.59 | H24: 25 | I24: 0.04 | J24: 31166.4236 | K24: 31165.4892 | L24: 0.9344
A25: 1845 | B25: Underground Conductors & Devices | C25: 6755235.1 | D25: 0 | E25: 6755235.1 | F25: 162990.4 | G25: 6836730.3 | H25: 25 | I25: 0.04 | J25: 273469.212 | K25: 208870.898 | L25: 64598.314
A26: 1850 | B26: Line Transformers | C26: 15372657.08 | D26: 0 | E26: 15372657.08 | F26: 630126.93 | G26: 15687720.54 | H26: 25 | I26: 0.04 | J26: 627508.8218 | K26: 454425.76 | L26: 173083.0618
A27: 1855 | B27: Services (Overhead & Underground) | C27: 16921974.85 | D27: 0 | E27: 16921974.85 | F27: 604430.7 | G27: 17224190.2 | H27: 25 | I27: 0.04 | J27: 688967.608 | K27: 615184.81 | L27: 73782.798
A28: 1860 | B28: Meters | C28: 3798108.61 | D28: 0 | E28: 3798108.61 | F28: 24901.14 | G28: 3810559.18 | H28: 25 | I28: 0.04 | J28: 152422.3672 | K28: 104798.1214 | L28: 47624.2458
A29: 1860 | B29: Meters (Smart Meters) | C29: 212368.13 | D29: 0 | E29: 212368.13 | F29: 43972.44 | G29: 234354.35 | H29: 25 | I29: 0.04 | J29: 9374.174 | K29: 9374.174 | L29: 1.818989404e-12
A30: 1905 | B30: Land | C30: 86550.51 | D30: 0 | E30: 86550.51 | F30: 0 | G30: 86550.51 | H30: 0 | I30: 0 | J30: 0 | K30: 0 | L30: 0
A31: 1908 | B31: Buildings & Fixtures | C31: 2182429.22 | D31: 400403.21 | E31: 1782026.01 | F31: 231826.85 | G31: 1897939.435 | H31: 25 | I31: 0.04 | J31: 75917.5774 | K31: 75044.927 | L31: 872.6504
A32: 1910 | B32: Leasehold Improvements | C32: 0 | D32: 0 | E32: 0 | F32: 0 | G32: 0 | I32: 0 | J32: 0 | K32: 0 | L32: 0
A33: 1915 | B33: Office Furniture & Equipment (10 years) | C33: 339217.04 | D33: 256678.3 | E33: 82538.74 | F33: 31051.25 | G33: 98064.365 | H33: 10 | I33: 0.1 | J33: 9806.4365 | K33: 9914.5525 | L33: -108.116
A34: 1915 | B34: Office Furniture & Equipment (5 years) | C34: 0 | D34: 0 | E34: 0 | F34: 0 | G34: 0 | I34: 0 | J34: 0 | K34: 0 | L34: 0
A35: 1920 | B35: Computer Equipment - Hardware | C35: 748651.78 | D35: 524331.61 | E35: 224320.17 | F35: 68004.96 | G35: 258322.65 | H35: 5 | I35: 0.2 | J35: 51664.53 | K35: 51664.526 | L35: 0.003999999957
A36: 1920 | B36: Computer Equip.-Hardware(Post Mar. 22/04) | C36: 0 | D36: 0 | E36: 0 | F36: 0 | G36: 0 | I36: 0 | J36: 0 | K36: 0 | L36: 0
A37: 1920 | B37: Computer Equip.-Hardware(Post Mar. 19/07) | C37: 0 | D37: 0 | E37: 0 | F37: 0 | G37: 0 | I37: 0 | J37: 0 | K37: 0 | L37: 0
A38: 1930 | B38: Transportation Equipment >3 ton, trailers | C38: 1924924.85 | D38: 524942.2781 | E38: 1399982.572 | F38: 169140.37 | G38: 1484552.757 | H38: 8 | I38: 0.125 | J38: 185569.0946 | K38: 193911.3 | L38: -8342.205391
A39: 1930 | B39: Transportation Equipment <3 ton | C39: 470929.03 | D39: 113090.84 | E39: 357838.19 | F39: 85284.83 | G39: =E39+0.5*F39 -> 400480.605 | H39: 5 | I39: =IF(H39=0,0,1/H39) -> 0.2 | J39: =IF(H39=0,0,G39/H39) -> 80096.121 | K39: 78023.875 | L39: =IF(ISERROR(+J39-K39), 0, +J39-K39) -> 2072.246
A40: 1935 | B40: Stores Equipment | C40: 75195.87 | D40: 75195.87 | E40: 0 | F40: 0 | G40: 0 | I40: 0 | J40: 0 | K40: 0 | L40: 0
A41: 1940 | B41: Tools, Shop & Garage Equipment | C41: 1205953.52 | D41: 845117.21 | E41: 360836.31 | F41: 21012.67 | G41: 371342.645 | H41: 10 | I41: 0.1 | J41: 37134.2645 | K41: 37135.6335 | L41: -1.369
A42: 1945 | B42: Measurement & Testing Equipment | C42: 0 | D42: 0 | E42: 0 | F42: 0 | G42: 0 | I42: 0 | J42: 0 | K42: 0 | L42: 0
A43: 1950 | B43: Power Operated Equipment | C43: 0 | D43: 0 | E43: 0 | F43: 0 | G43: 0 | I43: 0 | J43: 0 | K43: 0 | L43: 0
A44: 1955 | B44: Communications Equipment | C44: 101870.61 | D44: 39411.69 | E44: 62458.92 | F44: 46451.8 | G44: 85684.82 | H44: 10 | I44: 0.1 | J44: 8568.482 | K44: 8568.5 | L44: -0.018
A45: 1955 | B45: Communication Equipment (Smart Meters) | C45: 0 | D45: 0 | E45: 0 | F45: 0 | G45: 0 | I45: 0 | J45: 0 | K45: 0 | L45: 0
A46: 1960 | B46: Miscellaneous Equipment | C46: 18079.15 | D46: 0 | E46: 18079.15 | F46: 1970.37 | G46: 19064.335 | H46: 10 | I46: 0.1 | J46: 1906.4335 | K46: 1906.5385 | L46: -0.105
A47: 1970 | B47: Load Management Controls Customer Premises | C47: 403930.62 | D47: 0 | E47: 403930.62 | F47: 0 | G47: 403930.62 | I47: 0 | J47: 0 | K47: 0 | L47: 0
A48: 1975 | B48: Load Management Controls Utility Premises | C48: 165151.45 | D48: 0 | E48: 165151.45 | F48: 0 | G48: 165151.45 | I48: 0 | J48: 0 | K48: 0 | L48: 0
A49: 1980 | B49: System Supervisor Equipment | C49: 1294865.69 | D49: 529570.39 | E49: 765295.3 | F49: 47535.46 | G49: 789063.03 | H49: 15 | I49: 0.06666666667 | J49: 52604.202 | K49: 35373.18267 | L49: 17231.01933
A50: 1985 | B50: Miscellaneous Fixed Assets | C50: 0 | D50: 0 | E50: 0 | F50: 0 | G50: 0 | I50: 0 | J50: 0 | K50: 0 | L50: 0
A51: 1990 | B51: Other Tangible Property | C51: 53060.28 | D51: 12321.29 | E51: 40738.99 | F51: 0 | G51: 40738.99 | H51: 25 | I51: 0.04 | J51: 1629.5596 | K51: 1629.56 | L51: -0.0004000000001
A52: 1995 | B52: Contributions & Grants | C52: -7560941.89 | D52: 0 | E52: -7560941.89 | F52: -675928.17 | G52: -7898905.975 | H52: 25 | I52: 0.04 | J52: -315956.239 | K52: -313646.9346 | L52: -2309.3044
B53: Total | C53: =SUM(C14:C52) -> 93235866.53 | D53: =SUM(D14:D52) -> 5237497.988 | E53: =SUM(E14:E52) -> 87998368.54 | F53: =SUM(F14:F52) -> 4016446.52 | G53: =SUM(G14:G52) -> 90006591.8 | J53: =SUM(J14:J52) -> 3798419.183 | K53: =SUM(K14:K52) -> 3116441.367 | L53: =SUM(L14:L52) -> 681977.8158
A55: Notes:
A57: 1 | B57: Board policy of the "half-year" rule - the applicant must ensure that additions in the year attract a half-year depreciation expense in the first year. Deviations from this standard practice must be supported in the application.
A58: 2 | B58: The applicant must provide an explanation of material variances in evidence.
A60: General | B60: Applicants must provide a breakdown of depreciation and amortization expense in the above format for all relevant accounts. Asset Retirement Obligations (AROs), depreciation and accretion expense should be disclosed separately consistent with the Notes of historical Audited Financial Statements.

Sheet App.2-CB_NewCGAAP_DepExp_2012
N1: File Number: | O1: =EBNUMBER -> EB-2014-0099
N2: Exhibit: | O2: 4
N4: Date: | O4: ='App.2-AA_Capital Projects'!$I$4 -> 2014-12-12
A6: Appendix 2-CB
A7: Depreciation and Amortization Expense
A8: Assumes the applicant made capitalization and depreciation expense accounting policy changes under CGAAP effective January 1, 2012 and will adopt IFRS for financial reporting purposes effective January 1, 2015.
C10: Year | D10: 2012 | E10: Revised CGAAP
A12: Account | B12: Description | C12: Opening NBV as at Jan 1, 2012 5 | D12: Additions | E12: Average Remaining Life of Opening NBV 4 | F12: Years (new additions only) 3 | G12: Depreciation Rate on New Additions | H12: Depreciation Expense on Opening NBV | I12: Depreciation Expense on Additions 1 | J12: 2012 Depreciation Expense | K12: 2012 Depreciation Expense per Appendix 2-BA Fixed Assets, Column J (l) | L12: Variance 2 | M12: Depreciation Expense on 2012 Full Year Additions | N12: Less Depreciation Expense on Assets Fully Depreciated during the year (o) | O12: 2012 Full Year Depreciation 6
C13: (a) | D13: (d) | E13: (i) | F13: (f) | G13: (g) = 1 / (f) | H13: (j) = (a) / (i) | I13: (h)=((d)*0.5)/(f) | J13: (k) = (j) + (h) | L13: (m) = (k) - (l) | M13: (n) = (d)/(f) | O13: (p) = (j) + (n) - (o)
A14: 1611 | B14: Computer Software (Formally known as Account 1925) | C14: 158896.429 | D14: 125138.4 | E14: 3.26281033 | F14: 5 | G14: =IF(F14=0,0,1/F14) -> 0.2 | H14: =IF(E14=0,0,+C14/E14) -> 48699.254 | I14: =IF(F14=0,0,+(D14*0.5)/F14) -> 12513.84 | J14: =IF(ISERROR(+H14+I14), 0, +H14+I14) -> 61213.094 | K14: 53994.15 | L14: =IF(ISERROR(+J14-K14), 0, +J14-K14) -> 7218.944 | M14: =IF(F14=0,0,+(D14)/F14) -> 25027.68 | N14: 2167.728 | O14: =IF(ISERROR(+M14+H14-N14), 0, +M14+H14-N14) -> 71559.206
A15: 1612 | B15: Land Rights (Formally known as Account 1906) | C15: 0 | D15: 0 | E15: 0 | F15: 0 | G15: 0 | H15: 0 | I15: 0 | J15: 0 | K15: 0 | L15: 0 | M15: 0 | N15: 0 | O15: =IF(ISERROR(+M15+H15-N15), 0, +M15+H15-N15) -> 0
A16: 1805 | B16: Land | C16: 446493.3 | D16: 71.55 | E16: 0 | F16: 0 | G16: 0 | H16: 0 | I16: 0 | J16: 0 | K16: 0 | L16: 0 | M16: 0 | N16: 0 | O16: 0
A17: 1808 | B17: Buildings | C17: 1418748.667 | D17: 8293.38 | E17: 44.09016818 | F17: 48.5 | G17: 0.0206185567 | H17: 32178.34554 | I17: 85.49876289 | J17: 32263.8443 | K17: 48553.9264 | L17: -16290.0821 | M17: 170.9975258 | N17: 0 | O17: 32349.34306
A18: 1810 | B18: Leasehold Improvements | C18: 0 | D18: 0 | E18: 0 | F18: 0 | G18: 0 | H18: 0 | I18: 0 | J18: 0 | K18: 0 | L18: 0 | M18: 0 | N18: 0 | O18: 0
A19: 1815 | B19: Transformer Station Equipment >50 kV | C19: 0 | D19: 0 | E19: 0 | F19: 0 | G19: 0 | H19: 0 | I19: 0 | J19: 0 | K19: 0 | L19: 0 | M19: 0 | N19: 0 | O19: 0
A20: 1820 | B20: Distribution Station Equipment <50 kV | C20: 6731808.953 | D20: 411491.51 | E20: 25.87992185 | F20: 33.66105492 | G20: 0.02970792217 | H20: 260117.051 | I20: 6112.278877 | J20: 266229.3299 | K20: 256136.0454 | L20: 10093.28446 | M20: 12224.55775 | N20: 1779.855917 | O20: 270561.7528
A21: 1825 | B21: Storage Battery Equipment | C21: 0 | D21: 0 | E21: 0 | F21: 0 | G21: 0 | H21: 0 | I21: 0 | J21: 0 | K21: 0 | L21: 0 | M21: 0 | N21: 0 | O21: 0
A22: 1830 | B22: Poles, Towers & Fixtures | C22: 8016523.176 | D22: 1133581.53 | E22: 30.89147765 | F22: 45 | G22: 0.02222222222 | H22: 259505.9798 | I22: 12595.35033 | J22: 272101.3302 | K22: 272101.3387 | L22: -0.008503745135 | M22: 25190.70067 | N22: 0 | O22: 284696.6805
A23: 1835 | B23: Overhead Conductors & Devices | C23: 6486254.218 | D23: 820773.7 | E23: 34.0760647 | F23: 60 | G23: 0.01666666667 | H23: 190346.3406 | I23: 6839.780833 | J23: 197186.1214 | K23: 197186.04 | L23: 0.0814278445 | M23: 13679.56167 | N23: 0 | O23: 204025.9023
A24: 1840 | B24: Underground Conduit | C24: 631714.3028 | D24: 24324.46 | E24: 44.07543003 | F24: 50 | G24: 0.02 | H24: 14332.57265 | I24: 243.2446 | J24: 14575.81725 | K24: 14575.82822 | L24: -0.01097730337 | M24: 486.4892 | N24: 0 | O24: 14819.06185
A25: 1845 | B25: Underground Conductors & Devices | C25: 2326939.123 | D25: 162990.4 | E25: 27.39980479 | F25: 40 | G25: 0.025 | H25: 84925.39053 | I25: 2037.38 | J25: 86962.77053 | K25: 86962.76922 | L25: 0.001303091529 | M25: 4074.76 | N25: 0 | O25: 89000.15053
A26: 1850 | B26: Line Transformers | C26: 6397141.503 | D26: 630126.93 | E26: 30.34331039 | F26: 40 | G26: 0.025 | H26: 210825.4314 | I26: 7876.586625 | J26: 218702.018 | K26: 219873.45 | L26: -1171.43199 | M26: 15753.17325 | N26: 0 | O26: 226578.6046
A27: 1855 | B27: Services (Overhead) | C27: 3293888.051 | D27: 240901.49 | E27: 28.30111756 | F27: 60 | G27: 0.01666666667 | H27: 116387.2078 | I27: 2007.512417 | J27: 118394.7202 | K27: 118394.43 | L27: 0.2902095482 | M27: 4015.024833 | N27: 0 | O27: 120402.2326
A28: 1855 | B28: Services (Underground) | C28: 7484766.462 | D28: 363529.21 | E28: 28.57434152 | F28: 40 | G28: =IF(F28=0,0,1/F28) -> 0.025 | H28: =IF(E28=0,0,+C28/E28) -> 261940.1206 | I28: =IF(F28=0,0,+(D28*0.5)/F28) -> 4544.115125 | J28: =IF(ISERROR(+H28+I28), 0, +H28+I28) -> 266484.2357 | K28: 266484.11 | L28: =IF(ISERROR(+J28-K28), 0, +J28-K28) -> 0.1257067875 | M28: =IF(F28=0,0,+(D28)/F28) -> 9088.23025 | N28: 0 | O28: =IF(ISERROR(+M28+H28-N28), 0, +M28+H28-N28) -> 271028.3508
A29: 1860 | B29: Meters | C29: 1187448.778 | D29: 24901.14 | E29: 11.30125057 | F29: 10 | G29: 0.1 | H29: 105072.3343 | I29: 1245.057 | J29: 106317.3913 | K29: 106317.3913 | L29: 0 | M29: 2490.114 | N29: 6068 | O29: 101494.4483
A30: 1860 | B30: Meters (Smart Meters) | C30: 203663.8602 | D30: 43972.44 | E30: 14.38519943 | F30: 10 | G30: 0.1 | H30: 14157.87533 | I30: 2198.622 | J30: 16356.49733 | K30: 16356.49733 | L30: 0 | M30: 4397.244 | N30: 0 | O30: 18555.11933
A31: 1905 | B31: Land | C31: 86550.51 | D31: 0 | E31: 0 | F31: 0 | G31: 0 | H31: 0 | I31: 0 | J31: 0 | K31: 0 | L31: 0 | M31: 0 | N31: 0 | O31: 0
A32: 1908 | B32: Buildings & Fixtures | C32: 996034.7958 | D32: 231826.85 | E32: 13.9676964 | F32: 25 | G32: 0.04 | H32: 71309.883 | I32: 4636.537 | J32: 75946.42 | K32: 75946.42 | L32: 0 | M32: 9273.074 | N32: 903.7176055 | O32: 79679.23939
A33: 1910 | B33: Leasehold Improvements | C33: 0 | D33: 0 | E33: 0 | F33: 0 | G33: 0 | H33: 0 | I33: 0 | J33: 0 | K33: 0 | L33: 0 | M33: 0 | N33: 0 | O33: 0
A34: 1915 | B34: Office Furniture & Equipment (10 years) | C34: 50812.585 | D34: 31051.25 | E34: 6.111360376 | F34: 10 | G34: 0.1 | H34: 8314.4475 | I34: 1552.5625 | J34: 9867.01 | K34: 9867.01 | L34: 0 | M34: 3105.125 | N34: 108 | O34: 11311.5725
A35: 1915 | B35: Office Furniture & Equipment (5 years) | C35: 0 | D35: 0 | E35: 0 | F35: 0 | G35: 0 | H35: 0 | I35: 0 | J35: 0 | K35: 0 | L35: 0 | M35: 0 | N35: 0 | O35: 0
A36: 1920 | B36: Computer Equipment - Hardware | C36: 160672.409 | D36: 68004.96 | E36: 4.189837526 | F36: 5 | G36: 0.2 | H36: 38348.124 | I36: 6800.496 | J36: 45148.62 | K36: 45148.62 | L36: 0 | M36: 13600.992 | N36: 0 | O36: 51949.116
A37: 1920 | B37: Computer Equip.-Hardware(Post Mar. 22/04) | C37: 0 | D37: 0 | E37: 0 | F37: 0 | G37: 0 | H37: 0 | I37: 0 | J37: 0 | K37: 0 | L37: 0 | M37: 0 | N37: 0 | O37: 0
A38: 1920 | B38: Computer Equip.-Hardware(Post Mar. 19/07) | C38: 0 | D38: 0 | E38: 0 | F38: 0 | G38: 0 | H38: 0 | I38: 0 | J38: 0 | K38: 0 | L38: 0 | M38: 0 | N38: 0 | O38: 0
A39: 1930 | B39: Transportation Equipment >3 ton, trailers | C39: 869358.7919 | D39: 169140.37 | E39: 4.726438275 | F39: 8.477355145 | G39: 0.1179613196 | H39: 183935.2894 | I39: 9976.010625 | J39: 193911.3 | K39: 193911.3 | L39: 0 | M39: 19952.02125 | N39: 37264.01313 | O39: 166623.2975
A40: 1930 | B40: Transportation Equipment <3 ton | C40: 154905.721 | D40: 85284.83 | E40: 2.284066261 | F40: 4.179103549 | G40: =IF(F40=0,0,1/F40) -> 0.2392857675 | H40: =IF(E40=0,0,+C40/E40) -> 67820.152 | I40: =IF(F40=0,0,+(D40*0.5)/F40) -> 10203.723 | J40: =IF(ISERROR(+H40+I40), 0, +H40+I40) -> 78023.875 | K40: 78023.875 | L40: =IF(ISERROR(+J40-K40), 0, +J40-K40) -> 0 | M40: =IF(F40=0,0,+(D40)/F40) -> 20407.446 | N40: 23625.243 | O40: =IF(ISERROR(+M40+H40-N40), 0, +M40+H40-N40) -> 64602.355
A41: 1935 | B41: Stores Equipment | C41: 0 | D41: 0 | E41: 0 | F41: 0 | G41: 0 | H41: 0 | I41: 0 | J41: 0 | K41: 0 | L41: 0 | M41: 0 | N41: 0 | O41: 0
A42: 1940 | B42: Tools, Shop & Garage Equipment | C42: 214636.21 | D42: 21012.67 | E42: 5.984933423 | F42: 10 | G42: 0.1 | H42: 35862.7565 | I42: 1050.6335 | J42: 36913.39 | K42: 36913.39 | L42: 0 | M42: 2101.267 | N42: 419 | O42: 37545.0235
A43: 1945 | B43: Measurement & Testing Equipment | C43: 0 | D43: 0 | E43: 0 | F43: 0 | G43: 0 | H43: 0 | I43: 0 | J43: 0 | K43: 0 | L43: 0 | M43: 0 | N43: 0 | O43: 0
A44: 1950 | B44: Power Operated Equipment | C44: 0 | D44: 0 | E44: 0 | F44: 0 | G44: 0 | H44: 0 | I44: 0 | J44: 0 | K44: 0 | L44: 0 | M44: 0 | N44: 0 | O44: 0
A45: 1955 | B45: Communications Equipment | C45: 19682.6625 | D45: 46451.8 | E45: 4.566329845 | F45: 10 | G45: 0.1 | H45: 4310.39 | I45: 2322.59 | J45: 6632.98 | K45: 6632.98 | L45: 0 | M45: 4645.18 | N45: 3706.45 | O45: 5249.12
A46: 1955 | B46: Communication Equipment (Smart Meters) | C46: 0 | D46: 0 | E46: 0 | F46: 0 | G46: 0 | H46: 0 | I46: 0 | J46: 0 | K46: 0 | L46: 0 | M46: 0 | N46: 0 | O46: 0
A47: 1960 | B47: Miscellaneous Equipment | C47: 10054.6125 | D47: 1970.37 | E47: 2.560398643 | F47: 10 | G47: 0.1 | H47: 3926.9715 | I47: 98.5185 | J47: 4025.49 | K47: 4025.49 | L47: 0 | M47: 197.037 | N47: 0 | O47: 4124.0085
A48: 1970 | B48: Load Management Controls Customer Premises | C48: 0 | D48: 0 | E48: 0 | F48: 0 | G48: 0 | H48: 0 | I48: 0 | J48: 0 | K48: 0 | L48: 0 | M48: 0 | N48: 0 | O48: 0
A49: 1975 | B49: Load Management Controls Utility Premises | C49: 0 | D49: 0 | E49: 0 | F49: 0 | G49: 0 | H49: 0 | I49: 0 | J49: 0 | K49: 0 | L49: 0 | M49: 0 | N49: 0 | O49: 0
A50: 1980 | B50: System Supervisor Equipment | C50: 283106.078 | D50: 47535.46 | E50: 5.452177452 | F50: 20 | G50: 0.05 | H50: 51925.3235 | I50: 1188.3865 | J50: 53113.71 | K50: 53113.71 | L50: 2.182787284e-11 | M50: 2376.773 | N50: 4170 | O50: 50132.0965
A51: 1985 | B51: Miscellaneous Fixed Assets | C51: 0 | D51: 0 | E51: 0 | F51: 0 | G51: 0 | H51: 0 | I51: 0 | J51: 0 | K51: 0 | L51: 0 | M51: 0 | N51: 0 | O51: 0
A52: 1990 | B52: Other Tangible Property | C52: 31425.65 | D52: 0 | E52: 19.28474558 | F52: 0 | G52: 0 | H52: 1629.56 | I52: 0 | J52: 1629.56 | K52: 1629.56 | L52: -2.273736754e-13 | M52: 0 | N52: 0 | O52: 1629.56
A53: 1995 | B53: Contributions & Grants | C53: -5981923.804 | D53: -675928.17 | E53: 34.71113223 | F53: 49.75119528 | G53: 0.02010001959 | H53: -172334.4478 | I53: -6793.084731 | J53: -179127.5325 | K53: -179127.5325 | L53: -2.910383046e-11 | M53: -13586.16946 | N53: 0 | O53: -185920.6173
B54: Total | C54: =SUM(C14:C53) -> 41679603.04 | D54: =SUM(D14:D53) -> 4016446.53 | H54: =SUM(H14:H53) -> 1893536.353 | I54: 89335.63947 | J54: 1982871.993 | K54: 1983020.799 | L54: -148.8064639 | M54: 178671.2789 | N54: 80212.00765 | O54: 1991995.624
A56: Notes:
A58: 1 | B58: Board policy of the "half-year" rule - the applicant must ensure that additions in the year attract a half-year depreciation expense in the first year. Deviations from this standard practice must be supported in the application.
A59: 2 | B59: The applicant must provide an explanation of material variances in evidence.
A60: 3 | B60: The applicant should ensure that the years for new additions of assets are the asset useful lives determined by management in accordance with the Board's regulatory accounting policies. The capitalization and depreciation expense accounting changes should be implemented consistent with the Board’s regulatory accounting policies as set out for modified IFRS as contained in the Report of the Board, Transition to International Financial Reporting Standards, EB-2008-0408, the Kinectrics Report, and the Revised 2012 Accounting Procedures Handbook for Electricity Distributors (“APH”).
A61: 4 | B61: A recalculation should be performed to determine the average remaining life of opening balance of assets (i.e. excluding 2012 additions) under the change in policies under CGAAP. For example, Asset A had a useful life of 20 years under CGAAP without the change in policies. On January 1, 2012, the effective date of the changes in policies, Asset A was 3 years depreciated. As a result, Asset A would have a remaining service life of 17 years (20 years less 3 years) as of January 1, 2012. Due to making the change in policies under CGAAP, management re-assessed the asset useful lives and concluded that the revised useful life of Asset A is now 30 years. Therefore, the average remaining useful life of the opening balance of Asset A is determined to be 27 years (30 years less 3 years) under the revised CGAAP as of January 1, 2012.
A62: 5 | B62: NBV must exclude assets still on the books but which have been fully amortized or depreciated.
A63: 6 | B63: This column refers to the calculated full year depreciation but excludes the depreciation expense on assets fully depreciated during the year. This column is used for the purpose of calculating depreciation expense in the following year on the next worksheet.
A65: General: | B65: Applicants must provide a breakdown of depreciation and amortization expense in the above format for all relevant accounts. Asset Retirement Obligations (AROs), depreciation and accretion expense should be disclosed separately consistent with the Notes of historical Audited Financial Statements.

Sheet App.2-CC_NewCGAAP_DepExp_2013
J1: File Number: | K1: =EBNUMBER -> EB-2014-0099
J2: Exhibit: | K2: 4
J4: Date: | K4: ='App.2-AA_Capital Projects'!$I$4 -> 2014-12-12
A6: Appendix 2-CC
A7: Depreciation and Amortization Expense
A8: Assumes the applicant made capitalization and depreciation expense accounting policy changes under CGAAP effective January 1, 2012 and will adopt IFRS for financial reporting purposes effective January 1, 2015.
C10: 2013 | D10: Revised CGAAP
A12: Account | B12: Description | C12: Additions | D12: Years (new additions only) | E12: Depreciation Rate on New Additions | F12: 2013 Depreciation Expense 1 | G12: 2013 Depreciation Expense per Apppendix 2-BA Fixed Assets, Column J (l) | H12: Variance 2 | I12: Depreciation Expense on 2013 Full Year Additions | J12: Less Depreciation Expense on Assets Fully Depreciated during the year (o) | K12: 2013 Full Year Depreciation 3
C13: (d) | D13: (f) | E13: (g) = 1 / (f) | F13: (h)=2012 Full Year Deprecation + ((d)*0.5)/(f) | H13: (m) = (h) - (l) | I13: (n)=((d))/(f) | K13: (p) = 2012 Full Year Depreciation + (n) - (o)
A14: 1611 | B14: Computer Software (Formally known as Account 1925) | C14: 94033.05 | D14: 5 | E14: =IF(D14=0,0,1/D14) -> 0.2 | F14: =IF(D14=0,+'App.2-CB_NewCGAAP_DepExp_2012'!O14,+'App.2-CB_NewCGAAP_DepExp_2012'!O14+((C14*0.5)/D14)) -> 80962.511 | G14: 79965.58792 | H14: =IF(ISERROR(+F14-G14), 0, +F14-G14) -> 996.9230794 | I14: =IF(D14=0,0,+(C14)/D14) -> 18806.61 | J14: 12847.688 | K14: =IF(ISERROR(+I14+'App.2-CB_NewCGAAP_DepExp_2012'!O14-J14), 0, +I14+'App.2-CB_NewCGAAP_DepExp_2012'!O14-J14) -> 77518.128
A15: 1612 | B15: Land Rights (Formally known as Account 1906) | C15: 0 | D15: 0 | E15: 0 | F15: =IF(D15=0,+'App.2-CB_NewCGAAP_DepExp_2012'!O15,+'App.2-CB_NewCGAAP_DepExp_2012'!O15+((C15*0.5)/D15)) -> 0 | H15: 0 | I15: 0 | J15: 0 | K15: =IF(ISERROR(+I15+'App.2-CB_NewCGAAP_DepExp_2012'!O15-J15), 0, +I15+'App.2-CB_NewCGAAP_DepExp_2012'!O15-J15) -> 0
A16: 1805 | B16: Land | C16: 0 | D16: 0 | E16: 0 | F16: =IF(D16=0,+'App.2-CB_NewCGAAP_DepExp_2012'!O16,+'App.2-CB_NewCGAAP_DepExp_2012'!O16+((C16*0.5)/D16)) -> 0 | H16: 0 | I16: 0 | J16: 0 | K16: =IF(ISERROR(+I16+'App.2-CB_NewCGAAP_DepExp_2012'!O16-J16), 0, +I16+'App.2-CB_NewCGAAP_DepExp_2012'!O16-J16) -> 0
A17: 1808 | B17: Buildings | C17: 112435.15 | D17: 50 | E17: 0.02 | F17: =IF(D17=0,+'App.2-CB_NewCGAAP_DepExp_2012'!O17,+'App.2-CB_NewCGAAP_DepExp_2012'!O17+((C17*0.5)/D17)) -> 33473.69456 | G17: 33473.69456 | H17: 3.637978807e-11 | I17: 2248.703 | J17: 0 | K17: =IF(ISERROR(+I17+'App.2-CB_NewCGAAP_DepExp_2012'!O17-J17), 0, +I17+'App.2-CB_NewCGAAP_DepExp_2012'!O17-J17) -> 34598.04606
A18: 1810 | B18: Leasehold Improvements | C18: 0 | D18: 0 | E18: 0 | F18: =IF(D18=0,+'App.2-CB_NewCGAAP_DepExp_2012'!O18,+'App.2-CB_NewCGAAP_DepExp_2012'!O18+((C18*0.5)/D18)) -> 0 | H18: 0 | I18: 0 | J18: 0 | K18: =IF(ISERROR(+I18+'App.2-CB_NewCGAAP_DepExp_2012'!O18-J18), 0, +I18+'App.2-CB_NewCGAAP_DepExp_2012'!O18-J18) -> 0
A19: 1815 | B19: Transformer Station Equipment >50 kV | C19: 0 | D19: 0 | E19: 0 | F19: =IF(D19=0,+'App.2-CB_NewCGAAP_DepExp_2012'!O19,+'App.2-CB_NewCGAAP_DepExp_2012'!O19+((C19*0.5)/D19)) -> 0 | H19: 0 | I19: 0 | J19: 0 | K19: =IF(ISERROR(+I19+'App.2-CB_NewCGAAP_DepExp_2012'!O19-J19), 0, +I19+'App.2-CB_NewCGAAP_DepExp_2012'!O19-J19) -> 0
A20: 1820 | B20: Distribution Station Equipment <50 kV | C20: 2057224.35 | D20: 40.17459208 | E20: 0.02489135417 | F20: =IF(D20=0,+'App.2-CB_NewCGAAP_DepExp_2012'!O20,+'App.2-CB_NewCGAAP_DepExp_2012'!O20+((C20*0.5)/D20)) -> 296165.3028 | G20: 266126.1 | H20: 30039.20279 | I20: 51207.0999 | J20: 0 | K20: =IF(ISERROR(+I20+'App.2-CB_NewCGAAP_DepExp_2012'!O20-J20), 0, +I20+'App.2-CB_NewCGAAP_DepExp_2012'!O20-J20) -> 321768.8527
A21: 1825 | B21: Storage Battery Equipment | C21: 0 | D21: 0 | E21: 0 | F21: =IF(D21=0,+'App.2-CB_NewCGAAP_DepExp_2012'!O21,+'App.2-CB_NewCGAAP_DepExp_2012'!O21+((C21*0.5)/D21)) -> 0 | H21: 0 | I21: 0 | J21: 0 | K21: =IF(ISERROR(+I21+'App.2-CB_NewCGAAP_DepExp_2012'!O21-J21), 0, +I21+'App.2-CB_NewCGAAP_DepExp_2012'!O21-J21) -> 0
A22: 1830 | B22: Poles, Towers & Fixtures | C22: 1345153.37 | D22: 45 | E22: 0.02222222222 | F22: =IF(D22=0,+'App.2-CB_NewCGAAP_DepExp_2012'!O22,+'App.2-CB_NewCGAAP_DepExp_2012'!O22+((C22*0.5)/D22)) -> 299642.8291 | G22: 299642.8388 | H22: -0.00972519716 | I22: 29892.29711 | J22: 0 | K22: =IF(ISERROR(+I22+'App.2-CB_NewCGAAP_DepExp_2012'!O22-J22), 0, +I22+'App.2-CB_NewCGAAP_DepExp_2012'!O22-J22) -> 314588.9776
A23: 1835 | B23: Overhead Conductors & Devices | C23: 753828.36 | D23: 60 | E23: 0.01666666667 | F23: =IF(D23=0,+'App.2-CB_NewCGAAP_DepExp_2012'!O23,+'App.2-CB_NewCGAAP_DepExp_2012'!O23+((C23*0.5)/D23)) -> 210307.8053 | G23: 210307.8055 | H23: -0.0001939351205 | I23: 12563.806 | J23: 0 | K23: =IF(ISERROR(+I23+'App.2-CB_NewCGAAP_DepExp_2012'!O23-J23), 0, +I23+'App.2-CB_NewCGAAP_DepExp_2012'!O23-J23) -> 216589.7083
A24: 1840 | B24: Underground Conduit | C24: 306052.34 | D24: 50 | E24: 0.02 | F24: =IF(D24=0,+'App.2-CB_NewCGAAP_DepExp_2012'!O24,+'App.2-CB_NewCGAAP_DepExp_2012'!O24+((C24*0.5)/D24)) -> 17879.58525 | G24: 17879.59622 | H24: -0.01097730337 | I24: 6121.0468 | J24: 0 | K24: =IF(ISERROR(+I24+'App.2-CB_NewCGAAP_DepExp_2012'!O24-J24), 0, +I24+'App.2-CB_NewCGAAP_DepExp_2012'!O24-J24) -> 20940.10865
A25: 1845 | B25: Underground Conductors & Devices | C25: 389846.19 | D25: 40 | E25: 0.025 | F25: =IF(D25=0,+'App.2-CB_NewCGAAP_DepExp_2012'!O25,+'App.2-CB_NewCGAAP_DepExp_2012'!O25+((C25*0.5)/D25)) -> 93873.2279 | G25: 93873.2266 | H25: 0.001303091616 | I25: 9746.15475 | J25: 0 | K25: =IF(ISERROR(+I25+'App.2-CB_NewCGAAP_DepExp_2012'!O25-J25), 0, +I25+'App.2-CB_NewCGAAP_DepExp_2012'!O25-J25) -> 98746.30528
A26: 1850 | B26: Line Transformers | C26: 519110.37 | D26: 40 | E26: 0.025 | F26: =IF(D26=0,+'App.2-CB_NewCGAAP_DepExp_2012'!O26,+'App.2-CB_NewCGAAP_DepExp_2012'!O26+((C26*0.5)/D26)) -> 233067.4843 | G26: 236965.7018 | H26: -3898.21756 | I26: 12977.75925 | J26: 0 | K26: =IF(ISERROR(+I26+'App.2-CB_NewCGAAP_DepExp_2012'!O26-J26), 0, +I26+'App.2-CB_NewCGAAP_DepExp_2012'!O26-J26) -> 239556.3639
A27: 1855 | B27: Services - Overhead | C27: 141631.28 | D27: 60 | E27: 0.01666666667 | F27: =IF(D27=0,+'App.2-CB_NewCGAAP_DepExp_2012'!O27,+'App.2-CB_NewCGAAP_DepExp_2012'!O27+((C27*0.5)/D27)) -> 121582.4933 | G27: 121582.4933 | H27: 0 | I27: 2360.521333 | J27: 0 | K27: =IF(ISERROR(+I27+'App.2-CB_NewCGAAP_DepExp_2012'!O27-J27), 0, +I27+'App.2-CB_NewCGAAP_DepExp_2012'!O27-J27) -> 122762.754
A28: 1855 | B28: Services - Underground | C28: 350278.76 | D28: 40 | E28: =IF(D28=0,0,1/D28) -> 0.025 | F28: =IF(D28=0,+'App.2-CB_NewCGAAP_DepExp_2012'!O28,+'App.2-CB_NewCGAAP_DepExp_2012'!O28+((C28*0.5)/D28)) -> 275406.8353 | G28: 275406.8344 | H28: =IF(ISERROR(+F28-G28), 0, +F28-G28) -> 0.000906356785 | I28: =IF(D28=0,0,+(C28)/D28) -> 8756.969 | J28: 0 | K28: =IF(ISERROR(+I28+'App.2-CB_NewCGAAP_DepExp_2012'!O28-J28), 0, +I28+'App.2-CB_NewCGAAP_DepExp_2012'!O28-J28) -> 279785.3198
A29: 1860 | B29: Meters | C29: 50353.76 | D29: 10 | E29: 0.1 | F29: =IF(D29=0,+'App.2-CB_NewCGAAP_DepExp_2012'!O29,+'App.2-CB_NewCGAAP_DepExp_2012'!O29+((C29*0.5)/D29)) -> 104012.1363 | G29: 105172.0528 | H29: -1159.9165 | I29: 5035.376 | J29: 6726 | K29: =IF(ISERROR(+I29+'App.2-CB_NewCGAAP_DepExp_2012'!O29-J29), 0, +I29+'App.2-CB_NewCGAAP_DepExp_2012'!O29-J29) -> 99803.8243
A30: 1860 | B30: Meters (Smart Meters) | C30: 62303.69 | D30: 10 | E30: 0.1 | F30: =IF(D30=0,+'App.2-CB_NewCGAAP_DepExp_2012'!O30,+'App.2-CB_NewCGAAP_DepExp_2012'!O30+((C30*0.5)/D30)) -> 21670.30383 | G30: 21670.30383 | H30: 0 | I30: 6230.369 | J30: 0 | K30: =IF(ISERROR(+I30+'App.2-CB_NewCGAAP_DepExp_2012'!O30-J30), 0, +I30+'App.2-CB_NewCGAAP_DepExp_2012'!O30-J30) -> 24785.48833
A31: 1905 | B31: Land | C31: 0 | D31: 0 | E31: 0 | F31: =IF(D31=0,+'App.2-CB_NewCGAAP_DepExp_2012'!O31,+'App.2-CB_NewCGAAP_DepExp_2012'!O31+((C31*0.5)/D31)) -> 0 | H31: 0 | I31: 0 | J31: 0 | K31: =IF(ISERROR(+I31+'App.2-CB_NewCGAAP_DepExp_2012'!O31-J31), 0, +I31+'App.2-CB_NewCGAAP_DepExp_2012'!O31-J31) -> 0
A32: 1908 | B32: Buildings & Fixtures | C32: 100066.01 | D32: 25 | E32: 0.04 | F32: =IF(D32=0,+'App.2-CB_NewCGAAP_DepExp_2012'!O32,+'App.2-CB_NewCGAAP_DepExp_2012'!O32+((C32*0.5)/D32)) -> 81680.55959 | G32: 80662.05959 | H32: 1018.5 | I32: 4002.6404 | J32: 0 | K32: =IF(ISERROR(+I32+'App.2-CB_NewCGAAP_DepExp_2012'!O32-J32), 0, +I32+'App.2-CB_NewCGAAP_DepExp_2012'!O32-J32) -> 83681.87979
A33: 1910 | B33: Leasehold Improvements | C33: 0 | D33: 0 | E33: 0 | F33: =IF(D33=0,+'App.2-CB_NewCGAAP_DepExp_2012'!O33,+'App.2-CB_NewCGAAP_DepExp_2012'!O33+((C33*0.5)/D33)) -> 0 | H33: 0 | I33: 0 | J33: 0 | K33: =IF(ISERROR(+I33+'App.2-CB_NewCGAAP_DepExp_2012'!O33-J33), 0, +I33+'App.2-CB_NewCGAAP_DepExp_2012'!O33-J33) -> 0
A34: 1915 | B34: Office Furniture & Equipment (10 years) | C34: 6291.69 | D34: 10 | E34: 0.1 | F34: =IF(D34=0,+'App.2-CB_NewCGAAP_DepExp_2012'!O34,+'App.2-CB_NewCGAAP_DepExp_2012'!O34+((C34*0.5)/D34)) -> 11626.157 | G34: 11489.519 | H34: 136.638 | I34: 629.169 | J34: 1264 | K34: =IF(ISERROR(+I34+'App.2-CB_NewCGAAP_DepExp_2012'!O34-J34), 0, +I34+'App.2-CB_NewCGAAP_DepExp_2012'!O34-J34) -> 10676.7415
A35: 1915 | B35: Office Furniture & Equipment (5 years) | C35: 0 | D35: 0 | E35: 0 | F35: =IF(D35=0,+'App.2-CB_NewCGAAP_DepExp_2012'!O35,+'App.2-CB_NewCGAAP_DepExp_2012'!O35+((C35*0.5)/D35)) -> 0 | H35: 0 | I35: 0 | J35: 0 | K35: =IF(ISERROR(+I35+'App.2-CB_NewCGAAP_DepExp_2012'!O35-J35), 0, +I35+'App.2-CB_NewCGAAP_DepExp_2012'!O35-J35) -> 0
A36: 1920 | B36: Computer Equipment - Hardware | C36: 8075.81 | D36: 5 | E36: 0.2 | F36: =IF(D36=0,+'App.2-CB_NewCGAAP_DepExp_2012'!O36,+'App.2-CB_NewCGAAP_DepExp_2012'!O36+((C36*0.5)/D36)) -> 52756.697 | G36: 54235.73143 | H36: -1479.034426 | I36: 1615.162 | J36: 4781.701 | K36: =IF(ISERROR(+I36+'App.2-CB_NewCGAAP_DepExp_2012'!O36-J36), 0, +I36+'App.2-CB_NewCGAAP_DepExp_2012'!O36-J36) -> 48782.577
A37: 1920 | B37: Computer Equip.-Hardware(Post Mar. 22/04) | C37: 0 | D37: 0 | E37: 0 | F37: =IF(D37=0,+'App.2-CB_NewCGAAP_DepExp_2012'!O37,+'App.2-CB_NewCGAAP_DepExp_2012'!O37+((C37*0.5)/D37)) -> 0 | H37: 0 | I37: 0 | J37: 0 | K37: =IF(ISERROR(+I37+'App.2-CB_NewCGAAP_DepExp_2012'!O37-J37), 0, +I37+'App.2-CB_NewCGAAP_DepExp_2012'!O37-J37) -> 0
A38: 1920 | B38: Computer Equip.-Hardware(Post Mar. 19/07) | C38: 0 | D38: 0 | E38: 0 | F38: =IF(D38=0,+'App.2-CB_NewCGAAP_DepExp_2012'!O38,+'App.2-CB_NewCGAAP_DepExp_2012'!O38+((C38*0.5)/D38)) -> 0 | H38: 0 | I38: 0 | J38: 0 | K38: =IF(ISERROR(+I38+'App.2-CB_NewCGAAP_DepExp_2012'!O38-J38), 0, +I38+'App.2-CB_NewCGAAP_DepExp_2012'!O38-J38) -> 0
A39: 1930 | B39: Transportation Equipment >3 ton, trailers | C39: 15542.05 | D39: 3.181385101 | E39: 0.3143284979 | F39: =IF(D39=0,+'App.2-CB_NewCGAAP_DepExp_2012'!O39,+'App.2-CB_NewCGAAP_DepExp_2012'!O39+((C39*0.5)/D39)) -> 169065.9521 | G39: 170054.74 | H39: -988.7878846 | I39: 4885.309231 | J39: 0 | K39: =IF(ISERROR(+I39+'App.2-CB_NewCGAAP_DepExp_2012'!O39-J39), 0, +I39+'App.2-CB_NewCGAAP_DepExp_2012'!O39-J39) -> 171508.6067
A40: 1930 | B40: Transportation Equipment <3 ton | C40: 43373.62 | D40: 3.369604407 | E40: =IF(D40=0,0,1/D40) -> 0.2967707419 | F40: =IF(D40=0,+'App.2-CB_NewCGAAP_DepExp_2012'!O40,+'App.2-CB_NewCGAAP_DepExp_2012'!O40+((C40*0.5)/D40)) -> 71038.36569 | G40: 67893.49289 | H40: =IF(ISERROR(+F40-G40), 0, +F40-G40) -> 3144.872799 | I40: =IF(D40=0,0,+(C40)/D40) -> 12872.02139 | J40: 25781.403 | K40: =IF(ISERROR(+I40+'App.2-CB_NewCGAAP_DepExp_2012'!O40-J40), 0, +I40+'App.2-CB_NewCGAAP_DepExp_2012'!O40-J40) -> 51692.97339
A41: 1935 | B41: Stores Equipment | C41: 0 | D41: 0 | E41: 0 | F41: =IF(D41=0,+'App.2-CB_NewCGAAP_DepExp_2012'!O41,+'App.2-CB_NewCGAAP_DepExp_2012'!O41+((C41*0.5)/D41)) -> 0 | H41: 0 | I41: 0 | J41: 0 | K41: =IF(ISERROR(+I41+'App.2-CB_NewCGAAP_DepExp_2012'!O41-J41), 0, +I41+'App.2-CB_NewCGAAP_DepExp_2012'!O41-J41) -> 0
A42: 1940 | B42: Tools, Shop & Garage Equipment | C42: 101629.777 | D42: 10 | E42: 0.1 | F42: =IF(D42=0,+'App.2-CB_NewCGAAP_DepExp_2012'!O42,+'App.2-CB_NewCGAAP_DepExp_2012'!O42+((C42*0.5)/D42)) -> 42626.51235 | G42: 40808.79368 | H42: 1817.718669 | I42: 10162.9777 | J42: 3016 | K42: =IF(ISERROR(+I42+'App.2-CB_NewCGAAP_DepExp_2012'!O42-J42), 0, +I42+'App.2-CB_NewCGAAP_DepExp_2012'!O42-J42) -> 44692.0012
A43: 1945 | B43: Measurement & Testing Equipment | C43: 0 | D43: 0 | E43: 0 | F43: =IF(D43=0,+'App.2-CB_NewCGAAP_DepExp_2012'!O43,+'App.2-CB_NewCGAAP_DepExp_2012'!O43+((C43*0.5)/D43)) -> 0 | H43: 0 | I43: 0 | J43: 0 | K43: =IF(ISERROR(+I43+'App.2-CB_NewCGAAP_DepExp_2012'!O43-J43), 0, +I43+'App.2-CB_NewCGAAP_DepExp_2012'!O43-J43) -> 0
A44: 1950 | B44: Power Operated Equipment | C44: 0 | D44: 0 | E44: 0 | F44: =IF(D44=0,+'App.2-CB_NewCGAAP_DepExp_2012'!O44,+'App.2-CB_NewCGAAP_DepExp_2012'!O44+((C44*0.5)/D44)) -> 0 | H44: 0 | I44: 0 | J44: 0 | K44: =IF(ISERROR(+I44+'App.2-CB_NewCGAAP_DepExp_2012'!O44-J44), 0, +I44+'App.2-CB_NewCGAAP_DepExp_2012'!O44-J44) -> 0
A45: 1955 | B45: Communications Equipment | C45: 20788.75 | D45: 10 | E45: 0.1 | F45: =IF(D45=0,+'App.2-CB_NewCGAAP_DepExp_2012'!O45,+'App.2-CB_NewCGAAP_DepExp_2012'!O45+((C45*0.5)/D45)) -> 6288.5575 | G45: 7583.843333 | H45: -1295.285833 | I45: 2078.875 | J45: 0 | K45: =IF(ISERROR(+I45+'App.2-CB_NewCGAAP_DepExp_2012'!O45-J45), 0, +I45+'App.2-CB_NewCGAAP_DepExp_2012'!O45-J45) -> 7327.995
A46: 1955 | B46: Communication Equipment (Smart Meters) | C46: 0 | D46: 0 | E46: 0 | F46: =IF(D46=0,+'App.2-CB_NewCGAAP_DepExp_2012'!O46,+'App.2-CB_NewCGAAP_DepExp_2012'!O46+((C46*0.5)/D46)) -> 0 | H46: 0 | I46: 0 | J46: 0 | K46: =IF(ISERROR(+I46+'App.2-CB_NewCGAAP_DepExp_2012'!O46-J46), 0, +I46+'App.2-CB_NewCGAAP_DepExp_2012'!O46-J46) -> 0
A47: 1960 | B47: Miscellaneous Equipment | C47: 0 | D47: 0 | E47: 0 | F47: =IF(D47=0,+'App.2-CB_NewCGAAP_DepExp_2012'!O47,+'App.2-CB_NewCGAAP_DepExp_2012'!O47+((C47*0.5)/D47)) -> 4124.0085 | G47: -2414.359308 | H47: 6538.367808 | I47: 0 | J47: 0 | K47: =IF(ISERROR(+I47+'App.2-CB_NewCGAAP_DepExp_2012'!O47-J47), 0, +I47+'App.2-CB_NewCGAAP_DepExp_2012'!O47-J47) -> 4124.0085
A48: 1970 | B48: Load Management Controls Customer Premises | C48: 0 | D48: 0 | E48: 0 | F48: =IF(D48=0,+'App.2-CB_NewCGAAP_DepExp_2012'!O48,+'App.2-CB_NewCGAAP_DepExp_2012'!O48+((C48*0.5)/D48)) -> 0 | H48: 0 | I48: 0 | J48: 0 | K48: =IF(ISERROR(+I48+'App.2-CB_NewCGAAP_DepExp_2012'!O48-J48), 0, +I48+'App.2-CB_NewCGAAP_DepExp_2012'!O48-J48) -> 0
A49: 1975 | B49: Load Management Controls Utility Premises | C49: 0 | D49: 0 | E49: 0 | F49: =IF(D49=0,+'App.2-CB_NewCGAAP_DepExp_2012'!O49,+'App.2-CB_NewCGAAP_DepExp_2012'!O49+((C49*0.5)/D49)) -> 0 | H49: 0 | I49: 0 | J49: 0 | K49: =IF(ISERROR(+I49+'App.2-CB_NewCGAAP_DepExp_2012'!O49-J49), 0, +I49+'App.2-CB_NewCGAAP_DepExp_2012'!O49-J49) -> 0
A50: 1980 | B50: System Supervisor Equipment | C50: 41363.75 | D50: 20 | E50: 0.05 | F50: =IF(D50=0,+'App.2-CB_NewCGAAP_DepExp_2012'!O50,+'App.2-CB_NewCGAAP_DepExp_2012'!O50+((C50*0.5)/D50)) -> 51166.19025 | G50: 51166.22737 | H50: -0.03712453638 | I50: 2068.1875 | J50: 3720 | K50: =IF(ISERROR(+I50+'App.2-CB_NewCGAAP_DepExp_2012'!O50-J50), 0, +I50+'App.2-CB_NewCGAAP_DepExp_2012'!O50-J50) -> 48480.284
A51: 1985 | B51: Miscellaneous Fixed Assets | C51: 0 | D51: 0 | E51: 0 | F51: =IF(D51=0,+'App.2-CB_NewCGAAP_DepExp_2012'!O51,+'App.2-CB_NewCGAAP_DepExp_2012'!O51+((C51*0.5)/D51)) -> 0 | H51: 0 | I51: 0 | J51: 0 | K51: =IF(ISERROR(+I51+'App.2-CB_NewCGAAP_DepExp_2012'!O51-J51), 0, +I51+'App.2-CB_NewCGAAP_DepExp_2012'!O51-J51) -> 0
A52: 1990 | B52: Other Tangible Property | C52: 0 | D52: 0 | E52: 0 | F52: =IF(D52=0,+'App.2-CB_NewCGAAP_DepExp_2012'!O52,+'App.2-CB_NewCGAAP_DepExp_2012'!O52+((C52*0.5)/D52)) -> 1629.56 | G52: 1629.56 | H52: -2.273736754e-13 | I52: 0 | J52: 0 | K52: =IF(ISERROR(+I52+'App.2-CB_NewCGAAP_DepExp_2012'!O52-J52), 0, +I52+'App.2-CB_NewCGAAP_DepExp_2012'!O52-J52) -> 1629.56
A53: 1995 | B53: Contributions & Grants | C53: -1061938.91 | D53: 45.97540435 | E53: 0.0217507603 | F53: =IF(D53=0,+'App.2-CB_NewCGAAP_DepExp_2012'!O53,+'App.2-CB_NewCGAAP_DepExp_2012'!O53+((C53*0.5)/D53)) -> -197469.6066 | G53: -199416.1379 | H53: 1946.531343 | I53: -23097.97869 | J53: 0 | K53: =IF(ISERROR(+I53+'App.2-CB_NewCGAAP_DepExp_2012'!O53-J53), 0, +I53+'App.2-CB_NewCGAAP_DepExp_2012'!O53-J53) -> -209018.5959
B54: Total | C54: =SUM(C14:C53) -> 5457443.217 | F54: =SUM(F14:F53) -> 2082577.162 | G54: 2045759.706 | H54: 36817.45647 | I54: 181163.0757 | J54: 58136.792 | K54: 2115021.908
A56: Notes:
A57: 1 | B57: Board policy of the "half-year" rule - the applicant must ensure that additions in the year attract a half-year depreciation expense in the first year. Deviations from this standard practice must be supported in the application.
A58: 2 | B58: The applicant must provide an explanation of material variances in evidence.
A59: 3 | B59: This column refers to the calculated full year depreciation but excludes the depreciation expense on assets fully depreciated during the year. This column is used for the purpose of calculating depreciation expense in the following year on the next worksheet.
A61: General: | B61: Applicants must provide a breakdown of depreciation and amortization expense in the above format for all relevant accounts. Asset Retirement Obligations (AROs), depreciation and accretion expense should be disclosed separately consistent with the Notes of historical Audited Financial Statements.

Sheet App.2-CD_MIFRS_DepExp_2014
J1: File Number: | K1: =EBNUMBER -> EB-2014-0099
J2: Exhibit: | K2: 4
J4: Date: | K4: ='App.2-AA_Capital Projects'!$I$4 -> 2014-12-12
A6: Appendix 2-CD
A7: Depreciation and Amortization Expense
A8: Assumes the applicant made capitalization and depreciation expense accounting policy changes under CGAAP effective January 1, 2012 and will adopt IFRS for financial reporting purposes effective January 1, 2015.
E10: 2014 | F10: MIFRS
A12: Account | B12: Description | C12: Additions | D12: Years (new additions only) | E12: Depreciation Rate on New Additions | F12: 2014 Depreciation Expense 1 | G12: 2014 Depreciation Expense per Apppendix 2-BA Fixed Assets, Column J (l) | H12: Variance 2 | I12: Depreciation Expense on 2014 Full Year Additions | J12: Less Depreciation Expense on Assets Fully Depreciated during the year (o) | K12: 2014 Full Year Depreciation 3
C13: (d) | D13: (f) | E13: (g) = 1 / (f) | F13: (h)=2013 Full Year Deprecation + ((d)*0.5)/(f) | H13: (m) = (h) - (l) | I13: (n)=((d))/(f) | K13: (p) = 2013 Full Year Depreciation + (n) - (o)
A14: 1611 | B14: Computer Software (Formally known as Account 1925) | C14: 248336.27 | D14: 5 | E14: =IF(D14=0,0,1/D14) -> 0.2 | F14: =IF(D14=0,+'App.2-CC_NewCGAAP_DepExp_2013'!K14,+'App.2-CC_NewCGAAP_DepExp_2013'!K14+((C14*0.5)/D14)) -> 102351.755 | G14: 153932.5489 | H14: =IF(ISERROR(+F14-G14), 0, +F14-G14) -> -51580.79392 | I14: =IF(D14=0,0,+(C14)/D14) -> 49667.254 | J14: 12847.688 | K14: =IF(ISERROR(+I14+'App.2-CC_NewCGAAP_DepExp_2013'!K14-J14), 0, +I14+'App.2-CC_NewCGAAP_DepExp_2013'!K14-J14) -> 114337.694
A15: 1612 | B15: Land Rights (Formally known as Account 1906) | C15: 0 | D15: 0 | E15: 0 | F15: =IF(D15=0,+'App.2-CC_NewCGAAP_DepExp_2013'!K15,+'App.2-CC_NewCGAAP_DepExp_2013'!K15+((C15*0.5)/D15)) -> 0 | G15: 0 | H15: 0 | I15: 0 | J15: 0 | K15: =IF(ISERROR(+I15+'App.2-CC_NewCGAAP_DepExp_2013'!K15-J15), 0, +I15+'App.2-CC_NewCGAAP_DepExp_2013'!K15-J15) -> 0
A16: 1805 | B16: Land | C16: 0 | D16: 0 | E16: 0 | F16: =IF(D16=0,+'App.2-CC_NewCGAAP_DepExp_2013'!K16,+'App.2-CC_NewCGAAP_DepExp_2013'!K16+((C16*0.5)/D16)) -> 0 | G16: 0 | H16: 0 | I16: 0 | J16: 0 | K16: =IF(ISERROR(+I16+'App.2-CC_NewCGAAP_DepExp_2013'!K16-J16), 0, +I16+'App.2-CC_NewCGAAP_DepExp_2013'!K16-J16) -> 0
A17: 1808 | B17: Buildings | C17: 0 | D17: 0 | E17: 0 | F17: =IF(D17=0,+'App.2-CC_NewCGAAP_DepExp_2013'!K17,+'App.2-CC_NewCGAAP_DepExp_2013'!K17+((C17*0.5)/D17)) -> 34598.04606 | G17: 34598.04606 | H17: 3.637978807e-11 | I17: 0 | J17: 0 | K17: =IF(ISERROR(+I17+'App.2-CC_NewCGAAP_DepExp_2013'!K17-J17), 0, +I17+'App.2-CC_NewCGAAP_DepExp_2013'!K17-J17) -> 34598.04606
A18: 1810 | B18: Leasehold Improvements | C18: 0 | D18: 0 | E18: 0 | F18: =IF(D18=0,+'App.2-CC_NewCGAAP_DepExp_2013'!K18,+'App.2-CC_NewCGAAP_DepExp_2013'!K18+((C18*0.5)/D18)) -> 0 | G18: 0 | H18: 0 | I18: 0 | J18: 0 | K18: =IF(ISERROR(+I18+'App.2-CC_NewCGAAP_DepExp_2013'!K18-J18), 0, +I18+'App.2-CC_NewCGAAP_DepExp_2013'!K18-J18) -> 0
A19: 1815 | B19: Transformer Station Equipment >50 kV | C19: 0 | D19: 0 | E19: 0 | F19: =IF(D19=0,+'App.2-CC_NewCGAAP_DepExp_2013'!K19,+'App.2-CC_NewCGAAP_DepExp_2013'!K19+((C19*0.5)/D19)) -> 0 | G19: 0 | H19: 0 | I19: 0 | J19: 0 | K19: =IF(ISERROR(+I19+'App.2-CC_NewCGAAP_DepExp_2013'!K19-J19), 0, +I19+'App.2-CC_NewCGAAP_DepExp_2013'!K19-J19) -> 0
A20: 1820 | B20: Distribution Station Equipment <50 kV | C20: 640888.2501 | D20: 23.15398698 | E20: 0.04318910609 | F20: =IF(D20=0,+'App.2-CC_NewCGAAP_DepExp_2013'!K20,+'App.2-CC_NewCGAAP_DepExp_2013'!K20+((C20*0.5)/D20)) -> 335608.5481 | G20: 306673.8641 | H20: 28934.68393 | I20: 27679.39063 | J20: 0 | K20: =IF(ISERROR(+I20+'App.2-CC_NewCGAAP_DepExp_2013'!K20-J20), 0, +I20+'App.2-CC_NewCGAAP_DepExp_2013'!K20-J20) -> 349448.2434
A21: 1825 | B21: Storage Battery Equipment | C21: 0 | D21: 0 | E21: 0 | F21: =IF(D21=0,+'App.2-CC_NewCGAAP_DepExp_2013'!K21,+'App.2-CC_NewCGAAP_DepExp_2013'!K21+((C21*0.5)/D21)) -> 0 | G21: 0 | H21: 0 | I21: 0 | J21: 0 | K21: =IF(ISERROR(+I21+'App.2-CC_NewCGAAP_DepExp_2013'!K21-J21), 0, +I21+'App.2-CC_NewCGAAP_DepExp_2013'!K21-J21) -> 0
A22: 1830 | B22: Poles, Towers & Fixtures | C22: 2168185.74 | D22: 45 | E22: 0.02222222222 | F22: =IF(D22=0,+'App.2-CC_NewCGAAP_DepExp_2013'!K22,+'App.2-CC_NewCGAAP_DepExp_2013'!K22+((C22*0.5)/D22)) -> 338679.9303 | G22: 339385.2141 | H22: -705.2838695 | I22: 48181.90533 | J22: 0 | K22: =IF(ISERROR(+I22+'App.2-CC_NewCGAAP_DepExp_2013'!K22-J22), 0, +I22+'App.2-CC_NewCGAAP_DepExp_2013'!K22-J22) -> 362770.8829
A23: 1835 | B23: Overhead Conductors & Devices | C23: 734143.8 | D23: 60 | E23: 0.01666666667 | F23: =IF(D23=0,+'App.2-CC_NewCGAAP_DepExp_2013'!K23,+'App.2-CC_NewCGAAP_DepExp_2013'!K23+((C23*0.5)/D23)) -> 222707.5733 | G23: 222720.2778 | H23: -12.70456063 | I23: 12235.73 | J23: 0 | K23: =IF(ISERROR(+I23+'App.2-CC_NewCGAAP_DepExp_2013'!K23-J23), 0, +I23+'App.2-CC_NewCGAAP_DepExp_2013'!K23-J23) -> 228825.4383
A24: 1840 | B24: Underground Conduit | C24: 140104.61 | D24: 50 | E24: 0.02 | F24: =IF(D24=0,+'App.2-CC_NewCGAAP_DepExp_2013'!K24,+'App.2-CC_NewCGAAP_DepExp_2013'!K24+((C24*0.5)/D24)) -> 22341.15475 | G24: 22341.16575 | H24: -0.01100014587 | I24: 2802.0922 | J24: 0 | K24: =IF(ISERROR(+I24+'App.2-CC_NewCGAAP_DepExp_2013'!K24-J24), 0, +I24+'App.2-CC_NewCGAAP_DepExp_2013'!K24-J24) -> 23742.20085
A25: 1845 | B25: Underground Conductors & Devices | C25: 179671.15 | D25: 40 | E25: 0.025 | F25: =IF(D25=0,+'App.2-CC_NewCGAAP_DepExp_2013'!K25,+'App.2-CC_NewCGAAP_DepExp_2013'!K25+((C25*0.5)/D25)) -> 100992.1947 | G25: 100992.1934 | H25: 0.001285294638 | I25: 4491.77875 | J25: 0 | K25: =IF(ISERROR(+I25+'App.2-CC_NewCGAAP_DepExp_2013'!K25-J25), 0, +I25+'App.2-CC_NewCGAAP_DepExp_2013'!K25-J25) -> 103238.084
A26: 1850 | B26: Line Transformers | C26: 667435.6 | D26: 40 | E26: 0.025 | F26: =IF(D26=0,+'App.2-CC_NewCGAAP_DepExp_2013'!K26,+'App.2-CC_NewCGAAP_DepExp_2013'!K26+((C26*0.5)/D26)) -> 247899.3089 | G26: 253449.98 | H26: -5550.671115 | I26: 16685.89 | J26: 0 | K26: =IF(ISERROR(+I26+'App.2-CC_NewCGAAP_DepExp_2013'!K26-J26), 0, +I26+'App.2-CC_NewCGAAP_DepExp_2013'!K26-J26) -> 256242.2539
A27: 1855 | B27: Services - Overhead | C27: 186227.0907 | D27: 60 | E27: 0.01666666667 | F27: =IF(D27=0,+'App.2-CC_NewCGAAP_DepExp_2013'!K27,+'App.2-CC_NewCGAAP_DepExp_2013'!K27+((C27*0.5)/D27)) -> 124314.6464 | G27: 124330.724 | H27: -16.07758333 | I27: 3103.784844 | J27: 0 | K27: =IF(ISERROR(+I27+'App.2-CC_NewCGAAP_DepExp_2013'!K27-J27), 0, +I27+'App.2-CC_NewCGAAP_DepExp_2013'!K27-J27) -> 125866.5388
A28: 1855 | B28: Services - Underground | C28: 630339.4736 | D28: 40 | E28: =IF(D28=0,0,1/D28) -> 0.025 | F28: =IF(D28=0,+'App.2-CC_NewCGAAP_DepExp_2013'!K28,+'App.2-CC_NewCGAAP_DepExp_2013'!K28+((C28*0.5)/D28)) -> 287664.5633 | G28: 287868.1131 | H28: =IF(ISERROR(+F28-G28), 0, +F28-G28) -> -203.5498436 | I28: =IF(D28=0,0,+(C28)/D28) -> 15758.48684 | J28: 0 | K28: =IF(ISERROR(+I28+'App.2-CC_NewCGAAP_DepExp_2013'!K28-J28), 0, +I28+'App.2-CC_NewCGAAP_DepExp_2013'!K28-J28) -> 295543.8067
A29: 1860 | B29: Meters | C29: 14295.75 | D29: 10 | E29: 0.1 | F29: =IF(D29=0,+'App.2-CC_NewCGAAP_DepExp_2013'!K29,+'App.2-CC_NewCGAAP_DepExp_2013'!K29+((C29*0.5)/D29)) -> 100518.6118 | G29: 101551.3853 | H29: -1032.7735 | I29: 1429.575 | J29: 2214.545 | K29: =IF(ISERROR(+I29+'App.2-CC_NewCGAAP_DepExp_2013'!K29-J29), 0, +I29+'App.2-CC_NewCGAAP_DepExp_2013'!K29-J29) -> 99018.8543
A30: 1860 | B30: Meters (Smart Meters) | C30: 3475934.979 | D30: 10 | E30: 0.1 | F30: =IF(D30=0,+'App.2-CC_NewCGAAP_DepExp_2013'!K30,+'App.2-CC_NewCGAAP_DepExp_2013'!K30+((C30*0.5)/D30)) -> 198582.2373 | G30: 1078084.651 | H30: -879502.4142 | I30: 347593.4979 | J30: 0 | K30: =IF(ISERROR(+I30+'App.2-CC_NewCGAAP_DepExp_2013'!K30-J30), 0, +I30+'App.2-CC_NewCGAAP_DepExp_2013'!K30-J30) -> 372378.9863
A31: 1905 | B31: Land | C31: 0 | D31: 0 | E31: 0 | F31: =IF(D31=0,+'App.2-CC_NewCGAAP_DepExp_2013'!K31,+'App.2-CC_NewCGAAP_DepExp_2013'!K31+((C31*0.5)/D31)) -> 0 | G31: 0 | H31: 0 | I31: 0 | J31: 0 | K31: =IF(ISERROR(+I31+'App.2-CC_NewCGAAP_DepExp_2013'!K31-J31), 0, +I31+'App.2-CC_NewCGAAP_DepExp_2013'!K31-J31) -> 0
A32: 1908 | B32: Buildings & Fixtures | C32: 508279.72 | D32: 25 | E32: 0.04 | F32: =IF(D32=0,+'App.2-CC_NewCGAAP_DepExp_2013'!K32,+'App.2-CC_NewCGAAP_DepExp_2013'!K32+((C32*0.5)/D32)) -> 93847.47419 | G32: 93847.47419 | H32: 2.910383046e-11 | I32: 20331.1888 | J32: 22413.9 | K32: =IF(ISERROR(+I32+'App.2-CC_NewCGAAP_DepExp_2013'!K32-J32), 0, +I32+'App.2-CC_NewCGAAP_DepExp_2013'!K32-J32) -> 81599.16859
A33: 1910 | B33: Leasehold Improvements | C33: 0 | D33: 0 | E33: 0 | F33: =IF(D33=0,+'App.2-CC_NewCGAAP_DepExp_2013'!K33,+'App.2-CC_NewCGAAP_DepExp_2013'!K33+((C33*0.5)/D33)) -> 0 | G33: 0 | H33: 0 | I33: 0 | J33: 0 | K33: =IF(ISERROR(+I33+'App.2-CC_NewCGAAP_DepExp_2013'!K33-J33), 0, +I33+'App.2-CC_NewCGAAP_DepExp_2013'!K33-J33) -> 0
A34: 1915 | B34: Office Furniture & Equipment (10 years) | C34: 57280.34 | D34: 10 | E34: 0.1 | F34: =IF(D34=0,+'App.2-CC_NewCGAAP_DepExp_2013'!K34,+'App.2-CC_NewCGAAP_DepExp_2013'!K34+((C34*0.5)/D34)) -> 13540.7585 | G34: 13588.3845 | H34: -47.626 | I34: 5728.034 | J34: 173 | K34: =IF(ISERROR(+I34+'App.2-CC_NewCGAAP_DepExp_2013'!K34-J34), 0, +I34+'App.2-CC_NewCGAAP_DepExp_2013'!K34-J34) -> 16231.7755
A35: 1915 | B35: Office Furniture & Equipment (5 years) | C35: 0 | D35: 0 | E35: 0 | F35: =IF(D35=0,+'App.2-CC_NewCGAAP_DepExp_2013'!K35,+'App.2-CC_NewCGAAP_DepExp_2013'!K35+((C35*0.5)/D35)) -> 0 | G35: 0 | H35: 0 | I35: 0 | J35: 0 | K35: =IF(ISERROR(+I35+'App.2-CC_NewCGAAP_DepExp_2013'!K35-J35), 0, +I35+'App.2-CC_NewCGAAP_DepExp_2013'!K35-J35) -> 0
A36: 1920 | B36: Computer Equipment - Hardware | C36: 96303.26 | D36: 5 | E36: 0.2 | F36: =IF(D36=0,+'App.2-CC_NewCGAAP_DepExp_2013'!K36,+'App.2-CC_NewCGAAP_DepExp_2013'!K36+((C36*0.5)/D36)) -> 58412.903 | G36: 62553.51792 | H36: -4140.614919 | I36: 19260.652 | J36: 6973.959 | K36: =IF(ISERROR(+I36+'App.2-CC_NewCGAAP_DepExp_2013'!K36-J36), 0, +I36+'App.2-CC_NewCGAAP_DepExp_2013'!K36-J36) -> 61069.27
A37: 1920 | B37: Computer Equip.-Hardware(Post Mar. 22/04) | C37: 0 | D37: 0 | E37: 0 | F37: =IF(D37=0,+'App.2-CC_NewCGAAP_DepExp_2013'!K37,+'App.2-CC_NewCGAAP_DepExp_2013'!K37+((C37*0.5)/D37)) -> 0 | G37: 0 | H37: 0 | I37: 0 | J37: 0 | K37: =IF(ISERROR(+I37+'App.2-CC_NewCGAAP_DepExp_2013'!K37-J37), 0, +I37+'App.2-CC_NewCGAAP_DepExp_2013'!K37-J37) -> 0
A38: 1920 | B38: Computer Equip.-Hardware(Post Mar. 19/07) | C38: 0 | D38: 0 | E38: 0 | F38: =IF(D38=0,+'App.2-CC_NewCGAAP_DepExp_2013'!K38,+'App.2-CC_NewCGAAP_DepExp_2013'!K38+((C38*0.5)/D38)) -> 0 | G38: 0 | H38: 0 | I38: 0 | J38: 0 | K38: =IF(ISERROR(+I38+'App.2-CC_NewCGAAP_DepExp_2013'!K38-J38), 0, +I38+'App.2-CC_NewCGAAP_DepExp_2013'!K38-J38) -> 0
A39: 1930 | B39: Transportation Equipment >3 ton, trailers | C39: 40162.64 | D39: 3.181385101 | E39: 0.3143284979 | F39: =IF(D39=0,+'App.2-CC_NewCGAAP_DepExp_2013'!K39,+'App.2-CC_NewCGAAP_DepExp_2013'!K39+((C39*0.5)/D39)) -> 177820.7379 | G39: 189683.7027 | H39: -11862.96481 | I39: 12624.2623 | J39: 0 | K39: =IF(ISERROR(+I39+'App.2-CC_NewCGAAP_DepExp_2013'!K39-J39), 0, +I39+'App.2-CC_NewCGAAP_DepExp_2013'!K39-J39) -> 184132.869
A40: 1930 | B40: Transportation Equipment <3 ton | C40: 32000 | D40: 5 | E40: =IF(D40=0,0,1/D40) -> 0.2 | F40: =IF(D40=0,+'App.2-CC_NewCGAAP_DepExp_2013'!K40,+'App.2-CC_NewCGAAP_DepExp_2013'!K40+((C40*0.5)/D40)) -> 54892.97339 | G40: 49919.48881 | H40: =IF(ISERROR(+F40-G40), 0, +F40-G40) -> 4973.484574 | I40: =IF(D40=0,0,+(C40)/D40) -> 6400 | J40: 0 | K40: =IF(ISERROR(+I40+'App.2-CC_NewCGAAP_DepExp_2013'!K40-J40), 0, +I40+'App.2-CC_NewCGAAP_DepExp_2013'!K40-J40) -> 58092.97339
A41: 1935 | B41: Stores Equipment | C41: 0 | D41: 0 | E41: 0 | F41: =IF(D41=0,+'App.2-CC_NewCGAAP_DepExp_2013'!K41,+'App.2-CC_NewCGAAP_DepExp_2013'!K41+((C41*0.5)/D41)) -> 0 | G41: 0 | H41: 0 | I41: 0 | J41: 0 | K41: =IF(ISERROR(+I41+'App.2-CC_NewCGAAP_DepExp_2013'!K41-J41), 0, +I41+'App.2-CC_NewCGAAP_DepExp_2013'!K41-J41) -> 0
A42: 1940 | B42: Tools, Shop & Garage Equipment | C42: 46999.76 | D42: 10 | E42: 0.1 | F42: =IF(D42=0,+'App.2-CC_NewCGAAP_DepExp_2013'!K42,+'App.2-CC_NewCGAAP_DepExp_2013'!K42+((C42*0.5)/D42)) -> 47041.9892 | G42: 47262.88603 | H42: -220.896831 | I42: 4699.976 | J42: 3040 | K42: =IF(ISERROR(+I42+'App.2-CC_NewCGAAP_DepExp_2013'!K42-J42), 0, +I42+'App.2-CC_NewCGAAP_DepExp_2013'!K42-J42) -> 46351.9772
A43: 1945 | B43: Measurement & Testing Equipment | C43: 0 | D43: 0 | E43: 0 | F43: =IF(D43=0,+'App.2-CC_NewCGAAP_DepExp_2013'!K43,+'App.2-CC_NewCGAAP_DepExp_2013'!K43+((C43*0.5)/D43)) -> 0 | G43: 0 | H43: 0 | I43: 0 | J43: 0 | K43: =IF(ISERROR(+I43+'App.2-CC_NewCGAAP_DepExp_2013'!K43-J43), 0, +I43+'App.2-CC_NewCGAAP_DepExp_2013'!K43-J43) -> 0
A44: 1950 | B44: Power Operated Equipment | C44: 0 | D44: 0 | E44: 0 | F44: =IF(D44=0,+'App.2-CC_NewCGAAP_DepExp_2013'!K44,+'App.2-CC_NewCGAAP_DepExp_2013'!K44+((C44*0.5)/D44)) -> 0 | G44: 0 | H44: 0 | I44: 0 | J44: 0 | K44: =IF(ISERROR(+I44+'App.2-CC_NewCGAAP_DepExp_2013'!K44-J44), 0, +I44+'App.2-CC_NewCGAAP_DepExp_2013'!K44-J44) -> 0
A45: 1955 | B45: Communications Equipment | C45: 0 | D45: 10 | E45: 0.1 | F45: =IF(D45=0,+'App.2-CC_NewCGAAP_DepExp_2013'!K45,+'App.2-CC_NewCGAAP_DepExp_2013'!K45+((C45*0.5)/D45)) -> 7327.995 | G45: 9263.500833 | H45: -1935.505833 | I45: 0 | J45: 70.63 | K45: =IF(ISERROR(+I45+'App.2-CC_NewCGAAP_DepExp_2013'!K45-J45), 0, +I45+'App.2-CC_NewCGAAP_DepExp_2013'!K45-J45) -> 7257.365
A46: 1955 | B46: Communication Equipment (Smart Meters) | C46: 0 | D46: 0 | E46: 0 | F46: =IF(D46=0,+'App.2-CC_NewCGAAP_DepExp_2013'!K46,+'App.2-CC_NewCGAAP_DepExp_2013'!K46+((C46*0.5)/D46)) -> 0 | G46: 0 | H46: 0 | I46: 0 | J46: 0 | K46: =IF(ISERROR(+I46+'App.2-CC_NewCGAAP_DepExp_2013'!K46-J46), 0, +I46+'App.2-CC_NewCGAAP_DepExp_2013'!K46-J46) -> 0
A47: 1960 | B47: Miscellaneous Equipment | C47: 0 | D47: 0 | E47: 0 | F47: =IF(D47=0,+'App.2-CC_NewCGAAP_DepExp_2013'!K47,+'App.2-CC_NewCGAAP_DepExp_2013'!K47+((C47*0.5)/D47)) -> 4124.0085 | G47: 2414.359308 | H47: 1709.649192 | I47: 0 | J47: 0 | K47: =IF(ISERROR(+I47+'App.2-CC_NewCGAAP_DepExp_2013'!K47-J47), 0, +I47+'App.2-CC_NewCGAAP_DepExp_2013'!K47-J47) -> 4124.0085
A48: 1970 | B48: Load Management Controls Customer Premises | C48: 0 | D48: 0 | E48: 0 | F48: =IF(D48=0,+'App.2-CC_NewCGAAP_DepExp_2013'!K48,+'App.2-CC_NewCGAAP_DepExp_2013'!K48+((C48*0.5)/D48)) -> 0 | G48: 0 | H48: 0 | I48: 0 | J48: 0 | K48: =IF(ISERROR(+I48+'App.2-CC_NewCGAAP_DepExp_2013'!K48-J48), 0, +I48+'App.2-CC_NewCGAAP_DepExp_2013'!K48-J48) -> 0
A49: 1975 | B49: Load Management Controls Utility Premises | C49: 0 | D49: 0 | E49: 0 | F49: =IF(D49=0,+'App.2-CC_NewCGAAP_DepExp_2013'!K49,+'App.2-CC_NewCGAAP_DepExp_2013'!K49+((C49*0.5)/D49)) -> 0 | G49: 0 | H49: 0 | I49: 0 | J49: 0 | K49: =IF(ISERROR(+I49+'App.2-CC_NewCGAAP_DepExp_2013'!K49-J49), 0, +I49+'App.2-CC_NewCGAAP_DepExp_2013'!K49-J49) -> 0
A50: 1980 | B50: System Supervisor Equipment | C50: 426182.9634 | D50: 20 | E50: 0.05 | F50: =IF(D50=0,+'App.2-CC_NewCGAAP_DepExp_2013'!K50,+'App.2-CC_NewCGAAP_DepExp_2013'!K50+((C50*0.5)/D50)) -> 59134.85809 | G50: 59134.89421 | H50: -0.03612453632 | I50: 21309.14817 | J50: 0 | K50: =IF(ISERROR(+I50+'App.2-CC_NewCGAAP_DepExp_2013'!K50-J50), 0, +I50+'App.2-CC_NewCGAAP_DepExp_2013'!K50-J50) -> 69789.43217
A51: 1985 | B51: Miscellaneous Fixed Assets | C51: 0 | D51: 0 | E51: 0 | F51: =IF(D51=0,+'App.2-CC_NewCGAAP_DepExp_2013'!K51,+'App.2-CC_NewCGAAP_DepExp_2013'!K51+((C51*0.5)/D51)) -> 0 | G51: 0 | H51: 0 | I51: 0 | J51: 0 | K51: =IF(ISERROR(+I51+'App.2-CC_NewCGAAP_DepExp_2013'!K51-J51), 0, +I51+'App.2-CC_NewCGAAP_DepExp_2013'!K51-J51) -> 0
A52: 1990 | B52: Other Tangible Property | C52: 0 | D52: 0 | E52: 0 | F52: =IF(D52=0,+'App.2-CC_NewCGAAP_DepExp_2013'!K52,+'App.2-CC_NewCGAAP_DepExp_2013'!K52+((C52*0.5)/D52)) -> 1629.56 | G52: 1629.56 | H52: -2.273736754e-13 | I52: 0 | J52: 0 | K52: =IF(ISERROR(+I52+'App.2-CC_NewCGAAP_DepExp_2013'!K52-J52), 0, +I52+'App.2-CC_NewCGAAP_DepExp_2013'!K52-J52) -> 1629.56
A53: 1995 | B53: Contributions & Grants | C53: -1128076.847 | D53: 45 | E53: 0.02222222222 | F53: =IF(D53=0,+'App.2-CC_NewCGAAP_DepExp_2013'!K53,+'App.2-CC_NewCGAAP_DepExp_2013'!K53+((C53*0.5)/D53)) -> -221552.7831 | G53: -223498.8045 | H53: 1946.021343 | I53: -25068.37437 | J53: 0 | K53: =IF(ISERROR(+I53+'App.2-CC_NewCGAAP_DepExp_2013'!K53-J53), 0, +I53+'App.2-CC_NewCGAAP_DepExp_2013'!K53-J53) -> -234086.9703
B54: Total | C54: =SUM(C14:C53) -> 9164694.55 | F54: =SUM(F14:F53) -> 2412479.044 | G54: 3331727.128 | H54: -919248.0838 | I54: 594914.2724 | J54: 47733.722 | K54: 2662202.458
B55: Depreciation exp. adj. from gain or loss on the retirement of assets (pool of like assets) | F55: 65869.89198
B56: Total Depreciation Expense | F56: =+F55+F54 -> 2478348.936
A58: Notes:
A59: 1 | B59: Board policy of the "half-year" rule - the applicant must ensure that additions in the year attract a half-year depreciation expense in the first year. Deviations from this standard practice must be supported in the application.
A60: 2 | B60: The applicant must provide an explanation of material variances in evidence.
A61: 3 | B61: This column refers to the calculated full year depreciation but excludes the depreciation expense on assets fully depreciated during the year. This column is used for the purpose of calculating depreciation expense in the following year on the next worksheet.
A63: General: | B63: Applicants must provide a breakdown of depreciation and amortization expense in the above format for all relevant accounts. Asset Retirement Obligations (AROs), depreciation and accretion expense should be disclosed separately consistent with the Notes of historical Audited Financial Statements.

Sheet App.2-CE_MIFRS_DepExp_2015
G1: File Number: | H1: =EBNUMBER -> EB-2014-0099
G2: Exhibit: | H2: 4
G4: Date: | H4: ='App.2-AA_Capital Projects'!$I$4 -> 2014-12-12
A6: Appendix 2-CE
A7: Depreciation and Amortization Expense
A8: Assumes the applicant made capitalization and depreciation expense accounting policy changes under CGAAP effective January 1, 2012 and will adopt IFRS for financial reporting purposes effective January 1, 2015.
C10: 2015 | D10: MIFRS
A12: Account | B12: Description | C12: Additions | D12: Years (new additions only) | E12: Depreciation Rate on New Additions | F12: 2015 Depreciation Expense 1 | G12: 2015 Depreciation Expense per Appendix 2-BA Fixed Assets, Column J (l) | H12: Variance 2
C13: (d) | D13: (f) | E13: (g) = 1 / (f) | F13: (h)=2014 Full Year Depreciation + ((d)*0.5)/(f) | H13: (m) = (h) - (l)
A14: 1611 | B14: Computer Software (Formally known as Account 1925) | C14: 12000 | D14: 5 | E14: =IF(D14=0,0,1/D14) -> 0.2 | F14: =IF(D14=0,'App.2-CD_MIFRS_DepExp_2014'!K14,+'App.2-CD_MIFRS_DepExp_2014'!K14+((C14*0.5)/D14)) -> 115537.694 | G14: 109328.7343 | H14: =IF(ISERROR(+F14-G14), 0, +F14-G14) -> 6208.959651
A15: 1612 | B15: Land Rights (Formally known as Account 1906) | C15: 0 | D15: 0 | E15: 0 | F15: =IF(D15=0,'App.2-CD_MIFRS_DepExp_2014'!K15,+'App.2-CD_MIFRS_DepExp_2014'!K15+((C15*0.5)/D15)) -> 0 | G15: 0 | H15: 0
A16: 1805 | B16: Land | C16: 0 | D16: 0 | E16: 0 | F16: =IF(D16=0,'App.2-CD_MIFRS_DepExp_2014'!K16,+'App.2-CD_MIFRS_DepExp_2014'!K16+((C16*0.5)/D16)) -> 0 | G16: 0 | H16: 0
A17: 1808 | B17: Buildings | C17: 18551.36861 | D17: 50 | E17: 0.02 | F17: =IF(D17=0,'App.2-CD_MIFRS_DepExp_2014'!K17,+'App.2-CD_MIFRS_DepExp_2014'!K17+((C17*0.5)/D17)) -> 34783.55975 | G17: 34783.55975 | H17: 2.182787284e-11
A18: 1810 | B18: Leasehold Improvements | C18: 0 | D18: 0 | E18: 0 | F18: =IF(D18=0,'App.2-CD_MIFRS_DepExp_2014'!K18,+'App.2-CD_MIFRS_DepExp_2014'!K18+((C18*0.5)/D18)) -> 0 | G18: 0 | H18: 0
A19: 1815 | B19: Transformer Station Equipment >50 kV | C19: 0 | D19: 0 | E19: 0 | F19: =IF(D19=0,'App.2-CD_MIFRS_DepExp_2014'!K19,+'App.2-CD_MIFRS_DepExp_2014'!K19+((C19*0.5)/D19)) -> 0 | G19: 0 | H19: 0
A20: 1820 | B20: Distribution Station Equipment <50 kV | C20: 2771299.037 | D20: 45.02994337 | E20: 0.0222074452 | F20: =IF(D20=0,'App.2-CD_MIFRS_DepExp_2014'!K20,+'App.2-CD_MIFRS_DepExp_2014'!K20+((C20*0.5)/D20)) -> 380219.9791 | G20: 341137.0045 | H20: 39082.97463
A21: 1825 | B21: Storage Battery Equipment | C21: 0 | D21: 0 | E21: 0 | F21: =IF(D21=0,'App.2-CD_MIFRS_DepExp_2014'!K21,+'App.2-CD_MIFRS_DepExp_2014'!K21+((C21*0.5)/D21)) -> 0 | G21: 0 | H21: 0
A22: 1830 | B22: Poles, Towers & Fixtures | C22: 1084640.18 | D22: 45 | E22: 0.02222222222 | F22: =IF(D22=0,'App.2-CD_MIFRS_DepExp_2014'!K22,+'App.2-CD_MIFRS_DepExp_2014'!K22+((C22*0.5)/D22)) -> 374822.4405 | G22: 374293.5595 | H22: 528.880966
A23: 1835 | B23: Overhead Conductors & Devices | C23: 635167.2039 | D23: 60 | E23: 0.01666666667 | F23: =IF(D23=0,'App.2-CD_MIFRS_DepExp_2014'!K23,+'App.2-CD_MIFRS_DepExp_2014'!K23+((C23*0.5)/D23)) -> 234118.4983 | G23: 234109.0072 | H23: 9.491072668
A24: 1840 | B24: Underground Conduit | C24: 321443.1948 | D24: 50 | E24: 0.02 | F24: =IF(D24=0,'App.2-CD_MIFRS_DepExp_2014'!K24,+'App.2-CD_MIFRS_DepExp_2014'!K24+((C24*0.5)/D24)) -> 26956.6328 | G24: 26956.64382 | H24: -0.01102298836
A25: 1845 | B25: Underground Conductors & Devices | C25: 328719.2131 | D25: 40 | E25: 0.025 | F25: =IF(D25=0,'App.2-CD_MIFRS_DepExp_2014'!K25,+'App.2-CD_MIFRS_DepExp_2014'!K25+((C25*0.5)/D25)) -> 107347.0742 | G25: 107347.0729 | H25: 0.001267497501
A26: 1850 | B26: Line Transformers | C26: 854250.8061 | D26: 40 | E26: 0.025 | F26: =IF(D26=0,'App.2-CD_MIFRS_DepExp_2014'!K26,+'App.2-CD_MIFRS_DepExp_2014'!K26+((C26*0.5)/D26)) -> 266920.389 | G26: 272459.88 | H26: -5539.491038
A27: 1855 | B27: Services - Overhead | C27: 197820.6391 | D27: 60 | E27: 0.01666666667 | F27: =IF(D27=0,'App.2-CD_MIFRS_DepExp_2014'!K27,+'App.2-CD_MIFRS_DepExp_2014'!K27+((C27*0.5)/D27)) -> 127515.0441 | G27: 127502.9393 | H27: 12.10483333
A28: 1855 | B28: Services - Underground | C28: 1227521.432 | D28: 40 | E28: =IF(D28=0,0,1/D28) -> 0.025 | F28: =IF(D28=0,'App.2-CD_MIFRS_DepExp_2014'!K28,+'App.2-CD_MIFRS_DepExp_2014'!K28+((C28*0.5)/D28)) -> 310887.8246 | G28: 310735.1452 | H28: =IF(ISERROR(+F28-G28), 0, +F28-G28) -> 152.6794064
A29: 1860 | B29: Meters | C29: 14440.44793 | D29: 10 | E29: 0.1 | F29: =IF(D29=0,'App.2-CD_MIFRS_DepExp_2014'!K29,+'App.2-CD_MIFRS_DepExp_2014'!K29+((C29*0.5)/D29)) -> 99740.8767 | G29: 102988.1952 | H29: -3247.3185
A30: 1860 | B30: Meters (Smart Meters) | C30: 214213.1744 | D30: 10 | E30: 0.1 | F30: =IF(D30=0,'App.2-CD_MIFRS_DepExp_2014'!K30,+'App.2-CD_MIFRS_DepExp_2014'!K30+((C30*0.5)/D30)) -> 383089.645 | G30: 272663.1947 | H30: 110426.4503
A31: 1905 | B31: Land | C31: 0 | D31: 0 | E31: 0 | F31: =IF(D31=0,'App.2-CD_MIFRS_DepExp_2014'!K31,+'App.2-CD_MIFRS_DepExp_2014'!K31+((C31*0.5)/D31)) -> 0 | G31: 0 | H31: 0
A32: 1908 | B32: Buildings & Fixtures | C32: 56651.87 | D32: 25 | E32: 0.04 | F32: =IF(D32=0,'App.2-CD_MIFRS_DepExp_2014'!K32,+'App.2-CD_MIFRS_DepExp_2014'!K32+((C32*0.5)/D32)) -> 82732.20599 | G32: 82735.17578 | H32: -2.969789194
A33: 1910 | B33: Leasehold Improvements | C33: 0 | D33: 0 | E33: 0 | F33: =IF(D33=0,'App.2-CD_MIFRS_DepExp_2014'!K33,+'App.2-CD_MIFRS_DepExp_2014'!K33+((C33*0.5)/D33)) -> 0 | G33: 0 | H33: 0
A34: 1915 | B34: Office Furniture & Equipment (10 years) | C34: 6000 | D34: 10 | E34: 0.1 | F34: =IF(D34=0,'App.2-CD_MIFRS_DepExp_2014'!K34,+'App.2-CD_MIFRS_DepExp_2014'!K34+((C34*0.5)/D34)) -> 16531.7755 | G34: 16579.6395 | H34: -47.864
A35: 1915 | B35: Office Furniture & Equipment (5 years) | C35: 0 | D35: 0 | E35: 0 | F35: =IF(D35=0,'App.2-CD_MIFRS_DepExp_2014'!K35,+'App.2-CD_MIFRS_DepExp_2014'!K35+((C35*0.5)/D35)) -> 0 | G35: 0 | H35: 0
A36: 1920 | B36: Computer Equipment - Hardware | C36: 135800 | D36: 5 | E36: 0.2 | F36: =IF(D36=0,'App.2-CD_MIFRS_DepExp_2014'!K36,+'App.2-CD_MIFRS_DepExp_2014'!K36+((C36*0.5)/D36)) -> 74649.27 | G36: 76435.02565 | H36: -1785.755651
A37: 1920 | B37: Computer Equip.-Hardware(Post Mar. 22/04) | C37: 0 | D37: 0 | E37: 0 | F37: =IF(D37=0,'App.2-CD_MIFRS_DepExp_2014'!K37,+'App.2-CD_MIFRS_DepExp_2014'!K37+((C37*0.5)/D37)) -> 0 | G37: 0 | H37: 0
A38: 1920 | B38: Computer Equip.-Hardware(Post Mar. 19/07) | C38: 0 | D38: 0 | E38: 0 | F38: =IF(D38=0,'App.2-CD_MIFRS_DepExp_2014'!K38,+'App.2-CD_MIFRS_DepExp_2014'!K38+((C38*0.5)/D38)) -> 0 | G38: 0 | H38: 0
A39: 1930 | B39: Transportation Equipment >3 ton, trailers | C39: 493285 | D39: 8 | E39: 0.125 | F39: =IF(D39=0,'App.2-CD_MIFRS_DepExp_2014'!K39,+'App.2-CD_MIFRS_DepExp_2014'!K39+((C39*0.5)/D39)) -> 214963.1815 | G39: 207444.5852 | H39: 7518.596337
A40: 1930 | B40: Transportation Equipment <3 ton | C40: 105000 | D40: 5 | E40: =IF(D40=0,0,1/D40) -> 0.2 | F40: =IF(D40=0,'App.2-CD_MIFRS_DepExp_2014'!K40,+'App.2-CD_MIFRS_DepExp_2014'!K40+((C40*0.5)/D40)) -> 68592.97339 | G40: 59352.87281 | H40: =IF(ISERROR(+F40-G40), 0, +F40-G40) -> 9240.100574
A41: 1935 | B41: Stores Equipment | C41: 0 | D41: 0 | E41: 0 | F41: =IF(D41=0,'App.2-CD_MIFRS_DepExp_2014'!K41,+'App.2-CD_MIFRS_DepExp_2014'!K41+((C41*0.5)/D41)) -> 0 | G41: 0 | H41: 0
A42: 1940 | B42: Tools, Shop & Garage Equipment | C42: 46150.76 | D42: 10 | E42: 0.1 | F42: =IF(D42=0,'App.2-CD_MIFRS_DepExp_2014'!K42,+'App.2-CD_MIFRS_DepExp_2014'!K42+((C42*0.5)/D42)) -> 48659.5152 | G42: 48880.7115 | H42: -221.1962977
A43: 1945 | B43: Measurement & Testing Equipment | C43: 0 | D43: 0 | E43: 0 | F43: =IF(D43=0,'App.2-CD_MIFRS_DepExp_2014'!K43,+'App.2-CD_MIFRS_DepExp_2014'!K43+((C43*0.5)/D43)) -> 0 | G43: 0 | H43: 0
A44: 1950 | B44: Power Operated Equipment | C44: 0 | D44: 0 | E44: 0 | F44: =IF(D44=0,'App.2-CD_MIFRS_DepExp_2014'!K44,+'App.2-CD_MIFRS_DepExp_2014'!K44+((C44*0.5)/D44)) -> 0 | G44: 0 | H44: 0
A45: 1955 | B45: Communications Equipment | C45: 0 | D45: 0 | E45: 0 | F45: =IF(D45=0,'App.2-CD_MIFRS_DepExp_2014'!K45,+'App.2-CD_MIFRS_DepExp_2014'!K45+((C45*0.5)/D45)) -> 7257.365 | G45: 8666.036333 | H45: -1408.671333
A46: 1955 | B46: Communication Equipment (Smart Meters) | C46: 0 | D46: 10 | E46: 0.1 | F46: =IF(D46=0,'App.2-CD_MIFRS_DepExp_2014'!K46,+'App.2-CD_MIFRS_DepExp_2014'!K46+((C46*0.5)/D46)) -> 0 | G46: 0 | H46: 0
A47: 1960 | B47: Miscellaneous Equipment | C47: 0 | D47: 0 | E47: 0 | F47: =IF(D47=0,'App.2-CD_MIFRS_DepExp_2014'!K47,+'App.2-CD_MIFRS_DepExp_2014'!K47+((C47*0.5)/D47)) -> 4124.0085 | G47: 2414.359308 | H47: 1709.649192
A48: 1970 | B48: Load Management Controls Customer Premises | C48: 0 | D48: 0 | E48: 0 | F48: =IF(D48=0,'App.2-CD_MIFRS_DepExp_2014'!K48,+'App.2-CD_MIFRS_DepExp_2014'!K48+((C48*0.5)/D48)) -> 0 | G48: 0 | H48: 0
A49: 1975 | B49: Load Management Controls Utility Premises | C49: 0 | D49: 0 | E49: 0 | F49: =IF(D49=0,'App.2-CD_MIFRS_DepExp_2014'!K49,+'App.2-CD_MIFRS_DepExp_2014'!K49+((C49*0.5)/D49)) -> 0 | G49: 0 | H49: 0
A50: 1980 | B50: System Supervisor Equipment | C50: 19102.76797 | D50: 20 | E50: 0.05 | F50: =IF(D50=0,'App.2-CD_MIFRS_DepExp_2014'!K50,+'App.2-CD_MIFRS_DepExp_2014'!K50+((C50*0.5)/D50)) -> 70267.00137 | G50: 70267.0375 | H50: -0.0361245364
A51: 1985 | B51: Miscellaneous Fixed Assets | C51: 0 | D51: 0 | E51: 0 | F51: =IF(D51=0,'App.2-CD_MIFRS_DepExp_2014'!K51,+'App.2-CD_MIFRS_DepExp_2014'!K51+((C51*0.5)/D51)) -> 0 | G51: 0 | H51: 0
A52: 1990 | B52: Other Tangible Property | C52: 0 | D52: 0 | E52: 0 | F52: =IF(D52=0,'App.2-CD_MIFRS_DepExp_2014'!K52,+'App.2-CD_MIFRS_DepExp_2014'!K52+((C52*0.5)/D52)) -> 1629.56 | G52: 1629.56 | H52: -2.273736754e-13
A53: 1995 | B53: Contributions & Grants | C53: -503986.5896 | D53: 45 | E53: 0.02222222222 | F53: =IF(D53=0,'App.2-CD_MIFRS_DepExp_2014'!K53,+'App.2-CD_MIFRS_DepExp_2014'!K53+((C53*0.5)/D53)) -> -239686.8213 | G53: -241632.8427 | H53: 1946.021343
B54: Total | C54: =SUM(C14:C53) -> 8038070.505 | F54: =SUM(F14:F53) -> 2811659.693 | G54: =SUM(G14:G53) -> 2647077.097 | H54: =SUM(H14:H53) -> 164582.5959
B55: Depreciation exp. adj. from gain or loss on the retirement of assets (pool of like assets) | F55: 78456.10281 | G55: 78456.10281
B56: Fully Allocated Dep'n | F56: -155871 | G56: -155871
B57: Total Depreciation expense to be included in the test year revenue requirement | F57: =SUM(F54:F56) -> 2734244.796 | G57: =SUM(G54:G56) -> 2569662.2
A58: Notes:
A59: 1 | B59: Board policy of the "half-year" rule - the applicant must ensure that additions in the year attract a half-year depreciation expense in the first year. Deviations from this standard practice must be supported in the application.
A60: 2 | B60: The applicant must provide an explanation of material variances in evidence.
A63: General: | B63: Applicants must provide a breakdown of depreciation and amortization expense in the above format for all relevant accounts. Asset Retirement Obligations (AROs), depreciation and accretion expense should be disclosed separately consistent with the Notes of historical Audited Financial Statements.

Sheet App.2-D_Overhead
G1: File Number: | H1: =EBNUMBER -> EB-2014-0099
G2: Exhibit: | H2: 2
G4: Date: | H4: ='App.2-AA_Capital Projects'!$I$4 -> 2014-12-12
A6: Appendix 2-D
A7: Overhead Expense
A9: Applicants are to provide a breakdown of OM&A before capitalization in the below table. OM&A before capitalization may be broken down by cost center, program, drivers or another format best suited to focus on capitalized vs. uncapitalized OM&A.
A11: OM&A Before Capitalization
B12: 2010 | C12: 2011 | D12: 2012 | E12: 2013 | F12: 2014 | G12: 2015
B13: Historical Year | C13: Historical Year | D13: Historical Year | E13: Historical Year | F13: Bridge Year | G13: Test Year
A14: Administration | B14: 813435.71 | C14: 791093.64 | D14: 983064.58 | E14: 1123969 | F14: 1568576.804 | G14: 1474728.335
A15: Finance | B15: 1387537 | C15: 1553947 | D15: 1495970.71 | E15: 1407660 | F15: 1876172.962 | G15: 1933801.151
A16: HR | B16: 382487 | C16: 569105 | D16: 566269 | E16: 495688 | F16: 456327.7641 | G16: 391107.8547
A17: Engineering Costs | B17: 238501.68 | C17: 286969.66 | D17: 337889.7 | E17: 339210.59 | F17: 435627.11 | G17: 494908.0718
A18: Operations Administration Costs | B18: 474707.95 | C18: 372136.37 | D18: 386916.16 | E18: 419367.09 | F18: 430498.9 | G18: 483885.472
A19: Operations - Lines, Substations, Metering, Customer Service, Fleet, Stores | B19: 2074015.346 | C19: 2165234.571 | D19: 2126759.031 | E19: 2257490.826 | F19: 2417986.437 | G19: 2615623.428
A21: Total OM&A Before Capitalization (B) | B21: =SUM(B14:B20) -> 5370684.686 | C21: 5738486.241 | D21: 5896869.181 | E21: 6043385.506 | F21: 7185189.977 | G21: 7394054.312
A23: Applicants are to provide a breakdown of capitalized OM&A in the below table. Capitalized OM&A may be broken down using the categories listed in the table below if possible. Otherwise, applicants are to provide its own break down of capitalized OM&A.
A25: Capitalized OM&A | H25: Directly | I25: Explanation for Change in Overhead Capitalized
B26: 2011 | C26: 2011 | D26: 2012 | E26: 2013 | F26: 2014 | G26: 2015 | H26: Attributable?
B27: Historical Year | C27: Historical Year | D27: Historical Year | E27: Historical Year | F27: Bridge Year | G27: Test Year | H27: (Y/N)
A28: Administration | B28: 0 | C28: 0 | D28: 0 | E28: 0 | F28: 0 | G28: 0
A29: Finance | B29: 0 | C29: 0 | D29: 0 | E29: 0 | F29: 0 | G29: 0
A30: HR | B30: 0 | C30: 0 | D30: 0 | E30: 0 | F30: 0 | G30: 0
A31: Engineering | B31: 53084.52049 | C31: 50835.73339 | D31: 35114.65 | E31: 35137.31 | F31: 52510.33319 | G31: 54607 | H31: Y | I31: Changes based on required labour to complete annual capital program
A32: Operations Administration | B32: 31614.58415 | C32: 45861.26 | D32: 55573.15 | E32: 51417.92 | F32: 54153.46516 | G32: 52011 | H32: Y | I32: Changes based on required labour to complete annual capital program
A33: Operations - Fleet | B33: 157441.6138 | C33: 144122.0292 | D33: 178788.4552 | E33: 164038.3341 | F33: 174707.5945 | G33: 181232.3125 | H33: Y | I33: Changes based on required labour to complete annual capital program and changes in annual fleet costs
A34: Operations - Stores | B34: 123439.3775 | C34: 134021.4879 | D34: 95013.86599 | E34: 87840.57165 | F34: 95843.59406 | G34: 101360 | H34: Y | I34: Changes based on material requirements of capital projects each year
A36: Total Capitalized OM&A (A) | B36: =SUM(B28:B35) -> 365580.096 | C36: 374840.5105 | D36: 364490.1212 | E36: 338434.1358 | F36: 377214.9869 | G36: 389210.3125
A38: % of Capitalized OM&A (=A/B) | B38: =IF(ISERROR(B36/B21),"0%",B36/B21) -> 0.06806955116 | C38: 0.06532045121 | D38: 0.06181078636 | E38: 0.05600075247 | F38: 0.05249895802 | G38: 0.05263828152
A41: Total Costs - OM&A | H41: Directly | I41: Explanation for Change in Overhead Capitalized
B42: 2010 | C42: 2011 | D42: 2012 | E42: 2013 | F42: 2014 | G42: 2015 | H42: Attributable?
B43: Historical Year | C43: Historical Year | D43: Historical Year | E43: Historical Year | F43: Bridge Year | G43: Test Year | H43: (Y/N)
A44: Administration | B44: =B14-B28 -> 813435.71 | C44: 791093.64 | D44: 983064.58 | E44: 1123969 | F44: 1568576.804 | G44: 1474728.335
A45: Finance | B45: 1387537 | C45: 1553947 | D45: 1495970.71 | E45: 1407660 | F45: 1876172.962 | G45: 1933801.151
A46: HR | B46: 382487 | C46: 569105 | D46: 566269 | E46: 495688 | F46: 456327.7641 | G46: 391107.8547
A47: Engineering Costs | B47: =B17-B31 -> 185417.1595 | C47: 236133.9266 | D47: 302775.05 | E47: 304073.28 | F47: 383116.7768 | G47: 440301.0718
A48: Operations Administration Costs | B48: 443093.3659 | C48: 326275.11 | D48: 331343.01 | E48: 367949.17 | F48: 376345.4348 | G48: 431874.472
A49: Operations - Lines, Substations, Metering, Customer Service, Fleet, Stores | B49: =B19-B33-B34 -> 1793134.355 | C49: 1887091.053 | D49: 1852956.71 | E49: 2005611.92 | F49: 2147435.249 | G49: 2333031.116
A51: Total OM&A | B51: =SUM(B44:B50) -> 5005104.59 | C51: 5363645.73 | D51: 5532379.06 | E51: 5704951.37 | F51: 6807974.99 | G51: 7004844

Sheet App.2-EA_1575 (2015)
I1: File Number: | J1: =EBNUMBER -> EB-2014-0099
I2: Exhibit: | J2: 9
I4: Date: | J4: ='App.2-AA_Capital Projects'!$I$4 -> 2014-12-12
A6: Appendix 2-EA
A7: Account 1575 - IFRS-CGAAP Transitional PP&E Amounts
A8: 2015 Adopters of IFRS for Financial Reporting Purposes
A10: For applicants that will adopt IFRS on January 1, 2015 for financial reporting purposes
B14: =RebaseYear &" Rebasing Year" -> 2010 Rebasing Year | C14: 2011 | D14: 2012 | E14: 2013 | F14: 2014 | G14: 2015 Rebasing Year
A15: Reporting Basis | B15: CGAAP | C15: IRM | D15: IRM | E15: IRM | F15: IRM | G15: MIFRS
B16: Forecast | C16: Actual | D16: Actual | E16: Actual | F16: Forecast | G16: Forecast
F17: $ | G17: $
A18: PP&E Values under CGAAP
A19: Opening net PP&E - Note 1 | F19: 47568985.43
A20: Net Additions - Note 4 | F20: 6803395.997
A21: Net Depreciation (amounts should be negative) - Note 4 | F21: -969172.3144
A22: Closing net PP&E (1) | F22: =SUM(F19:F21) -> 53403209.12
A24: PP&E Values under MIFRS (Starts from 2014, the transition year)
A25: Opening net PP&E - Note 1 | F25: 47568985.43
A26: Net Additions - Note 4 | F26: 6408956.866
A27: Net Depreciation (amounts should be negative) - Note 4 | F27: -640603.0738
A28: Closing net PP&E (2) | F28: =SUM(F25:F27) -> 53337339.23
A30: Difference in Closing net PP&E, CGAAP vs. MIFRS | F30: =F22-F28 -> 65869.89031
A33: Effect on Deferral and Variance Account Rate Riders
A34: Closing balance in deferral account | G34: =IF(ISERROR(F30), 0, F30) -> 65869.89031 | I34: WACC | J34: 0.068
A35: Return on Rate Base Associated with deferred PP&E balance at WACC - Note 2 | G35: =F30*J34*J35 -> 4479.152541 | H35: # of years of rate rider disposition period | J35: 1
A36: Amount included in Deferral and Variance Account Rate Rider Calculation | G36: =G34+G35 -> 70349.04285
A38: Notes:
A39: 1 For an applicant that adopts IFRS on January 1, 2015, the PP&E values as of January 1, 2014 under both CGAAP and MIFRS should be the same.
A40: 2 Return on rate base associated with deferred balance is calculated as:
A41: the deferral account opening balance as of 2015 rebasing year x WACC X # of years of rate rider disposition period
A42: * Please note that the calculation should be adjusted once WACC is updated and finalized in the rate application.
A43: 3 The PP&E deferral account is cleared by including the total balance in the deferral and variance account rate rider calculation.
A44: 4 Net additions are additions net of disposals; Net depreciation is additions to depreciation net of disposals.

Sheet App.2-EB_Account 1576 (2012)
I1: File Number: | J1: =EBNUMBER -> EB-2014-0099
I2: Exhibit: | J2: 9
I4: Date: | J4: ='App.2-AA_Capital Projects'!$I$4 -> 2014-12-12
A6: Appendix 2-EB
A7: Account 1576 - Accounting Changes under CGAAP
A8: 2012 Changes in Accounting Policies under CGAAP
A10: For applicants that made capitalization and depreciation expense accounting policy changes under CGAAP effective January 1, 2012
B14: =RebaseYear &" Rebasing Year" -> 2010 Rebasing Year | C14: 2011 | D14: 2012 | E14: 2013 | F14: 2014 | G14: 2015 Rebasing Year
A15: Reporting Basis | B15: CGAAP | C15: IRM | D15: IRM | E15: IRM | F15: IRM | G15: MIFRS
B16: Forecast | C16: Actual | D16: Actual | E16: Actual | F16: Forecast | G16: Forecast
D17: $ | F17: $ | G17: $
A18: PP&E Values under former CGAAP
A19: Opening net PP&E - Note 1 | D19: 41679602.97 | E19: =+D22 -> 43134898.24 | F19: =+E22 -> 45262124.38
A20: Net Additions - Note 4 | D20: 4325372.29 | E20: 5279054.788 | F20: 6803395.994
A21: Net Depreciation (amounts should be negative) - Note 4 | D21: -2870077.02 | E21: -3151828.644 | F21: -2114766.199
A22: Closing net PP&E (1) | D22: =D19+D20+D21 -> 43134898.24 | E22: =E19+E20+E21 -> 45262124.38 | F22: =F19+F20+F21 -> 49950754.18
A24: PP&E Values under revised CGAAP (Starts from 2012)
A25: Opening net PP&E - Note 1 | D25: 41679602.97 | E25: =+D28 -> 44268318.81 | F25: =+E28 -> 47568985.49
A26: Net Additions - Note 4 | D26: 4325372.29 | E26: 5279054.788 | F26: 6803395.994
A27: Net Depreciation (amounts should be negative) - Note 4 | D27: -1736656.452 | E27: -1978388.108 | F27: -969172.3232
A28: Closing net PP&E (2) | D28: =SUM(D25:D27) -> 44268318.81 | E28: =SUM(E25:E27) -> 47568985.49 | F28: =SUM(F25:F27) -> 53403209.16
A30: Difference in Closing net PP&E, former CGAAP vs. revised CGAAP | D30: =D22-D28 -> -1133420.568 | E30: =E22-E28 -> -2306861.104 | F30: =F22-F28 -> -3452454.98
A33: Effect on Deferral and Variance Account Rate Riders
A34: Closing balance in Account 1576 | G34: =IF(ISERROR(F30), 0, F30) -> -3452454.98 | I34: WACC | J34: 0.068
A35: Return on Rate Base Associated with Account 1576 balance at WACC - Note 2 | G35: =F30*J34*J35 -> -234766.9386 | H35: # of years of rate rider disposition period | J35: 1
A36: Amount included in Deferral and Variance Account Rate Rider Calculation | G36: =G34+G35 -> -3687221.919
A38: Notes:
A39: 1 For an applicant that made the capitalization and depreciation expense accounting policy changes on January 1, 2012, the PP&E values as of January 1, 2012 under both former CGAAP and revised CGAAP should be the same.
A40: 2 Return on rate base associated with Account 1576 balance is calculated as:
A41: the variance account opening balance as of 2015 rebasing year x WACC X # of years of rate rider disposition period
A42: * Please note that the calculation should be adjusted once WACC is updated and finalized in the rate application.
A43: 3 Account 1576 is cleared by including the total balance in the deferral and variance account rate rider calculation.
A44: 4 Net additions are additions net of disposals; Net depreciation is additions to depreciation net of disposals.

Sheet App.2-FA Proposed REG Invest.
D5: Not Applicable for EB-2014-0099
A9: Appendix 2-FA
A10: Renewable Generation Connection Investment Summary (past investments or over the future rate setting period)
A12: Enter the details of the Renewable Generation Connection projects as described in the appropriate section of the Filing Requirements.
A13: All costs entered on this page will be transferred to the appropriate cells in the appendices that follow.
A14: For Part A, Renewable Enabling Improvements (REI), these amounts will be transferred to Appendix 2 - FB
A15: For Part B, Expansions, these amounts will be transferred to Appendix 2 - FC
A17: If there are more than five projects proposed to be in-service in a certain year, please amend the tables below and ensure that the formulae for the Total Amounts in any given rate year are updated.
A18: Based on the current methodology and allocation, amounts allocated represent 6% for REI Connection Investments and 17% for Expansion Investments. (pg 15, EB-2009-0349)
A20: There are two scenarios described below. Separate sets of spreadsheets (2-FA, 2-FB, 2-FC) should be submited for each scenario as required.
A21: Scenario 1: Past Investments with No Recovery. The distributor has made investments in the past (during the IRM Years), but has not received approval for these projects and therefore did not receive
A22: revenue from the IESO under Regulation 330/09 and did not receive ratepayer revenue for the direct benefit portion of the investment.
A23: The WCA percentage, debt percentages, interest rates, kWh, tax rates, amortization period, CCA Class and percentage should correspond to the distributor's last Cost of Service approval.
A24: The Direct Benefit portion of the calculated Revenue Requirement for each year should be summed and can be applied for recovery from the distributor's ratepayers through a rate rider.
A25: The Provincial Recovery portion of the calculated Revenue Requirement for each year should be summed and can be applied for recovery from the IESO through a separate order.
A27: Scenario 2: Investments in the Test Year and Beyond. Distributor plans to make investments in 2015 and/or beyond. These investments should be added to 2-FA in the appropriate year.
A28: The WCA percentage, debt percentages, interest rates, kWh, tax rates, amortization period, CCA Class and percentage should correspond to the distributor's current application.
A30: Part A
A31: REI Investments (Direct Benefit at 6%) | C31: 2011 | D31: 2012 | E31: 2013 | F31: 2014 | G31: 2015 | H31: =G31+1 -> 2016 | I31: =H31+1 -> 2017 | J31: 2018 | K31: 2019
A32: Project 1
A33: Name: REI Connection Project
A34: Capital Costs | C34: 0 | D34: 0 | E34: 0 | F34: 0 | G34: 0 | H34: 0 | I34: 0 | J34: 0 | K34: 0
A35: OM&A (Start-Up) | C35: 0 | D35: 0 | E35: 0 | F35: 0 | G35: 0 | H35: 0 | I35: 0 | J35: 0 | K35: 0
A36: OM&A (Ongoing) | C36: 0 | D36: 0 | E36: 0 | F36: 0 | G36: 0 | H36: 0 | I36: 0 | J36: 0 | K36: 0
A38: Project 2
A39: Name: REI Connection Project
A40: Capital Costs | C40: 0 | D40: 0 | E40: 0 | F40: 0 | G40: 0 | H40: 0 | I40: 0 | J40: 0 | K40: 0
A41: OM&A (Start-Up) | C41: 0 | D41: 0 | E41: 0 | F41: 0 | G41: 0 | H41: 0 | I41: 0 | J41: 0 | K41: 0
A42: OM&A (Ongoing) | C42: 0 | D42: 0 | E42: 0 | F42: 0 | G42: 0 | H42: 0 | I42: 0 | J42: 0 | K42: 0
A44: Project 3
A45: Name: REI Connection Project
A46: Capital Costs | C46: 0 | D46: 0 | E46: 0 | F46: 0 | G46: 0 | H46: 0 | I46: 0 | J46: 0 | K46: 0
A47: OM&A (Start-Up) | C47: 0 | D47: 0 | E47: 0 | F47: 0 | G47: 0 | H47: 0 | I47: 0 | J47: 0 | K47: 0
A48: OM&A (Ongoing) | C48: 0 | D48: 0 | E48: 0 | F48: 0 | G48: 0 | H48: 0 | I48: 0 | J48: 0 | K48: 0
A50: Project 4
A51: Name: REI Connection Project
A52: Capital Costs | C52: 0 | D52: 0 | E52: 0 | F52: 0 | G52: 0 | H52: 0 | I52: 0 | J52: 0 | K52: 0
A53: OM&A (Start-Up) | C53: 0 | D53: 0 | E53: 0 | F53: 0 | G53: 0 | H53: 0 | I53: 0 | J53: 0 | K53: 0
A54: OM&A (Ongoing) | C54: 0 | D54: 0 | E54: 0 | F54: 0 | G54: 0 | H54: 0 | I54: 0 | J54: 0 | K54: 0
A56: Project 5
A57: Name: REI Connection Project
A58: Capital Costs | C58: 0 | D58: 0 | E58: 0 | F58: 0 | G58: 0 | H58: 0 | I58: 0 | J58: 0 | K58: 0
A59: OM&A (Start-Up) | C59: 0 | D59: 0 | E59: 0 | F59: 0 | G59: 0 | H59: 0 | I59: 0 | J59: 0 | K59: 0
A60: OM&A (Ongoing) | C60: 0 | D60: 0 | E60: 0 | F60: 0 | G60: 0 | H60: 0 | I60: 0 | J60: 0 | K60: 0
A62: Total Capital Costs | C62: =SUM(C58,C52,C46,C40,C34) -> 0 | D62: 0 | E62: 0 | F62: 0 | G62: =SUM(G58,G52,G46,G40,G34) -> 0 | H62: =SUM(H58,H52,H46,H40,H34) -> 0 | I62: 0 | J62: 0 | K62: 0
A63: Total OM&A (Start-Up) | C63: 0 | D63: 0 | E63: 0 | F63: 0 | G63: =SUM(G59,G53,G47,G41,G35) -> 0 | H63: 0 | I63: 0 | J63: 0 | K63: 0
A64: Total OM&A (Ongoing) | C64: 0 | D64: 0 | E64: 0 | F64: 0 | G64: =SUM(G60,G54,G48,G42,G36) -> 0 | H64: 0 | I64: 0 | J64: 0 | K64: 0
A67: Part B
A68: Expansion Investments (Direct Benefit at 17%) | C68: 2011 | D68: 2012 | E68: 2013 | F68: 2014 | G68: 2015 | H68: =G68+1 -> 2016 | I68: =H68+1 -> 2017 | J68: 2018 | K68: 2019
A69: Project 1
A70: Name: Expansion Connection Project
A71: Capital Costs | C71: 0 | D71: 0 | E71: 0 | F71: 0 | G71: 0 | H71: 0 | I71: 0 | J71: 0 | K71: 0
A72: OM&A (Start-Up) | C72: 0 | D72: 0 | E72: 0 | F72: 0 | G72: 0 | H72: 0 | I72: 0 | J72: 0 | K72: 0
A73: OM&A (Ongoing) | C73: 0 | D73: 0 | E73: 0 | F73: 0 | G73: 0 | H73: 0 | I73: 0 | J73: 0 | K73: 0
A75: Project 2
A76: Name: Expansion Connection Project
A77: Capital Costs | C77: 0 | D77: 0 | E77: 0 | F77: 0 | G77: 0 | H77: 0 | I77: 0 | J77: 0 | K77: 0
A78: OM&A (Start-Up) | C78: 0 | D78: 0 | E78: 0 | F78: 0 | G78: 0 | H78: 0 | I78: 0 | J78: 0 | K78: 0
A79: OM&A (Ongoing) | C79: 0 | D79: 0 | E79: 0 | F79: 0 | G79: 0 | H79: 0 | I79: 0 | J79: 0 | K79: 0
A81: Project 3
A82: Name: Expansion Connection Project
A83: Capital Costs | C83: 0 | D83: 0 | E83: 0 | F83: 0 | G83: 0 | H83: 0 | I83: 0 | J83: 0 | K83: 0
A84: OM&A (Start-Up) | C84: 0 | D84: 0 | E84: 0 | F84: 0 | G84: 0 | H84: 0 | I84: 0 | J84: 0 | K84: 0
A85: OM&A (Ongoing) | C85: 0 | D85: 0 | E85: 0 | F85: 0 | G85: 0 | H85: 0 | I85: 0 | J85: 0 | K85: 0
A87: Project 4
A88: Name: Expansion Connection Project
A89: Capital Costs | C89: 0 | D89: 0 | E89: 0 | F89: 0 | G89: 0 | H89: 0 | I89: 0 | J89: 0 | K89: 0
A90: OM&A (Start-Up) | C90: 0 | D90: 0 | E90: 0 | F90: 0 | G90: 0 | H90: 0 | I90: 0 | J90: 0 | K90: 0
A91: OM&A (Ongoing) | C91: 0 | D91: 0 | E91: 0 | F91: 0 | G91: 0 | H91: 0 | I91: 0 | J91: 0 | K91: 0
A93: Project 5
A94: Name: Expansion Connection Project
A95: Capital Costs | C95: 0 | D95: 0 | E95: 0 | F95: 0 | G95: 0 | H95: 0 | I95: 0 | J95: 0 | K95: 0
A96: OM&A (Start-Up) | C96: 0 | D96: 0 | E96: 0 | F96: 0 | G96: 0 | H96: 0 | I96: 0 | J96: 0 | K96: 0
A97: OM&A (Ongoing) | C97: 0 | D97: 0 | E97: 0 | F97: 0 | G97: 0 | H97: 0 | I97: 0 | J97: 0 | K97: 0
A99: Total Capital Costs | C99: =SUM(C95,C89,C83,C77,C71) -> 0 | D99: 0 | E99: 0 | F99: 0 | G99: =SUM(G95,G89,G83,G77,G71) -> 0 | H99: =SUM(H95,H89,H83,H77,H71) -> 0 | I99: 0 | J99: 0 | K99: 0
A100: Total OM&A (Start-Up) | C100: 0 | D100: 0 | E100: 0 | F100: 0 | G100: =SUM(G96,G90,G84,G78,G72) -> 0 | H100: 0 | I100: 0 | J100: 0 | K100: 0
A101: Total OM&A (Ongoing) | C101: 0 | D101: 0 | E101: 0 | F101: 0 | G101: =SUM(G97,G91,G85,G79,G73) -> 0 | H101: 0 | I101: 0 | J101: 0 | K101: 0

Sheet App.2-FB Calc of REG Improvemnt
G5: Not Applicable for EB-2014-0099
A9: Appendix 2-FB
A10: Calculation of Renewable Generation Connection Direct Benefits/Provincial Amount: Renewable Enabling Improvement Investments
A12: This table will calculate the distributor/provincial shares of the investments entered in Part A of Appendix 2-FA.
A13: Enter values in green shaded cells: WCA percentage, debt percentages, interest rates, kWh, tax rates, amortization period, CCA Class and percentage.
A14: For historical investments, enter these variables for your last cost of service test year. For 2015 and beyond, enter variables as in the application.
A15: Rate Riders are not calculated for Test Year as these assets and costs are already in the distributor's rate base/revenue requirement.
C17: 2011 | F17: 2012 | I17: 2013 | L17: 2014 | O17: 2015 Test Year | R17: 2016 | U17: 2017 | V17: 2016 | X17: 2018 | AA17: 2019
D18: Direct Benefit | E18: Provincial | G18: Direct Benefit | H18: Provincial | J18: Direct Benefit | K18: Provincial | M18: Direct Benefit | N18: Provincial | P18: Direct Benefit | Q18: Provincial | S18: Direct Benefit | T18: Provincial | V18: Direct Benefit | W18: Provincial | Y18: Direct Benefit | Z18: Provincial | AB18: Direct Benefit | AC18: Provincial
C19: Total | D19: 0.06 | E19: 0.94 | F19: Total | G19: 0.06 | H19: 0.94 | I19: Total | J19: 0.06 | K19: 0.94 | L19: Total | M19: 0.06 | N19: 0.94 | O19: Total | P19: 0.06 | Q19: 0.94 | R19: Total | S19: 0.06 | T19: 0.94 | U19: Total | V19: 0.06 | W19: 0.94 | X19: Total | Y19: 0.06 | Z19: 0.94 | AA19: Total | AB19: 0.06 | AC19: 0.94
A20: Net Fixed Assets (average) | C20: =D82 -> 0 | D20: =C20*D19 -> 0 | E20: =C20*E19 -> 0 | F20: =E82 -> 0 | G20: =F20*G19 -> 0 | H20: =F20*H19 -> 0 | I20: =F82 -> 0 | J20: =I20*J19 -> 0 | K20: =I20*K19 -> 0 | L20: =G82 -> 0 | M20: =L20*M19 -> 0 | N20: =L20*N19 -> 0 | O20: =H82 -> 0 | P20: =O20*P19 -> 0 | Q20: =O20*Q19 -> 0 | R20: =I82 -> 0 | S20: =R20*S19 -> 0 | T20: =R20*T19 -> 0 | U20: =J82 -> 0 | V20: =U20*V19 -> 0 | W20: =U20*W19 -> 0 | X20: =K82 -> 0 | Y20: =X20*Y19 -> 0 | Z20: =X20*Z19 -> 0 | AA20: =L82 -> 0 | AB20: =AA20*AB19 -> 0 | AC20: =AA20*AC19 -> 0
A21: Incremental OM&A (on-going, N/A for Provincial Recovery) | C21: ='App.2-FA Proposed REG Invest.'!C64 -> 0 | D21: =C21 -> 0 | F21: ='App.2-FA Proposed REG Invest.'!D64 -> 0 | G21: =F21 -> 0 | I21: ='App.2-FA Proposed REG Invest.'!E64 -> 0 | J21: =I21 -> 0 | L21: ='App.2-FA Proposed REG Invest.'!F64 -> 0 | M21: =L21 -> 0 | O21: ='App.2-FA Proposed REG Invest.'!G64 -> 0 | P21: =O21 -> 0 | R21: ='App.2-FA Proposed REG Invest.'!H64 -> 0 | S21: =R21 -> 0 | U21: ='App.2-FA Proposed REG Invest.'!I64 -> 0 | V21: =U21 -> 0 | X21: ='App.2-FA Proposed REG Invest.'!J64 -> 0 | Y21: =X21 -> 0 | AA21: ='App.2-FA Proposed REG Invest.'!K64 -> 0 | AB21: =AA21 -> 0
A22: Incremental OM&A (start-up, applicable for Provincial Recovery) | C22: ='App.2-FA Proposed REG Invest.'!C63 -> 0 | D22: =C22*D19 -> 0 | E22: =C22*E19 -> 0 | F22: ='App.2-FA Proposed REG Invest.'!D63 -> 0 | G22: =F22*G19 -> 0 | H22: =F22*H19 -> 0 | I22: ='App.2-FA Proposed REG Invest.'!E63 -> 0 | J22: =I22*J19 -> 0 | K22: =I22*K19 -> 0 | L22: ='App.2-FA Proposed REG Invest.'!F63 -> 0 | M22: =L22*M19 -> 0 | N22: =L22*N19 -> 0 | O22: ='App.2-FA Proposed REG Invest.'!G63 -> 0 | P22: =O22*P19 -> 0 | Q22: =O22*Q19 -> 0 | R22: ='App.2-FA Proposed REG Invest.'!H63 -> 0 | S22: =R22*S19 -> 0 | T22: =R22*T19 -> 0 | U22: ='App.2-FA Proposed REG Invest.'!I63 -> 0 | V22: =U22*V19 -> 0 | W22: =U22*W19 -> 0 | X22: ='App.2-FA Proposed REG Invest.'!J63 -> 0 | Y22: =X22*Y19 -> 0 | Z22: =X22*Z19 -> 0 | AA22: ='App.2-FA Proposed REG Invest.'!K63 -> 0 | AB22: =AA22*AB19 -> 0 | AC22: =AA22*AC19 -> 0
A23: WCA | D23: =(D21+D22)*$B$23 -> 0 | E23: =E22*$B$23 -> 0 | G23: =(G21+G22)*$B$23 -> 0 | H23: =H22*$B$23 -> 0 | J23: =(J21+J22)*$B$23 -> 0 | K23: =K22*$B$23 -> 0 | M23: =(M21+M22)*$B$23 -> 0 | N23: =N22*$B$23 -> 0 | P23: =(P21+P22)*$B$23 -> 0 | Q23: =Q22*$B$23 -> 0 | S23: =(S21+S22)*$B$23 -> 0 | T23: =T22*$B$23 -> 0 | V23: =(V21+V22)*$B$23 -> 0 | W23: =W22*$B$23 -> 0 | Y23: =(Y21+Y22)*$B$23 -> 0 | Z23: =Z22*$B$23 -> 0 | AB23: =(AB21+AB22)*$B$23 -> 0 | AC23: =AC22*$B$23 -> 0
A24: Rate Base | D24: =SUM(D20+D23) -> 0 | E24: =SUM(E20+E23) -> 0 | G24: =SUM(G20+G23) -> 0 | H24: =SUM(H20+H23) -> 0 | J24: =SUM(J20+J23) -> 0 | K24: =SUM(K20+K23) -> 0 | M24: =SUM(M20+M23) -> 0 | N24: =SUM(N20+N23) -> 0 | P24: =SUM(P20+P23) -> 0 | Q24: =SUM(Q20+Q23) -> 0 | S24: =SUM(S20+S23) -> 0 | T24: =SUM(T20+T23) -> 0 | V24: =SUM(V20+V23) -> 0 | W24: =SUM(W20+W23) -> 0 | Y24: =SUM(Y20+Y23) -> 0 | Z24: =SUM(Z20+Z23) -> 0 | AB24: =SUM(AB20+AB23) -> 0 | AC24: =SUM(AC20+AC23) -> 0
A27: Deemed ST Debt | D27: =D24*$B$27 -> 0 | E27: =E24*$B$27 -> 0 | G27: =G24*$B$27 -> 0 | H27: =H24*$B$27 -> 0 | J27: =J24*$B$27 -> 0 | K27: =K24*$B$27 -> 0 | M27: =M24*$B$27 -> 0 | N27: =N24*$B$27 -> 0 | P27: =P24*$B$27 -> 0 | Q27: =Q24*$B$27 -> 0 | S27: =S24*$B$27 -> 0 | T27: =T24*$B$27 -> 0 | V27: =V24*$B$27 -> 0 | W27: =W24*$B$27 -> 0 | Y27: =Y24*$B$27 -> 0 | Z27: =Z24*$B$27 -> 0 | AB27: =AB24*$B$27 -> 0 | AC27: =AC24*$B$27 -> 0
A28: Deemed LT Debt | D28: =D24*$B$28 -> 0 | E28: =E24*$B$28 -> 0 | G28: =G24*$B$28 -> 0 | H28: =H24*$B$28 -> 0 | J28: =J24*$B$28 -> 0 | K28: =K24*$B$28 -> 0 | M28: =M24*$B$28 -> 0 | N28: =N24*$B$28 -> 0 | P28: =P24*$B$28 -> 0 | Q28: =Q24*$B$28 -> 0 | S28: =S24*$B$28 -> 0 | T28: =T24*$B$28 -> 0 | V28: =V24*$B$28 -> 0 | W28: =W24*$B$28 -> 0 | Y28: =Y24*$B$28 -> 0 | Z28: =Z24*$B$28 -> 0 | AB28: =AB24*$B$28 -> 0 | AC28: =AC24*$B$28 -> 0
A29: Deemed Equity | D29: =D24*$B$29 -> 0 | E29: =E24*$B$29 -> 0 | G29: =G24*$B$29 -> 0 | H29: =H24*$B$29 -> 0 | J29: =J24*$B$29 -> 0 | K29: =K24*$B$29 -> 0 | M29: =M24*$B$29 -> 0 | N29: =N24*$B$29 -> 0 | P29: =P24*$B$29 -> 0 | Q29: =Q24*$B$29 -> 0 | S29: =S24*$B$29 -> 0 | T29: =T24*$B$29 -> 0 | V29: =V24*$B$29 -> 0 | W29: =W24*$B$29 -> 0 | Y29: =Y24*$B$29 -> 0 | Z29: =Z24*$B$29 -> 0 | AB29: =AB24*$B$29 -> 0 | AC29: =AC24*$B$29 -> 0
A31: ST Interest | D31: =D27*$B31 -> 0 | E31: =E27*$B31 -> 0 | G31: =G27*$B31 -> 0 | H31: =H27*$B31 -> 0 | J31: =J27*$B31 -> 0 | K31: =K27*$B31 -> 0 | M31: =M27*$B31 -> 0 | N31: =N27*$B31 -> 0 | P31: =P27*$B31 -> 0 | Q31: =Q27*$B31 -> 0 | S31: =S27*$B31 -> 0 | T31: =T27*$B31 -> 0 | V31: =V27*$B31 -> 0 | W31: =W27*$B31 -> 0 | Y31: =Y27*$B31 -> 0 | Z31: =Z27*$B31 -> 0 | AB31: =AB27*$B31 -> 0 | AC31: =AC27*$B31 -> 0
A32: LT Interest | D32: =D28*$B32 -> 0 | E32: 0 | G32: =G28*$B32 -> 0 | H32: 0 | J32: =J28*$B32 -> 0 | K32: 0 | M32: =M28*$B32 -> 0 | N32: 0 | P32: =P28*$B32 -> 0 | Q32: 0 | S32: =S28*$B32 -> 0 | T32: 0 | V32: =V28*$B32 -> 0 | W32: 0 | Y32: =Y28*$B32 -> 0 | Z32: 0 | AB32: =AB28*$B32 -> 0 | AC32: 0
A33: ROE | D33: 0 | E33: 0 | G33: 0 | H33: 0 | J33: 0 | K33: 0 | M33: 0 | N33: 0 | P33: 0 | Q33: 0 | S33: 0 | T33: 0 | V33: 0 | W33: 0 | Y33: 0 | Z33: 0 | AB33: 0 | AC33: 0
A34: Cost of Capital Total | D34: =SUM(D31:D33) -> 0 | E34: =SUM(E31:E33) -> 0 | G34: =SUM(G31:G33) -> 0 | H34: =SUM(H31:H33) -> 0 | J34: =SUM(J31:J33) -> 0 | K34: =SUM(K31:K33) -> 0 | M34: =SUM(M31:M33) -> 0 | N34: =SUM(N31:N33) -> 0 | P34: =SUM(P31:P33) -> 0 | Q34: =SUM(Q31:Q33) -> 0 | S34: =SUM(S31:S33) -> 0 | T34: =SUM(T31:T33) -> 0 | V34: =SUM(V31:V33) -> 0 | W34: =SUM(W31:W33) -> 0 | Y34: =SUM(Y31:Y33) -> 0 | Z34: =SUM(Z31:Z33) -> 0 | AB34: =SUM(AB31:AB33) -> 0 | AC34: =SUM(AC31:AC33) -> 0
A36: OM&A | D36: =D21+D22 -> 0 | E36: =E22 -> 0 | G36: =G21+G22 -> 0 | H36: =H22 -> 0 | J36: =J21+J22 -> 0 | K36: =K22 -> 0 | M36: =M21+M22 -> 0 | N36: =N22 -> 0 | P36: =P21+P22 -> 0 | Q36: =Q22 -> 0 | S36: =S21+S22 -> 0 | T36: =T22 -> 0 | V36: =V21+V22 -> 0 | W36: =W22 -> 0 | Y36: =Y21+Y22 -> 0 | Z36: =Z22 -> 0 | AB36: =AB21+AB22 -> 0 | AC36: =AC22 -> 0
A37: Amortization | C37: =D77 -> 0 | D37: =C37*D$19 -> 0 | E37: =C37*E$19 -> 0 | F37: =E77 -> 0 | G37: =F37*G$19 -> 0 | H37: =F37*H$19 -> 0 | I37: =F77 -> 0 | J37: =I37*J$19 -> 0 | K37: =I37*K$19 -> 0 | L37: =G77 -> 0 | M37: =L37*M$19 -> 0 | N37: =L37*N$19 -> 0 | O37: =H77 -> 0 | P37: =O37*P$19 -> 0 | Q37: =O37*Q$19 -> 0 | R37: =I76+I77 -> 0 | S37: =R37*S$19 -> 0 | T37: =R37*T$19 -> 0 | U37: =J76+J77 -> 0 | V37: =U37*V$19 -> 0 | W37: =U37*W$19 -> 0 | X37: =K76+K77 -> 0 | Y37: =X37*Y$19 -> 0 | Z37: =X37*Z$19 -> 0 | AA37: =L76+L77 -> 0 | AB37: =AA37*AB$19 -> 0 | AC37: =AA37*AC$19 -> 0
A38: Grossed-up PILs | D38: =D65 -> 0 | E38: =E65 -> 0 | G38: =G65 -> 0 | H38: =H65 -> 0 | J38: =J65 -> 0 | K38: =K65 -> 0 | M38: =M65 -> 0 | N38: =N65 -> 0 | P38: =P65 -> 0 | Q38: =Q65 -> 0 | S38: =S65 -> 0 | T38: =T65 -> 0 | V38: =V65 -> 0 | W38: =W65 -> 0 | Y38: =Y65 -> 0 | Z38: =Z65 -> 0 | AB38: =AB65 -> 0 | AC38: =AC65 -> 0
A40: Revenue Requirement | D40: =SUM(D34:D38) -> 0 | E40: =SUM(E34:E38) -> 0 | G40: =SUM(G34:G38) -> 0 | H40: =SUM(H34:H38) -> 0 | J40: =SUM(J34:J38) -> 0 | K40: =SUM(K34:K38) -> 0 | M40: =SUM(M34:M38) -> 0 | N40: =SUM(N34:N38) -> 0 | P40: =SUM(P34:P38) -> 0 | Q40: =SUM(Q34:Q38) -> 0 | S40: =SUM(S34:S38) -> 0 | T40: =SUM(T34:T38) -> 0 | V40: =SUM(V34:V38) -> 0 | W40: =SUM(W34:W38) -> 0 | Y40: =SUM(Y34:Y38) -> 0 | Z40: =SUM(Z34:Z38) -> 0 | AB40: =SUM(AB34:AB38) -> 0 | AC40: =SUM(AC34:AC38) -> 0
A43: Provincial Rate Protection | E43: =E40 -> 0 | H43: =H40 -> 0 | K43: =K40 -> 0 | N43: =N40 -> 0 | Q43: =Q40 -> 0 | T43: =T40 -> 0 | W43: =W40 -> 0 | Z43: =Z40 -> 0 | AC43: =AC40 -> 0
A45: Monthly Amount Paid by IESO | E45: =E43/12 -> 0 | H45: =H43/12 -> 0 | K45: =K43/12 -> 0 | N45: =N43/12 -> 0 | Q45: =Q43/12 -> 0 | T45: =T43/12 -> 0 | W45: =W43/12 -> 0 | Z45: =Z43/12 -> 0 | AC45: =AC43/12 -> 0
A47: Note 1: The difference between the actual costs of approved eligible investments and revenue received from the IESO should be recorded in a variance account. The Board may provide
A48: regulatory accounting guidance regarding a variance account either in an individual proceeding or on a generic basis.
A49: Note 2: For the 2015 Test Year, Costs and Revenues of the Direct Benefit are to be included in the test year applicant Rate Base and Revenues.
A51: PILs Calculation
D52: 2011 | G52: 2012 | J52: 2013 | M52: 2014 | P52: 2015 | S52: =P52+1 -> 2016 | V52: =S52+1 -> 2017 | Y52: =V52+1 -> 2018 | AB52: =Y52+1 -> 2019
A53: Income Tax | D53: Direct Benefit | E53: Provincial | G53: Direct Benefit | H53: Provincial | J53: Direct Benefit | K53: Provincial | M53: Direct Benefit | N53: Provincial | P53: Direct Benefit | Q53: Provincial | S53: Direct Benefit | T53: Provincial | V53: Direct Benefit | W53: Provincial | Y53: Direct Benefit | Z53: Provincial | AB53: Direct Benefit | AC53: Provincial
X54: Total | AA54: Total
A55: Net Income - ROE on Rate Base | D55: =D33 -> 0 | E55: =E33 -> 0 | G55: =G33 -> 0 | H55: =H33 -> 0 | J55: =J33 -> 0 | K55: =K33 -> 0 | M55: =M33 -> 0 | N55: =N33 -> 0 | P55: =P33 -> 0 | Q55: =Q33 -> 0 | S55: =S33 -> 0 | T55: =T33 -> 0 | V55: =V33 -> 0 | W55: =W33 -> 0 | Y55: =Y33 -> 0 | Z55: =Z33 -> 0 | AB55: =AB33 -> 0 | AC55: =AC33 -> 0
A56: Amortization (6% DB and 94% P) | D56: =D37 -> 0 | E56: =E37 -> 0 | G56: =G37 -> 0 | H56: =H37 -> 0 | J56: =J37 -> 0 | K56: =K37 -> 0 | M56: =M37 -> 0 | N56: =N37 -> 0 | P56: =P37 -> 0 | Q56: =Q37 -> 0 | S56: =S37 -> 0 | T56: =T37 -> 0 | V56: =V37 -> 0 | W56: =W37 -> 0 | Y56: =Y37 -> 0 | Z56: =Z37 -> 0 | AB56: =AB37 -> 0 | AC56: =AC37 -> 0
A57: CCA (6% DB and 94% P) | D57: =-D94*D$19 -> 0 | E57: =-D94*E$19 -> 0 | G57: =-E94*G19 -> 0 | H57: =-E94*H$19 -> 0 | J57: =-F94*J$19 -> 0 | K57: =-F94*K$19 -> 0 | M57: =-G94*M$19 -> 0 | N57: =-G94*N$19 -> 0 | P57: =-H94*P$19 -> 0 | Q57: =-H94*Q$19 -> 0 | S57: =-I94*S$19 -> 0 | T57: =-I94*T$19 -> 0 | V57: =-J94*V$19 -> 0 | W57: =-J94*W$19 -> 0 | Y57: =-K94*Y$19 -> 0 | Z57: =-K94*Z$19 -> 0 | AB57: =-L94*AB$19 -> 0 | AC57: =-L94*AC$19 -> 0
A58: Taxable income | D58: =SUM(D55:D57) -> 0 | E58: =SUM(E55:E57) -> 0 | G58: =SUM(G55:G57) -> 0 | H58: =SUM(H55:H57) -> 0 | J58: =SUM(J55:J57) -> 0 | K58: =SUM(K55:K57) -> 0 | M58: =SUM(M55:M57) -> 0 | N58: =SUM(N55:N57) -> 0 | P58: =SUM(P55:P57) -> 0 | Q58: =SUM(Q55:Q57) -> 0 | S58: =SUM(S55:S57) -> 0 | T58: =SUM(T55:T57) -> 0 | V58: =SUM(V55:V57) -> 0 | W58: =SUM(W55:W57) -> 0 | Y58: =SUM(Y55:Y57) -> 0 | Z58: =SUM(Z55:Z57) -> 0 | AB58: =SUM(AB55:AB57) -> 0 | AC58: =SUM(AC55:AC57) -> 0
A60: Tax Rate (to be entered)
A62: Income Taxes Payable | D62: =D58*D60 -> 0 | E62: =E58*E60 -> 0 | G62: =G58*G60 -> 0 | H62: =H58*H60 -> 0 | J62: =J58*J60 -> 0 | K62: =K58*K60 -> 0 | M62: =M58*M60 -> 0 | N62: =N58*N60 -> 0 | P62: =P58*P60 -> 0 | Q62: =Q58*Q60 -> 0 | S62: =S58*S60 -> 0 | T62: =T58*T60 -> 0 | V62: =V58*V60 -> 0 | W62: =W58*W60 -> 0 | Y62: =Y58*Y60 -> 0 | Z62: =Z58*Z60 -> 0 | AB62: =AB58*AB60 -> 0 | AC62: =AC58*AC60 -> 0
A63: Gross Up
A64: Income Taxes Payable | D64: =D62/(1-D60) -> 0 | E64: =E62/(1-E60) -> 0 | G64: =G62/(1-G60) -> 0 | H64: =H62/(1-H60) -> 0 | J64: =J62/(1-J60) -> 0 | K64: =K62/(1-K60) -> 0 | M64: =M62/(1-M60) -> 0 | N64: =N62/(1-N60) -> 0 | P64: =P62/(1-P60) -> 0 | Q64: =Q62/(1-Q60) -> 0 | S64: =S62/(1-S60) -> 0 | T64: =T62/(1-T60) -> 0 | V64: =V62/(1-V60) -> 0 | W64: =W62/(1-W60) -> 0 | Y64: =Y62/(1-Y60) -> 0 | Z64: =Z62/(1-Z60) -> 0 | AB64: =AB62/(1-AB60) -> 0 | AC64: =AC62/(1-AC60) -> 0
A65: Grossed Up PILs | D65: =SUM(D64:D64) -> 0 | E65: =SUM(E64:E64) -> 0 | G65: =SUM(G64:G64) -> 0 | H65: =SUM(H64:H64) -> 0 | J65: =SUM(J64:J64) -> 0 | K65: =SUM(K64:K64) -> 0 | M65: =SUM(M64:M64) -> 0 | N65: =SUM(N64:N64) -> 0 | P65: =SUM(P64:P64) -> 0 | Q65: =SUM(Q64:Q64) -> 0 | S65: =SUM(S64:S64) -> 0 | T65: =SUM(T64:T64) -> 0 | V65: =SUM(V64:V64) -> 0 | W65: =SUM(W64:W64) -> 0 | Y65: =SUM(Y64:Y64) -> 0 | Z65: =SUM(Z64:Z64) -> 0 | AB65: =SUM(AB64:AB64) -> 0 | AC65: =SUM(AC64:AC64) -> 0
D68: 2011 | E68: 2012 | F68: 2013 | G68: 2014 | H68: 2015 | I68: =H68+1 -> 2016 | J68: =I68+1 -> 2017 | K68: 2018 | L68: 2019
A69: Net Fixed Assets
B70: Enter applicable amortization in years: | C70: 25
A71: Opening Gross Fixed Assets | E71: =D73 -> 0 | F71: 0 | G71: 0 | H71: 0 | I71: =H73 -> 0 | J71: =I73 -> 0 | K71: =J73 -> 0 | L71: =K73 -> 0
A72: Gross Capital Additions | D72: ='App.2-FA Proposed REG Invest.'!C62 -> 0 | E72: ='App.2-FA Proposed REG Invest.'!D62 -> 0 | F72: ='App.2-FA Proposed REG Invest.'!E62 -> 0 | G72: ='App.2-FA Proposed REG Invest.'!F62 -> 0 | H72: ='App.2-FA Proposed REG Invest.'!G62 -> 0 | I72: ='App.2-FA Proposed REG Invest.'!H62 -> 0 | J72: ='App.2-FA Proposed REG Invest.'!I62 -> 0 | K72: ='App.2-FA Proposed REG Invest.'!J62 -> 0 | L72: ='App.2-FA Proposed REG Invest.'!K62 -> 0
A73: Closing Gross Fixed Assets | D73: =SUM(D71:D72) -> 0 | E73: 0 | F73: 0 | G73: 0 | H73: =SUM(H71:H72) -> 0 | I73: =SUM(I71:I72) -> 0 | J73: 0 | K73: 0 | L73: 0
A75: Opening Accumulated Amortization | E75: =+D78 -> 0 | F75: =E78 -> 0 | G75: 0 | H75: 0 | I75: 0 | J75: 0 | K75: 0 | L75: 0
A76: Current Year Amortization (before additions) | D76: =IF(ISERROR(D71/$C$70), 0, D71/$C$70) -> 0 | E76: 0 | F76: 0 | G76: 0 | H76: 0 | I76: =IF(ISERROR(I71/$C$70), 0, I71/$C$70) -> 0 | J76: =IF(ISERROR(J71/$C$70), 0, J71/$C$70) -> 0 | K76: =IF(ISERROR(K71/$C$70), 0, K71/$C$70) -> 0 | L76: =IF(ISERROR(L71/$C$70), 0, L71/$C$70) -> 0
A77: Additions (half year) | D77: =D72/$C$70/2 -> 0 | E77: =E72/$C$70/2 -> 0 | F77: =F72/$C$70/2 -> 0 | G77: 0 | H77: =H72/$C$70/2 -> 0 | I77: =I72/C70/2 -> 0 | J77: =J72/C70/2 -> 0 | K77: =K72/C70/2 -> 0 | L77: =L72/C70/2 -> 0
A78: Closing Accumulated Amortization | D78: =SUM(D75+D76+D77) -> 0 | E78: =SUM(E75+E76+E77) -> 0 | F78: =SUM(F75+F76+F77) -> 0 | G78: =SUM(G75+G76+G77) -> 0 | H78: =SUM(H75+H76+H77) -> 0 | I78: =SUM(I75:I77) -> 0 | J78: =SUM(J75:J77) -> 0 | K78: =SUM(K75:K77) -> 0 | L78: =SUM(L75:L77) -> 0
A80: Opening Net Fixed Assets | D80: =D71-D75 -> 0 | E80: 0 | F80: =F71-F75 -> 0 | G80: 0 | H80: =H71-H75 -> 0 | I80: =H81 -> 0 | J80: =I81 -> 0 | K80: =J81 -> 0 | L80: =K81 -> 0
A81: Closing Net Fixed Assets | D81: =D73-D78 -> 0 | E81: =E73-E78 -> 0 | F81: 0 | G81: 0 | H81: =H73-H78 -> 0 | I81: =I73-I78 -> 0 | J81: =J73-J78 -> 0 | K81: =K73-K78 -> 0 | L81: =L73-L78 -> 0
A82: Average Net Fixed Assets | D82: =SUM(D80:D81)/2 -> 0 | E82: 0 | F82: 0 | G82: 0 | H82: =SUM(H80:H81)/2 -> 0 | I82: =SUM(I80:I81)/2 -> 0 | J82: =SUM(J80:J81)/2 -> 0 | K82: =SUM(K80:K81)/2 -> 0 | L82: =SUM(L80:L81)/2 -> 0
A84: UCC for PILs Calculation
D85: 2011 | E85: 2012 | F85: 2013 | G85: 2014 | H85: 2015 | I85: =H85+1 -> 2016 | J85: =I85+1 -> 2017 | K85: 2018 | L85: 2019
A87: Opening UCC | E87: =D95 -> 0 | F87: 0 | G87: 0 | H87: 0 | I87: 0 | J87: 0 | K87: 0 | L87: 0
A88: Capital Additions (from Appendix 2-FA) | D88: =D72 -> 0 | E88: 0 | F88: 0 | G88: 0 | H88: =H72 -> 0 | I88: ='App.2-FA Proposed REG Invest.'!H40 -> 0 | J88: ='App.2-FA Proposed REG Invest.'!I40 -> 0 | K88: ='App.2-FA Proposed REG Invest.'!J40 -> 0 | L88: ='App.2-FA Proposed REG Invest.'!K40 -> 0
A89: UCC Before Half Year Rule | D89: =SUM(D87:D88) -> 0 | E89: 0 | F89: 0 | G89: 0 | H89: =SUM(H87:H88) -> 0 | I89: =SUM(I87:I88) -> 0 | J89: =SUM(J87:J88) -> 0 | K89: =SUM(K87:K88) -> 0 | L89: =SUM(L87:L88) -> 0
A90: Half Year Rule (1/2 Additions - Disposals) | D90: =D88/2 -> 0 | E90: 0 | F90: 0 | G90: 0 | H90: =H88/2 -> 0 | I90: =I88/2 -> 0 | J90: =J88/2 -> 0 | K90: =K88/2 -> 0 | L90: =L88/2 -> 0
A91: Reduced UCC | D91: =D89-D90 -> 0 | E91: 0 | F91: 0 | G91: 0 | H91: =H89-H90 -> 0 | I91: =I89-I90 -> 0 | J91: =J89-J90 -> 0 | K91: =K89-K90 -> 0 | L91: =L89-L90 -> 0
A92: CCA Rate Class (to be entered) | C92: 47 | D92: =C92 -> 47 | E92: =D92 -> 47 | F92: 47 | G92: 47 | H92: 47 | I92: 47 | J92: 47 | K92: 47 | L92: 47
A93: CCA Rate (to be entered) | C93: 0.08 | D93: =C93 -> 0.08 | E93: 0.08 | F93: 0.08 | G93: 0.08 | H93: 0.08 | I93: 0.08 | J93: 0.08 | K93: 0.08 | L93: 0.08
A94: CCA | D94: =D91*D93 -> 0 | E94: 0 | F94: 0 | G94: 0 | H94: =H91*H93 -> 0 | I94: =I91*I93 -> 0 | J94: 0 | K94: 0 | L94: =L91*L93 -> 0
A95: Closing UCC | D95: =D89-D94 -> 0 | E95: 0 | F95: 0 | G95: 0 | H95: =H89-H94 -> 0 | I95: =I89-I94 -> 0 | J95: =J89-J94 -> 0 | K95: =K89-K94 -> 0 | L95: =L89-L94 -> 0

Sheet App.2-FC Calc of REG Expansion
E5: Not Applicable for EB-2014-0099
A9: Appendix 2-FC
A10: Calculation of Renewable Generation Connection Direct Benefits/Provincial Amount: Renewable Expansion Investments
A12: This table will calculate the distributor/provincial shares of the investments entered in Part B of Appendix 2-FA.
A13: Enter values in green shaded cells: WCA percentage, debt percentages, interest rates, kWh, tax rates, amortization period, CCA Class and percentage.
A14: For historical investments, enter these variables for your last cost of service test year. For 2015 and beyond, enter vaiables as in the application.
A15: Rate Riders are not calculated for Test Year as these assets and costs are already in the distributors rate base.
D18: 2011 | G18: 2012 | J18: 2013 | M18: 2014 | P18: 2015 TEST YEAR | S18: 2016 | T18: 2016 | V18: 2017 | Y18: 2018 | AB18: 2019
E19: Direct Benefit | F19: Provincial | H19: Direct Benefit | I19: Provincial | K19: Direct Benefit | L19: Provincial | N19: Direct Benefit | O19: Provincial | Q19: Direct Benefit | R19: Provincial | T19: Direct Benefit | U19: Provincial | W19: Direct Benefit | X19: Provincial | Z19: Direct Benefit | AA19: Provincial | AC19: Direct Benefit | AD19: Provincial
D20: Total | E20: 0.17 | F20: 0.83 | G20: Total | H20: 0.17 | I20: 0.83 | J20: Total | K20: 0.17 | L20: 0.83 | M20: Total | N20: 0.17 | O20: 0.83 | P20: Total | Q20: 0.17 | R20: 0.83 | S20: Total | T20: 0.17 | U20: 0.83 | V20: Total | W20: 0.17 | X20: 0.83 | Y20: Total | Z20: 0.17 | AA20: 0.83 | AB20: Total | AC20: 0.17 | AD20: 0.83
A21: Net Fixed Assets (average) | D21: =D82 -> 0 | E21: =D21*E20 -> 0 | F21: =D21*F20 -> 0 | G21: =E82 -> 0 | H21: =G21*H20 -> 0 | I21: =G21*I20 -> 0 | J21: =F82 -> 0 | K21: =J21*K20 -> 0 | L21: =J21*L20 -> 0 | M21: =G82 -> 0 | N21: =M21*N20 -> 0 | O21: =M21*O20 -> 0 | P21: =H82 -> 0 | Q21: =P21*Q20 -> 0 | R21: =P21*R20 -> 0 | S21: =I82 -> 0 | T21: =S21*T20 -> 0 | U21: =S21*U20 -> 0 | V21: =J82 -> 0 | W21: =V21*W20 -> 0 | X21: =V21*X20 -> 0 | Y21: =K82 -> 0 | Z21: =Y21*Z20 -> 0 | AA21: =Y21*AA20 -> 0 | AB21: =L82 -> 0 | AC21: =AB21*AC20 -> 0 | AD21: =AB21*AD20 -> 0
A22: Incremental OM&A (on-going, N/A for Provincial Recovery) | D22: ='App.2-FA Proposed REG Invest.'!C101 -> 0 | E22: =D22 -> 0 | G22: ='App.2-FA Proposed REG Invest.'!D$101 -> 0 | H22: =G22 -> 0 | J22: ='App.2-FA Proposed REG Invest.'!E$101 -> 0 | K22: =J22 -> 0 | M22: ='App.2-FA Proposed REG Invest.'!F$101 -> 0 | N22: =M22 -> 0 | P22: ='App.2-FA Proposed REG Invest.'!G$101 -> 0 | Q22: =P22 -> 0 | S22: ='App.2-FA Proposed REG Invest.'!H$101 -> 0 | T22: =S22 -> 0 | V22: ='App.2-FA Proposed REG Invest.'!I$101 -> 0 | W22: =V22 -> 0 | Y22: ='App.2-FA Proposed REG Invest.'!J$101 -> 0 | Z22: =Y22 -> 0 | AB22: ='App.2-FA Proposed REG Invest.'!K$101 -> 0 | AC22: =AB22 -> 0
A23: Incremental OM&A (start-up, applicable for Provincial Recovery) | D23: ='App.2-FA Proposed REG Invest.'!C100 -> 0 | E23: =D23*E20 -> 0 | F23: =D23*F20 -> 0 | G23: ='App.2-FA Proposed REG Invest.'!D$100 -> 0 | H23: =G23*H20 -> 0 | I23: =G23*I20 -> 0 | J23: ='App.2-FA Proposed REG Invest.'!E$100 -> 0 | K23: =J23*K20 -> 0 | L23: =J23*L20 -> 0 | M23: ='App.2-FA Proposed REG Invest.'!F$100 -> 0 | N23: =M23*N20 -> 0 | O23: =M23*O20 -> 0 | P23: ='App.2-FA Proposed REG Invest.'!G$100 -> 0 | Q23: =P23*Q20 -> 0 | R23: =P23*R20 -> 0 | S23: ='App.2-FA Proposed REG Invest.'!H$100 -> 0 | T23: =S23*T20 -> 0 | U23: =S23*U20 -> 0 | V23: ='App.2-FA Proposed REG Invest.'!I$100 -> 0 | W23: =V23*W20 -> 0 | X23: =V23*X20 -> 0 | Y23: ='App.2-FA Proposed REG Invest.'!J$100 -> 0 | Z23: =Y23*Z20 -> 0 | AA23: =Y23*AA20 -> 0 | AB23: ='App.2-FA Proposed REG Invest.'!K$100 -> 0 | AC23: =AB23*AC20 -> 0 | AD23: =AB23*AD20 -> 0
A24: WCA | E24: =(E22+E23)*$B$24 -> 0 | F24: =F23*$B$24 -> 0 | H24: =(H22+H23)*$B$24 -> 0 | I24: =I23*$B$24 -> 0 | K24: =(K22+K23)*$B$24 -> 0 | L24: =L23*$B$24 -> 0 | N24: =(N22+N23)*$B$24 -> 0 | O24: =O23*$B$24 -> 0 | Q24: =(Q22+Q23)*$B$24 -> 0 | R24: =R23*$B$24 -> 0 | T24: =(T22+T23)*$B$24 -> 0 | U24: =U23*$B$24 -> 0 | W24: =(W22+W23)*$B$24 -> 0 | X24: =X23*$B$24 -> 0 | Z24: =(Z22+Z23)*$B$24 -> 0 | AA24: =AA23*$B$24 -> 0 | AC24: =(AC22+AC23)*$B$24 -> 0 | AD24: =AD23*$B$24 -> 0
A25: Rate Base | E25: =SUM(E21+E24) -> 0 | F25: =SUM(F21+F24) -> 0 | H25: =SUM(H21+H24) -> 0 | I25: =SUM(I21+I24) -> 0 | K25: =SUM(K21+K24) -> 0 | L25: =SUM(L21+L24) -> 0 | N25: =SUM(N21+N24) -> 0 | O25: =SUM(O21+O24) -> 0 | Q25: =SUM(Q21+Q24) -> 0 | R25: =SUM(R21+R24) -> 0 | T25: =SUM(T21+T24) -> 0 | U25: =SUM(U21+U24) -> 0 | W25: =SUM(W21+W24) -> 0 | X25: =SUM(X21+X24) -> 0 | Z25: =SUM(Z21+Z24) -> 0 | AA25: =SUM(AA21+AA24) -> 0 | AC25: =SUM(AC21+AC24) -> 0 | AD25: =SUM(AD21+AD24) -> 0
A28: Deemed ST Debt | E28: =E25*$B$28 -> 0 | F28: =F25*$B$28 -> 0 | H28: =H25*$B$28 -> 0 | I28: =I25*$B$28 -> 0 | K28: =K25*$B$28 -> 0 | L28: =L25*$B$28 -> 0 | N28: =N25*$B$28 -> 0 | O28: =O25*$B$28 -> 0 | Q28: =Q25*$B$28 -> 0 | R28: =R25*$B$28 -> 0 | T28: =T25*$B$28 -> 0 | U28: =U25*$B$28 -> 0 | W28: =W25*$B$28 -> 0 | X28: =X25*$B$28 -> 0 | Z28: =Z25*$B$28 -> 0 | AA28: =AA25*$B$28 -> 0 | AC28: =AC25*$B$28 -> 0 | AD28: =AD25*$B$28 -> 0
A29: Deemed LT Debt | E29: =E25*$B$29 -> 0 | F29: =F25*$B$29 -> 0 | H29: =H25*$B$29 -> 0 | I29: =I25*$B$29 -> 0 | K29: =K25*$B$29 -> 0 | L29: =L25*$B$29 -> 0 | N29: =N25*$B$29 -> 0 | O29: =O25*$B$29 -> 0 | Q29: =Q25*$B$29 -> 0 | R29: =R25*$B$29 -> 0 | T29: =T25*$B$29 -> 0 | U29: =U25*$B$29 -> 0 | W29: =W25*$B$29 -> 0 | X29: =X25*$B$29 -> 0 | Z29: =Z25*$B$29 -> 0 | AA29: =AA25*$B$29 -> 0 | AC29: =AC25*$B$29 -> 0 | AD29: =AD25*$B$29 -> 0
A30: Deemed Equity | E30: =E25*$B$30 -> 0 | F30: =F25*$B$30 -> 0 | H30: =H25*$B$30 -> 0 | I30: =I25*$B$30 -> 0 | K30: =K25*$B$30 -> 0 | L30: =L25*$B$30 -> 0 | N30: =N25*$B$30 -> 0 | O30: =O25*$B$30 -> 0 | Q30: =Q25*$B$30 -> 0 | R30: =R25*$B$30 -> 0 | T30: =T25*$B$30 -> 0 | U30: =U25*$B$30 -> 0 | W30: =W25*$B$30 -> 0 | X30: =X25*$B$30 -> 0 | Z30: =Z25*$B$30 -> 0 | AA30: =AA25*$B$30 -> 0 | AC30: =AC25*$B$30 -> 0 | AD30: =AD25*$B$30 -> 0
A32: ST Interest | E32: =E28*$B$32 -> 0 | F32: =F28*$B$32 -> 0 | H32: =H28*$B$32 -> 0 | I32: =I28*$B$32 -> 0 | K32: =K28*$B$32 -> 0 | L32: =L28*$B$32 -> 0 | N32: =N28*$B$32 -> 0 | O32: =O28*$B$32 -> 0 | Q32: =Q28*$B$32 -> 0 | R32: =R28*$B$32 -> 0 | T32: =T28*$B$32 -> 0 | U32: =U28*$B$32 -> 0 | W32: =W28*$B$32 -> 0 | X32: =X28*$B$32 -> 0 | Z32: =Z28*$B$32 -> 0 | AA32: =AA28*$B$32 -> 0 | AC32: =AC28*$B$32 -> 0 | AD32: =AD28*$B$32 -> 0
A33: LT Interest | E33: =E29*$B$33 -> 0 | F33: =F29*$B$33 -> 0 | H33: =H29*$B$33 -> 0 | I33: =I29*$B$33 -> 0 | K33: =K29*$B$33 -> 0 | L33: =L29*$B$33 -> 0 | N33: =N29*$B$33 -> 0 | O33: =O29*$B$33 -> 0 | Q33: =Q29*$B$33 -> 0 | R33: =R29*$B$33 -> 0 | T33: =T29*$B$33 -> 0 | U33: =U29*$B$33 -> 0 | W33: =W29*$B$33 -> 0 | X33: =X29*$B$33 -> 0 | Z33: =Z29*$B$33 -> 0 | AA33: =AA29*$B$33 -> 0 | AC33: =AC29*$B$33 -> 0 | AD33: =AD29*$B$33 -> 0
A34: ROE | E34: =E30*$B$34 -> 0 | F34: =F30*$B$34 -> 0 | H34: =H30*$B$34 -> 0 | I34: =I30*$B$34 -> 0 | K34: =K30*$B$34 -> 0 | L34: =L30*$B$34 -> 0 | N34: =N30*$B$34 -> 0 | O34: =O30*$B$34 -> 0 | Q34: =Q30*$B$34 -> 0 | R34: =R30*$B$34 -> 0 | T34: =T30*$B$34 -> 0 | U34: =U30*$B$34 -> 0 | W34: =W30*$B$34 -> 0 | X34: =X30*$B$34 -> 0 | Z34: =Z30*$B$34 -> 0 | AA34: =AA30*$B$34 -> 0 | AC34: =AC30*$B$34 -> 0 | AD34: =AD30*$B$34 -> 0
A35: Cost of Capital Total | E35: =SUM(E32:E34) -> 0 | F35: =SUM(F32:F34) -> 0 | H35: =SUM(H32:H34) -> 0 | I35: =SUM(I32:I34) -> 0 | K35: =SUM(K32:K34) -> 0 | L35: =SUM(L32:L34) -> 0 | N35: =SUM(N32:N34) -> 0 | O35: =SUM(O32:O34) -> 0 | Q35: =SUM(Q32:Q34) -> 0 | R35: =SUM(R32:R34) -> 0 | T35: =SUM(T32:T34) -> 0 | U35: =SUM(U32:U34) -> 0 | W35: =SUM(W32:W34) -> 0 | X35: =SUM(X32:X34) -> 0 | Z35: =SUM(Z32:Z34) -> 0 | AA35: =SUM(AA32:AA34) -> 0 | AC35: =SUM(AC32:AC34) -> 0 | AD35: =SUM(AD32:AD34) -> 0
A37: OM&A | E37: =E22+E23 -> 0 | F37: =F23 -> 0 | H37: =H22+H23 -> 0 | I37: =I23 -> 0 | K37: =K22+K23 -> 0 | L37: =L23 -> 0 | N37: =N22+N23 -> 0 | O37: =O23 -> 0 | Q37: =Q22+Q23 -> 0 | R37: =R23 -> 0 | T37: =T22+T23 -> 0 | U37: =U23 -> 0 | W37: =W22+W23 -> 0 | X37: =X23 -> 0 | Z37: =Z22+Z23 -> 0 | AA37: =AA23 -> 0 | AC37: =AC22+AC23 -> 0 | AD37: =AD23 -> 0
A38: Amortization | D38: =D78 -> 0 | E38: =D38*E$20 -> 0 | F38: =D38*F$20 -> 0 | G38: =E78 -> 0 | H38: =G38*H$20 -> 0 | I38: =G38*I$20 -> 0 | J38: =F78 -> 0 | K38: =J38*K$20 -> 0 | L38: =J38*L$20 -> 0 | M38: =G78 -> 0 | N38: =M38*N$20 -> 0 | O38: =M38*O$20 -> 0 | P38: =H76+H77 -> 0 | Q38: =P38*Q$20 -> 0 | R38: =P38*R$20 -> 0 | S38: =I76+I77 -> 0 | T38: =S38*T$20 -> 0 | U38: =S38*U$20 -> 0 | V38: =J76+J77 -> 0 | W38: =V38*W$20 -> 0 | X38: =V38*X$20 -> 0 | Y38: =K76+K77 -> 0 | Z38: =Y38*Z$20 -> 0 | AA38: =Y38*AA$20 -> 0 | AB38: =L76+L77 -> 0 | AC38: =AB38*AC$20 -> 0 | AD38: =AB38*AD$20 -> 0
A39: Grossed-up PILs | E39: =E66 -> 0 | F39: =F66 -> 0 | H39: =H66 -> 0 | I39: =I66 -> 0 | K39: =K66 -> 0 | L39: =L66 -> 0 | N39: =N66 -> 0 | O39: =O66 -> 0 | Q39: =Q66 -> 0 | R39: =R66 -> 0 | T39: =T66 -> 0 | U39: =U66 -> 0 | W39: =W66 -> 0 | X39: =X66 -> 0 | Z39: =Z66 -> 0 | AA39: =AA66 -> 0 | AC39: =AC66 -> 0 | AD39: =AD66 -> 0
A41: Revenue Requirement | E41: =SUM(E35:E39) -> 0 | F41: =SUM(F35:F39) -> 0 | H41: =SUM(H35:H39) -> 0 | I41: =SUM(I35:I39) -> 0 | K41: =SUM(K35:K39) -> 0 | L41: =SUM(L35:L39) -> 0 | N41: =SUM(N35:N39) -> 0 | O41: =SUM(O35:O39) -> 0 | Q41: =SUM(Q35:Q39) -> 0 | R41: =SUM(R35:R39) -> 0 | T41: =SUM(T35:T39) -> 0 | U41: =SUM(U35:U39) -> 0 | W41: =SUM(W35:W39) -> 0 | X41: =SUM(X35:X39) -> 0 | Z41: =SUM(Z35:Z39) -> 0 | AA41: =SUM(AA35:AA39) -> 0 | AC41: =SUM(AC35:AC39) -> 0 | AD41: =SUM(AD35:AD39) -> 0
A44: Provincial Rate Protection | F44: =F41 -> 0 | I44: =I41 -> 0 | L44: =L41 -> 0 | O44: =O41 -> 0 | R44: =R41 -> 0 | U44: =U41 -> 0 | X44: =X41 -> 0 | AA44: =AA41 -> 0 | AD44: =AD41 -> 0
A46: Monthly Amount Paid by IESO | F46: =F44/12 -> 0 | I46: =I44/12 -> 0 | L46: =L44/12 -> 0 | O46: =O44/12 -> 0 | R46: =R44/12 -> 0 | U46: =U44/12 -> 0 | X46: =X44/12 -> 0 | AA46: =AA44/12 -> 0 | AD46: =AD44/12 -> 0
A48: Note 1: The difference between the actual costs of approved eligible investments and revenue received from the IESO should be recorded in a variance account. The Board may provide
A49: regulatory accounting guidance regarding a variance account either in an individual proceeding or on a generic basis.
A50: Note 2: For the 2015 Test Year, Costs and Revenues of the Direct Benefit are to be included in the test year applicant Rate Base and Revenues.
A52: PILs Calculation
E53: 2011 | H53: 2012 | K53: 2013 | N53: 2014 | Q53: 2015 TEST YEAR | T53: 2016 | W53: 2017 | Z53: 2018 | AC53: 2019
A54: Income Tax | E54: Direct Benefit | F54: Provincial | H54: Direct Benefit | I54: Provincial | K54: Direct Benefit | L54: Provincial | N54: Direct Benefit | O54: Provincial | Q54: Direct Benefit | R54: Provincial | T54: Direct Benefit | U54: Provincial | W54: Direct Benefit | X54: Provincial | Z54: Direct Benefit | AA54: Provincial | AC54: Direct Benefit | AD54: Provincial
V55: Total | Y55: Total | AB55: Total
A56: Net Income - ROE on Rate Base | E56: =E34 -> 0 | F56: =F34 -> 0 | H56: =H34 -> 0 | I56: =I34 -> 0 | K56: =K34 -> 0 | L56: =L34 -> 0 | N56: =N34 -> 0 | O56: =O34 -> 0 | Q56: =Q34 -> 0 | R56: =R34 -> 0 | T56: =T34 -> 0 | U56: =U34 -> 0 | W56: =W34 -> 0 | X56: =X34 -> 0 | Z56: =Z34 -> 0 | AA56: =AA34 -> 0 | AC56: =AC34 -> 0 | AD56: =AD34 -> 0
A57: Amortization (17% DB and 83% P) | E57: =E38 -> 0 | F57: =F38 -> 0 | H57: =H38 -> 0 | I57: =I38 -> 0 | K57: =K38 -> 0 | L57: =L38 -> 0 | N57: =N38 -> 0 | O57: =O38 -> 0 | Q57: =Q38 -> 0 | R57: =R38 -> 0 | T57: =T38 -> 0 | U57: =U38 -> 0 | W57: =W38 -> 0 | X57: =X38 -> 0 | Z57: =Z38 -> 0 | AA57: =AA38 -> 0 | AC57: =AC38 -> 0 | AD57: =AD38 -> 0
A58: CCA (17% DB and 83% P) | E58: =-D94*E$20 -> 0 | F58: =-D94*F$20 -> 0 | H58: =-E94*H$20 -> 0 | I58: =-E94*I$20 -> 0 | K58: =-F94*K$20 -> 0 | L58: =-F94*L$20 -> 0 | N58: =-G94*N$20 -> 0 | O58: =-G94*O$20 -> 0 | Q58: =-H94*Q$20 -> 0 | R58: =-H94*R$20 -> 0 | T58: =-I94*T$20 -> 0 | U58: =-I94*U$20 -> 0 | W58: =-J94*W$20 -> 0 | X58: =-J94*X$20 -> 0 | Z58: =-K94*Z$20 -> 0 | AA58: =-K94*AA$20 -> 0 | AC58: =-L94*AC$20 -> 0 | AD58: =-L94*AD$20 -> 0
A59: Taxable income | E59: =SUM(E56:E58) -> 0 | F59: =SUM(F56:F58) -> 0 | H59: =SUM(H56:H58) -> 0 | I59: =SUM(I56:I58) -> 0 | K59: =SUM(K56:K58) -> 0 | L59: =SUM(L56:L58) -> 0 | N59: =SUM(N56:N58) -> 0 | O59: =SUM(O56:O58) -> 0 | Q59: =SUM(Q56:Q58) -> 0 | R59: =SUM(R56:R58) -> 0 | T59: =SUM(T56:T58) -> 0 | U59: =SUM(U56:U58) -> 0 | W59: =SUM(W56:W58) -> 0 | X59: =SUM(X56:X58) -> 0 | Z59: =SUM(Z56:Z58) -> 0 | AA59: =SUM(AA56:AA58) -> 0 | AC59: =SUM(AC56:AC58) -> 0 | AD59: =SUM(AD56:AD58) -> 0
A61: Tax Rate (to be entered)
A63: Income Taxes Payable | E63: =E59*E61 -> 0 | F63: =F59*F61 -> 0 | H63: =H59*H61 -> 0 | I63: =I59*I61 -> 0 | K63: =K59*K61 -> 0 | L63: =L59*L61 -> 0 | N63: =N59*N61 -> 0 | O63: =O59*O61 -> 0 | Q63: =Q59*Q61 -> 0 | R63: =R59*R61 -> 0 | T63: =T59*T61 -> 0 | U63: =U59*U61 -> 0 | W63: =W59*W61 -> 0 | X63: =X59*X61 -> 0 | Z63: =Z59*Z61 -> 0 | AA63: =AA59*AA61 -> 0 | AC63: =AC59*AC61 -> 0 | AD63: =AD59*AD61 -> 0
A64: Gross Up
A65: Income Taxes Payable | E65: =E63/(1-E61) -> 0 | F65: =F63/(1-F61) -> 0 | H65: =H63/(1-H61) -> 0 | I65: =I63/(1-I61) -> 0 | K65: =K63/(1-K61) -> 0 | L65: =L63/(1-L61) -> 0 | N65: =N63/(1-N61) -> 0 | O65: =O63/(1-O61) -> 0 | Q65: =Q63/(1-Q61) -> 0 | R65: =R63/(1-R61) -> 0 | T65: =T63/(1-T61) -> 0 | U65: =U63/(1-U61) -> 0 | W65: =W63/(1-W61) -> 0 | X65: =X63/(1-X61) -> 0 | Z65: =Z63/(1-Z61) -> 0 | AA65: =AA63/(1-AA61) -> 0 | AC65: =AC63/(1-AC61) -> 0 | AD65: =AD63/(1-AD61) -> 0
A66: Grossed Up PILs | E66: =SUM(E65:E65) -> 0 | F66: =SUM(F65:F65) -> 0 | H66: =SUM(H65:H65) -> 0 | I66: =SUM(I65:I65) -> 0 | K66: =SUM(K65:K65) -> 0 | L66: =SUM(L65:L65) -> 0 | N66: =SUM(N65:N65) -> 0 | O66: =SUM(O65:O65) -> 0 | Q66: =SUM(Q65:Q65) -> 0 | R66: =SUM(R65:R65) -> 0 | T66: =SUM(T65:T65) -> 0 | U66: =SUM(U65:U65) -> 0 | W66: =SUM(W65:W65) -> 0 | X66: =SUM(X65:X65) -> 0 | Z66: =SUM(Z65:Z65) -> 0 | AA66: =SUM(AA65:AA65) -> 0 | AC66: =SUM(AC65:AC65) -> 0 | AD66: =SUM(AD65:AD65) -> 0
A69: Net Fixed Assets | D69: 2011 | E69: 2012 | F69: 2013 | G69: 2014 | H69: 2015 | I69: 2016 | J69: 2017 | K69: 2018 | L69: 2019
B70: Enter applicable amortization in years: | C70: 25
A71: Opening Gross Fixed Assets | E71: =D73 -> 0 | F71: 0 | G71: 0 | H71: 0 | I71: 0 | J71: 0 | K71: 0 | L71: 0
A72: Gross Capital Additions | D72: ='App.2-FA Proposed REG Invest.'!C99 -> 0 | E72: ='App.2-FA Proposed REG Invest.'!D99 -> 0 | F72: ='App.2-FA Proposed REG Invest.'!E99 -> 0 | G72: ='App.2-FA Proposed REG Invest.'!F99 -> 0 | H72: ='App.2-FA Proposed REG Invest.'!G99 -> 0 | I72: ='App.2-FA Proposed REG Invest.'!H99 -> 0 | J72: ='App.2-FA Proposed REG Invest.'!I99 -> 0 | K72: ='App.2-FA Proposed REG Invest.'!J99 -> 0 | L72: ='App.2-FA Proposed REG Invest.'!K99 -> 0
A73: Closing Gross Fixed Assets | D73: =SUM(D71:D72) -> 0 | E73: 0 | F73: 0 | G73: 0 | H73: 0 | I73: 0 | J73: 0 | K73: 0 | L73: 0
A75: Opening Accumulated Amortization | E75: =+D78 -> 0 | F75: =E78 -> 0 | G75: 0 | H75: =G78 -> 0 | I75: =H78 -> 0 | J75: =I78 -> 0 | K75: =J78 -> 0 | L75: =K78 -> 0
A76: Current Year Amortization (before additions) | E76: =IF(ISERROR(E71/$C$70), 0, E71/$C$70) -> 0 | F76: 0 | G76: 0 | H76: =H71/$C$70 -> 0 | I76: =I71/$C$70 -> 0 | J76: =J71/$C$70 -> 0 | K76: =K71/$C$70 -> 0 | L76: =L71/$C$70 -> 0
A77: Additions (half year) | D77: =D72/C70/2 -> 0 | E77: =E72/C70/2 -> 0 | F77: =F72/C70/2 -> 0 | G77: =G72/C70/2 -> 0 | H77: =H72/C70/2 -> 0 | I77: =I72/C70/2 -> 0 | J77: =J72/C70/2 -> 0 | K77: =K72/C70/2 -> 0 | L77: =L72/C70/2 -> 0
A78: Closing Accumulated Amortization | D78: =SUM(D75+D77) -> 0 | E78: =SUM(E75:E77) -> 0 | F78: 0 | G78: 0 | H78: 0 | I78: 0 | J78: 0 | K78: 0 | L78: 0
A80: Opening Net Fixed Assets | D80: =D71-D75 -> 0 | E80: =E71-E75 -> 0 | F80: =F71-F75 -> 0 | G80: =G71-G75 -> 0 | H80: =G81 -> 0 | I80: =H81 -> 0 | J80: =I81 -> 0 | K80: =J81 -> 0 | L80: =K81 -> 0
A81: Closing Net Fixed Assets | D81: =D73-D78 -> 0 | E81: 0 | F81: 0 | G81: 0 | H81: 0 | I81: 0 | J81: 0 | K81: 0 | L81: 0
A82: Average Net Fixed Assets | D82: =SUM(D80:D81)/2 -> 0 | E82: 0 | F82: 0 | G82: 0 | H82: 0 | I82: 0 | J82: 0 | K82: 0 | L82: 0
A84: UCC for PILs Calculation
D85: 2014 | E85: 2014 | F85: 2014 | G85: 2014 | H85: 2015 | I85: 2016 | J85: 2017 | K85: 2018 | L85: 2019
A87: Opening UCC | E87: =D95 -> 0 | F87: 0 | G87: 0 | H87: 0 | I87: 0 | J87: 0 | K87: 0 | L87: 0
A88: Capital Additions (from Appendix 2-FA) | D88: =D72 -> 0 | E88: 0 | F88: 0 | G88: 0 | H88: 0 | I88: 0 | J88: 0 | K88: 0 | L88: 0
A89: UCC Before Half Year Rule | D89: =SUM(D87:D88) -> 0 | E89: 0 | F89: 0 | G89: 0 | H89: 0 | I89: 0 | J89: 0 | K89: 0 | L89: 0
A90: Half Year Rule (1/2 Additions - Disposals) | D90: =D88/2 -> 0 | E90: 0 | F90: 0 | G90: 0 | H90: 0 | I90: 0 | J90: 0 | K90: 0 | L90: 0
A91: Reduced UCC | D91: =D89-D90 -> 0 | E91: 0 | F91: 0 | G91: 0 | H91: 0 | I91: 0 | J91: 0 | K91: 0 | L91: 0
A92: CCA Rate Class (to be entered) | C92: 47 | D92: =$C$92 -> 47 | E92: =$C$92 -> 47 | F92: 47 | G92: 47 | H92: 47 | I92: 47 | J92: 47 | K92: 47 | L92: 47
A93: CCA Rate (to be entered) | C93: 0.08 | D93: =$C$93 -> 0.08 | E93: =$C$93 -> 0.08 | F93: 0.08 | G93: 0.08 | H93: 0.08 | I93: 0.08 | J93: 0.08 | K93: 0.08 | L93: 0.08
A94: CCA | D94: =D91*D$93 -> 0 | E94: =E91*E$93 -> 0 | F94: =F91*F$93 -> 0 | G94: =G91*G$93 -> 0 | H94: =H91*H$93 -> 0 | I94: 0 | J94: 0 | K94: 0 | L94: 0
A95: Closing UCC | D95: =D89-D94 -> 0 | E95: 0 | F95: 0 | G95: 0 | H95: 0 | I95: 0 | J95: 0 | K95: 0 | L95: 0

Sheet App.2-FA Proposed REG Inves (2 (hidden)
F1: File Number: | G1: =EBNUMBER -> EB-2014-0099
F2: Exhibit:
F3: Tab:
F4: Schedule:
F5: Page:
F7: Date:
A9: Appendix 2-FA
A10: Renewable Generation Connection Investment Summary (over the rate setting period)
A12: Enter the details of the Renewable Generation Connection projects as described in Section 2.5.2.5 of the Filing Requirements.
A13: All costs entered on this page will be transferred to the appropriate cells in the appendices that follow.
A14: For Part A, Renewable Enabling Improvements (REI), these amounts will be transferred to Appendix 2 - FB
A15: For Part B, Expansions, these amounts will be transferred to Appendix 2 - FC
A17: If there are more than five projects proposed to be in-service in a certain year, please amend the tables below and ensure that the formulae for the Total Amounts in any given rate year are updated.
A18: Based on the current methodology and allocation, amounts allocated represent 6% for REI Connection Investments and 17% for Expansion Investments. (pg 15, EB-2009-0349)
A21: Part A
A22: REI Investments (Direct Benefit at 6%) | C22: 2015 | D22: =C22+1 -> 2016 | E22: =D22+1 -> 2017 | F22: 2018 | G22: 2019
A23: Project 1
A24: Name: REI Connection Project
A25: Capital Costs | C25: 1000 | D25: 0 | E25: 1000 | F25: 0 | G25: 0
A26: OM&A (Start-Up) | C26: 0 | D26: 0 | E26: 0 | F26: 0 | G26: 0
A27: OM&A (Ongoing) | C27: 0 | D27: 0 | E27: 0 | F27: 0 | G27: 0
A29: Project 2
A30: Name: REI Connection Project
A31: Capital Costs | C31: 0 | D31: 0 | E31: 0 | F31: 0 | G31: 0
A32: OM&A (Start-Up) | C32: 0 | D32: 0 | E32: 0 | F32: 0 | G32: 0
A33: OM&A (Ongoing) | C33: 0 | D33: 0 | E33: 0 | F33: 0 | G33: 0
A35: Project 3
A36: Name: REI Connection Project
A37: Capital Costs | C37: 0 | D37: 0 | E37: 0 | F37: 0 | G37: 0
A38: OM&A (Start-Up) | C38: 0 | D38: 0 | E38: 0 | F38: 0 | G38: 0
A39: OM&A (Ongoing) | C39: 0 | D39: 0 | E39: 0 | F39: 0 | G39: 0
A41: Project 4
A42: Name: REI Connection Project
A43: Capital Costs | C43: 0 | D43: 0 | E43: 0 | F43: 0 | G43: 0
A44: OM&A (Start-Up) | C44: 0 | D44: 0 | E44: 0 | F44: 0 | G44: 0
A45: OM&A (Ongoing) | C45: 0 | D45: 0 | E45: 0 | F45: 0 | G45: 0
A47: Project 5
A48: Name: REI Connection Project
A49: Capital Costs | C49: 0 | D49: 0 | E49: 0 | F49: 0 | G49: 0
A50: OM&A (Start-Up) | C50: 0 | D50: 0 | E50: 0 | F50: 0 | G50: 0
A51: OM&A (Ongoing) | C51: 0 | D51: 0 | E51: 0 | F51: 0 | G51: 0
A53: Total Capital Costs | C53: =SUM(C49,C43,C37,C31,C25) -> 1000 | D53: =SUM(D49,D43,D37,D31,D25) -> 0 | E53: 1000 | F53: 0 | G53: 0
A54: Total OM&A (Start-Up) | C54: =SUM(C50,C44,C38,C32,C26) -> 0 | D54: 0 | E54: 0 | F54: 0 | G54: 0
A55: Total OM&A (Ongoing) | C55: =SUM(C51,C45,C39,C33,C27) -> 0 | D55: 0 | E55: 0 | F55: 0 | G55: 0
A58: Part B
A59: Expansion Investments (Direct Benefit at 17%) | C59: 2015 | D59: =C59+1 -> 2016 | E59: =D59+1 -> 2017 | F59: 2018 | G59: 2019
A60: Project 1
A61: Name: Expansion Connection Project
A62: Capital Costs | C62: 0 | D62: 0 | E62: 0 | F62: 0 | G62: 0
A63: OM&A (Start-Up) | C63: 0 | D63: 0 | E63: 0 | F63: 0 | G63: 0
A64: OM&A (Ongoing) | C64: 0 | D64: 0 | E64: 0 | F64: 0 | G64: 0
A66: Project 2
A67: Name: Expansion Connection Project
A68: Capital Costs | C68: 0 | D68: 0 | E68: 0 | F68: 0 | G68: 0
A69: OM&A (Start-Up) | C69: 0 | D69: 0 | E69: 0 | F69: 0 | G69: 0
A70: OM&A (Ongoing) | C70: 0 | D70: 0 | E70: 0 | F70: 0 | G70: 0
A72: Project 3
A73: Name: Expansion Connection Project
A74: Capital Costs | C74: 0 | D74: 0 | E74: 0 | F74: 0 | G74: 0
A75: OM&A (Start-Up) | C75: 0 | D75: 0 | E75: 0 | F75: 0 | G75: 0
A76: OM&A (Ongoing) | C76: 0 | D76: 0 | E76: 0 | F76: 0 | G76: 0
A78: Project 4
A79: Name: Expansion Connection Project
A80: Capital Costs | C80: 0 | D80: 0 | E80: 0 | F80: 0 | G80: 0
A81: OM&A (Start-Up) | C81: 0 | D81: 0 | E81: 0 | F81: 0 | G81: 0
A82: OM&A (Ongoing) | C82: 0 | D82: 0 | E82: 0 | F82: 0 | G82: 0
A84: Project 5
A85: Name: Expansion Connection Project
A86: Capital Costs | C86: 0 | D86: 0 | E86: 0 | F86: 0 | G86: 0
A87: OM&A (Start-Up) | C87: 0 | D87: 0 | E87: 0 | F87: 0 | G87: 0
A88: OM&A (Ongoing) | C88: 0 | D88: 0 | E88: 0 | F88: 0 | G88: 0
A90: Total Capital Costs | C90: =SUM(C86,C80,C74,C68,C62) -> 0 | D90: =SUM(D86,D80,D74,D68,D62) -> 0 | E90: 0 | F90: 0 | G90: 0
A91: Total OM&A (Start-Up) | C91: =SUM(C87,C81,C75,C69,C63) -> 0 | D91: 0 | E91: 0 | F91: 0 | G91: 0
A92: Total OM&A (Ongoing) | C92: =SUM(C88,C82,C76,C70,C64) -> 0 | D92: 0 | E92: 0 | F92: 0 | G92: 0

Sheet App.2-FB Calc of REG Improv (2 (hidden)
F1: File Number: | G1: =EBNUMBER -> EB-2014-0099
F2: Exhibit:
F3: Tab:
F4: Schedule:
F5: Page:
F7: Date:
A9: Appendix 2-FB
A10: Calculation of Renewable Generation Connection Direct Benefits/Provincial Amount: Renewable Enabling Improvement Investments
A12: This table will calculate the distributor/provincial shares of the investments entered in Part A of Appendix 2-FA.
A13: Enter values in green shaded cells: WCA percentage, debt percentages, interest rates, kWh, tax rates, amortization period, CCA Class and percentage.
A14: Rate Riders are not calculated for Test Year as these assets and costs are already in the distributor's rate base/revenue requirement.
D17: 2015 Test Year | G17: 2016 | J17: 2017 | K17: 2016 | M17: 2018 | P17: 2019
E18: Direct Benefit | F18: Provincial | H18: Direct Benefit | I18: Provincial | K18: Direct Benefit | L18: Provincial | N18: Direct Benefit | O18: Provincial | Q18: Direct Benefit | R18: Provincial
D19: Total | E19: 0.06 | F19: 0.94 | G19: Total | H19: 0.06 | I19: 0.94 | J19: Total | K19: 0.06 | L19: 0.94 | M19: Total | N19: 0.06 | O19: 0.94 | P19: Total | Q19: 0.06 | R19: 0.94
A20: Net Fixed Assets (average) | D20: =D82 -> 490 | E20: =D20*E19 -> 29.4 | F20: =D20*F19 -> 460.6 | G20: =E82 -> 960 | H20: =G20*H19 -> 57.6 | I20: =G20*I19 -> 902.4 | J20: =F82 -> 1410 | K20: =J20*K19 -> 84.6 | L20: =J20*L19 -> 1325.4 | M20: =G82 -> 1840 | N20: =M20*N19 -> 110.4 | O20: =M20*O19 -> 1729.6 | P20: =H82 -> 1760 | Q20: =P20*Q19 -> 105.6 | R20: =P20*R19 -> 1654.4
A21: Incremental OM&A (on-going, N/A for Provincial Recovery) | D21: ='App.2-FA Proposed REG Inves (2'!C55 -> 0 | E21: =D21 -> 0 | G21: ='App.2-FA Proposed REG Inves (2'!D55 -> 0 | H21: =G21 -> 0 | J21: ='App.2-FA Proposed REG Inves (2'!E55 -> 0 | K21: =J21 -> 0 | M21: ='App.2-FA Proposed REG Inves (2'!F55 -> 0 | N21: =M21 -> 0 | P21: ='App.2-FA Proposed REG Inves (2'!G55 -> 0 | Q21: =P21 -> 0
A22: Incremental OM&A (start-up, applicable for Provincial Recovery) | D22: ='App.2-FA Proposed REG Inves (2'!C54 -> 0 | E22: =D22*E19 -> 0 | F22: =D22*F19 -> 0 | G22: ='App.2-FA Proposed REG Inves (2'!D54 -> 0 | H22: =G22*H19 -> 0 | I22: =G22*I19 -> 0 | J22: ='App.2-FA Proposed REG Inves (2'!E54 -> 0 | K22: =J22*K19 -> 0 | L22: =J22*L19 -> 0 | M22: ='App.2-FA Proposed REG Inves (2'!F54 -> 0 | N22: =M22*N19 -> 0 | O22: =M22*O19 -> 0 | P22: ='App.2-FA Proposed REG Inves (2'!G54 -> 0 | Q22: =P22*Q19 -> 0 | R22: =P22*R19 -> 0
A23: WCA | B23: 0.13 | E23: =(E21+E22)*$B$23 -> 0 | F23: =F22*$B$23 -> 0 | H23: =(H21+H22)*$B$23 -> 0 | I23: =I22*$B$23 -> 0 | K23: =(K21+K22)*$B$23 -> 0 | L23: =L22*$B$23 -> 0 | N23: =(N21+N22)*$B$23 -> 0 | O23: =O22*$B$23 -> 0 | Q23: =(Q21+Q22)*$B$23 -> 0 | R23: =R22*$B$23 -> 0
A24: Rate Base | E24: =SUM(E20+E23) -> 29.4 | F24: =SUM(F20+F23) -> 460.6 | H24: =SUM(H20+H23) -> 57.6 | I24: =SUM(I20+I23) -> 902.4 | K24: =SUM(K20+K23) -> 84.6 | L24: =SUM(L20+L23) -> 1325.4 | N24: =SUM(N20+N23) -> 110.4 | O24: =SUM(O20+O23) -> 1729.6 | Q24: =SUM(Q20+Q23) -> 105.6 | R24: =SUM(R20+R23) -> 1654.4
A27: Deemed ST Debt | B27: 0.04 | E27: =E24*$B$27 -> 1.176 | F27: =F24*$B$27 -> 18.424 | H27: =H24*$B$27 -> 2.304 | I27: =I24*$B$27 -> 36.096 | K27: =K24*$B$27 -> 3.384 | L27: =L24*$B$27 -> 53.016 | N27: =N24*$B$27 -> 4.416 | O27: =O24*$B$27 -> 69.184 | Q27: =Q24*$B$27 -> 4.224 | R27: =R24*$B$27 -> 66.176
A28: Deemed LT Debt | B28: 0.56 | E28: =E24*$B$28 -> 16.464 | F28: =F24*$B$28 -> 257.936 | H28: =H24*$B$28 -> 32.256 | I28: =I24*$B$28 -> 505.344 | K28: =K24*$B$28 -> 47.376 | L28: =L24*$B$28 -> 742.224 | N28: =N24*$B$28 -> 61.824 | O28: =O24*$B$28 -> 968.576 | Q28: =Q24*$B$28 -> 59.136 | R28: =R24*$B$28 -> 926.464
A29: Deemed Equity | B29: 0.4 | E29: =E24*$B$29 -> 11.76 | F29: =F24*$B$29 -> 184.24 | H29: =H24*$B$29 -> 23.04 | I29: =I24*$B$29 -> 360.96 | K29: =K24*$B$29 -> 33.84 | L29: =L24*$B$29 -> 530.16 | N29: =N24*$B$29 -> 44.16 | O29: =O24*$B$29 -> 691.84 | Q29: =Q24*$B$29 -> 42.24 | R29: =R24*$B$29 -> 661.76
A31: ST Interest | B31: 0.024 | E31: =E27*$B31 -> 0.028224 | F31: =F27*$B31 -> 0.442176 | H31: =H27*$B31 -> 0.055296 | I31: =I27*$B31 -> 0.866304 | K31: =K27*$B31 -> 0.081216 | L31: =L27*$B31 -> 1.272384 | N31: =N27*$B31 -> 0.105984 | O31: =O27*$B31 -> 1.660416 | Q31: =Q27*$B31 -> 0.101376 | R31: =R27*$B31 -> 1.588224
A32: LT Interest | B32: 0.056 | E32: =E28*$B32 -> 0.921984 | F32: 14.444416 | H32: =H28*$B32 -> 1.806336 | I32: 28.299264 | K32: =K28*$B32 -> 2.653056 | L32: 41.564544 | N32: =N28*$B32 -> 3.462144 | O32: 54.240256 | Q32: =Q28*$B32 -> 3.311616 | R32: 51.881984
A33: ROE | B33: 0.085 | E33: 0.9996 | F33: 15.6604 | H33: 1.9584 | I33: 30.6816 | K33: 2.8764 | L33: 45.0636 | N33: 3.7536 | O33: 58.8064 | Q33: 3.5904 | R33: 56.2496
A34: Cost of Capital Total | E34: =SUM(E31:E33) -> 1.949808 | F34: =SUM(F31:F33) -> 30.546992 | H34: =SUM(H31:H33) -> 3.820032 | I34: =SUM(I31:I33) -> 59.847168 | K34: =SUM(K31:K33) -> 5.610672 | L34: =SUM(L31:L33) -> 87.900528 | N34: =SUM(N31:N33) -> 7.321728 | O34: =SUM(O31:O33) -> 114.707072 | Q34: =SUM(Q31:Q33) -> 7.003392 | R34: =SUM(R31:R33) -> 109.719808
A36: OM&A | E36: =E21+E22 -> 0 | F36: =F22 -> 0 | H36: =H21+H22 -> 0 | I36: =I22 -> 0 | K36: =K21+K22 -> 0 | L36: =L22 -> 0 | N36: =N21+N22 -> 0 | O36: =O22 -> 0 | Q36: =Q21+Q22 -> 0 | R36: =R22 -> 0
A37: Amortization | D37: =D77 -> 20 | E37: =D37*E$19 -> 1.2 | F37: =D37*F$19 -> 18.8 | G37: =E76+E77 -> 40 | H37: =G37*H$19 -> 2.4 | I37: =G37*I$19 -> 37.6 | J37: =F76+F77 -> 60 | K37: =J37*K$19 -> 3.6 | L37: =J37*L$19 -> 56.4 | M37: =G76+G77 -> 80 | N37: =M37*N$19 -> 4.8 | O37: =M37*O$19 -> 75.2 | P37: =H76+H77 -> 80 | Q37: =P37*Q$19 -> 4.8 | R37: =P37*R$19 -> 75.2
A38: Grossed-up PILs | E38: =E65 -> 0 | F38: =F65 -> 0 | H38: =H65 -> 0 | I38: =I65 -> 0 | K38: =K65 -> 0 | L38: =L65 -> 0 | N38: =N65 -> 0 | O38: =O65 -> 0 | Q38: =Q65 -> 0 | R38: =R65 -> 0
A40: Revenue Requirement | E40: =SUM(E34:E38) -> 3.149808 | F40: =SUM(F34:F38) -> 49.346992 | H40: =SUM(H34:H38) -> 6.220032 | I40: =SUM(I34:I38) -> 97.447168 | K40: =SUM(K34:K38) -> 9.210672 | L40: =SUM(L34:L38) -> 144.300528 | N40: =SUM(N34:N38) -> 12.121728 | O40: =SUM(O34:O38) -> 189.907072 | Q40: =SUM(Q34:Q38) -> 11.803392 | R40: =SUM(R34:R38) -> 184.919808
A43: Provincial Rate Protection | F43: =F40 -> 49.346992 | I43: =I40 -> 97.447168 | L43: =L40 -> 144.300528 | O43: =O40 -> 189.907072 | R43: =R40 -> 184.919808
A45: Monthly Amount Paid by IESO | F45: =F43/12 -> 4.112249333 | I45: =I43/12 -> 8.120597333 | L45: =L43/12 -> 12.025044 | O45: =O43/12 -> 15.82558933 | R45: =R43/12 -> 15.409984
A47: Note 1: The difference between the actual costs of approved eligible investments and revenue received from the IESO should be recorded in a variance account. The Board may provide
A48: regulatory accounting guidance regarding a variance account either in an individual proceeding or on a generic basis.
A49: Note 2: For the 2014 Test Year, Costs and Revenues of the Direct Benefit are to be included in the test year applicant Rate Base and Revenues.
A51: PILs Calculation
E52: 2015 | H52: =E52+1 -> 2016 | K52: =H52+1 -> 2017 | N52: =K52+1 -> 2018 | Q52: =N52+1 -> 2019
A53: Income Tax | E53: Direct Benefit | F53: Provincial | H53: Direct Benefit | I53: Provincial | K53: Direct Benefit | L53: Provincial | N53: Direct Benefit | O53: Provincial | Q53: Direct Benefit | R53: Provincial
M54: Total | P54: Total
A55: Net Income - ROE on Rate Base | E55: =E33 -> 0.9996 | F55: =F33 -> 15.6604 | H55: =H33 -> 1.9584 | I55: =I33 -> 30.6816 | K55: =K33 -> 2.8764 | L55: =L33 -> 45.0636 | N55: =N33 -> 3.7536 | O55: =O33 -> 58.8064 | Q55: =Q33 -> 3.5904 | R55: =R33 -> 56.2496
A56: Amortization (6% DB and 94% P) | E56: =E37 -> 1.2 | F56: =F37 -> 18.8 | H56: =H37 -> 2.4 | I56: =I37 -> 37.6 | K56: =K37 -> 3.6 | L56: =L37 -> 56.4 | N56: =N37 -> 4.8 | O56: =O37 -> 75.2 | Q56: =Q37 -> 4.8 | R56: =R37 -> 75.2
A57: CCA (6% DB and 94% P) | E57: =-D94*E$19 -> -2.4 | F57: =-D94*F$19 -> -37.6 | H57: =-E94*H$19 -> -4.608 | I57: =-E94*I$19 -> -72.192 | K57: =-F94*K$19 -> -4.23936 | L57: =-F94*L$19 -> -66.41664 | N57: =-G94*N$19 -> -3.9002112 | O57: =-G94*O$19 -> -61.1033088 | Q57: =-H94*Q$19 -> -3.588194304 | R57: =-H94*R$19 -> -56.2150441
A58: Taxable income | E58: =SUM(E55:E57) -> -0.2004 | F58: =SUM(F55:F57) -> -3.1396 | H58: =SUM(H55:H57) -> -0.2496 | I58: =SUM(I55:I57) -> -3.9104 | K58: =SUM(K55:K57) -> 2.23704 | L58: =SUM(L55:L57) -> 35.04696 | N58: =SUM(N55:N57) -> 4.6533888 | O58: =SUM(O55:O57) -> 72.9030912 | Q58: =SUM(Q55:Q57) -> 4.802205696 | R58: =SUM(R55:R57) -> 75.2345559
A60: Tax Rate (to be entered)
A62: Income Taxes Payable | E62: =E58*E60 -> 0 | F62: =F58*F60 -> 0 | H62: =H58*H60 -> 0 | I62: =I58*I60 -> 0 | K62: =K58*K60 -> 0 | L62: =L58*L60 -> 0 | N62: =N58*N60 -> 0 | O62: =O58*O60 -> 0 | Q62: =Q58*Q60 -> 0 | R62: =R58*R60 -> 0
A63: Gross Up
A64: Income Taxes Payable | E64: =E62/(1-E60) -> 0 | F64: =F62/(1-F60) -> 0 | H64: =H62/(1-H60) -> 0 | I64: =I62/(1-I60) -> 0 | K64: =K62/(1-K60) -> 0 | L64: =L62/(1-L60) -> 0 | N64: =N62/(1-N60) -> 0 | O64: =O62/(1-O60) -> 0 | Q64: =Q62/(1-Q60) -> 0 | R64: =R62/(1-R60) -> 0
A65: Grossed Up PILs | E65: =SUM(E64:E64) -> 0 | F65: =SUM(F64:F64) -> 0 | H65: =SUM(H64:H64) -> 0 | I65: =SUM(I64:I64) -> 0 | K65: =SUM(K64:K64) -> 0 | L65: =SUM(L64:L64) -> 0 | N65: =SUM(N64:N64) -> 0 | O65: =SUM(O64:O64) -> 0 | Q65: =SUM(Q64:Q64) -> 0 | R65: =SUM(R64:R64) -> 0
D68: 2015 | E68: =D68+1 -> 2016 | F68: =E68+1 -> 2017 | G68: 2018 | H68: 2019
A69: Net Fixed Assets
B70: Enter applicable amortization in years: | C70: 25
A71: Opening Gross Fixed Assets | E71: =D73 -> 1000 | F71: =E73 -> 1000 | G71: =F73 -> 2000 | H71: =G73 -> 2000
A72: Gross Capital Additions | D72: ='App.2-FA Proposed REG Inves (2'!C53 -> 1000 | E72: ='App.2-FA Proposed REG Inves (2'!D53 -> 0 | F72: ='App.2-FA Proposed REG Inves (2'!E53 -> 1000 | G72: ='App.2-FA Proposed REG Inves (2'!F53 -> 0 | H72: ='App.2-FA Proposed REG Inves (2'!G53 -> 0
A73: Closing Gross Fixed Assets | D73: =SUM(D71:D72) -> 1000 | E73: =SUM(E71:E72) -> 1000 | F73: 2000 | G73: 2000 | H73: 2000
A75: Opening Accumulated Amortization | E75: =D78 -> 20 | F75: =E78 -> 60 | G75: =F78 -> 120 | H75: =G78 -> 200
A76: Current Year Amortization (before additions) | E76: =IF(ISERROR(E71/$C$70), 0, E71/$C$70) -> 40 | F76: =IF(ISERROR(F71/$C$70), 0, F71/$C$70) -> 40 | G76: =IF(ISERROR(G71/$C$70), 0, G71/$C$70) -> 80 | H76: =IF(ISERROR(H71/$C$70), 0, H71/$C$70) -> 80
A77: Additions (half year) | D77: =D72/C70/2 -> 20 | E77: =E72/C70/2 -> 0 | F77: =F72/C70/2 -> 20 | G77: =G72/C70/2 -> 0 | H77: =H72/C70/2 -> 0
A78: Closing Accumulated Amortization | D78: =SUM(D75+D77) -> 20 | E78: =SUM(E75:E77) -> 60 | F78: =SUM(F75:F77) -> 120 | G78: =SUM(G75:G77) -> 200 | H78: =SUM(H75:H77) -> 280
A80: Opening Net Fixed Assets | D80: =D71-D75 -> 0 | E80: =D81 -> 980 | F80: =E81 -> 940 | G80: =F81 -> 1880 | H80: =G81 -> 1800
A81: Closing Net Fixed Assets | D81: =D73-D78 -> 980 | E81: =E73-E78 -> 940 | F81: =F73-F78 -> 1880 | G81: =G73-G78 -> 1800 | H81: =H73-H78 -> 1720
A82: Average Net Fixed Assets | D82: =SUM(D80:D81)/2 -> 490 | E82: =SUM(E80:E81)/2 -> 960 | F82: =SUM(F80:F81)/2 -> 1410 | G82: =SUM(G80:G81)/2 -> 1840 | H82: =SUM(H80:H81)/2 -> 1760
A84: UCC for PILs Calculation
D85: 2015 | E85: =D85+1 -> 2016 | F85: =E85+1 -> 2017 | G85: 2018 | H85: 2019
A87: Opening UCC | E87: =D95 -> 960 | F87: =E95 -> 883.2 | G87: =F95 -> 812.544 | H87: =G95 -> 747.54048
A88: Capital Additions (from Appendix 2-FA) | D88: =D72 -> 1000 | E88: ='App.2-FA Proposed REG Inves (2'!D31 -> 0 | F88: ='App.2-FA Proposed REG Inves (2'!E31 -> 0 | G88: ='App.2-FA Proposed REG Inves (2'!F31 -> 0 | H88: ='App.2-FA Proposed REG Inves (2'!G31 -> 0
A89: UCC Before Half Year Rule | D89: =SUM(D87:D88) -> 1000 | E89: =SUM(E87:E88) -> 960 | F89: =SUM(F87:F88) -> 883.2 | G89: =SUM(G87:G88) -> 812.544 | H89: =SUM(H87:H88) -> 747.54048
A90: Half Year Rule (1/2 Additions - Disposals) | D90: =D88/2 -> 500 | E90: =E88/2 -> 0 | F90: =F88/2 -> 0 | G90: =G88/2 -> 0 | H90: =H88/2 -> 0
A91: Reduced UCC | D91: =D89-D90 -> 500 | E91: =E89-E90 -> 960 | F91: =F89-F90 -> 883.2 | G91: =G89-G90 -> 812.544 | H91: =H89-H90 -> 747.54048
A92: CCA Rate Class (to be entered) | C92: 47 | D92: =C92 -> 47 | E92: =C92 -> 47 | F92: =C92 -> 47 | G92: =C92 -> 47 | H92: =C92 -> 47
A93: CCA Rate (to be entered) | C93: 0.08 | D93: =C93 -> 0.08 | E93: =C93 -> 0.08 | F93: =C93 -> 0.08 | G93: =C93 -> 0.08 | H93: =C93 -> 0.08
A94: CCA | D94: =D91*D93 -> 40 | E94: =E91*E93 -> 76.8 | F94: 70.656 | G94: 65.00352 | H94: =H91*H93 -> 59.8032384
A95: Closing UCC | D95: =D89-D94 -> 960 | E95: =E89-E94 -> 883.2 | F95: =F89-F94 -> 812.544 | G95: =G89-G94 -> 747.54048 | H95: =H89-H94 -> 687.7372416

Sheet App.2-FC Calc of REG Expans (2 (hidden)
E1: File Number: | F1: =EBNUMBER -> EB-2014-0099
E2: Exhibit:
E3: Tab:
E4: Schedule:
E5: Page:
E7: Date:
A9: Appendix 2-FC
A10: Calculation of Renewable Generation Connection Direct Benefits/Provincial Amount: Renewable Expansion Investments
A12: This table will calculate the distributor/provincial shares of the investments entered in Part B of Appendix 2-FA.
A13: Enter values in green shaded cells: WCA percentage, debt percentages, interest rates, kWh, tax rates, amortization period, CCA Class and percentage.
A14: Rate Riders are not calculated for Test Year as these assets and costs are already in the distributors rate base.
D17: 2014 Test Year | G17: 2015 | J17: 2016 | K17: 2016 | M17: 2017 | P17: 2018
E18: Direct Benefit | F18: Provincial | H18: Direct Benefit | I18: Provincial | K18: Direct Benefit | L18: Provincial | N18: Direct Benefit | O18: Provincial | Q18: Direct Benefit | R18: Provincial
D19: Total | E19: 0.17 | F19: 0.83 | G19: Total | H19: 0.17 | I19: 0.83 | J19: Total | K19: 0.17 | L19: 0.83 | M19: Total | N19: 0.17 | O19: 0.83 | P19: Total | Q19: 0.17 | R19: 0.83
A20: Net Fixed Assets (average) | D20: =D81 -> 0 | E20: =D20*E19 -> 0 | F20: =D20*F19 -> 0 | G20: =E81 -> 0 | H20: =G20*H19 -> 0 | I20: =G20*I19 -> 0 | J20: =F81 -> 0 | K20: =J20*K19 -> 0 | L20: =J20*L19 -> 0 | M20: =G81 -> 0 | N20: =M20*N19 -> 0 | O20: =M20*O19 -> 0 | P20: =H81 -> 0 | Q20: =P20*Q19 -> 0 | R20: =P20*R19 -> 0
A21: Incremental OM&A (on-going, N/A for Provincial Recovery) | D21: ='App.2-FA Proposed REG Inves (2'!C$92 -> 0 | E21: =D21 -> 0 | G21: ='App.2-FA Proposed REG Inves (2'!D$92 -> 0 | H21: =G21 -> 0 | J21: ='App.2-FA Proposed REG Inves (2'!E$92 -> 0 | K21: =J21 -> 0 | M21: ='App.2-FA Proposed REG Inves (2'!F$92 -> 0 | N21: =M21 -> 0 | P21: ='App.2-FA Proposed REG Inves (2'!G$92 -> 0 | Q21: =P21 -> 0
A22: Incremental OM&A (start-up, applicable for Provincial Recovery) | D22: ='App.2-FA Proposed REG Inves (2'!C$91 -> 0 | E22: =D22*E19 -> 0 | F22: =D22*F19 -> 0 | G22: ='App.2-FA Proposed REG Inves (2'!D$91 -> 0 | H22: =G22*H19 -> 0 | I22: =G22*I19 -> 0 | J22: ='App.2-FA Proposed REG Inves (2'!E$91 -> 0 | K22: =J22*K19 -> 0 | L22: =J22*L19 -> 0 | M22: ='App.2-FA Proposed REG Inves (2'!F$91 -> 0 | N22: =M22*N19 -> 0 | O22: =M22*O19 -> 0 | P22: ='App.2-FA Proposed REG Inves (2'!G$91 -> 0 | Q22: =P22*Q19 -> 0 | R22: =P22*R19 -> 0
A23: WCA | E23: =(E21+E22)*$B$23 -> 0 | F23: =F22*$B$23 -> 0 | H23: =(H21+H22)*$B$23 -> 0 | I23: =I22*$B$23 -> 0 | K23: =(K21+K22)*$B$23 -> 0 | L23: =L22*$B$23 -> 0 | N23: =(N21+N22)*$B$23 -> 0 | O23: =O22*$B$23 -> 0 | Q23: =(Q21+Q22)*$B$23 -> 0 | R23: =R22*$B$23 -> 0
A24: Rate Base | E24: =SUM(E20+E23) -> 0 | F24: =SUM(F20+F23) -> 0 | H24: =SUM(H20+H23) -> 0 | I24: =SUM(I20+I23) -> 0 | K24: =SUM(K20+K23) -> 0 | L24: =SUM(L20+L23) -> 0 | N24: =SUM(N20+N23) -> 0 | O24: =SUM(O20+O23) -> 0 | Q24: =SUM(Q20+Q23) -> 0 | R24: =SUM(R20+R23) -> 0
A27: Deemed ST Debt | E27: =E24*$B$27 -> 0 | F27: =F24*$B$27 -> 0 | H27: =H24*$B$27 -> 0 | I27: =I24*$B$27 -> 0 | K27: =K24*$B$27 -> 0 | L27: =L24*$B$27 -> 0 | N27: =N24*$B$27 -> 0 | O27: =O24*$B$27 -> 0 | Q27: =Q24*$B$27 -> 0 | R27: =R24*$B$27 -> 0
A28: Deemed LT Debt | E28: =E24*$B$28 -> 0 | F28: =F24*$B$28 -> 0 | H28: =H24*$B$28 -> 0 | I28: =I24*$B$28 -> 0 | K28: =K24*$B$28 -> 0 | L28: =L24*$B$28 -> 0 | N28: =N24*$B$28 -> 0 | O28: =O24*$B$28 -> 0 | Q28: =Q24*$B$28 -> 0 | R28: =R24*$B$28 -> 0
A29: Deemed Equity | E29: =E24*$B$29 -> 0 | F29: =F24*$B$29 -> 0 | H29: =H24*$B$29 -> 0 | I29: =I24*$B$29 -> 0 | K29: =K24*$B$29 -> 0 | L29: =L24*$B$29 -> 0 | N29: =N24*$B$29 -> 0 | O29: =O24*$B$29 -> 0 | Q29: =Q24*$B$29 -> 0 | R29: =R24*$B$29 -> 0
A31: ST Interest | E31: =E27*$B$31 -> 0 | F31: =F27*$B$31 -> 0 | H31: =H27*$B$31 -> 0 | I31: =I27*$B$31 -> 0 | K31: =K27*$B$31 -> 0 | L31: =L27*$B$31 -> 0 | N31: =N27*$B$31 -> 0 | O31: =O27*$B$31 -> 0 | Q31: =Q27*$B$31 -> 0 | R31: =R27*$B$31 -> 0
A32: LT Interest | E32: =E28*$B$32 -> 0 | F32: =F28*$B$32 -> 0 | H32: =H28*$B$32 -> 0 | I32: =I28*$B$32 -> 0 | K32: =K28*$B$32 -> 0 | L32: =L28*$B$32 -> 0 | N32: =N28*$B$32 -> 0 | O32: =O28*$B$32 -> 0 | Q32: =Q28*$B$32 -> 0 | R32: =R28*$B$32 -> 0
A33: ROE | E33: =E29*$B$33 -> 0 | F33: =F29*$B$33 -> 0 | H33: =H29*$B$33 -> 0 | I33: =I29*$B$33 -> 0 | K33: =K29*$B$33 -> 0 | L33: =L29*$B$33 -> 0 | N33: =N29*$B$33 -> 0 | O33: =O29*$B$33 -> 0 | Q33: =Q29*$B$33 -> 0 | R33: =R29*$B$33 -> 0
A34: Cost of Capital Total | E34: =SUM(E31:E33) -> 0 | F34: =SUM(F31:F33) -> 0 | H34: =SUM(H31:H33) -> 0 | I34: =SUM(I31:I33) -> 0 | K34: =SUM(K31:K33) -> 0 | L34: =SUM(L31:L33) -> 0 | N34: =SUM(N31:N33) -> 0 | O34: =SUM(O31:O33) -> 0 | Q34: =SUM(Q31:Q33) -> 0 | R34: =SUM(R31:R33) -> 0
A36: OM&A | E36: =E21+E22 -> 0 | F36: =F22 -> 0 | H36: =H21+H22 -> 0 | I36: =I22 -> 0 | K36: =K21+K22 -> 0 | L36: =L22 -> 0 | N36: =N21+N22 -> 0 | O36: =O22 -> 0 | Q36: =Q21+Q22 -> 0 | R36: =R22 -> 0
A37: Amortization | D37: =D77 -> 0 | E37: =D37*E$19 -> 0 | F37: =D37*F$19 -> 0 | G37: =E75+E76 -> 0 | H37: =G37*H$19 -> 0 | I37: =G37*I$19 -> 0 | J37: =F75+F76 -> 0 | K37: =J37*K$19 -> 0 | L37: =J37*L$19 -> 0 | M37: =G75+G76 -> 0 | N37: =M37*N$19 -> 0 | O37: =M37*O$19 -> 0 | P37: =H75+H76 -> 0 | Q37: =P37*Q$19 -> 0 | R37: =P37*R$19 -> 0
A38: Grossed-up PILs | E38: =E65 -> 0 | F38: =F65 -> 0 | H38: =H65 -> 0 | I38: =I65 -> 0 | K38: =K65 -> 0 | L38: =L65 -> 0 | N38: =N65 -> 0 | O38: =O65 -> 0 | Q38: =Q65 -> 0 | R38: =R65 -> 0
A40: Revenue Requirement | E40: =SUM(E34:E38) -> 0 | F40: =SUM(F34:F38) -> 0 | H40: =SUM(H34:H38) -> 0 | I40: =SUM(I34:I38) -> 0 | K40: =SUM(K34:K38) -> 0 | L40: =SUM(L34:L38) -> 0 | N40: =SUM(N34:N38) -> 0 | O40: =SUM(O34:O38) -> 0 | Q40: =SUM(Q34:Q38) -> 0 | R40: =SUM(R34:R38) -> 0
A43: Provincial Rate Protection | F43: =F40 -> 0 | I43: =I40 -> 0 | L43: =L40 -> 0 | O43: =O40 -> 0 | R43: =R40 -> 0
A45: Monthly Amount Paid by IESO | F45: =F43/12 -> 0 | I45: =I43/12 -> 0 | L45: =L43/12 -> 0 | O45: =O43/12 -> 0 | R45: =R43/12 -> 0
A47: Note 1: The difference between the actual costs of approved eligible investments and revenue received from the IESO should be recorded in a variance account. The Board may provide
A48: regulatory accounting guidance regarding a variance account either in an individual proceeding or on a generic basis.
A49: Note 2: For the 2014 Test Year, Costs and Revenues of the Direct Benefit are to be included in the test year applicant Rate Base and Revenues.
A51: PILs Calculation
E52: 2014 | H52: 2015 | K52: 2016 | N52: 2017 | Q52: 2018
A53: Income Tax | E53: Direct Benefit | F53: Provincial | H53: Direct Benefit | I53: Provincial | K53: Direct Benefit | L53: Provincial | N53: Direct Benefit | O53: Provincial | Q53: Direct Benefit | R53: Provincial
M54: Total | P54: Total
A55: Net Income - ROE on Rate Base | E55: =E33 -> 0 | F55: =F33 -> 0 | H55: =H33 -> 0 | I55: =I33 -> 0 | K55: =K33 -> 0 | L55: =L33 -> 0 | N55: =N33 -> 0 | O55: =O33 -> 0 | Q55: =Q33 -> 0 | R55: =R33 -> 0
A56: Amortization (17% DB and 83% P) | E56: =E37 -> 0 | F56: =F37 -> 0 | H56: =H37 -> 0 | I56: =I37 -> 0 | K56: =K37 -> 0 | L56: =L37 -> 0 | N56: =N37 -> 0 | O56: =O37 -> 0 | Q56: =Q37 -> 0 | R56: =R37 -> 0
A57: CCA (17% DB and 83% P) | E57: =-D93*E$19 -> 0 | F57: =-D93*F$19 -> 0 | H57: =-E93*H$19 -> 0 | I57: =-E93*I$19 -> 0 | K57: =-F93*K$19 -> 0 | L57: =-F93*L$19 -> 0 | N57: =-G93*N$19 -> 0 | O57: =-G93*O$19 -> 0 | Q57: =-H93*Q$19 -> 0 | R57: =-H93*R$19 -> 0
A58: Taxable income | E58: =SUM(E55:E57) -> 0 | F58: =SUM(F55:F57) -> 0 | H58: =SUM(H55:H57) -> 0 | I58: =SUM(I55:I57) -> 0 | K58: =SUM(K55:K57) -> 0 | L58: =SUM(L55:L57) -> 0 | N58: =SUM(N55:N57) -> 0 | O58: =SUM(O55:O57) -> 0 | Q58: =SUM(Q55:Q57) -> 0 | R58: =SUM(R55:R57) -> 0
A60: Tax Rate (to be entered)
A62: Income Taxes Payable | E62: =E58*E60 -> 0 | F62: =F58*F60 -> 0 | H62: =H58*H60 -> 0 | I62: =I58*I60 -> 0 | K62: =K58*K60 -> 0 | L62: =L58*L60 -> 0 | N62: =N58*N60 -> 0 | O62: =O58*O60 -> 0 | Q62: =Q58*Q60 -> 0 | R62: =R58*R60 -> 0
A63: Gross Up
A64: Income Taxes Payable | E64: =E62/(1-E60) -> 0 | F64: =F62/(1-F60) -> 0 | H64: =H62/(1-H60) -> 0 | I64: =I62/(1-I60) -> 0 | K64: =K62/(1-K60) -> 0 | L64: =L62/(1-L60) -> 0 | N64: =N62/(1-N60) -> 0 | O64: =O62/(1-O60) -> 0 | Q64: =Q62/(1-Q60) -> 0 | R64: =R62/(1-R60) -> 0
A65: Grossed Up PILs | E65: =SUM(E64:E64) -> 0 | F65: =SUM(F64:F64) -> 0 | H65: =SUM(H64:H64) -> 0 | I65: =SUM(I64:I64) -> 0 | K65: =SUM(K64:K64) -> 0 | L65: =SUM(L64:L64) -> 0 | N65: =SUM(N64:N64) -> 0 | O65: =SUM(O64:O64) -> 0 | Q65: =SUM(Q64:Q64) -> 0 | R65: =SUM(R64:R64) -> 0
A68: Net Fixed Assets | D68: 2014 | E68: 2015 | F68: 2016 | G68: 2017 | H68: 2018
B69: Enter applicable amortization in years: | C69: 25
A70: Opening Gross Fixed Assets | E70: =D72 -> 0 | F70: =E72 -> 0 | G70: =F72 -> 0 | H70: =G72 -> 0
A71: Gross Capital Additions | D71: ='App.2-FA Proposed REG Inves (2'!C90 -> 0 | E71: ='App.2-FA Proposed REG Inves (2'!D90 -> 0 | F71: ='App.2-FA Proposed REG Inves (2'!E90 -> 0 | G71: ='App.2-FA Proposed REG Inves (2'!F90 -> 0 | H71: ='App.2-FA Proposed REG Inves (2'!G90 -> 0
A72: Closing Gross Fixed Assets | D72: =SUM(D70:D71) -> 0 | E72: =SUM(E70:E71) -> 0 | F72: =SUM(F70:F71) -> 0 | G72: =SUM(G70:G71) -> 0 | H72: =SUM(H70:H71) -> 0
A74: Opening Accumulated Amortization | E74: =D77 -> 0 | F74: =E77 -> 0 | G74: =F77 -> 0 | H74: =G77 -> 0
A75: Current Year Amortization (before additions) | E75: =E70/$C$69 -> 0 | F75: =F70/$C$69 -> 0 | G75: =G70/$C$69 -> 0 | H75: =H70/$C$69 -> 0
A76: Additions (half year) | D76: =D71/C69/2 -> 0 | E76: =E71/C69/2 -> 0 | F76: =F71/C69/2 -> 0 | G76: =G71/C69/2 -> 0 | H76: =H71/C69/2 -> 0
A77: Closing Accumulated Amortization | D77: =SUM(D74+D76) -> 0 | E77: =SUM(E74:E76) -> 0 | F77: =SUM(F74:F76) -> 0 | G77: =SUM(G74:G76) -> 0 | H77: =SUM(H74:H76) -> 0
A79: Opening Net Fixed Assets | D79: =D70-D74 -> 0 | E79: =D80 -> 0 | F79: =E80 -> 0 | G79: =F80 -> 0 | H79: =G80 -> 0
A80: Closing Net Fixed Assets | D80: =D72-D77 -> 0 | E80: =E72-E77 -> 0 | F80: =F72-F77 -> 0 | G80: =G72-G77 -> 0 | H80: =H72-H77 -> 0
A81: Average Net Fixed Assets | D81: =SUM(D79:D80)/2 -> 0 | E81: =SUM(E79:E80)/2 -> 0 | F81: =SUM(F79:F80)/2 -> 0 | G81: =SUM(G79:G80)/2 -> 0 | H81: =SUM(H79:H80)/2 -> 0
A83: UCC for PILs Calculation
D84: 2014 | E84: 2015 | F84: 2016 | G84: 2017 | H84: 2018
A86: Opening UCC | E86: =D94 -> 0 | F86: =E94 -> 0 | G86: =F94 -> 0 | H86: =G94 -> 0
A87: Capital Additions (from Appendix 2-FA) | D87: =D71 -> 0 | E87: =E71 -> 0 | F87: =F71 -> 0 | G87: =G71 -> 0 | H87: =H71 -> 0
A88: UCC Before Half Year Rule | D88: =SUM(D86:D87) -> 0 | E88: =SUM(E86:E87) -> 0 | F88: =SUM(F86:F87) -> 0 | G88: =SUM(G86:G87) -> 0 | H88: =SUM(H86:H87) -> 0
A89: Half Year Rule (1/2 Additions - Disposals) | D89: =D87/2 -> 0 | E89: =E87/2 -> 0 | F89: =F87/2 -> 0 | G89: =G87/2 -> 0 | H89: =H87/2 -> 0
A90: Reduced UCC | D90: =D88-D89 -> 0 | E90: =E88-E89 -> 0 | F90: =F88-F89 -> 0 | G90: =G88-G89 -> 0 | H90: =H88-H89 -> 0
A91: CCA Rate Class (to be entered) | C91: 47 | D91: =C91 -> 47 | E91: =C91 -> 47 | F91: =C91 -> 47 | G91: =C91 -> 47 | H91: =C91 -> 47
A92: CCA Rate (to be entered) | C92: 0.08 | D92: =C92 -> 0.08 | E92: =C92 -> 0.08 | F92: =C92 -> 0.08 | G92: =C92 -> 0.08 | H92: =C92 -> 0.08
A93: CCA | D93: =D90*D$92 -> 0 | E93: =E90*E$92 -> 0 | F93: 0 | G93: 0 | H93: 0
A94: Closing UCC | D94: =D88-D93 -> 0 | E94: =E88-E93 -> 0 | F94: =F88-F93 -> 0 | G94: =G88-G93 -> 0 | H94: =H88-H93 -> 0

Sheet App.2-G SQI
I1: File Number: | K1: =EBNUMBER -> EB-2014-0099
I2: Exhibit: | K2: 2
I4: Date: | K4: ='App.2-AA_Capital Projects'!$I$4 -> 2014-12-12
A6: Appendix 2-G
A7: Service Reliability Indicators
A8: 2009 - 2013
A10: Index | B10: Includes outages caused by loss of supply | G10: Excludes outages caused by loss of supply
B11: 2009 | C11: 2010 | D11: 2011 | E11: 2012 | F11: 2013 | G11: 2009 | H11: 2010 | I11: 2011 | J11: 2012 | K11: 2013
A12: SAIDI | B12: 1.93 | C12: 2.76 | D12: 2.91 | E12: 2.04 | F12: 2.81 | G12: 1.56 | H12: 2.72 | I12: 2.87 | J12: 1.6 | K12: 2.32
A13: SAIFI | B13: 1.63 | C13: 2.86 | D13: 2.37 | E13: 2.68 | F13: 3.07 | G13: 1.48 | H13: 2.75 | I13: 2.16 | J13: 2.29 | K13: 1.89
A15: 5 Year Historical Average
A16: SAIDI | F16: =IF(ISERROR(AVERAGE(B12:F12)), "", AVERAGE(B12:F12)) -> 2.49 | K16: =IF(ISERROR(AVERAGE(G12:K12)), "", AVERAGE(G12:K12)) -> 2.214
A17: SAIFI | F17: =IF(ISERROR(AVERAGE(B13:F13)), "", AVERAGE(B13:F13)) -> 2.522 | K17: =IF(ISERROR(AVERAGE(G13:K13)), "", AVERAGE(G13:K13)) -> 2.114
A19: SAIDI = System Average Interruption Duration Index
A20: SAIFI = System Average Interruption Frequency Index
A23: Indicator | C23: OEB Minimum Standard | D23: 2009 | E23: 2010 | F23: 2011 | G23: 2012 | H23: 2013
A24: Low Voltage Connections | C24: 0.9 | D24: 1 | E24: 1 | F24: 1 | G24: 1 | H24: 1
A25: High Voltage Connections | C25: 0.9 | D25: 1 | E25: 1 | F25: 1 | G25: 1 | H25: 1
A26: Telephone Accessibility | C26: 0.65 | D26: 0.532 | E26: 0.765 | F26: 0.716 | G26: 0.772 | H26: 0.782
A27: Appointments Met | C27: 0.9 | D27: 1 | E27: 1 | F27: 1 | G27: 1 | H27: 1
A28: Written Response to Enquires | C28: 0.8 | D28: 1 | E28: 1 | F28: 1 | G28: 1 | H28: 1
A29: Emergency Urban Response | C29: 0.8 | D29: 1 | E29: 1 | F29: 1 | G29: 1 | H29: 1
A30: Emergency Rural Response | C30: 0.8 | D30: 1 | E30: 1 | F30: 1 | G30: 1 | H30: 1
A31: Telephone Call Abandon Rate | C31: 0.1 | D31: 0.09 | E31: 0.024 | F31: 0.028 | G31: 0.024 | H31: 0.061
A32: Appointment Scheduling | C32: 0.9 | D32: 1 | E32: 1 | F32: 0.99 | G32: 1 | H32: 1
A33: Rescheduling a Missed Appointment | C33: 1 | D33: N/A | E33: N/A | F33: 1 | G33: N/A | H33: N/A
A34: Reconnection Performance Standard | C34: 0.85 | D34: N/A | E34: N/A | F34: 1 | G34: 1 | H34: 1

Sheet App.2-H_Other_Oper_Rev
H1: File Number: | I1: =EBNUMBER -> EB-2014-0099
H2: Exhibit: | I2: 3
H4: Date: | I4: ='App.2-AA_Capital Projects'!$I$4 -> 2014-12-12
A6: Appendix 2-H
A7: Other Operating Revenue
A9: USoA # | B9: USoA Description | C9: =G10-4 & " Actual" -> 2010 Actual | D9: =G10-3 & " Actual" -> 2011 Actual | E9: =G10-2 & " Actual" -> 2012 Actual | F9: =G10-1 & " Actual" -> 2013 Actual | G9: ="Bridge Year" & CHAR(178) -> Bridge Year² | H9: ="Bridge Year" & CHAR(178) -> Bridge Year² | I9: Test Year
G10: =H10 -> 2014 | H10: =BridgeYear -> 2014 | I10: =TestYear -> 2015
B11: Reporting Basis | C11: CGAAP | D11: CGAAP | E11: CGAAP | F11: CGAAP | G11: CGAAP | H11: MIFRS | I11: MIFRS
A12: 4235 | B12: Specific Service Charges | C12: 475396 | D12: 541103 | E12: 614482 | F12: 582708 | G12: 597175 | H12: 597175 | I12: 578856
A13: 4225 | B13: Late Payment Charges | C13: 160010 | D13: 143942.4 | E13: 130386 | F13: 125518 | G13: 136983 | H13: 136983 | I13: 136983
A14: 4080-2 | B14: SSS Administration | C14: 79656 | D14: 81266.4 | E14: 83258 | F14: 84210 | G14: 82970 | H14: 82970 | I14: 83834
A15: 4210 | B15: Rent from Electric Property | C15: 166228 | D15: 208692 | E15: 197332 | F15: 198181 | G15: 199444 | H15: 199444 | I15: 198208
A16: 4245 | B16: Contributed Capital | H16: 12534 | I16: 30668
A17: 4305 | B17: Regulatory Debits | E17: -1132571 | F17: -1164967 | G17: -1147924 | H17: -1147924 | I17: -2171924
A18: 4325 | B18: Revenues from Merchandising, Jobbing | C18: 5000 | E18: -12 | G18: 3689 | H18: 3689 | I18: 4400
A19: 4330 | B19: Costs from Merchandising, Jobbing | C19: 88 | D19: 5489 | E19: -4064 | F19: 21013
A20: 4355 | B20: Gain on Disposition of Utility Property | C20: 950 | D20: 4975 | E20: 347552 | F20: 12300 | G20: 8455 | H20: 8455 | I20: 0
A21: 4360 | B21: Loss on Disposition of Utility Property | D21: -1328 | F21: -157
A22: 4362 | B22: Loss from Retirement of Utility Property | G22: -65870 | H22: -65870 | I22: -78456
A23: 4375 | B23: Revenues from Non-Utility Operations | C23: 402333 | D23: 812144 | E23: 1364800 | F23: 1798725 | G23: 3147368 | H23: 3147368 | I23: 2556998
A24: 4380 | B24: Expense from Non-Utility Operations | C24: -409054.4 | D24: -746164 | E24: -1242614 | F24: -1775798 | G24: -3076276 | H24: -3076276 | I24: -2505068
A25: 4390 | B25: Miscellaneous Non-Operating Income | C25: 10357 | D25: 13946 | E25: 18851 | F25: 208417 | G25: 319505 | H25: 319505 | I25: 11925
A26: 4398 | B26: Foreign Exchange Gains and Losses | C26: -4521.4 | D26: 8378 | E26: -4060 | F26: 11365 | G26: 14684 | H26: 14684
A27: 4405 | B27: Interest and Dividend Income | C27: 113949 | D27: 102088 | E27: 159112 | F27: 195869 | G27: -83680 | H27: -83680 | I27: 103795
A30: Specific Service Charges | C30: =C12 -> 475396 | D30: 541103 | E30: 614482 | F30: 582708 | G30: 597175 | H30: 597175 | I30: 578856
A31: Late Payment Charges | C31: 160010 | D31: 143942.4 | E31: 130386 | F31: 125518 | G31: 136983 | H31: 136983 | I31: 136983
A32: Other Operating Revenues | C32: =+C14+C15+C16 -> 245884 | D32: =+D14+D15+D16 -> 289958.4 | E32: 280590 | F32: 282391 | G32: 282414 | H32: 294948 | I32: 312710
A33: Other Income or Deductions | C33: =+C17+C18+C19+C20+C21+C22+C23+C24+C25+C26+C27 -> 119101.2 | D33: =+D17+D18+D19+D20+D21+D22+D23+D24+D25+D26+D27 -> 199528 | E33: =+E17+E18+E19+E20+E21+E22+E23+E24+E25+E26+E27-1 -> -493007 | F33: =+F17+F18+F19+F20+F21+F22+F23+F24+F25+F26+F27 -> -693233 | G33: =+G17+G18+G19+G20+G21+G22+G23+G24+G25+G26+G27 -> -880049 | H33: =+H17+H18+H19+H20+H21+H22+H23+H24+H25+H26+H27+1 -> -880048 | I33: -2078330
A34: Total OEB Trial Balance | C34: =SUM(C30:C33) -> 1000391.2 | D34: =SUM(D30:D33) -> 1174531.8 | E34: 532451 | F34: 297384 | G34: 136523 | H34: 149058 | I34: -1049781
A36: Less
A37: 4245 | B37: Contributed Capital | C37: =+C16 -> 0 | D37: =+D16 -> 0 | E37: 0 | F37: 0 | G37: 0 | H37: 12534 | I37: 30668
A38: 4305 | B38: Regulatory Debits | C38: =+C17 -> 0 | D38: =+D17 -> 0 | E38: -1132571 | F38: -1164967 | G38: -1147924 | H38: -1147924 | I38: -2171924
A39: 4362 | B39: Loss from Retirement of Utility Property | C39: =+C22 -> 0 | D39: 0 | E39: 0 | F39: 0 | G39: -65870 | H39: -65870 | I39: -78456
A40: 4405 | B40: Variance Account Interest | C40: 36614 | D40: -1465 | E40: 81326 | F40: 83986 | G40: -169632 | H40: -169632 | I40: 15997
A41: Total Other Revenue | C41: =+C34-SUM(C37:C40) -> 963777.2 | D41: 1175996.8 | E41: 1583696 | F41: 1378365 | G41: 1519949 | H41: 1519950 | I41: 1153934
A44: Description | D44: Account(s)
A45: Specific Service Charges: | D45: 4235
A46: Late Payment Charges: | D46: 4225
A47: Other Distribution Revenues: | D47: 4080, 4082, 4084, 4090, 4205, 4210, 4215, 4220, 4240, 4245
A48: Other Income and Expenses: | D48: 4305, 4310, 4315, 4320, 4325, 4330, 4335, 4340, 4345, 4350, 4355, 4360, 4365, 4370, 4375, 4380, 4385, 4390, 4395, 4398, 4405, 4415
A51: Note: Add all applicable accounts listed above to the table and include all relevant information.
A53: Account Breakdown Details
A55: For each "Other Operating Revenue" and "Other Income or Deductions" Account, a detailed breakdown of the account components is required. See the example below for Account 4405, Interest and Dividend Income.
A59: Account 4235 - Specific Service Charges | C59: =+C9 -> 2010 Actual | D59: =+D9 -> 2011 Actual | E59: 2012 Actual | F59: 2013 Actual | G59: Bridge Year² | H59: Bridge Year² | I59: Test Year
G60: =+G10 -> 2014 | H60: =+H10 -> 2014 | I60: 2015
A61: Reporting Basis | C61: CGAAP | D61: CGAAP | E61: CGAAP | F61: CGAAP | G61: CGAAP | H61: MIFRS | I61: MIFRS
A63: Misc Service Revenue | C63: 9299 | D63: 7670 | E63: 6557 | F63: 7765 | G63: 9528 | H63: 9528 | I63: 7330.333333
A64: Change of Occupancy | C64: 90720 | D64: 84360 | E64: 86010 | F64: 83790 | G64: 88960 | H64: 88960 | I64: 84720
A65: Collection Charges | C65: 283735 | D65: 312090 | E65: 404990 | F65: 406660 | G65: 428880 | H65: 428880 | I65: 404600
A66: Special Disc/Rec | C66: 240 | D66: 865 | E66: 3520 | F66: 3380 | G66: 1600 | H66: 1600 | I66: 2588.333333
A67: Legal Letters | C67: 2895 | D67: 2142 | E67: 2388 | F67: 2084 | G67: 2000 | H67: 2000 | I67: 2208
A68: Returned Chg Charges | C68: 8670 | D68: 7785 | E68: 6315 | F68: 5835 | G68: -185 | H68: -185 | I68: 6645
A69: Service Calls | C69: 46460 | D69: 41822 | E69: 38960 | F69: 35050 | G69: 6870 | H69: 6870 | I69: 38612
A70: Disconnet/Rec Nowk | C70: 33250 | D70: 25179 | E70: 35042 | F70: 36237 | G70: 35380 | H70: 35380 | I70: 32152.66667
A71: Meter Test Charges | F71: 30 | G71: 24142 | H71: 24142
A72: Micro fit | C72: 127 | D72: 536 | E72: 1013 | F72: 1874
A73: LPP Rate Rider | D73: 50039 | E73: 38302 | F73: 3
A74: LPP Rate Rider Unbilled | D74: 8615 | E74: -8615
